Workbook

Sheet Updates
A1: 6/26/2023 Update:
A2: The Reserve Factor Calculator has been updated to correct an error in which the formula for the death and recovery rates in duration 9 was using the ultimate rates rather than select rates.

Sheet Information
A2: Society of Actuaries ("SOA") Group Life Experience Committee
A3: Calculation Spreadsheet for Reserve Factors for Group Term Life Waiver of Premium (NAIC Version)
A4: General Information
A7: This Microsoft® Excel workbook has been developed by the SOA's Group Life Experience Committee to assist
A8: companies wishing to develop reserve factors consistent with the NAIC Guideline for Group Term Life Waiver Reserves
A10: Description of the sheets:
B12: Input
C13: "Assumptions" contains the basic assumptions include mortality and recovery factors,
C14: valuation interest rate, and benefit pattern code. The benefit patterns are also shown.
C15: Input items are shown in red.
C16: "2023 Rates - Males" and "2023 Rates - Females" contain the select & ultimate mortality and
C17: recovery rates for males and females respectively.
B19: Interim Calculations
C20: "M-xx" and "F-xx" contain the reserve calculations for each central age ("xx") for males and
C21: females respectively.
B23: Results
C24: "Reserve Factor Tables" contains the summary of the reserve factors that are calculated in sheets
C25: M-xx and F-xx.
B28: This workbook was developed from the Krieger.wk1 that had previously been posted on the SOA website.
B29: The Committee would like to thank that author and others who worked on updating the workbook.
B31: The Report of the Group Life Experience Committee of June of 2023 can be found on the SOA website
B32: https://www.soa.org/resources/experience-studies/2023/group-life-waiver/
B34: If you have questions, please contact Patrick Nolan, Experience Studies Actuary, at the Society of Actuaries
B35: research@soa.org
B38: Group Life Experience Committee
B39: June 2023

Sheet Assumptions
A2: Society of Actuaries ("SOA") Group Life Experience Committee
A3: Calculation Spreadsheet for Reserve Factors for Group Term Life Waiver of Premium (NAIC Version)
A4: General Assumptions
A8: 1. Input Items
A12: Valuation Interest Rate | C12: 0.0325
A13: Benefit Pattern | B13: Selects benefit reduction pattern. | C13: 5 | D13: =VLOOKUP(Benefit_Option,DB_DESC,2,FALSE) -> Pattern 5 - No coverage after age 65
A14: To Age XX input | B14: Must be between 65 and 80 | C14: 65
A15: Diagnosis Category | C15: Invalid
A16: Diagnosis Group - Death | C16: =VLOOKUP(ClaimDiagnosisBucket,$A$82:$C$98,3,FALSE) -> Unclassified
A17: Diagnosis Group - Recovery | C17: =VLOOKUP(ClaimDiagnosisBucket,$A$82:$C$98,2,FALSE) -> Unclassified
A18: Own Experience Exemption | B18: Per AG44 Section VI.D | C18: No
A21: Experience Adjustment Factors (Tm and Tg) Based on Company's Experience relative to SOA Table valuation table (Sm and Sg)
A23: Duration Months | B23: 5-year Mortality Actual # - C(m) | C23: 5-year Mortality Expected # - N(m) | D23: Company Mortality A/E - F(m) | E23: Mortality Credibility - Z(m) | F23: Margin To be Applied - M(m) | G23: Valuation Mortality Adjustment - T(m)
A24: 0-24 months | B24: 500 | C24: 600 | D24: =B24/C24 -> 0.8333333333 | E24: =MIN(1,SQRT(C24/800)) -> 0.8660254038 | F24: =MIN(15%,MAX(5%,3%+1.65*SQRT(1/B24))) -> 0.1037902433 | G24: =MAX(75%,IF(CompanyExemption="No",(E24*D24+(1-E24))*(1+F24),115%)) -> 0.9444718447
A25: 25-60 months | B25: 800 | C25: 900 | D25: =B25/C25 -> 0.8888888889 | E25: =MIN(1,SQRT(C25/800)) -> 1 | F25: =MIN(15%,MAX(5%,3%+1.65*SQRT(1/B25))) -> 0.08833630945 | G25: =MAX(75%,IF(CompanyExemption="No",(E25*D25+(1-E25))*(1+F25),115%)) -> 0.9674100528
A26: 61+ months | B26: 650 | C26: 700 | D26: 0.9285714286 | E26: 0.9354143467 | F26: 0.0947183246 | G26: =MAX(75%,IF(CompanyExemption="No",(E26*D26+(1-E26))*(1+F26),115%)) -> 1.02157438
A28: Duration Months | B28: 5-year Recovery Actual # - C(g) | C28: 5-year Recovery Expected # - N(g) | D28: Company Recovery A/E - F(g) | E28: Recovery Credibility - Z(g) | F28: Margin To be Applied - M(g) | G28: Valuation Recovery Adjustment - T(g)
A29: 0-24 months | B29: 1000 | C29: 600 | D29: =B29/C29 -> 1.666666667 | E29: =MIN(1,SQRT(C29/1700)) -> 0.5940885258 | F29: =MIN(15%,MAX(5%,3%+1.65*SQRT(2/B29))) -> 0.1037902433 | G29: =IF(CompanyExemption="No",(E29*D29+(1-E29))*(1-F29),85%) -> 1.251161712
A30: 25-60 months | B30: 1500 | C30: 900 | D30: =B30/C30 -> 1.666666667 | E30: =MIN(1,SQRT(C30/1700)) -> 0.7276068751 | F30: =MIN(15%,MAX(5%,3%+1.65*SQRT(2/B30))) -> 0.09024948133 | G30: =IF(CompanyExemption="No",(E30*D30+(1-E30))*(1-F30),85%) -> 1.35104434
A31: 61+ months | B31: 900 | C31: 700 | D31: 1.285714286 | E31: 0.6416889479 | F31: 0.1077817459 | G31: =IF(CompanyExemption="No",(E31*D31+(1-E31))*(1-F31),85%) -> 1.055797281
A42: 2. Death Benefit Reduction Patterns
A44: It is common for death benefits to reduce or terminate at older certain ages. Below are common patterns.
A45: The death benefit payable is multiplied by the applicable factor shown below based on the benefit
A46: pattern input above.
B47: Death Benefit Pattern Descriptions
B48: Code | C48: Description
B49: 1 | C49: Pattern 1 - No reduction, lifetime benefits
B50: 2 | C50: Pattern 2 - 50% starting at age 65
B51: 3 | C51: Pattern 3 - Decreases to 50% at age 69, 50% ultimate
B52: 4 | C52: Pattern 4 - Decreases to 65% at age 70, 50% at age 75
B53: 5 | C53: ="Pattern 5 - No coverage after age "&C14 -> Pattern 5 - No coverage after age 65
B54: 6 | C54: Pattern 6 - Decreases to 65% at 65, 35% at 70, 25% at 80
B57: Att | C57: Pattern | D57: Pattern | E57: Pattern | F57: Pattern | G57: Pattern | H57: Pattern
B58: Age | C58: 1 | D58: 2 | E58: 3 | F58: 4 | G58: 5 | H58: 6
B59: 17 | C59: 1 | D59: 1 | E59: 1 | F59: 1 | G59: 1 | H59: 1
B60: 64 | C60: 1 | D60: 1 | E60: 1 | F60: 1 | G60: =IF(ToAgeXX>B60,100%,0%) -> 1 | H60: 1
B61: 65 | C61: 1 | D61: 0.5 | E61: 0.9 | F61: 1 | G61: 0 | H61: 0.65
B62: 66 | C62: 1 | D62: 0.5 | E62: 0.8 | F62: 1 | G62: 0 | H62: 0.65
B63: 67 | C63: 1 | D63: 0.5 | E63: 0.7 | F63: 1 | G63: 0 | H63: 0.65
B64: 68 | C64: 1 | D64: 0.5 | E64: 0.6 | F64: 1 | G64: 0 | H64: 0.65
B65: 69 | C65: 1 | D65: 0.5 | E65: 0.5 | F65: 1 | G65: 0 | H65: 0.65
B66: 70 | C66: 1 | D66: 0.5 | E66: 0.5 | F66: 0.65 | G66: 0 | H66: 0.35
B67: 71 | C67: 1 | D67: 0.5 | E67: 0.5 | F67: 0.65 | G67: 0 | H67: 0.35
B68: 72 | C68: 1 | D68: 0.5 | E68: 0.5 | F68: 0.65 | G68: 0 | H68: 0.35
B69: 73 | C69: 1 | D69: 0.5 | E69: 0.5 | F69: 0.65 | G69: 0 | H69: 0.35
B70: 74 | C70: 1 | D70: 0.5 | E70: 0.5 | F70: 0.65 | G70: 0 | H70: 0.35
B71: 75 | C71: 1 | D71: 0.5 | E71: 0.5 | F71: 0.5 | G71: 0 | H71: 0.25
B72: 76 | C72: 1 | D72: 0.5 | E72: 0.5 | F72: 0.5 | G72: 0 | H72: 0.25
B73: 77 | C73: 1 | D73: 0.5 | E73: 0.5 | F73: 0.5 | G73: 0 | H73: 0.25
B74: 78 | C74: 1 | D74: 0.5 | E74: 0.5 | F74: 0.5 | G74: 0 | H74: 0.25
B75: 79 | C75: 1 | D75: 0.5 | E75: 0.5 | F75: 0.5 | G75: 0 | H75: 0.25
B76: 80 | C76: 1 | D76: 0.5 | E76: 0.5 | F76: 0.5 | G76: 0 | H76: 0.25
A79: 3. Diagnosis Looks ups
A82: Diagnosis Category | B82: Recovery Grouping | C82: Mortality Grouping
A83: Back | B83: Medium | C83: Low Non-Cancer
A84: Cancer | B84: Medium | C84: Cancer
A85: Circulatory | B85: Low | C85: Low Non-Cancer
A86: Diabetes | B86: Low | C86: High Non-Cancer
A87: Diagnosis not provided | B87: Unclassified | C87: Unclassified
A88: Digestive | B88: Medium | C88: High Non-Cancer
A89: Ill-defined and Misc Conditions | B89: Low | C89: Low Non-Cancer
A90: Injury other than back | B90: High | C90: Low Non-Cancer
A91: Invalid | B91: Unclassified | C91: Unclassified
A92: Maternity | B92: High | C92: Low Non-Cancer
A93: Mental and Nervous | B93: High | C93: Low Non-Cancer
A94: Nervous System | B94: Low | C94: Low Non-Cancer
A95: Other | B95: Low | C95: High Non-Cancer
A96: Other Musculoskeletal | B96: High | C96: Low Non-Cancer
A97: Respiratory | B97: Low | C97: High Non-Cancer
A98: Unknown | B98: Unclassified | C98: Unclassified

Sheet 2023 Rates - Males
Z2: Society of Actuaries ("SOA") Group Life Experience Committee
Z3: Calculation Spreadsheet for Reserve Factors for Group Term Life Waiver of Premium
Z4: 2023 Mortality and Recovery Rates Males
Z8: 2023 GRP LIFE DISABILITY VALUATION TABLE - TERMINATION RATES PER 1,000 LIVES - MALES | BH8: Ultimate Period | BI8: Recovery Diagnosis Group Adjustments | BO8: Ultimate Period | BP8: Death Diagnosis Group Adjustments
BB9: NAIC Table With No Margin | BH9: Att | BO9: Att
Z10: PROBABILITY OF DEATH OR RECOVERY - SELECT PERIOD@ | AO10: COL OFFSET | AR10: NAIC Table with Diag and Company Adjustment | AW10: NAIC Table With Diagnosis Adjustment | BB10: MALES | BH10: Age | BI10: Unclassified | BJ10: Low | BK10: Medium | BL10: High | BO10: Age | BP10: Unclassified | BQ10: Low Non-Cancer | BR10: High Non-Cancer | BS10: Cancer
Z11: Central Age => | AA11: 17 | AB11: 22 | AC11: 27 | AD11: 32 | AE11: 37 | AF11: 42 | AG11: 47 | AH11: 52 | AI11: 57 | AJ11: 62 | AK11: 67 | AL11: 72 | AM11: 73 | AO11: Dis | AR11: Att | AS11: Term. | AT11: Recov | AU11: Death | AW11: Att | AX11: Term. | AY11: Recov | AZ11: Death | BB11: Att | BC11: Term. | BD11: Recov | BE11: Death | BG11: 0 | BH11: 0-44 | BI11: 1 | BJ11: 0.7 | BK11: 1.25 | BL11: 1.1 | BN11: 0 | BO11: 0-44 | BP11: 1 | BQ11: 0.75 | BR11: 1.7 | BS11: 2
AO12: Age | AP12: Col. | AR12: Age | AS12: Rate | AT12: Rate | AU12: Rate | AW12: Age | AX12: Rate | AY12: Rate | AZ12: Rate | BB12: Age | BC12: Rate | BD12: Rate | BE12: Rate | BG12: 45 | BH12: 45-49 | BI12: 1 | BJ12: 0.7 | BK12: 1.25 | BL12: 1.05 | BN12: 45 | BO12: 45-59 | BP12: 1 | BQ12: 0.85 | BR12: 1.6 | BS12: 2
Z13: Year of Dis. | AO13: 17 | AP13: 0 | AR13: 27 | AS13: =AT13+AU13 -> 91.45329934 | AT13: =MIN(1000-AU13,AY13*CompanyRecovAdj61) -> 75.1033944 | AU13: =MIN(1000,AZ13*CompanyMortAdj61) -> 16.34990493 | AW13: 27 | AX13: =AY13+AZ13 -> 87.13890951 | AY13: =BD13*INDEX(UltimateRecovDiagnosisAdj,MATCH(AW13,$BG$10:$BG$16,1),MATCH(RecovDiagGroup,$BG$10:$BL$10,0)) -> 71.13429423 | AZ13: =MIN(1000,BE13*INDEX(UltimateMortDiagnosisAdj,MATCH(AW13,$BN$10:$BN$45,1),MATCH(MortDiagGroup,$BN$10:$BS$10,0))) -> 16.00461529 | BB13: 27 | BC13: =BD13+BE13 -> 87.13890951 | BD13: 71.13429423 | BE13: 16.00461529 | BG13: 50 | BH13: 50-54 | BI13: 1 | BJ13: 0.75 | BK13: 1.3 | BL13: 1.1 | BN13: 60 | BO13: 60-64 | BP13: 1 | BQ13: 0.8 | BR13: 1.55 | BS13: 2
Z14: 1 (3rd qtr.) | AA14: =AA37+AA60 -> 219.5285119 | AB14: 221.4117513 | AC14: 183.7490457 | AD14: 154.904697 | AE14: 131.69647 | AF14: 113.3341838 | AG14: 99.12295602 | AH14: 88.47299358 | AI14: 80.79039824 | AJ14: 74.9857648 | AK14: 61.32303532 | AL14: 53.27157976 | AO14: 18 | AP14: 0 | AR14: 28 | AS14: 90.70970137 | AT14: 74.35979644 | AU14: 16.34990493 | AW14: 28 | AX14: 86.43460957 | AY14: 70.42999429 | AZ14: 16.00461529 | BB14: 28 | BC14: 86.43460957 | BD14: 70.42999429 | BE14: 16.00461529 | BG14: 55 | BH14: 55-59 | BI14: 1 | BJ14: 0.75 | BK14: 1.25 | BL14: 1.2 | BN14: 65 | BO14: 65-69 | BP14: 1 | BQ14: 0.75 | BR14: 1.55 | BS14: 2
Z15: 1 (4th qtr.) | AA15: =AA38+AA61 -> 220.4441821 | AB15: 222.8443069 | AC15: 185.5446638 | AD15: 157.5026974 | AE15: 135.1238964 | AF15: 117.6358322 | AG15: 104.3606345 | AH15: 94.72291593 | AI15: 88.15476361 | AJ15: 82.81324451 | AK15: 68.58895153 | AL15: 59.92184068 | AO15: 19 | AP15: 0 | AR15: 29 | AS15: 89.97346577 | AT15: 73.62356083 | AU15: 16.34990493 | AW15: 29 | AX15: 85.7372829 | AY15: 69.73266761 | AZ15: 16.00461529 | BB15: 29 | BC15: 85.7372829 | BD15: 69.73266761 | BE15: 16.00461529 | BG15: 60 | BH15: 60-64 | BI15: 1 | BJ15: 0.77 | BK15: 1.2 | BL15: 1.05 | BN15: 70 | BO15: 70 | BP15: 1 | BQ15: 0.75 | BR15: 1.55 | BS15: 2
Z16: 2 (1st qtr.) | AA16: =AA39+AA62 -> 188.8050128 | AB16: 191.0419719 | AC16: 160.6749183 | AD16: 136.7364358 | AE16: 117.6931323 | AF16: 102.8842149 | AG16: 91.73024278 | AH16: 83.73936589 | AI16: 78.42990284 | AJ16: 73.96967255 | AK16: 66.29348925 | AL16: 53.83963177 | AO16: 20 | AP16: 1 | AR16: 30 | AS16: 90.87951011 | AT16: 72.89461468 | AU16: 17.98489543 | AW16: 30 | AX16: 86.64732197 | AY16: 69.04224516 | AZ16: 17.60507681 | BB16: 30 | BC16: 86.64732197 | BD16: 69.04224516 | BE16: 17.60507681 | BG16: 65 | BH16: 65+ | BI16: 1 | BJ16: 0.8 | BK16: 1.2 | BL16: 1.2 | BN16: 71 | BO16: 71 | BP16: 1 | BQ16: 0.7583333333 | BR16: 1.531666667 | BS16: 1.966666667
Z17: 2 (2nd qtr.) | AA17: =AA40+AA63 -> 168.8847875 | AB17: 169.968539 | AC17: 140.7924155 | AD17: 119.7957294 | AE17: 103.0890033 | AF17: 90.09273317 | AG17: 80.29873148 | AH17: 73.2756314 | AI17: 68.60075727 | AJ17: 64.68265281 | AK17: 56.77832331 | AL17: 48.87399381 | AO17: 21 | AP17: 1 | AR17: 31 | AS17: 90.15778125 | AT17: 72.17288583 | AU17: 17.98489543 | AW17: 31 | AX17: 85.96373539 | AY17: =BD17*INDEX(UltimateRecovDiagnosisAdj,MATCH(AW17,$BG$10:$BG$16,1),MATCH(RecovDiagGroup,$BG$10:$BL$10,0)) -> 68.35865857 | AZ17: 17.60507681 | BB17: 31 | BC17: 85.96373539 | BD17: 68.35865857 | BE17: 17.60507681 | BN17: 72 | BO17: 72 | BP17: 1 | BQ17: 0.7666666667 | BR17: 1.513333333 | BS17: 1.933333333
Z18: 2 (3rd qtr.) | AA18: =AA41+AA64 -> 152.0214094 | AB18: 152.961834 | AC18: 126.939576 | AD18: 107.8651285 | AE18: 92.66225812 | AF18: 80.80510369 | AG18: 71.83232552 | AH18: 65.3523273 | AI18: 60.9798091 | AJ18: 57.37833478 | AK18: 51.32197303 | AL18: 43.2617861 | AO18: 22 | AP18: 1 | AR18: 32 | AS18: 89.44319823 | AT18: 71.4583028 | AU18: 17.98489543 | AW18: 32 | AX18: 85.28691699 | AY18: 67.68184017 | AZ18: 17.60507681 | BB18: 32 | BC18: 85.28691699 | BD18: 67.68184017 | BE18: 17.60507681 | BN18: 73 | BO18: 73 | BP18: 1 | BQ18: 0.775 | BR18: 1.495 | BS18: 1.9
Z19: 2 (4th qtr.) | AA19: =AA42+AA65 -> 137.4104573 | AB19: 138.1441285 | AC19: 117.2679199 | AD19: 99.47688347 | AE19: 85.26683719 | AF19: 74.14799435 | AG19: 65.69043555 | AH19: 59.52924035 | AI19: 55.30348421 | AJ19: 51.89495695 | AK19: 46.26443433 | AL19: 37.53708425 | AO19: 23 | AP19: 1 | AR19: 33 | AS19: 88.73569028 | AT19: 70.75079485 | AU19: 17.98489543 | AW19: 33 | AX19: 84.61679976 | AY19: 67.01172294 | AZ19: 17.60507681 | BB19: 33 | BC19: 84.61679976 | BD19: 67.01172294 | BE19: 17.60507681 | BN19: 74 | BO19: 74 | BP19: 1 | BQ19: 0.7833333333 | BR19: 1.476666667 | BS19: 1.866666667
Z20: 2 (annual) | AA20: =AA43+AA66 -> 523.5004748 | AB20: 528.3280181 | AC20: 460.0542369 | AD20: 404.7692803 | AE20: 357.7668646 | AF20: 319.1872738 | AG20: 288.7913736 | AH20: 266.1221189 | AI20: 250.3992778 | AJ20: 236.674357 | AK20: 211.7482661 | AL20: 177.2994258 | AO20: 24 | AP20: 1 | AR20: 34 | AS20: 88.03518736 | AT20: 70.05029193 | AU20: 17.98489543 | AW20: 34 | AX20: 83.95331735 | AY20: 66.34824054 | AZ20: 17.60507681 | BB20: 34 | BC20: 83.95331735 | BD20: 66.34824054 | BE20: 17.60507681 | BN20: 75 | BO20: 75 | BP20: 1 | BQ20: 0.7916666667 | BR20: 1.458333333 | BS20: 1.833333333
Z21: 3 | AA21: =AA44+AA67 -> 614.6433669 | AB21: 618.7510947 | AC21: 507.8918905 | AD21: 427.4908739 | AE21: 370.7383611 | AF21: 299.1112147 | AG21: 247.0344287 | AH21: 217.6528518 | AI21: 191.9410752 | AJ21: 176.6594161 | AK21: 152.1479638 | AL21: 146.0201007 | AO21: 25 | AP21: 2 | AR21: 35 | AS21: 88.9766106 | AT21: 69.35672468 | AU21: 19.61988592 | AW21: 35 | AX21: 84.89686561 | AY21: 65.69132726 | AZ21: 19.20553834 | BB21: 35 | BC21: 84.89686561 | BD21: 65.69132726 | BE21: 19.20553834 | BN21: 76 | BO21: 76 | BP21: 1 | BQ21: 0.8 | BR21: 1.44 | BS21: 1.8
Z22: 4 | AA22: =AA45+AA68 -> 362.2805198 | AB22: 368.43556 | AC22: 286.1825779 | AD22: 246.2160367 | AE22: 205.2795157 | AF22: 168.4228777 | AG22: 143.2998706 | AH22: 125.0259867 | AI22: 112.8231054 | AJ22: 105.8288451 | AK22: 90.31927988 | AL22: 90.311684 | AO22: 26 | AP22: 2 | AR22: 36 | AS22: 88.28991036 | AT22: 68.67002444 | AU22: 19.61988592 | AW22: 36 | AX22: 84.24645643 | AY22: 65.04091808 | AZ22: 19.20553834 | BB22: 36 | BC22: 84.24645643 | BD22: 65.04091808 | BE22: 19.20553834 | BN22: 77 | BO22: 77 | BP22: 1 | BQ22: 0.8083333333 | BR22: 1.421666667 | BS22: 1.766666667
Z23: 5 | AA23: =AA46+AA69 -> 262.9913525 | AB23: 266.3581678 | AC23: 208.1870809 | AD23: 176.8744592 | AE23: 143.1568557 | AF23: 119.2340626 | AG23: 105.0137815 | AH23: 92.05123301 | AI23: 85.36460199 | AJ23: 82.17899472 | AK23: 75.63355218 | AL23: 75.56185857 | AO23: 27 | AP23: 2 | AR23: 37 | AS23: 87.61000913 | AT23: 67.99012321 | AU23: 19.61988592 | AW23: 37 | AX23: 83.60248694 | AY23: 64.3969486 | AZ23: 19.20553834 | BB23: 37 | BC23: 83.60248694 | BD23: 64.3969486 | BE23: 19.20553834 | BN23: 78 | BO23: 78 | BP23: 1 | BQ23: 0.8166666667 | BR23: 1.403333333 | BS23: 1.733333333
Z24: 6 | AA24: =AA47+AA70 -> 150.757506 | AB24: 154.4506159 | AC24: 142.9322836 | AD24: 115.6163569 | AE24: 95.26093369 | AF24: 82.87587084 | AG24: 76.01246578 | AH24: 70.90021702 | AI24: 68.95352181 | AJ24: 69.1377588 | AK24: 69.45967427 | AL24: 71.03736289 | AO24: 28 | AP24: 2 | AR24: 38 | AS24: 83.80381116 | AT24: 63.66019112 | AU24: 20.14362004 | AW24: 38 | AX24: 80.01405869 | AY24: 60.29584684 | AZ24: 19.71821185 | BB24: 38 | BC24: 80.01405869 | BD24: 60.29584684 | BE24: 19.71821185 | BN24: 79 | BO24: 79 | BP24: 1 | BQ24: 0.825 | BR24: 1.385 | BS24: 1.7
Z25: 7 | AA25: =AA48+AA71 -> 121.4169396 | AB25: 125.3793951 | AC25: 121.9551034 | AD25: 97.95878426 | AE25: 81.32576948 | AF25: 72.0238121 | AG25: 67.103133 | AH25: 63.66930059 | AI25: 63.19698677 | AJ25: 64.27273989 | AK25: 73.23734788 | AL25: 78.5769735 | AO25: 29 | AP25: 2 | AR25: 39 | AS25: 80.2873443 | AT25: 59.60600955 | AU25: 20.68133475 | AW25: 39 | AX25: 76.70049329 | AY25: 56.4559226 | AZ25: 20.24457069 | BB25: 39 | BC25: 76.70049329 | BD25: 56.4559226 | BE25: 20.24457069 | BN25: 80 | BO25: 80 | BP25: 1 | BQ25: 0.8333333333 | BR25: 1.366666667 | BS25: 1.666666667
Z26: 8 | AA26: =AA49+AA72 -> 107.3637942 | AB26: 112.6920911 | AC26: 107.1209683 | AD26: 86.57532391 | AE26: 73.37103613 | AF26: 65.83424694 | AG26: 61.24288586 | AH26: 59.2789844 | AI26: 60.68659864 | AJ26: 62.60457654 | AK26: 75.10204843 | AL26: 80.4845324 | AO26: 30 | AP26: 3 | AR26: 40 | AS26: 77.04342064 | AT26: 55.81001741 | AU26: 21.23340323 | AW26: 40 | AX26: 73.64552305 | AY26: 52.86054287 | AZ26: 20.78498017 | BB26: 40 | BC26: 73.64552305 | BD26: 52.86054287 | BE26: 20.78498017 | BN26: 81 | BO26: 81 | BP26: 1 | BQ26: 0.8416666667 | BR26: 1.348333333 | BS26: 1.633333333
Z27: 9 | AA27: =AA50+AA73 -> 93.9725209 | AB27: 99.78432817 | AC27: 97.89141558 | AD27: 79.12183153 | AE27: 67.76916658 | AF27: 61.31412582 | AG27: 57.62628998 | AH27: 56.39572033 | AI27: 59.47527753 | AJ27: 61.88331533 | AK27: 73.95078964 | AL27: 78.72553586 | AO27: 31 | AP27: 3 | AR27: 41 | AS27: 74.05598063 | AT27: 52.25577198 | AU27: 21.80020866 | AW27: 41 | AX27: 70.83394927 | AY27: 49.4941339 | AZ27: 21.33981537 | BB27: 41 | BC27: 70.83394927 | BD27: 49.4941339 | BE27: 21.33981537 | BN27: 82 | BO27: 82 | BP27: 1 | BQ27: 0.85 | BR27: 1.33 | BS27: 1.6
Z28: 10 | AA28: =AA51+AA74 -> 91.00655874 | AB28: 97.42932509 | AC28: 91.25871777 | AD28: 74.27749042 | AE28: 64.55850793 | AF28: 58.18692948 | AG28: 55.11456538 | AH28: 54.30433853 | AI28: 58.96238338 | AJ28: 61.75393849 | AK28: 76.02400774 | AL28: 82.58604603 | AO28: 32 | AP28: 3 | AR28: 42 | AS28: 71.31002208 | AT28: 48.92787767 | AU28: 22.38214441 | AW28: 42 | AX28: 68.25157512 | AY28: 46.34211375 | AZ28: 21.90946137 | BB28: 42 | BC28: 68.25157512 | BD28: 46.34211375 | BE28: 21.90946137 | BN28: 83 | BO28: 83 | BP28: 1 | BQ28: 0.8583333333 | BR28: 1.311666667 | BS28: 1.566666667
AO29: 33 | AP29: 3 | AR29: 43 | AS29: 68.79153378 | AT29: 45.81191939 | AU29: 22.97961438 | AW29: 43 | AX29: 65.88514264 | AY29: 43.39082913 | AZ29: 22.49431352 | BB29: 43 | BC29: 65.88514264 | BD29: 43.39082913 | BE29: 22.49431352 | BN29: 84 | BO29: 84 | BP29: 1 | BQ29: 0.8666666667 | BR29: 1.293333333 | BS29: 1.533333333
AO30: 34 | AP30: 3 | AR30: 44 | AS30: 66.41629258 | AT30: 42.82325933 | AU30: 23.59303325 | AW30: 44 | AX30: 63.65489294 | AY30: 40.5601152 | AZ30: 23.09477774 | BB30: 44 | BC30: 63.65489294 | BD30: 40.5601152 | BE30: 23.09477774 | BN30: 85 | BO30: 85 | BP30: 1 | BQ30: 0.875 | BR30: 1.275 | BS30: 1.5
AO31: 35 | AP31: 4 | AR31: 45 | AS31: 64.1853084 | AT31: 39.96248165 | AU31: 24.22282674 | AW31: 45 | AX31: 61.56179606 | AY31: 37.85052527 | AZ31: 23.71127078 | BB31: 45 | BC31: 61.56179606 | BD31: 37.85052527 | BE31: 23.71127078 | BN31: 86 | BO31: 86 | BP31: 1 | BQ31: 0.8833333333 | BR31: 1.256666667 | BS31: 1.466666667
W32: NAIC Table with Diagnosis and Company Adjustment | AE32: MALES | AO32: 36 | AP32: 4 | AR32: 46 | AS32: 62.09904833 | AT32: 37.22961635 | AU32: 24.86943198 | AW32: 46 | AX32: 59.60630826 | AY32: 35.26208775 | AZ32: 24.34422051 | BB32: 46 | BC32: 59.60630826 | BD32: 35.26208775 | BE32: 24.34422051 | BN32: 87 | BO32: 87 | BP32: 1 | BQ32: 0.8916666667 | BR32: 1.238333333 | BS32: 1.433333333
Z33: PROBABILITY OF RECOVERY (1,000Q[X]+T) - SELECT PERIOD@ | AO33: 37 | AP33: 4 | AR33: 47 | AS33: 60.15747218 | AT33: 34.62417446 | AU33: 25.53329772 | AW33: 47 | AX33: 57.78840574 | AY33: 32.7943395 | AZ33: 24.99406624 | BB33: 47 | BC33: 57.78840574 | BD33: 32.7943395 | BE33: 24.99406624 | BN33: 88 | BO33: 88 | BP33: 1 | BQ33: 0.9 | BR33: 1.22 | BS33: 1.4
Z34: Central Age => | AA34: 17 | AB34: 22 | AC34: 27 | AD34: 32 | AE34: 37 | AF34: 42 | AG34: 47 | AH34: 52 | AI34: 57 | AJ34: 62 | AK34: 67 | AL34: 72 | AM34: 73 | AO34: 38 | AP34: 4 | AR34: 48 | AS34: 58.36006057 | AT34: 32.14517586 | AU34: 26.21488472 | AW34: 48 | AX34: 56.10761117 | AY34: 30.4463522 | AZ34: 25.66125897 | BB34: 48 | BC34: 56.10761117 | BD34: 30.4463522 | BE34: 25.66125897 | BN34: 89 | BO34: 89 | BP34: 1 | BQ34: 0.9083333333 | BR34: 1.201666667 | BS34: 1.366666667
AO35: 39 | AP35: 4 | AR35: 49 | AS35: 57.39867326 | AT35: 30.48400722 | AU35: 26.91466604 | AW35: 49 | AX35: 55.21923558 | AY35: 28.8729738 | AZ35: 26.34626178 | BB35: 49 | BC35: 55.21923558 | BD35: 28.8729738 | BE35: 26.34626178 | BN35: 90 | BO35: 90 | BP35: 1 | BQ35: 0.9166666667 | BR35: 1.183333333 | BS35: 1.333333333
Z36: Year of Dis. | AO36: 40 | AP36: 5 | AR36: 50 | AS36: 56.50589004 | AT36: 28.8727627 | AU36: 27.63312735 | AW36: 50 | AX36: 54.39643118 | AY36: 27.3468811 | AZ36: 27.04955008 | BB36: 50 | BC36: 54.39643118 | BD36: 27.3468811 | BE36: 27.04955008 | BN36: 91 | BO36: 91 | BP36: 1 | BQ36: 0.925 | BR36: 1.165 | BS36: 1.3
Z37: 1 (3rd qtr.) | AA37: =MIN(CompanyRecovAdj0*AA83,1000-AA60) -> 208.856822 | AB37: 208.856822 | AC37: 171.1941164 | AD37: 140.504233 | AE37: 115.1640462 | AF37: 94.34770184 | AG37: 77.32401545 | AH37: 63.47250099 | AI37: 52.12794742 | AJ37: 44.89019143 | AK37: 33.66764357 | AL37: 28.05636964 | AM37: =NA() ->  | AO37: 41 | AP37: 5 | AR37: 51 | AS37: 55.68346968 | AT37: 27.31270238 | AU37: 28.3707673 | AW37: 51 | AX37: 53.64087959 | AY37: 25.8692676 | AZ37: 27.77161199 | BB37: 51 | BC37: 53.64087959 | BD37: 25.8692676 | BE37: 27.77161199 | BN37: 92 | BO37: 92 | BP37: 1 | BQ37: 0.9333333333 | BR37: 1.146666667 | BS37: 1.266666667
Z38: 1 (4th qtr.) | AA38: =MIN(CompanyRecovAdj0*AA84,1000-AA61) -> 206.8434753 | AB38: 206.8434753 | AC38: 169.5438322 | AD38: 139.1497944 | AE38: 114.0538831 | AF38: 93.43820497 | AG38: 76.57862421 | AH38: 62.86063615 | AI38: 51.62544227 | AJ38: 44.45745711 | AK38: 33.34309283 | AL38: 27.78591069 | AM38: =NA() ->  | AO38: 42 | AP38: 5 | AR38: 52 | AS38: 54.93292987 | AT38: 25.80483203 | AU38: 29.12809784 | AW38: 52 | AX38: 52.95403455 | AY38: 24.4410859 | AZ38: 28.51294865 | BB38: 52 | BC38: 52.95403455 | BD38: 24.4410859 | BE38: 28.51294865 | BN38: 93 | BO38: 93 | BP38: 1 | BQ38: 0.9416666667 | BR38: 1.128333333 | BS38: 1.233333333
Z39: 2 (1st qtr.) | AA39: =MIN(CompanyRecovAdj0*AA85,1000-AA62) -> 176.1289111 | AB39: 176.1289111 | AC39: 145.7618574 | AD39: 119.6312023 | AE39: 98.05550357 | AF39: 80.33159409 | AG39: 65.83691284 | AH39: 54.04315193 | AI39: 44.38392278 | AJ39: 38.22139349 | AK39: 33.4437193 | AL39: 23.88837093 | AM39: =NA() ->  | AO39: 43 | AP39: 5 | AR39: 53 | AS39: 54.25555926 | AT39: 24.34991466 | AU39: 29.9056446 | AW39: 53 | AX39: 52.33713329 | AY39: 23.0630587 | AZ39: 29.27407459 | BB39: 53 | BC39: 52.33713329 | BD39: 23.0630587 | BE39: 29.27407459 | BN39: 94 | BO39: 94 | BP39: 1 | BQ39: 0.95 | BR39: 1.11 | BS39: 1.2
Z40: 2 (2nd qtr.) | AA40: =MIN(CompanyRecovAdj0*AA86,1000-AA63) -> 157.5053962 | AB40: 157.5053962 | AC40: 127.787397 | AD40: 104.8790144 | AE40: 85.96389877 | AF40: 70.42559338 | AG40: 57.71830754 | AH40: 47.37888107 | AI40: 38.91076896 | AJ40: 33.50816508 | AK40: 28.72128435 | AL40: 23.93440363 | AM40: =NA() ->  | AO40: 44 | AP40: 5 | AR40: 54 | AS40: 53.65242476 | AT40: 22.94847754 | AU40: 30.70394723 | AW40: 54 | AX40: 51.79120346 | AY40: 21.7356854 | AZ40: 30.05551806 | BB40: 54 | BC40: 51.79120346 | BD40: 21.7356854 | BE40: 30.05551806 | BN40: 95 | BO40: 95 | BP40: 1 | BQ40: 0.9583333333 | BR40: 1.091666667 | BS40: 1.166666667
Z41: 2 (3rd qtr.) | AA41: =MIN(CompanyRecovAdj0*AA87,1000-AA64) -> 141.6767384 | AB41: 141.6767384 | AC41: 115.6544803 | AD41: 94.92115959 | AE41: 77.8019607 | AF41: 63.73895701 | AG41: 52.23817857 | AH41: 42.88044046 | AI41: 35.21634268 | AJ41: 30.32669504 | AK41: 25.27224587 | AL41: 20.21779669 | AM41: =NA() ->  | AO41: 45 | AP41: 6 | AR41: 55 | AS41: 53.12438589 | AT41: 21.60082611 | AU41: 31.52355978 | AW41: 55 | AX41: 51.31707672 | AY41: 20.4592553 | AZ41: 30.85782142 | BB41: 55 | BC41: 51.31707672 | BD41: 20.4592553 | BE41: 30.85782142 | BN41: 96 | BO41: 96 | BP41: 1 | BQ41: 0.9666666667 | BR41: 1.073333333 | BS41: 1.133333333
Z42: 2 (4th qtr.) | AA42: =MIN(CompanyRecovAdj0*AA88,1000-AA65) -> 128.2395673 | AB42: 128.2395673 | AC42: 107.3633587 | AD42: 88.1163832 | AE42: 72.22443775 | AF42: 59.16959279 | AG42: 48.49329044 | AH42: 39.80639659 | AI42: 32.69172816 | AJ42: 28.1526131 | AK42: 22.52209048 | AL42: 16.89156786 | AM42: =NA() ->  | AO42: 46 | AP42: 6 | AR42: 56 | AS42: 52.67210207 | AT42: 20.30705096 | AU42: 32.36505111 | AW42: 56 | AX42: 50.9153957 | AY42: 19.2338542 | AZ42: 31.6815415 | BB42: 56 | BC42: 50.9153957 | BD42: 19.2338542 | BE42: 31.6815415 | BN42: 97 | BO42: 97 | BP42: 1 | BQ42: 0.975 | BR42: 1.055 | BS42: 1.1
Z43: 2 (annual) | AA43: =(1-(1-AA39/1000)*(1-AA40/1000)*(1-AA41/1000)*(1-AA42/1000))*1000 -> 480.6329099 | AB43: =(1-(1-AB39/1000)*(1-AB40/1000)*(1-AB41/1000)*(1-AB42/1000))*1000 -> 480.6329099 | AC43: 411.8365852 | AD43: 349.6124703 | AE43: 294.6408807 | AF43: 246.950155 | AG43: 206.1937374 | AH43: 171.8356513 | AI43: 142.8792707 | AJ43: 124.0147109 | AK43: 105.5392198 | AL43: 82.28155628 | AM43: =TRUNC(1000*(1-(1-AM39/1000)*(1-AM40/1000)*(1-AM41/1000)*(1-AM42/1000))) ->  | AO43: 47 | AP43: 6 | AR43: 57 | AS43: 52.29605165 | AT43: 19.0670464 | AU43: 33.22900525 | AW43: 57 | AX43: 50.586632 | AY43: 18.059382 | AZ43: 32.52725 | BB43: 57 | BC43: 50.586632 | BD43: 18.059382 | BE43: 32.52725 | BN43: 98 | BO43: 98 | BP43: 1 | BQ43: 0.9833333333 | BR43: 1.036666667 | BS43: 1.066666667
Z44: 3 | AA44: =MIN(CompanyRecovAdj25*AA90,1000-AA67) -> 586.9162045 | AB44: 586.9162045 | AC44: 477.0839324 | AD44: 392.0240096 | AE44: 329.9393731 | AF44: 252.2437526 | AG44: 193.1024055 | AH44: 155.6362577 | AI44: 121.0414955 | AJ44: 98.04580935 | AK44: 73.53435701 | AL44: 67.40649393 | AM44: =NA() ->  | AO44: 48 | AP44: 6 | AR44: 58 | AS44: 52.52750532 | AT44: 17.88051397 | AU44: 34.64699135 | AW44: 58 | AX44: 50.850846 | AY44: 16.935556 | AZ44: 33.91529 | BB44: 58 | BC44: 50.850846 | BD44: 16.935556 | BE44: 33.91529 | BN44: 99 | BO44: 99 | BP44: 1 | BQ44: 0.9916666667 | BR44: 1.018333333 | BS44: 1.033333333
Z45: 4 | AA45: =MIN(CompanyRecovAdj25*AA91,1000-AA68) -> 349.9704395 | AB45: 349.9704395 | AC45: 263.6140973 | AD45: 220.2346577 | AE45: 175.3920702 | AF45: 134.0899498 | AG45: 103.791773 | AH45: 79.59550774 | AI45: 60.88536336 | AJ45: 48.24016472 | AK45: 31.01153446 | AL45: 27.56580841 | AM45: =NA() ->  | AO45: 49 | AP45: 6 | AR45: 59 | AS45: =AT45+AU45 -> 52.90993089 | AT45: =MIN(1000-AU45,AY45*CompanyRecovAdj61) -> 16.74698446 | AU45: =MIN(1000,AZ45*CompanyMortAdj61) -> 36.16294643 | AW45: 59 | AX45: 51.2611618 | AY45: =BD45*INDEX(UltimateRecovDiagnosisAdj,MATCH(AW45,$BG$10:$BG$16,1),MATCH(RecovDiagGroup,$BG$10:$BL$10,0)) -> 15.8619318 | AZ45: =MIN(1000,BE45*INDEX(UltimateMortDiagnosisAdj,MATCH(AW45,$BN$10:$BN$45,1),MATCH(MortDiagGroup,$BN$10:$BS$10,0))) -> 35.39923 | BB45: 59 | BC45: 51.2611618 | BD45: 15.8619318 | BE45: 35.39923 | BN45: 100 | BO45: 100+ | BP45: 1 | BQ45: 1 | BR45: 1 | BS45: 1
Z46: 5 | AA46: =MIN(CompanyRecovAdj25*AA92,1000-AA69) -> 255.4160182 | AB46: 255.4160182 | AC46: 187.9861894 | AD46: 153.6187057 | AE46: 116.4048091 | AF46: 88.50289524 | AG46: 69.65035547 | AH46: 51.38672409 | AI46: 38.87548671 | AJ46: 30.63176351 | AK46: 22.27764619 | AL46: 19.49294042 | AM46: =NA() ->  | AO46: 50 | AP46: 7 | AR46: 60 | AS46: 53.42627989 | AT46: 15.66582608 | AU46: 37.7604538 | AW46: 60 | AX46: 51.800911 | AY46: 14.837911 | AZ46: 36.963 | BB46: 60 | BC46: 51.800911 | BD46: 14.837911 | BE46: 36.963
Z47: 6 | AA47: =MIN(CompanyRecovAdj61*AA93,1000-AA70) -> 143.3712861 | AB47: 143.3712861 | AC47: 122.6201789 | AD47: 92.23257224 | AE47: 68.36160755 | AF47: 51.97551748 | AG47: 40.45435147 | AH47: 30.01183548 | AI47: 22.2084674 | AJ47: 17.30674172 | AK47: 12.11471921 | AL47: 10.38404503 | AM47: =NA() ->  | AO47: 51 | AP47: 7 | AR47: 61 | AS47: 54.05569559 | AT47: 14.63625607 | AU47: 39.41943952 | AW47: 61 | AX47: 52.4497022 | AY47: 13.8627522 | AZ47: 38.58695 | BB47: 61 | BC47: 52.4497022 | BD47: 13.8627522 | BE47: 38.58695
Z48: 7 | AA48: =MIN(CompanyRecovAdj61*AA94,1000-AA71) -> 113.4920284 | AB48: 113.4920284 | AC48: 102.1428256 | AD48: 75.1504123 | AE48: 55.08836414 | AF48: 41.88383415 | AG48: 32.42000921 | AH48: 23.78707325 | AI48: 17.60220368 | AJ48: 13.71714614 | AK48: 8.573216336 | AL48: 6.858573068 | AM48: =NA() ->  | AO48: 52 | AP48: 7 | AR48: 62 | AS48: 54.77313326 | AT48: 13.65735927 | AU48: 41.11577399 | AW48: 62 | AX48: 53.1830486 | AY48: 12.9355886 | AZ48: 40.24746 | BB48: 62 | BC48: 53.1830486 | BD48: 12.9355886 | BE48: 40.24746
Z49: 8 | AA49: =MIN(CompanyRecovAdj61*AA95,1000-AA72) -> 96.70720027 | AB49: 96.70720027 | AC49: 87.58387949 | AD49: 64.08375617 | AE49: 47.49806369 | AF49: 36.11290793 | AG49: =MIN(CompanyRecovAdj61*AG95,1000-AG72) -> 27.04150448 | AH49: 19.95071411 | AI49: 14.60108199 | AJ49: 11.50485636 | AK49: 5.75242818 | AL49: 3.83495212 | AM49: =NA() ->  | AO49: 53 | AP49: 7 | AR49: 63 | AS49: 55.54901182 | AT49: 12.72809739 | AU49: 42.82091443 | AW49: 63 | AX49: 53.9720268 | AY49: 12.0554368 | AZ49: 41.91659 | BB49: 63 | BC49: 53.9720268 | BD49: 12.0554368 | BE49: 41.91659
Z50: 9 | AA50: =MIN(CompanyRecovAdj61*AA96,1000-AA73) -> 82.34890634 | AB50: 82.34890634 | AC50: 78.51872465 | AD50: 56.8195226 | AE50: 42.11390631 | AF50: 31.84288167 | AG50: 23.71270148 | AH50: 17.39838393 | AI50: 12.66297605 | AJ50: 9.977734574 | AK50: 3.991093829 | AL50: 1.995546915 | AM50: =NA() ->  | AO50: 54 | AP50: 7 | AR50: 64 | AS50: 56.34913824 | AT50: 11.84732533 | AU50: 44.50181292 | AW50: 64 | AX50: 54.7832022 | AY50: 11.2212122 | AZ50: 43.56199 | BB50: 64 | BC50: 54.7832022 | BD50: 11.2212122 | BE50: 43.56199
Z51: 10 | AA51: =MIN(CompanyRecovAdj61*AA97,1000-AA74) -> 78.16102605 | AB51: 78.16102605 | AC51: 71.99041873 | AD51: 52.09535996 | AE51: 39.04149386 | AF51: 28.87449438 | AG51: 21.383724 | AH51: 15.51714358 | AI51: 11.2937626 | AJ51: 8.898869038 | AK51: 4.449434519 | AL51: 0 | AM51: =NA() ->  | AO51: 55 | AP51: 8 | AR51: 65 | AS51: 57.13479734 | AT51: 11.01379924 | AU51: 46.1209981 | AW51: 65 | AX51: 55.5787167 | AY51: 10.4317367 | AZ51: 45.14698 | BB51: 65 | BC51: 55.5787167 | BD51: 10.4317367 | BE51: 45.14698
AO52: 56 | AP52: 8 | AR52: 66 | AS52: 57.86311653 | AT52: 10.226194 | AU52: 47.63692253 | AW52: 66 | AX52: 56.3166452 | AY52: 9.6857552 | AZ52: 46.63089 | BB52: 66 | BC52: 56.3166452 | BD52: 9.6857552 | BE52: 46.63089
AO53: 57 | AP53: 8 | AR53: 67 | AS53: 58.48778124 | AT53: 9.483113633 | AU53: 49.00466761 | AW53: 67 | AX53: 56.9516955 | AY53: 8.9819455 | AZ53: 47.96975 | BB53: 67 | BC53: 56.9516955 | BD53: 8.9819455 | BE53: 47.96975
AO54: 58 | AP54: 8 | AR54: 68 | AS54: 58.96011792 | AT54: 8.783101771 | AU54: 50.17701615 | AW54: 68 | AX54: 57.4362682 | AY54: 8.3189282 | AZ54: 49.11734 | BB54: 68 | BC54: 57.4362682 | BD54: 8.3189282 | BE54: 49.11734
W55: NAIC Table with Diagnosis and Company Adjustment | AB55: (d) | AO55: 59 | AP55: 8 | AR55: 69 | AS55: 59.23050644 | AT55: 8.12465443 | AU55: 51.10585201 | AW55: 69 | AX55: 57.7218388 | AY55: 7.6952788 | AZ55: 50.02656 | BB55: 69 | BC55: 57.7218388 | BD55: 7.6952788 | BE55: 50.02656
Z56: PROBABILITY OF DEATH (1,000Q[X]+T) - SELECT PERIOD@ | AO56: 60 | AP56: 9 | AR56: 70 | AS56: 59.25019985 | AT56: 7.506231626 | AU56: 51.74396823 | AW56: 70 | AX56: 57.7607387 | AY56: 7.1095387 | AZ56: 50.6512 | BB56: 70 | BC56: 57.7607387 | BD56: 7.1095387 | BE56: 50.6512
Z57: Central Age => | AA57: 17 | AB57: 22 | AC57: 27 | AD57: 32 | AE57: 37 | AF57: 42 | AG57: 47 | AH57: 52 | AI57: 57 | AJ57: 62 | AK57: 67 | AL57: 72 | AM57: 73 | AO57: 61 | AP57: 9 | AR57: 71 | AS57: 60.61641845 | AT57: 6.829301466 | AU57: 53.78711699 | AW57: 71 | AX57: 59.11958327 | AY57: 6.46838327 | AZ57: 52.6512 | BB57: 71 | BC57: 59.11958327 | BD57: 6.46838327 | BE57: 52.6512
AO58: 62 | AP58: 9 | AR58: 72 | AS58: 61.93810453 | AT58: 6.107838781 | AU58: 55.83026575 | AW58: 72 | AX58: 60.43624879 | AY58: 5.78504879 | AZ58: 54.6512 | BB58: 72 | BC58: 60.43624879 | BD58: 5.78504879 | BE58: 54.6512
Z59: Year of Dis. | AO59: 63 | AP59: 9 | AR59: 73 | AS59: 64.25200219 | AT59: 5.3570133 | AU59: 58.89498889 | AW59: 73 | AX59: 62.72510329 | AY59: 5.073903294 | AZ59: 57.6512 | BB59: 73 | BC59: 62.72510329 | BD59: 5.073903294 | BE59: 57.6512
Z60: 1 (3rd qtr.) | AA60: =CompanyMortAdj0*AA106 -> 10.67168992 | AB60: 12.55492931 | AC60: 12.55492931 | AD60: 14.40046406 | AE60: 16.53242375 | AF60: 18.98648195 | AG60: 21.79894057 | AH60: 25.00049259 | AI60: 28.66245083 | AJ60: 30.09557337 | AK60: 27.65539174 | AL60: 25.21521012 | AM60: =NA() ->  | AO60: 64 | AP60: 9 | AR60: 74 | AS60: 66.55261772 | AT60: 4.592905697 | AU60: 61.95971203 | AW60: 74 | AX60: 65.00137762 | AY60: 4.350177616 | AZ60: 60.6512 | BB60: 74 | BC60: 65.00137762 | BD60: 4.350177616 | BE60: 60.6512
Z61: 1 (4th qtr.) | AA61: =CompanyMortAdj0*AA107 -> 13.60070681 | AB61: 16.00083154 | AC61: 16.00083154 | AD61: 18.35290298 | AE61: 21.07001328 | AF61: 24.19762722 | AG61: 27.78201033 | AH61: 31.86227979 | AI61: 36.52932134 | AJ61: 38.35578741 | AK61: 35.2458587 | AL61: 32.13592999 | AM61: =NA() ->  | AO61: 65 | AP61: 10 | AR61: 75 | AS61: 68.85664345 | AT61: 3.832208283 | AU61: 65.02443517 | AW61: 75 | AX61: 67.2808819 | AY61: 3.629681903 | AZ61: 63.6512 | BB61: 75 | BC61: 67.2808819 | BD61: 3.629681903 | BE61: 63.6512
Z62: 2 (1st qtr.) | AA62: =CompanyMortAdj0*AA108 -> 12.67610172 | AB62: 14.91306084 | AC62: 14.91306084 | AD62: 17.10523344 | AE62: 19.63762878 | AF62: 22.55262084 | AG62: 25.89332993 | AH62: 29.69621396 | AI62: 34.04598006 | AJ62: 35.74827907 | AK62: 32.84976995 | AL62: 29.95126084 | AM62: =NA() ->  | AO62: 66 | AP62: 10 | AR62: 76 | AS62: 72.20265391 | AT62: 3.09192122 | AU62: 69.11073269 | AW62: 76 | AX62: 70.57971789 | AY62: 2.928517886 | AZ62: 67.6512 | BB62: 76 | BC62: 70.57971789 | BD62: 2.928517886 | BE62: 67.6512
Z63: 2 (2nd qtr.) | AA63: =CompanyMortAdj0*AA109 -> 11.37939123 | AB63: 12.46314277 | AC63: 13.00501855 | AD63: 14.91671498 | AE63: 17.12510458 | AF63: 19.66713979 | AG63: 22.58042394 | AH63: 25.89675033 | AI63: 29.68998832 | AJ63: 31.17448773 | AK63: 28.05703896 | AL63: 24.93959019 | AM63: =NA() ->  | AO63: 67 | AP63: 10 | AR63: 77 | AS63: 75.58608963 | AT63: 2.389059427 | AU63: 73.19703021 | AW63: 77 | AX63: 73.91400127 | AY63: 2.262801269 | AZ63: 71.6512 | BB63: 77 | BC63: 73.91400127 | BD63: 2.262801269 | BE63: 71.6512
Z64: 2 (3rd qtr.) | AA64: =CompanyMortAdj0*AA110 -> 10.34467103 | AB64: 11.28509567 | AC64: 11.28509567 | AD64: 12.94396891 | AE64: 14.86029742 | AF64: 17.06614668 | AG64: 19.59414694 | AH64: 22.47188683 | AI64: 25.76346642 | AJ64: 27.05163974 | AK64: 26.04972716 | AL64: 23.04398941 | AM64: =NA() ->  | AO64: 68 | AP64: 10 | AR64: 78 | AS64: 79.0237216 | AT64: 1.740393871 | AU64: 77.28332773 | AW64: 78 | AX64: 77.2996167 | AY64: 1.648416702 | AZ64: 75.6512 | BB64: 78 | BC64: 77.2996167 | BD64: 1.648416702 | BE64: 75.6512
Z65: 2 (4th qtr.) | AA65: =CompanyMortAdj0*AA111 -> 9.170890014 | AB65: 9.904561215 | AC65: 9.904561215 | AD65: 11.36050027 | AE65: 13.04239944 | AF65: 14.97840155 | AG65: 17.19714511 | AH65: 19.72284377 | AI65: 22.61175605 | AJ65: 23.74234385 | AK65: 23.74234385 | AL65: 20.64551639 | AM65: =NA() ->  | AO65: 69 | AP65: 10 | AR65: 79 | AS65: 82.53189628 | AT65: 1.162271039 | AU65: 81.36962524 | AW65: 79 | AX65: 80.75204678 | AY65: 1.100846783 | AZ65: 79.6512 | BB65: 79 | BC65: 80.75204678 | BD65: 1.100846783 | BE65: 79.6512
Z66: 2 (annual) | AA66: =(1-(1-AA62/1000)*(1-AA63/1000)*(1-AA64/1000)*(1-AA65/1000))*1000 -> 42.86756489 | AB66: =(1-(1-AB62/1000)*(1-AB63/1000)*(1-AB64/1000)*(1-AB65/1000))*1000 -> 47.69510817 | AC66: =(1-(1-AC62/1000)*(1-AC63/1000)*(1-AC64/1000)*(1-AC65/1000))*1000 -> 48.21765165 | AD66: =(1-(1-AD62/1000)*(1-AD63/1000)*(1-AD64/1000)*(1-AD65/1000))*1000 -> 55.15680997 | AE66: =(1-(1-AE62/1000)*(1-AE63/1000)*(1-AE64/1000)*(1-AE65/1000))*1000 -> 63.12598396 | AF66: =(1-(1-AF62/1000)*(1-AF63/1000)*(1-AF64/1000)*(1-AF65/1000))*1000 -> 72.23711877 | AG66: =(1-(1-AG62/1000)*(1-AG63/1000)*(1-AG64/1000)*(1-AG65/1000))*1000 -> 82.59763622 | AH66: =(1-(1-AH62/1000)*(1-AH63/1000)*(1-AH64/1000)*(1-AH65/1000))*1000 -> 94.28646752 | AI66: =(1-(1-AI62/1000)*(1-AI63/1000)*(1-AI64/1000)*(1-AI65/1000))*1000 -> 107.5200071 | AJ66: =(1-(1-AJ62/1000)*(1-AJ63/1000)*(1-AJ64/1000)*(1-AJ65/1000))*1000 -> 112.6596461 | AK66: =(1-(1-AK62/1000)*(1-AK63/1000)*(1-AK64/1000)*(1-AK65/1000))*1000 -> 106.2090463 | AL66: =(1-(1-AL62/1000)*(1-AL63/1000)*(1-AL64/1000)*(1-AL65/1000))*1000 -> 95.01786951 | AM66: =TRUNC(1000*(1-(1-AM62/1000)*(1-AM63/1000)*(1-AM64/1000)*(1-AM65/1000))) ->  | AO66: 70 | AP66: 11 | AR66: 80 | AS66: 87.14810607 | AT66: 0.6706089218 | AU66: 86.47749714 | AW66: 80 | AX66: 85.28636826 | AY66: 0.6351682601 | AZ66: 84.6512 | BB66: 80 | BC66: 85.28636826 | BD66: 0.6351682601 | BE66: 84.6512
Z67: 3 | AA67: =CompanyMortAdj25*AA113 -> 27.72716237 | AB67: 31.83489013 | AC67: 30.80795819 | AD67: 35.46686433 | AE67: 40.79898806 | AF67: 46.86746209 | AG67: 53.9320232 | AH67: 62.01659408 | AI67: 70.89957969 | AJ67: 78.61360675 | AK67: 78.61360675 | AL67: 78.61360675 | AM67: =NA() ->  | AO67: 71 | AP67: 11 | AR67: 81 | AS67: 94.26041977 | AT67: 0 | AU67: 94.26041977 | AW67: 81 | AX67: 92.26975699 | AY67: 0 | AZ67: 92.26975699 | BB67: 81 | BC67: 92.26975699 | BD67: 0 | BE67: 92.26975699
Z68: 4 | AA68: =CompanyMortAdj25*AA114 -> 12.3100803 | AB68: 18.46512046 | AC68: 22.56848056 | AD68: 25.98137901 | AE68: 29.88744542 | AF68: 34.3329279 | AG68: 39.50809754 | AH68: 45.43047901 | AI68: 51.93774206 | AJ68: 57.58868033 | AK68: 59.30774541 | AL68: 62.74587558 | AM68: =NA() ->  | AO68: 72 | AP68: 11 | AR68: 82 | AS68: 99.1304096 | AT68: 0 | AU68: 99.1304096 | AW68: 82 | AX68: 97.03689869 | AY68: 0 | AZ68: 97.03689869 | BB68: 82 | BC68: 97.03689869 | BD68: 0 | BE68: 97.03689869
Z69: 5 | AA69: =CompanyMortAdj25*AA115 -> 7.575334328 | AB69: 10.94214959 | AC69: 20.20089154 | AD69: 23.25575344 | AE69: 26.75204659 | AF69: 30.73116734 | AG69: 35.36342606 | AH69: 40.66450893 | AI69: 46.48911528 | AJ69: 51.54723121 | AK69: 53.35590599 | AL69: 56.06891816 | AM69: =NA() ->  | AO69: 73 | AP69: 11 | AR69: 83 | AS69: 104.8378556 | AT69: 0 | AU69: 104.8378556 | AW69: 83 | AX69: 102.6238106 | AY69: 0 | AZ69: 102.6238106 | BB69: 83 | BC69: 102.6238106 | BD69: 0 | BE69: 102.6238106
Z70: 6 | AA70: =CompanyMortAdj61*AA116 -> 7.386219871 | AB70: 11.07932981 | AC70: 20.31210464 | AD70: 23.38378465 | AE70: 26.89932613 | AF70: 30.90035336 | AG70: 35.55811431 | AH70: 40.88838153 | AI70: 46.74505441 | AJ70: 51.83101707 | AK70: 57.34495506 | AL70: 60.65331785 | AM70: =NA() ->  | AO70: 74 | AP70: 11 | AR70: 84 | AS70: 111.6194302 | AT70: 0 | AU70: 111.6194302 | AW70: 84 | AX70: 109.2621668 | AY70: 0 | AZ70: 109.2621668 | BB70: 84 | BC70: 109.2621668 | BD70: 0 | BE70: 109.2621668
Z71: 7 | AA71: =CompanyMortAdj61*AA117 -> 7.924911133 | AB71: 11.8873667 | AC71: 19.81227783 | AD71: 22.80837197 | AE71: 26.23740534 | AF71: 30.13997794 | AG71: 34.68312379 | AH71: 39.88222733 | AI71: 45.59478309 | AJ71: 50.55559375 | AK71: 64.66413154 | AL71: 71.71840043 | AM71: =NA() ->  | AO71: 75 | AP71: =#VALUE! ->  | AR71: 85 | AS71: 119.411414 | AT71: 0 | AU71: 119.411414 | AW71: 85 | AX71: 116.8895935 | AY71: 0 | AZ71: 116.8895935 | BB71: 85 | BC71: 116.8895935 | BD71: 0 | BE71: 116.8895935
Z72: 8 | AA72: =CompanyMortAdj61*AA118 -> 10.6565939 | AB72: 15.98489085 | AC72: 19.53708882 | AD72: 22.49156774 | AE72: 25.87297245 | AF72: 29.72133901 | AG72: 34.20138138 | AH72: 39.32827029 | AI72: 46.08551665 | AJ72: 51.09972018 | AK72: 69.34962025 | AL72: 76.64958028 | AM72: =NA() ->  | AR72: 86 | AS72: 128.3594514 | AT72: 0 | AU72: 128.3594514 | AW72: 86 | AX72: 125.6486595 | AY72: 0 | AZ72: 125.6486595 | BB72: 86 | BC72: 125.6486595 | BD72: 0 | BE72: 125.6486595
Z73: 9 | AA73: =CompanyMortAdj61*AA119 -> 11.62361456 | AB73: 17.43542184 | AC73: 19.37269093 | AD73: 22.30230893 | AE73: 25.65526027 | AF73: 29.47124416 | AG73: 33.9135885 | AH73: 38.99733641 | AI73: 46.81230147 | AJ73: 51.90558076 | AK73: 69.95969581 | AL73: 76.72998895 | AM73: =NA() ->  | AR73: 87 | AS73: 138.5454675 | AT73: 0 | AU73: 138.5454675 | AW73: 87 | AX73: 135.6195596 | AY73: 0 | AZ73: 135.6195596 | BB73: 87 | BC73: 135.6195596 | BD73: 0 | BE73: 135.6195596
Z74: 10 | AA74: =CompanyMortAdj61*AA120 -> 12.84553269 | AB74: 19.26829904 | AC74: 19.26829904 | AD74: 22.18213047 | AE74: 25.51701407 | AF74: 29.3124351 | AG74: 33.73084138 | AH74: 38.78719495 | AI74: 47.66862079 | AJ74: 52.85506946 | AK74: 71.57457322 | AL74: 82.58604603 | AM74: =NA() ->  | AR74: 88 | AS74: 149.9694623 | AT74: 0 | AU74: 149.9694623 | AW74: 88 | AX74: 146.8022938 | AY74: 0 | AZ74: 146.8022938 | BB74: 88 | BC74: 146.8022938 | BD74: 0 | BE74: 146.8022938
AR75: 89 | AS75: 162.4220718 | AT75: 0 | AU75: 162.4220718 | AW75: 89 | AX75: 158.9919197 | AY75: 0 | AZ75: 158.9919197 | BB75: 89 | BC75: 158.9919197 | BD75: 0 | BE75: 158.9919197
AR76: 90 | AS76: 175.6211097 | AT76: 0 | AU76: 175.6211097 | AW76: 90 | AX76: 171.9122103 | AY76: 0 | AZ76: 171.9122103 | BB76: 90 | BC76: 171.9122103 | BD76: 0 | BE76: 171.9122103
AR77: 91 | AS77: =AT77+AU77 -> 189.266184 | AT77: =MIN(1000-AU77,AY77*CompanyRecovAdj61) -> 0 | AU77: =MIN(1000,AZ77*CompanyMortAdj61) -> 189.266184 | AW77: 91 | AX77: =AY77+AZ77 -> 185.2691176 | AY77: =BD77*INDEX(UltimateRecovDiagnosisAdj,MATCH(AW77,$BG$10:$BG$16,1),MATCH(RecovDiagGroup,$BG$10:$BL$10,0)) -> 0 | AZ77: =MIN(1000,BE77*INDEX(UltimateMortDiagnosisAdj,MATCH(AW77,$BN$10:$BN$45,1),MATCH(MortDiagGroup,$BN$10:$BS$10,0))) -> 185.2691176 | BB77: 91 | BC77: =BD77+BE77 -> 185.2691176 | BD77: 0 | BE77: 185.2691176
W78: NAIC Table with Diagnosis Adjustment | AE78: MALES | AR78: 92 | AS78: 202.965875 | AT78: 0 | AU78: 202.965875 | AW78: 92 | AX78: 198.6794882 | AY78: 0 | AZ78: 198.6794882 | BB78: 92 | BC78: 198.6794882 | BD78: 0 | BE78: 198.6794882
Z79: PROBABILITY OF RECOVERY (1,000Q[X]+T) - SELECT PERIOD | AR79: 93 | AS79: 216.4653047 | AT79: 0 | AU79: 216.4653047 | AW79: 93 | AX79: 211.8938268 | AY79: 0 | AZ79: 211.8938268 | BB79: 93 | BC79: 211.8938268 | BD79: 0 | BE79: 211.8938268
Z80: Central Age => | AA80: 17 | AB80: 22 | AC80: 27 | AD80: 32 | AE80: 37 | AF80: 42 | AG80: 47 | AH80: 52 | AI80: 57 | AJ80: 62 | AK80: 67 | AL80: 72 | AR80: 94 | AS80: 229.4276702 | AT80: 0 | AU80: 229.4276702 | AW80: 94 | AX80: 224.5824432 | AY80: 0 | AZ80: 224.5824432 | BB80: 94 | BC80: 224.5824432 | BD80: 0 | BE80: 224.5824432
AR81: 95 | AS81: 241.2612903 | AT81: 0 | AU81: 241.2612903 | AW81: 95 | AX81: 236.166152 | AY81: 0 | AZ81: 236.166152 | BB81: 95 | BC81: 236.166152 | BD81: 0 | BE81: 236.166152
Z82: Year of Dis. | AR82: 96 | AS82: 253.750311 | AT82: 0 | AU82: 253.750311 | AW82: 96 | AX82: 248.3914201 | AY82: 0 | AZ82: 248.3914201 | BB82: 96 | BC82: 248.3914201 | BD82: 0 | BE82: 248.3914201
Z83: 1 (3rd qtr.) | AA83: =AA129*INDEX(SelectRecovDiagnosisAdj,MATCH($Z83,$Z$193:$Z$208,0),MATCH(RecovDiagGroup,$Z$193:$AD$193,0)) -> 166.9303176 | AB83: 166.9303176 | AC83: 136.8281292 | AD83: 112.299019 | AE83: 92.04569249 | AF83: 75.40807949 | AG83: 61.80177566 | AH83: 50.73085307 | AI83: 41.66363701 | AJ83: 35.87880846 | AK83: 26.90910635 | AL83: 22.42425529 | AR83: 97 | AS83: 268.5241306 | AT83: 0 | AU83: 268.5241306 | AW83: 97 | AX83: 262.853235 | AY83: 0 | AZ83: 262.853235 | BB83: 97 | BC83: 262.853235 | BD83: 0 | BE83: 262.853235
Z84: 1 (4th qtr.) | AA84: =AA130*INDEX(SelectRecovDiagnosisAdj,MATCH($Z84,$Z$193:$Z$208,0),MATCH(RecovDiagGroup,$Z$193:$AD$193,0)) -> 165.3211358 | AB84: 165.3211358 | AC84: 135.5091277 | AD84: 111.2164743 | AE84: 91.15838662 | AF84: 74.68115756 | AG84: 61.20601635 | AH84: 50.24181569 | AI84: 41.26200616 | AJ84: 35.53294244 | AK84: 26.64970683 | AL84: 22.20808903 | AR84: 98 | AS84: 284.5541345 | AT84: 0 | AU84: 284.5541345 | AW84: 98 | AX84: 278.5447052 | AY84: 0 | AZ84: 278.5447052 | BB84: 98 | BC84: 278.5447052 | BD84: 0 | BE84: 278.5447052
Z85: 2 (1st qtr.) | AA85: =AA131*INDEX(SelectRecovDiagnosisAdj,MATCH($Z85,$Z$193:$Z$208,0),MATCH(RecovDiagGroup,$Z$193:$AD$193,0)) -> 140.7722993 | AB85: 140.7722993 | AC85: 116.5012133 | AD85: 95.61609916 | AE85: 78.37156669 | AF85: 64.20560453 | AG85: 52.62062626 | AH85: 43.194378 | AI85: 35.4741696 | AJ85: 30.54872373 | AK85: 26.73013326 | AL85: 19.09295233 | AR85: 99 | AS85: 301.9495561 | AT85: 0 | AU85: 301.9495561 | AW85: 99 | AX85: 295.5727572 | AY85: 0 | AZ85: 295.5727572 | BB85: 99 | BC85: =BD85+BE85 -> 295.5727572 | BD85: 0 | BE85: 295.5727572
Z86: 2 (2nd qtr.) | AA86: =AA132*INDEX(SelectRecovDiagnosisAdj,MATCH($Z86,$Z$193:$Z$208,0),MATCH(RecovDiagGroup,$Z$193:$AD$193,0)) -> 125.8873211 | AB86: 125.8873211 | AC86: 102.1349964 | AD86: 83.82530679 | AE86: 68.70726456 | AF86: 56.28816219 | AG86: 46.13177256 | AH86: 37.86791157 | AI86: 31.09971204 | AJ86: 26.78164202 | AK86: 22.95569316 | AL86: 19.1297443 | AR86: 100 | AS86: 322.3271483 | AT86: 0 | AU86: 322.3271483 | AW86: 100 | AX86: 315.52 | AY86: 0 | AZ86: 315.52 | BB86: 100 | BC86: 315.52 | BD86: 0 | BE86: 315.52
Z87: 2 (3rd qtr.) | AA87: =AA133*INDEX(SelectRecovDiagnosisAdj,MATCH($Z87,$Z$193:$Z$208,0),MATCH(RecovDiagGroup,$Z$193:$AD$193,0)) -> 113.2361524 | AB87: 113.2361524 | AC87: 92.43767545 | AD87: 75.86641972 | AE87: 62.18377684 | AF87: 50.94381996 | AG87: 41.75174005 | AH87: 34.27250054 | AI87: 28.14691525 | AJ87: 24.2388292 | AK87: 20.19902433 | AL87: 16.15921947 | AR87: 101 | AS87: 344.2603503 | AT87: 0 | AU87: 344.2603503 | AW87: 101 | AX87: 336.99 | AY87: 0 | AZ87: 336.99 | BB87: 101 | BC87: 336.99 | BD87: 0 | BE87: 336.99
Z88: 2 (4th qtr.) | AA88: =AA134*INDEX(SelectRecovDiagnosisAdj,MATCH($Z88,$Z$193:$Z$208,0),MATCH(RecovDiagGroup,$Z$193:$AD$193,0)) -> 102.4963968 | AB88: 102.4963968 | AC88: 85.81093685 | AD88: 70.42765323 | AE88: 57.7259015 | AF88: 47.29172274 | AG88: 38.75861127 | AH88: 31.81554886 | AI88: 26.12909894 | AJ88: 22.50117857 | AK88: 18.00094285 | AL88: 13.50070714 | AR88: 102 | AS88: 366.2752782 | AT88: 0 | AU88: 366.2752782 | AW88: 102 | AX88: 358.54 | AY88: 0 | AZ88: 358.54 | BB88: 102 | BC88: 358.54 | BD88: 0 | BE88: 358.54
Z89: 2 (annual) | AA89: =(1-(1-AA85/1000)*(1-AA86/1000)*(1-AA87/1000)*(1-AA88/1000))*1000 -> 402.2496083 | AB89: =(1-(1-AB85/1000)*(1-AB86/1000)*(1-AB87/1000)*(1-AB88/1000))*1000 -> 402.2496083 | AC89: 341.8430347 | AD89: 288.2146233 | AE89: 241.5323282 | AF89: 201.5059163 | AG89: 167.6177519 | AH89: 139.2617167 | AI89: 115.5058708 | AJ89: 100.0962666 | AK89: 85.05186901 | AL89: 66.18462878 | AR89: 103 | AS89: 388.0041652 | AT89: 0 | AU89: 388.0041652 | AW89: 103 | AX89: 379.81 | AY89: 0 | AZ89: 379.81 | BB89: 103 | BC89: 379.81 | BD89: 0 | BE89: 379.81
Z90: 3 | AA90: =AA136*INDEX(SelectRecovDiagnosisAdj,MATCH($Z90,$Z$193:$Z$208,0),MATCH(RecovDiagGroup,$Z$193:$AD$193,0)) -> 434.4166858 | AB90: 434.4166858 | AC90: 353.1223352 | AD90: 290.1636889 | AE90: 244.2106179 | AF90: 186.7027937 | AG90: 142.9282517 | AH90: 115.1970021 | AI90: 89.5910607 | AJ90: 72.57038607 | AK90: 54.42778955 | AL90: 49.89214042 | AR90: 104 | AS90: 409.0792447 | AT90: 0 | AU90: 409.0792447 | AW90: 104 | AX90: 400.44 | AY90: 0 | AZ90: 400.44 | BB90: 104 | BC90: 400.44 | BD90: 0 | BE90: 400.44
Z91: 4 | AA91: =AA137*INDEX(SelectRecovDiagnosisAdj,MATCH($Z91,$Z$193:$Z$208,0),MATCH(RecovDiagGroup,$Z$193:$AD$193,0)) -> 259.0369754 | AB91: 259.0369754 | AC91: 195.1187607 | AD91: 163.0106809 | AE91: 129.8196255 | AF91: 99.24911111 | AG91: 76.82336542 | AH91: 58.91406032 | AI91: 45.06540722 | AJ91: 35.70583385 | AK91: 22.95375033 | AL91: 20.40333363 | AR91: 105 | AS91: 429.1531812 | AT91: 0 | AU91: 429.1531812 | AW91: 105 | AX91: 420.09 | AY91: 0 | AZ91: 420.09 | BB91: 105 | BC91: 420.09 | BD91: 0 | BE91: 420.09
Z92: 5 | AA92: =AA138*INDEX(SelectRecovDiagnosisAdj,MATCH($Z92,$Z$193:$Z$208,0),MATCH(RecovDiagGroup,$Z$193:$AD$193,0)) -> 189.0508036 | AB92: 189.0508036 | AC92: 139.1413915 | AD92: 113.7036744 | AE92: 86.15913312 | AF92: 65.50702491 | AG92: 51.55297529 | AH92: 38.03481689 | AI92: 28.77439738 | AJ92: 22.67265596 | AK92: 16.48920434 | AL92: 14.4280538 | AR92: 106 | AS92: 447.8582081 | AT92: 0 | AU92: 447.8582081 | AW92: 106 | AX92: 438.4 | AY92: 0 | AZ92: 438.4 | BB92: 106 | BC92: 438.4 | BD92: 0 | BE92: 438.4
Z93: 6 | AA93: =AA139*INDEX(SelectRecovDiagnosisAdj,MATCH($Z93,$Z$193:$Z$208,0),MATCH(RecovDiagGroup,$Z$193:$AD$193,0)) -> 135.7943317 | AB93: 135.7943317 | AC93: 116.1398889 | AD93: 87.35822107 | AE93: 64.74880056 | AF93: 49.22869043 | AG93: 38.31640052 | AH93: 28.42575562 | AI93: 21.03478367 | AJ93: 16.39210674 | AK93: 11.47447472 | AL93: 9.835264047 | AR93: 107 | AS93: 464.8265586 | AT93: 0 | AU93: 464.8265586 | AW93: 107 | AX93: 455.01 | AY93: 0 | AZ93: 455.01 | BB93: 107 | BC93: 455.01 | BD93: 0 | BE93: 455.01
Z94: 7 | AA94: =AA140*INDEX(SelectRecovDiagnosisAdj,MATCH($Z94,$Z$193:$Z$208,0),MATCH(RecovDiagGroup,$Z$193:$AD$193,0)) -> 107.4941473 | AB94: 107.4941473 | AC94: 96.7447326 | AD94: 71.1788273 | AE94: 52.17702788 | AF94: 39.67033722 | AG94: 30.70666103 | AH94: 22.52996261 | AI94: 16.67195398 | AJ94: 12.99221583 | AK94: 8.120134891 | AL94: 6.496107913 | AR94: 108 | AS94: 479.6904658 | AT94: 0 | AU94: 479.6904658 | AW94: 108 | AX94: 469.56 | AY94: 0 | AZ94: 469.56 | BB94: 108 | BC94: 469.56 | BD94: 0 | BE94: 469.56
Z95: 8 | AA95: =AA141*INDEX(SelectRecovDiagnosisAdj,MATCH($Z95,$Z$193:$Z$208,0),MATCH(RecovDiagGroup,$Z$193:$AD$193,0)) -> 91.59637181 | AB95: 91.59637181 | AC95: 82.95520466 | AD95: 60.69702712 | AE95: 44.98786326 | AF95: 34.20439566 | AG95: 25.6124021 | AH95: 18.89634921 | AI95: 13.82943701 | AJ95: 10.8968422 | AK95: 5.448421099 | AL95: 3.632280733 | AR95: 109 | AS95: 492.0923788 | AT95: 0 | AU95: 492.0923788 | AW95: 109 | AX95: 481.7 | AY95: 0 | AZ95: 481.7 | BB95: 109 | BC95: 481.7 | BD95: 0 | BE95: 481.7
Z96: 9 | AA96: =AA142*INDEX(SelectRecovDiagnosisAdj,MATCH($Z96,$Z$193:$Z$208,0),MATCH(RecovDiagGroup,$Z$193:$AD$193,0)) -> 77.99689188 | AB96: 77.99689188 | AC96: 74.36912947 | AD96: 53.81669725 | AE96: 39.88825041 | AF96: 30.1600338 | AG96: 22.45952127 | AH96: 16.4789058 | AI96: 11.99375703 | AJ96: 9.450426476 | AK96: 3.78017059 | AL96: 1.890085295 | AR96: 110 | AS96: 501.6645307 | AT96: 0 | AU96: 501.6645307 | AW96: 110 | AX96: 491.07 | AY96: 0 | AZ96: 491.07 | BB96: 110 | BC96: 491.07 | BD96: 0 | BE96: 491.07
Z97: 10 | AA97: =AA143*INDEX(SelectRecovDiagnosisAdj,MATCH($Z97,$Z$193:$Z$208,0),MATCH(RecovDiagGroup,$Z$193:$AD$193,0)) -> 74.03033469 | AB97: 74.03033469 | AC97: 68.18583458 | AD97: 49.34219941 | AE97: 36.97821029 | AF97: 27.34852126 | AG97: 20.2536267 | AH97: 14.69708614 | AI97: 10.69690442 | AJ97: 8.428577343 | AK97: 4.214288671 | AL97: 0 | AR97: 111 | AS97: 508.0391548 | AT97: 0 | AU97: 508.0391548 | AW97: 111 | AX97: 497.31 | AY97: 0 | AZ97: 497.31 | BB97: 111 | BC97: 497.31 | BD97: 0 | BE97: 497.31
AR98: 112 | AS98: 510.7871899 | AT98: 0 | AU98: 510.7871899 | AW98: 112 | AX98: 500 | AY98: 0 | AZ98: 500 | BB98: 112 | BC98: 500 | BD98: 0 | BE98: 500
AR99: 113 | AS99: 510.7871899 | AT99: 0 | AU99: 510.7871899 | AW99: 113 | AX99: 500 | AY99: 0 | AZ99: 500 | BB99: 113 | BC99: 500 | BD99: 0 | BE99: 500
AR100: 114 | AS100: 510.7871899 | AT100: 0 | AU100: 510.7871899 | AW100: 114 | AX100: 500 | AY100: 0 | AZ100: 500 | BB100: 114 | BC100: 500 | BD100: 0 | BE100: 500
W101: NAIC Table with Diagnosis Adjustment | AR101: 115 | AS101: 510.7871899 | AT101: 0 | AU101: 510.7871899 | AW101: 115 | AX101: 500 | AY101: 0 | AZ101: 500 | BB101: 115 | BC101: 500 | BD101: 0 | BE101: 500
Z102: PROBABILITY OF DEATH (1,000Q[X]+T) - SELECT PERIOD | AR102: 116 | AS102: 510.7871899 | AT102: 0 | AU102: 510.7871899 | AW102: 116 | AX102: 500 | AY102: 0 | AZ102: 500 | BB102: 116 | BC102: 500 | BD102: 0 | BE102: 500
Z103: Central Age => | AA103: 17 | AB103: 22 | AC103: 27 | AD103: 32 | AE103: 37 | AF103: 42 | AG103: 47 | AH103: 52 | AI103: 57 | AJ103: 62 | AK103: 67 | AL103: 72 | AR103: 117 | AS103: 510.7871899 | AT103: 0 | AU103: 510.7871899 | AW103: 117 | AX103: 500 | AY103: 0 | AZ103: 500 | BB103: 117 | BC103: 500 | BD103: 0 | BE103: 500
AR104: 118 | AS104: 510.7871899 | AT104: 0 | AU104: 510.7871899 | AW104: 118 | AX104: 500 | AY104: 0 | AZ104: 500 | BB104: 118 | BC104: 500 | BD104: 0 | BE104: 500
Z105: Year of Dis. | AR105: 119 | AS105: 510.7871899 | AT105: 0 | AU105: 510.7871899 | AW105: 119 | AX105: 500 | AY105: 0 | AZ105: 500 | BB105: 119 | BC105: 500 | BD105: 0 | BE105: 500
Z106: 1 (3rd qtr.) | AA106: =AA152*INDEX(SelectMortDiagnosisAdj,MATCH($Z106,$Z$171:$Z$186,0),MATCH(MortDiagGroup,$Z$171:$AD$171,0)) -> 11.29910857 | AB106: 13.29306891 | AC106: 13.29306891 | AD106: 15.24710783 | AE106: 17.50441142 | AF106: 20.10275061 | AG106: 23.08056158 | AH106: 26.47034185 | AI106: 30.3475969 | AJ106: 31.86497675 | AK106: 29.28132998 | AL106: 26.69768322 | AR106: 120 | AS106: 510.7871899 | AT106: 0 | AU106: 510.7871899 | AW106: 120 | AX106: 500 | AY106: 0 | AZ106: 500 | BB106: 120 | BC106: 500 | BD106: 0 | BE106: 500
Z107: 1 (4th qtr.) | AA107: =AA153*INDEX(SelectMortDiagnosisAdj,MATCH($Z107,$Z$171:$Z$186,0),MATCH(MortDiagGroup,$Z$171:$AD$171,0)) -> 14.4003306 | AB107: 16.94156542 | AC107: 16.94156542 | AD107: 19.43192175 | AE107: 22.3087786 | AF107: 25.62027376 | AG107: 29.41539283 | AH107: 33.7355528 | AI107: 38.67698285 | AJ107: 40.61083199 | AK107: 37.31806183 | AL107: 34.02529167 | AR107: 121 | AS107: =AT107+AU107 -> 1000 | AT107: 0 | AU107: 1000 | AW107: 121 | AX107: =AY107+AZ107 -> 1000 | AY107: 0 | AZ107: 1000 | BB107: 121 | BC107: =BD107+BE107 -> 1000 | BD107: 0 | BE107: 1000
Z108: 2 (1st qtr.) | AA108: =AA154*INDEX(SelectMortDiagnosisAdj,MATCH($Z108,$Z$171:$Z$186,0),MATCH(MortDiagGroup,$Z$171:$AD$171,0)) -> 13.42136538 | AB108: 15.78984162 | AC108: 15.78984162 | AD108: 18.11089821 | AE108: 20.79218019 | AF108: 23.87855283 | AG108: 27.4156716 | AH108: 31.44213787 | AI108: 36.04763896 | AJ108: 37.8500209 | AK108: 34.78110029 | AL108: 31.71217968
Z109: 2 (2nd qtr.) | AA109: =AA155*INDEX(SelectMortDiagnosisAdj,MATCH($Z109,$Z$171:$Z$186,0),MATCH(MortDiagGroup,$Z$171:$AD$171,0)) -> 12.04841763 | AB109: 13.19588598 | AC109: 13.76962015 | AD109: 15.7937106 | AE109: 18.13193762 | AF109: 20.82342624 | AG109: 23.90799055 | AH109: 27.4192931 | AI109: 31.43554621 | AJ109: 33.00732352 | AK109: 29.70659116 | AL109: 26.40585881
Z110: 2 (3rd qtr.) | AA110: =AA156*INDEX(SelectMortDiagnosisAdj,MATCH($Z110,$Z$171:$Z$186,0),MATCH(MortDiagGroup,$Z$171:$AD$171,0)) -> 10.95286333 | AB110: 11.94857817 | AC110: 11.94857817 | AD110: 13.70498123 | AE110: 15.73397609 | AF110: 18.06951343 | AG110: 20.74614193 | AH110: 23.79307224 | AI110: 27.27817305 | AJ110: 28.6420817 | AK110: 27.58126386 | AL110: 24.39881034
Z111: 2 (4th qtr.) | AA111: =AA157*INDEX(SelectMortDiagnosisAdj,MATCH($Z111,$Z$171:$Z$186,0),MATCH(MortDiagGroup,$Z$171:$AD$171,0)) -> 9.710072423 | AB111: 10.48687822 | AC111: 10.48687822 | AD111: 12.02841602 | AE111: 13.80919877 | AF111: 15.8590239 | AG111: 18.20821363 | AH111: 20.8824052 | AI111: 23.94116476 | AJ111: 25.138223 | AK111: 25.138223 | AL111: 21.85932435
Z112: 2 (annual) | AA112: =(1-(1-AA108/1000)*(1-AA109/1000)*(1-AA110/1000)*(1-AA111/1000))*1000 -> 45.34441187 | AB112: =(1-(1-AB108/1000)*(1-AB109/1000)*(1-AB110/1000)*(1-AB111/1000))*1000 -> 50.4454923 | AC112: 50.99756931 | AD112: 58.32754052 | AE112: 66.74258766 | AF112: 76.35958342 | AG112: 87.29020643 | AH112: 99.61560113 | AI112: 113.5612023 | AJ112: 118.9748884 | AK112: 112.1793154 | AL112: 100.3862984
Z113: 3 | AA113: =AA159*INDEX(SelectMortDiagnosisAdj,MATCH($Z113,$Z$171:$Z$186,0),MATCH(MortDiagGroup,$Z$171:$AD$171,0)) -> 28.66123035 | AB113: 32.90733855 | AC113: 31.8458115 | AD113: 36.66166609 | AE113: 42.1734175 | AF113: 48.44632527 | AG113: 55.74887613 | AH113: 64.10579867 | AI113: 73.2880328 | AJ113: 81.26192872 | AK113: 81.26192872 | AL113: 81.26192872
Z114: 4 | AA114: =AA160*INDEX(SelectMortDiagnosisAdj,MATCH($Z114,$Z$171:$Z$186,0),MATCH(MortDiagGroup,$Z$171:$AD$171,0)) -> 12.72478022 | AB114: 19.08717033 | AC114: 23.32876374 | AD114: 26.85663533 | AE114: 30.89428865 | AF114: 35.4895298 | AG114: 40.83903969 | AH114: 46.96093335 | AI114: 53.68741198 | AJ114: 59.52871811 | AK114: 61.30569477 | AL114: 64.85964809
Z115: 5 | AA115: =AA161*INDEX(SelectMortDiagnosisAdj,MATCH($Z115,$Z$171:$Z$186,0),MATCH(MortDiagGroup,$Z$171:$AD$171,0)) -> 7.830530917 | AB115: 11.31076688 | AC115: 20.88141578 | AD115: 24.03918935 | AE115: 27.65326503 | AF115: 31.76643374 | AG115: 36.55474321 | AH115: 42.03440807 | AI115: 48.05523278 | AJ115: 53.28374566 | AK115: 55.15335078 | AL115: 57.95775844
Z116: 6 | AA116: =AA162*INDEX(SelectMortDiagnosisAdj,MATCH($Z116,$Z$171:$Z$186,0),MATCH(MortDiagGroup,$Z$171:$AD$171,0)) -> 7.230232097 | AB116: 10.84534815 | AC116: 19.88313827 | AD116: 22.88994821 | AE116: 26.33124583 | AF116: 30.24777635 | AG116: 34.80717118 | AH116: 40.02486979 | AI116: 45.75785702 | AJ116: 50.73641048 | AK116: 56.13390096 | AL116: 59.37239524
Z117: 7 | AA117: =AA163*INDEX(SelectMortDiagnosisAdj,MATCH($Z117,$Z$171:$Z$186,0),MATCH(MortDiagGroup,$Z$171:$AD$171,0)) -> 7.75754687 | AB117: 11.6363203 | AC117: 19.39386717 | AD117: 22.32668753 | AE117: 25.68330398 | AF117: 29.50345911 | AG117: 33.95065937 | AH117: 39.03996431 | AI117: 44.631878 | AJ117: 49.48792251 | AK117: 63.29850554 | AL117: 70.20379705
Z118: 8 | AA118: =AA164*INDEX(SelectMortDiagnosisAdj,MATCH($Z118,$Z$171:$Z$186,0),MATCH(MortDiagGroup,$Z$171:$AD$171,0)) -> 10.4315399 | AB118: 15.64730984 | AC118: 19.12448981 | AD118: 22.01657381 | AE118: 25.32656746 | AF118: 29.09366131 | AG118: 33.47909075 | AH118: 38.49770615 | AI118: 45.11224788 | AJ118: 50.02055767 | AK118: 67.88504256 | AL118: 75.03083651
Z119: 9 | AA119: =AA165*INDEX(SelectMortDiagnosisAdj,MATCH($Z119,$Z$171:$Z$186,0),MATCH(MortDiagGroup,$Z$171:$AD$171,0)) -> 11.37813828 | AB119: 17.06720742 | AC119: 18.9635638 | AD119: 21.83131191 | AE119: 25.1134531 | AF119: 28.84884815 | AG119: 33.19737571 | AH119: 38.17376119 | AI119: 45.82368391 | AJ119: 50.80939948 | AK119: 68.48223408 | AL119: 75.10954705
Z120: 10 | AA120: =AA166*INDEX(SelectMortDiagnosisAdj,MATCH($Z120,$Z$171:$Z$186,0),MATCH(MortDiagGroup,$Z$171:$AD$171,0)) -> 12.57425103 | AB120: 18.86137654 | AC120: 18.86137654 | AD120: 21.71367147 | AE120: 24.97812648 | AF120: 28.69339294 | AG120: 33.01848798 | AH120: 37.96805765 | AI120: 46.66191882 | AJ120: 51.73883615 | AK120: 70.06300729 | AL120: 80.84193149
W124: NAIC Table with no Margin | AE124: MALES
Z125: PROBABILITY OF RECOVERY (1,000Q[X]+T) - SELECT PERIOD
Z126: Central Age => | AA126: 17 | AB126: 22 | AC126: 27 | AD126: 32 | AE126: 37 | AF126: 42 | AG126: 47 | AH126: 52 | AI126: 57 | AJ126: 62 | AK126: 67 | AL126: 72
Z128: Year of Dis.
Z129: 1 (3rd qtr.) | AA129: 166.9303176 | AB129: 166.9303176 | AC129: 136.8281292 | AD129: 112.299019 | AE129: 92.04569249 | AF129: 75.40807949 | AG129: 61.80177566 | AH129: 50.73085307 | AI129: 41.66363701 | AJ129: 35.87880846 | AK129: 26.90910635 | AL129: 22.42425529
Z130: 1 (4th qtr.) | AA130: 165.3211358 | AB130: 165.3211358 | AC130: 135.5091277 | AD130: 111.2164743 | AE130: 91.15838662 | AF130: 74.68115756 | AG130: 61.20601635 | AH130: 50.24181569 | AI130: 41.26200616 | AJ130: 35.53294244 | AK130: 26.64970683 | AL130: 22.20808903
Z131: 2 (1st qtr.) | AA131: 140.7722993 | AB131: 140.7722993 | AC131: 116.5012133 | AD131: 95.61609916 | AE131: 78.37156669 | AF131: 64.20560453 | AG131: 52.62062626 | AH131: 43.194378 | AI131: 35.4741696 | AJ131: 30.54872373 | AK131: 26.73013326 | AL131: 19.09295233
Z132: 2 (2nd qtr.) | AA132: 125.8873211 | AB132: 125.8873211 | AC132: 102.1349964 | AD132: 83.82530679 | AE132: 68.70726456 | AF132: 56.28816219 | AG132: 46.13177256 | AH132: 37.86791157 | AI132: 31.09971204 | AJ132: 26.78164202 | AK132: 22.95569316 | AL132: 19.1297443
Z133: 2 (3rd qtr.) | AA133: 113.2361524 | AB133: 113.2361524 | AC133: 92.43767545 | AD133: 75.86641972 | AE133: 62.18377684 | AF133: 50.94381996 | AG133: 41.75174005 | AH133: 34.27250054 | AI133: 28.14691525 | AJ133: 24.2388292 | AK133: 20.19902433 | AL133: 16.15921947
Z134: 2 (4th qtr.) | AA134: 102.4963968 | AB134: 102.4963968 | AC134: 85.81093685 | AD134: 70.42765323 | AE134: 57.7259015 | AF134: 47.29172274 | AG134: 38.75861127 | AH134: 31.81554886 | AI134: 26.12909894 | AJ134: 22.50117857 | AK134: 18.00094285 | AL134: 13.50070714
Z135: 2 (annual) | AA135: =(1-(1-AA131/1000)*(1-AA132/1000)*(1-AA133/1000)*(1-AA134/1000))*1000 -> 402.2496083 | AB135: =(1-(1-AB131/1000)*(1-AB132/1000)*(1-AB133/1000)*(1-AB134/1000))*1000 -> 402.2496083 | AC135: 341.8430347 | AD135: 288.2146233 | AE135: 241.5323282 | AF135: 201.5059163 | AG135: 167.6177519 | AH135: 139.2617167 | AI135: 115.5058708 | AJ135: 100.0962666 | AK135: 85.05186901 | AL135: 66.18462878
Z136: 3 | AA136: 434.4166858 | AB136: 434.4166858 | AC136: 353.1223352 | AD136: 290.1636889 | AE136: 244.2106179 | AF136: 186.7027937 | AG136: 142.9282517 | AH136: 115.1970021 | AI136: 89.5910607 | AJ136: 72.57038607 | AK136: 54.42778955 | AL136: 49.89214042
Z137: 4 | AA137: 259.0369754 | AB137: 259.0369754 | AC137: 195.1187607 | AD137: 163.0106809 | AE137: 129.8196255 | AF137: 99.24911111 | AG137: 76.82336542 | AH137: 58.91406032 | AI137: 45.06540722 | AJ137: 35.70583385 | AK137: 22.95375033 | AL137: 20.40333363
Z138: 5 | AA138: 189.0508036 | AB138: 189.0508036 | AC138: 139.1413915 | AD138: 113.7036744 | AE138: 86.15913312 | AF138: 65.50702491 | AG138: 51.55297529 | AH138: 38.03481689 | AI138: 28.77439738 | AJ138: 22.67265596 | AK138: 16.48920434 | AL138: 14.4280538
Z139: 6 | AA139: 135.7943317 | AB139: 135.7943317 | AC139: 116.1398889 | AD139: 87.35822107 | AE139: 64.74880056 | AF139: 49.22869043 | AG139: 38.31640052 | AH139: 28.42575562 | AI139: 21.03478367 | AJ139: 16.39210674 | AK139: 11.47447472 | AL139: 9.835264047
Z140: 7 | AA140: 107.4941473 | AB140: 107.4941473 | AC140: 96.7447326 | AD140: 71.1788273 | AE140: 52.17702788 | AF140: 39.67033722 | AG140: 30.70666103 | AH140: 22.52996261 | AI140: 16.67195398 | AJ140: 12.99221583 | AK140: 8.120134891 | AL140: 6.496107913
Z141: 8 | AA141: 91.59637181 | AB141: 91.59637181 | AC141: 82.95520466 | AD141: 60.69702712 | AE141: 44.98786326 | AF141: 34.20439566 | AG141: 25.6124021 | AH141: 18.89634921 | AI141: 13.82943701 | AJ141: 10.8968422 | AK141: 5.448421099 | AL141: 3.632280733
Z142: 9 | AA142: 77.99689188 | AB142: 77.99689188 | AC142: 74.36912947 | AD142: 53.81669725 | AE142: 39.88825041 | AF142: 30.1600338 | AG142: 22.45952127 | AH142: 16.4789058 | AI142: 11.99375703 | AJ142: 9.450426476 | AK142: 3.78017059 | AL142: 1.890085295
Z143: 10 | AA143: 74.03033469 | AB143: 74.03033469 | AC143: 68.18583458 | AD143: 49.34219941 | AE143: 36.97821029 | AF143: 27.34852126 | AG143: 20.2536267 | AH143: 14.69708614 | AI143: 10.69690442 | AJ143: 8.428577343 | AK143: 4.214288671 | AL143: 0
W147: NAIC Table with no Margin | AE147: MALES
Z148: PROBABILITY OF DEATH (1,000Q[X]+T) - SELECT PERIOD
Z149: Central Age => | AA149: 17 | AB149: 22 | AC149: 27 | AD149: 32 | AE149: 37 | AF149: 42 | AG149: 47 | AH149: 52 | AI149: 57 | AJ149: 62 | AK149: 67 | AL149: 72
Z151: Year of Dis.
Z152: 1 (3rd qtr.) | AA152: 11.29910857 | AB152: 13.29306891 | AC152: 13.29306891 | AD152: 15.24710783 | AE152: 17.50441142 | AF152: 20.10275061 | AG152: 23.08056158 | AH152: 26.47034185 | AI152: 30.3475969 | AJ152: 31.86497675 | AK152: 29.28132998 | AL152: 26.69768322
Z153: 1 (4th qtr.) | AA153: 14.4003306 | AB153: 16.94156542 | AC153: 16.94156542 | AD153: 19.43192175 | AE153: 22.3087786 | AF153: 25.62027376 | AG153: 29.41539283 | AH153: 33.7355528 | AI153: 38.67698285 | AJ153: 40.61083199 | AK153: 37.31806183 | AL153: 34.02529167
Z154: 2 (1st qtr.) | AA154: 13.42136538 | AB154: 15.78984162 | AC154: 15.78984162 | AD154: 18.11089821 | AE154: 20.79218019 | AF154: 23.87855283 | AG154: 27.4156716 | AH154: 31.44213787 | AI154: 36.04763896 | AJ154: 37.8500209 | AK154: 34.78110029 | AL154: 31.71217968
Z155: 2 (2nd qtr.) | AA155: 12.04841763 | AB155: 13.19588598 | AC155: 13.76962015 | AD155: 15.7937106 | AE155: 18.13193762 | AF155: 20.82342624 | AG155: 23.90799055 | AH155: 27.4192931 | AI155: 31.43554621 | AJ155: 33.00732352 | AK155: 29.70659116 | AL155: 26.40585881
Z156: 2 (3rd qtr.) | AA156: 10.95286333 | AB156: 11.94857817 | AC156: 11.94857817 | AD156: 13.70498123 | AE156: 15.73397609 | AF156: 18.06951343 | AG156: 20.74614193 | AH156: 23.79307224 | AI156: 27.27817305 | AJ156: 28.6420817 | AK156: 27.58126386 | AL156: 24.39881034
Z157: 2 (4th qtr.) | AA157: 9.710072423 | AB157: 10.48687822 | AC157: 10.48687822 | AD157: 12.02841602 | AE157: 13.80919877 | AF157: 15.8590239 | AG157: 18.20821363 | AH157: 20.8824052 | AI157: 23.94116476 | AJ157: 25.138223 | AK157: 25.138223 | AL157: 21.85932435
Z158: 2 (annual) | AA158: =(1-(1-AA154/1000)*(1-AA155/1000)*(1-AA156/1000)*(1-AA157/1000))*1000 -> 45.34441187 | AB158: =(1-(1-AB154/1000)*(1-AB155/1000)*(1-AB156/1000)*(1-AB157/1000))*1000 -> 50.4454923 | AC158: 50.99756931 | AD158: 58.32754052 | AE158: 66.74258766 | AF158: 76.35958342 | AG158: 87.29020643 | AH158: 99.61560113 | AI158: 113.5612023 | AJ158: 118.9748884 | AK158: 112.1793154 | AL158: 100.3862984
Z159: 3 | AA159: 28.66123035 | AB159: 32.90733855 | AC159: 31.8458115 | AD159: 36.66166609 | AE159: 42.1734175 | AF159: 48.44632527 | AG159: 55.74887613 | AH159: 64.10579867 | AI159: 73.2880328 | AJ159: 81.26192872 | AK159: 81.26192872 | AL159: 81.26192872
Z160: 4 | AA160: 12.72478022 | AB160: 19.08717033 | AC160: 23.32876374 | AD160: 26.85663533 | AE160: 30.89428865 | AF160: 35.4895298 | AG160: 40.83903969 | AH160: 46.96093335 | AI160: 53.68741198 | AJ160: 59.52871811 | AK160: 61.30569477 | AL160: 64.85964809
Z161: 5 | AA161: 7.830530917 | AB161: 11.31076688 | AC161: 20.88141578 | AD161: 24.03918935 | AE161: 27.65326503 | AF161: 31.76643374 | AG161: 36.55474321 | AH161: 42.03440807 | AI161: 48.05523278 | AJ161: 53.28374566 | AK161: 55.15335078 | AL161: 57.95775844
Z162: 6 | AA162: 7.230232097 | AB162: 10.84534815 | AC162: 19.88313827 | AD162: 22.88994821 | AE162: 26.33124583 | AF162: 30.24777635 | AG162: 34.80717118 | AH162: 40.02486979 | AI162: 45.75785702 | AJ162: 50.73641048 | AK162: 56.13390096 | AL162: 59.37239524
Z163: 7 | AA163: 7.75754687 | AB163: 11.6363203 | AC163: 19.39386717 | AD163: 22.32668753 | AE163: 25.68330398 | AF163: 29.50345911 | AG163: 33.95065937 | AH163: 39.03996431 | AI163: 44.631878 | AJ163: 49.48792251 | AK163: 63.29850554 | AL163: 70.20379705
Z164: 8 | AA164: 10.4315399 | AB164: 15.64730984 | AC164: 19.12448981 | AD164: 22.01657381 | AE164: 25.32656746 | AF164: 29.09366131 | AG164: 33.47909075 | AH164: 38.49770615 | AI164: 45.11224788 | AJ164: 50.02055767 | AK164: 67.88504256 | AL164: 75.03083651
Z165: 9 | AA165: 11.37813828 | AB165: 17.06720742 | AC165: 18.9635638 | AD165: 21.83131191 | AE165: 25.1134531 | AF165: 28.84884815 | AG165: 33.19737571 | AH165: 38.17376119 | AI165: 45.82368391 | AJ165: 50.80939948 | AK165: 68.48223408 | AL165: 75.10954705
Z166: 10 | AA166: 12.57425103 | AB166: 18.86137654 | AC166: 18.86137654 | AD166: 21.71367147 | AE166: 24.97812648 | AF166: 28.69339294 | AG166: 33.01848798 | AH166: 37.96805765 | AI166: 46.66191882 | AJ166: 51.73883615 | AK166: 70.06300729 | AL166: 80.84193149
Z170: Death Diagnosis Adjustment
Z171: Diagnosis Group --> | AA171: Unclassified | AB171: Low Non-Cancer | AC171: High Non-Cancer | AD171: Cancer
Z172: Year of Dis.
Z173: 1 (3rd qtr.) | AA173: 1 | AB173: 0.2 | AC173: 0.5 | AD173: 3.65
Z174: 1 (4th qtr.) | AA174: 1 | AB174: 0.2 | AC174: 0.5 | AD174: 3.95
Z175: 2 (1st qtr.) | AA175: 1 | AB175: 0.2 | AC175: 0.6 | AD175: 4.2
Z176: 2 (2nd qtr.) | AA176: 1 | AB176: 0.25 | AC176: 0.6 | AD176: 4.5
Z177: 2 (3rd qtr.) | AA177: 1 | AB177: 0.3 | AC177: 0.65 | AD177: 4.7
Z178: 2 (4th qtr.) | AA178: 1 | AB178: 0.35 | AC178: 0.75 | AD178: 4.725
Z179: 3 | AA179: 1 | AB179: 0.4 | AC179: 0.9 | AD179: 4.75
Z180: 4 | AA180: 1 | AB180: 0.5 | AC180: 1.25 | AD180: 4.6
Z181: 5 | AA181: 1 | AB181: 0.6 | AC181: 1.35 | AD181: 4
Z182: 6 | AA182: 1 | AB182: 0.65 | AC182: 1.45 | AD182: 3.6
Z183: 7 | AA183: 1 | AB183: 0.7 | AC183: 1.55 | AD183: 3.05
Z184: 8 | AA184: 1 | AB184: 0.7 | AC184: 1.65 | AD184: 2.65
Z185: 9 | AA185: 1 | AB185: 0.75 | AC185: 1.6 | AD185: 2.3
Z186: 10 | AA186: 1 | AB186: 0.75 | AC186: 1.5675 | AD186: 2.15
Z192: Recovery Diagnosis Adjustment
Z193: Diagnosis Group --> | AA193: Unclassified | AB193: Low | AC193: Medium | AD193: High
Z194: Year of Dis.
Z195: 1 (3rd qtr.) | AA195: 1 | AB195: 0.55 | AC195: 1.15 | AD195: 1.4
Z196: 1 (4th qtr.) | AA196: 1 | AB196: 0.55 | AC196: 1.15 | AD196: 1.4
Z197: 2 (1st qtr.) | AA197: 1 | AB197: 0.6 | AC197: 1.15 | AD197: 1.4
Z198: 2 (2nd qtr.) | AA198: 1 | AB198: 0.65 | AC198: 1.15 | AD198: 1.35
Z199: 2 (3rd qtr.) | AA199: 1 | AB199: 0.65 | AC199: 1.15 | AD199: 1.35
Z200: 2 (4th qtr.) | AA200: 1 | AB200: 0.65 | AC200: 1.15 | AD200: 1.375
Z201: 3 | AA201: 1 | AB201: 0.65 | AC201: 1.15 | AD201: 1.4
Z202: 4 | AA202: 1 | AB202: 0.675 | AC202: 1.125 | AD202: 1.475
Z203: 5 | AA203: 1 | AB203: 0.7 | AC203: 1.1 | AD203: 1.55
Z204: 6 | AA204: 1 | AB204: 0.7 | AC204: 1.15 | AD204: 1.45
Z205: 7 | AA205: 1 | AB205: 0.7 | AC205: 1.2 | AD205: 1.35
Z206: 8 | AA206: 1 | AB206: 0.7 | AC206: 1.2 | AD206: 1.35
Z207: 9 | AA207: 1 | AB207: 0.7 | AC207: 1.2 | AD207: 1.35
Z208: 10 | AA208: 1 | AB208: 0.7 | AC208: 1.2 | AD208: 1.25

Sheet 2023 Rates - Females
Z2: Society of Actuaries ("SOA") Group Life Experience Committee
Z3: Calculation Spreadsheet for Reserve Factors for Group Term Life Waiver of Premium
Z4: 2023 Mortality and Recovery Rates Females
Z8: 2023 GRP LIFE DISABILITY VALUATION TABLE - TERMINATION RATES PER 1,000 LIVES - Females | BH8: Ultimate Period | BI8: Recovery Diagnosis Group Adjustments | BO8: Ultimate Period | BP8: Death Diagnosis Group Adjustments
BH9: Att | BO9: Att
Z10: PROBABILITY OF DEATH OR RECOVERY - SELECT PERIOD@ | AO10: COL OFFSET | AR10: NAIC Table with Diag and Company Adjustment | AW10: NAIC Table With Diagnosis Adjustment | BB10: NAIC Table With No Margin | BH10: Age | BI10: Unclassified | BJ10: Low | BK10: Medium | BL10: High | BO10: Age | BP10: Unclassified | BQ10: Low Non-Cancer | BR10: High Non-Cancer | BS10: Cancer
Z11: Central Age => | AA11: 17 | AB11: 22 | AC11: 27 | AD11: 32 | AE11: 37 | AF11: 42 | AG11: 47 | AH11: 52 | AI11: 57 | AJ11: 62 | AK11: 67 | AL11: 72 | AM11: 73 | AO11: Dis | AR11: Att | AS11: Term. | AT11: Recov | AU11: Death | AW11: Att | AX11: Term. | AY11: Recov | AZ11: Death | BB11: Att | BC11: Term. | BD11: Recov | BE11: Death | BG11: 0 | BH11: 0-44 | BI11: 1 | BJ11: 0.7 | BK11: 1.25 | BL11: 1.1 | BN11: 0 | BO11: 0-44 | BP11: 1 | BQ11: 0.75 | BR11: 1.7 | BS11: 2
AO12: Age | AP12: Col. | AR12: Age | AS12: Rate | AT12: Rate | AU12: Rate | AW12: Age | AX12: Rate | AY12: Rate | AZ12: Rate | BB12: Age | BC12: Rate | BD12: Rate | BE12: Rate | BG12: 45 | BH12: 45-49 | BI12: 1 | BJ12: 0.7 | BK12: 1.25 | BL12: 1.05 | BN12: 45 | BO12: 45-59 | BP12: 1 | BQ12: 0.85 | BR12: 1.6 | BS12: 2
Z13: Year of Dis. | AO13: 17 | AP13: 0 | AR13: 27 | AS13: =AT13+AU13 -> 87.89139128 | AT13: =MIN(1000-AU13,AY13*CompanyRecovAdj61) -> 77.09709921 | AU13: =MIN(1000,AZ13*CompanyMortAdj61) -> 10.79429207 | AW13: 27 | AX13: =AY13+AZ13 -> 83.58896482 | AY13: =BD13*INDEX(UltimateRecovDiagnosisAdj,MATCH(AW13,$BG$10:$BG$16,1),MATCH(RecovDiagGroup,$BG$10:$BL$10,0)) -> 73.02263477 | AZ13: =MIN(1000,BE13*INDEX(UltimateMortDiagnosisAdj,MATCH(AW13,$BN$10:$BN$45,1),MATCH(MortDiagGroup,$BN$10:$BS$10,0))) -> 10.56633005 | BB13: 27 | BC13: =BD13+BE13 -> 83.58896482 | BD13: 73.02263477 | BE13: 10.56633005 | BG13: 50 | BH13: 50-54 | BI13: 1 | BJ13: 0.75 | BK13: 1.3 | BL13: 1.1 | BN13: 60 | BO13: 60-64 | BP13: 1 | BQ13: 0.8 | BR13: 1.55 | BS13: 2
Z14: 1 (3rd qtr.) | AA14: =AA37+AA60 -> 311.2403279 | AB14: 312.3465094 | AC14: 259.2709985 | AD14: 220.3555684 | AE14: 144.1948443 | AF14: 124.3741647 | AG14: 108.7245717 | AH14: 96.9449402 | AI14: 88.16683649 | AJ14: 81.08712857 | AK14: 66.73485736 | AL14: 56.62684932 | AO14: 18 | AP14: 0 | AR14: 28 | AS14: 86.93957524 | AT14: 76.14528317 | AU14: =MIN(1000,AZ14*CompanyMortAdj61) -> 10.79429207 | AW14: 28 | AX14: 82.68745081 | AY14: 72.12112076 | AZ14: 10.56633005 | BB14: 28 | BC14: 82.68745081 | BD14: 72.12112076 | BE14: 10.56633005 | BG14: 55 | BH14: 55-59 | BI14: 1 | BJ14: 0.75 | BK14: 1.25 | BL14: 1.2 | BN14: 65 | BO14: 65-69 | BP14: 1 | BQ14: 0.75 | BR14: 1.55 | BS14: 2
Z15: 1 (4th qtr.) | AA15: 237.0755711 | AB15: 238.4821088 | AC15: 199.6916843 | AD15: 171.2401321 | AE15: 147.3617531 | AF15: 128.2155393 | AG15: 113.3566304 | AH15: 102.4853363 | AI15: 94.78923583 | AJ15: 88.03704204 | AK15: 73.26483372 | AL15: 62.73029087 | AO15: 19 | AP15: 0 | AR15: 29 | AS15: 85.99951001 | AT15: 75.20521794 | AU15: 10.79429207 | AW15: 29 | AX15: 81.7970666 | AY15: 71.23073655 | AZ15: 10.56633005 | BB15: 29 | BC15: 81.7970666 | BD15: 71.23073655 | BE15: 10.56633005 | BG15: 60 | BH15: 60-64 | BI15: 1 | BJ15: 0.77 | BK15: 1.2 | BL15: 1.05 | BN15: 70 | BO15: 70 | BP15: 1 | BQ15: 0.75 | BR15: 1.55 | BS15: 2
Z16: 2 (1st qtr.) | AA16: 197.128847 | AB16: 198.4594183 | AC16: 168.927436 | AD16: 145.2451356 | AE16: 125.4530794 | AF16: 109.688645 | AG16: 97.58597986 | AH16: 88.89383149 | AI16: 82.95677816 | AJ16: 77.44140929 | AK16: 68.37441592 | AL16: 59.30742255 | AO16: 20 | AP16: 1 | AR16: 30 | AS16: 86.42033704 | AT16: 74.27675846 | AU16: 12.14357858 | AW16: 30 | AX16: 82.23846605 | AY16: 70.35134474 | AZ16: 11.88712131 | BB16: 30 | BC16: 82.23846605 | BD16: 70.35134474 | BE16: 11.88712131 | BG16: 65 | BH16: 65+ | BI16: 1 | BJ16: 0.8 | BK16: 1.2 | BL16: 1.2 | BN16: 71 | BO16: 71 | BP16: 1 | BQ16: 0.7583333333 | BR16: 1.531666667 | BS16: 1.966666667
Z17: 2 (2nd qtr.) | AA17: 172.9621642 | AB17: 174.3105874 | AC17: 145.2173434 | AD17: 124.9579164 | AE17: 108.048248 | AF17: 94.60717173 | AG17: 84.3228681 | AH17: 76.97993051 | AI17: 72.0230873 | AJ17: 67.33220411 | AK17: 57.25595921 | AL17: 47.17971431 | AO17: 21 | AP17: 1 | AR17: 31 | AS17: 85.50334002 | AT17: 73.35976145 | AU17: 12.14357858 | AW17: 31 | AX17: 81.36993093 | AY17: 69.48280962 | AZ17: 11.88712131 | BB17: 31 | BC17: 81.36993093 | BD17: 69.48280962 | BE17: 11.88712131 | BN17: 72 | BO17: 72 | BP17: 1 | BQ17: 0.7666666667 | BR17: 1.513333333 | BS17: 1.933333333
Z18: 2 (3rd qtr.) | AA18: 150.8918918 | AB18: 152.0799622 | AC18: 129.1467814 | AD18: 111.1026626 | AE18: 96.03610415 | AF18: 84.05258951 | AG18: 74.87408221 | AH18: 68.30885682 | AI18: 63.86088795 | AJ18: 59.6755205 | AK18: 50.88908173 | AL18: 44.1544035 | AO18: 22 | AP18: 1 | AR18: 32 | AS18: 84.59766396 | AT18: 72.45408538 | AU18: 12.14357858 | AW18: 32 | AX18: 80.51211846 | AY18: 68.62499716 | AZ18: 11.88712131 | BB18: 32 | BC18: 80.51211846 | BD18: 68.62499716 | BE18: 11.88712131 | BN18: 73 | BO18: 73 | BP18: 1 | BQ18: 0.775 | BR18: 1.495 | BS18: 1.9
Z19: 2 (4th qtr.) | AA19: 138.6166824 | AB19: 139.7546019 | AC19: 118.1458284 | AD19: 101.5661796 | AE19: 87.70639567 | AF19: 76.66243372 | AG19: 68.1779723 | AH19: 62.07719127 | AI19: 57.90033312 | AJ19: 54.03453167 | AK19: 48.63832855 | AL19: 40.28885548 | AO19: 23 | AP19: 1 | AR19: 33 | AS19: 83.70316907 | AT19: 71.5595905 | AU19: 12.14357858 | AW19: 33 | AX19: 79.66489628 | AY19: 67.77777497 | AZ19: 11.88712131 | BB19: 33 | BC19: 79.66489628 | BD19: 67.77777497 | BE19: 11.88712131 | BN19: 74 | BO19: 74 | BP19: 1 | BQ19: 0.7833333333 | BR19: 1.476666667 | BS19: 1.866666667
Z20: 2 (annual) | AA20: 523.4248177 | AB20: 528.3363697 | AC20: 466.6152388 | AD20: 414.9707525 | AE20: 369.0765167 | AF20: 330.6804629 | AG20: 300.0715058 | AH20: 277.4811258 | AI20: 261.7753247 | AJ20: 245.8794132 | AK20: 215.7602264 | AL20: 184.2174767 | AO20: 24 | AP20: 1 | AR20: 34 | AS20: 82.81971734 | AT20: 70.67613876 | AU20: 12.14357858 | AW20: 34 | AX20: 78.82813362 | AY20: 66.94101232 | AZ20: 11.88712131 | BB20: 34 | BC20: 78.82813362 | BD20: 66.94101232 | BE20: 11.88712131 | BN20: 75 | BO20: 75 | BP20: 1 | BQ20: 0.7916666667 | BR20: 1.458333333 | BS20: 1.833333333
Z21: 3 | AA21: 598.3734987 | AB21: 600.6086782 | AC21: 499.3835315 | AD21: 426.693751 | AE21: 405.9429947 | AF21: 327.9506743 | AG21: 282.4280644 | AH21: 237.4630497 | AI21: =AI44+AI67 -> 208.8141132 | AJ21: 190.0124426 | AK21: 163.5709338 | AL21: 152.9943303 | AO21: 25 | AP21: 2 | AR21: 35 | AS21: 83.29645893 | AT21: 69.80359384 | AU21: 13.49286509 | AW21: 35 | AX21: 79.32249263 | AY21: 66.11458007 | AZ21: 13.20791256 | BB21: 35 | BC21: 79.32249263 | BD21: 66.11458007 | BE21: 13.20791256 | BN21: 76 | BO21: 76 | BP21: 1 | BQ21: 0.8 | BR21: 1.44 | BS21: 1.8
Z22: 4 | AA22: 398.0211565 | AB22: 404.4597361 | AC22: 313.3013995 | AD22: 277.7385632 | AE22: 230.281178 | AF22: 188.7381376 | AG22: 163.0335435 | AH22: 137.2762164 | AI22: 122.979876 | AJ22: 113.5957316 | AK22: 98.63798712 | AL22: 95.40785918 | AO22: 26 | AP22: 2 | AR22: 36 | AS22: 82.43468616 | AT22: 68.94182108 | AU22: 13.49286509 | AW22: 36 | AX22: 78.50626325 | AY22: 65.29835068 | AZ22: 13.20791256 | BB22: 36 | BC22: 78.50626325 | BD22: 65.29835068 | BE22: 13.20791256 | BN22: 77 | BO22: 77 | BP22: 1 | BQ22: 0.8083333333 | BR22: 1.421666667 | BS22: 1.766666667
Z23: 5 | AA23: 282.8862537 | AB23: 287.5546287 | AC23: 217.4653199 | AD23: 189.2216515 | AE23: 155.1860132 | AF23: 126.7016435 | AG23: 109.4985354 | AH23: 94.19471144 | AI23: 83.95563846 | AJ23: 79.41126128 | AK23: 76.84052647 | AL23: 75.55515907 | AO23: 27 | AP23: 2 | AR23: 37 | AS23: 81.58355257 | AT23: 68.09068748 | AU23: 13.49286509 | AW23: 37 | AX23: 77.70011077 | AY23: 64.4921982 | AZ23: 13.20791256 | BB23: 37 | BC23: 77.70011077 | BD23: 64.4921982 | BE23: 13.20791256 | BN23: 78 | BO23: 78 | BP23: 1 | BQ23: 0.8166666667 | BR23: 1.403333333 | BS23: 1.733333333
Z24: 6 | AA24: 158.8769295 | AB24: 165.2910337 | AC24: 146.4493265 | AD24: 116.8508778 | AE24: 95.98781777 | AF24: 81.07865156 | AG24: 71.26804907 | AH24: 64.80636243 | AI24: 61.01032325 | AJ24: 60.41991589 | AK24: 58.39151518 | AL24: 57.9902282 | AO24: 28 | AP24: 2 | AR24: 38 | AS24: 77.02967709 | AT24: 63.1195069 | AU24: 13.91017019 | AW24: 38 | AX24: 73.40014166 | AY24: =BD24*INDEX(UltimateRecovDiagnosisAdj,MATCH(AW24,$BG$10:$BG$16,1),MATCH(RecovDiagGroup,$BG$10:$BL$10,0)) -> 59.78373695 | AZ24: 13.6164047 | BB24: 38 | BC24: 73.40014166 | BD24: 59.78373695 | BE24: 13.6164047 | BN24: 79 | BO24: 79 | BP24: 1 | BQ24: 0.825 | BR24: 1.385 | BS24: 1.7
Z25: 7 | AA25: 129.9638696 | AB25: 135.8115219 | AC25: 124.1162389 | AD25: 96.66943141 | AE25: 78.16392171 | AF25: 66.77258002 | AG25: 58.80544837 | AH25: 54.95773106 | AI25: 54.81249027 | AJ25: 53.51764288 | AK25: 57.97773397 | AL25: 57.67376753 | AO25: 29 | AP25: 2 | AR25: 39 | AS25: 72.85164505 | AT25: 58.51126341 | AU25: 14.34038164 | AW25: 39 | AX25: 69.45656275 | AY25: 55.41903213 | AZ25: 14.03753062 | BB25: 39 | BC25: 69.45656275 | BD25: 55.41903213 | BE25: 14.03753062 | BN25: 80 | BO25: 80 | BP25: 1 | BQ25: 0.8333333333 | BR25: 1.366666667 | BS25: 1.666666667
Z26: 8 | AA26: 111.6722771 | AB26: 115.5651654 | AC26: 107.0604166 | AD26: 83.44614802 | AE26: 67.45095373 | AF26: 58.26162621 | AG26: 51.63479883 | AH26: 49.18815756 | AI26: 50.28747863 | AJ26: 51.82293483 | AK26: 57.91830502 | AL26: 57.42342159 | AO26: 30 | AP26: 3 | AR26: 40 | AS26: 69.02335822 | AT26: 54.23945962 | AU26: 14.7838986 | AW26: 40 | AX26: 65.84466773 | AY26: 51.37298667 | AZ26: 14.47168105 | BB26: 40 | BC26: 65.84466773 | BD26: 51.37298667 | BE26: 14.47168105 | BN26: 81 | BO26: 81 | BP26: 1 | BQ26: 0.8416666667 | BR26: 1.348333333 | BS26: 1.633333333
Z27: 9 | AA27: 96.13639584 | AB27: 99.91359892 | AC27: 95.90345105 | AD27: 74.09163738 | AE27: 60.26450543 | AF27: 52.63856845 | AG27: 47.52915386 | AH27: 45.87747459 | AI27: 48.8595753 | AJ27: 51.79267243 | AK27: 60.75467833 | AL27: 60.08482763 | AO27: 31 | AP27: 3 | AR27: 41 | AS27: 65.52066525 | AT27: 50.27953267 | AU27: 15.24113258 | AW27: 41 | AX27: 62.54159466 | AY27: 47.62233584 | AZ27: 14.91925882 | BB27: 41 | BC27: 62.54159466 | BD27: 47.62233584 | BE27: 14.91925882 | BN27: 82 | BO27: 82 | BP27: 1 | BQ27: 0.85 | BR27: 1.33 | BS27: 1.6
Z28: 10 | AA28: 90.17935803 | AB28: 92.58290086 | AC28: 87.31356877 | AD28: 67.67478145 | AE28: 55.75098879 | AF28: 49.32112191 | AG28: 45.44385691 | AH28: 43.97648635 | AI28: 47.48699778 | AJ28: 51.84687215 | AK28: 66.13280689 | AL28: 64.24646104 | AO28: 32 | AP28: 3 | AR28: 42 | AS28: 62.32122079 | AT28: 46.60871298 | AU28: 15.71250781 | AW28: 42 | AX28: 59.52619258 | AY28: 44.14551338 | AZ28: 15.3806792 | BB28: 42 | BC28: 59.52619258 | BD28: 44.14551338 | BE28: 15.3806792 | BN28: 83 | BO28: 83 | BP28: 1 | BQ28: 0.8583333333 | BR28: 1.311666667 | BS28: 1.566666667
AO29: 33 | AP29: 3 | AR29: 43 | AS29: 59.86279888 | AT29: 43.66433722 | AU29: 16.19846166 | AW29: 43 | AX29: 57.2131137 | AY29: 41.3567434 | AZ29: 15.8563703 | BB29: 43 | BC29: 57.2131137 | BD29: 41.3567434 | BE29: 15.8563703 | BN29: 84 | BO29: 84 | BP29: 1 | BQ29: 0.8666666667 | BR29: 1.293333333 | BS29: 1.533333333
AO30: 34 | AP30: 3 | AR30: 44 | AS30: 57.42028119 | AT30: 40.72083618 | AU30: 16.69944501 | AW30: 44 | AX30: 54.91557543 | AY30: 38.56880192 | AZ30: 16.34677351 | BB30: 44 | BC30: 54.91557543 | BD30: 38.56880192 | BE30: 16.34677351 | BN30: 85 | BO30: 85 | BP30: 1 | BQ30: 0.875 | BR30: 1.275 | BS30: 1.5
AO31: 35 | AP31: 4 | AR31: 45 | AS31: 55.01345047 | AT31: 37.79752778 | AU31: 17.21592269 | AW31: 45 | AX31: 52.65232974 | AY31: 35.79998592 | AZ31: 16.85234382 | BB31: 45 | BC31: 52.65232974 | BD31: 35.79998592 | BE31: 16.85234382 | BN31: 86 | BO31: 86 | BP31: 1 | BQ31: 0.8833333333 | BR31: 1.256666667 | BS31: 1.466666667
W32: NAIC Table with Diagnosis and Company Adjustment | AE32: Females | AO32: 36 | AP32: 4 | AR32: 46 | AS32: 52.66105972 | AT32: 34.91268581 | AU32: 17.74837391 | AW32: 46 | AX32: 50.44115379 | AY32: 33.06760346 | AZ32: 17.37355033 | BB32: 46 | BC32: 50.44115379 | BD32: 33.06760346 | BE32: 17.37355033 | BN32: 87 | BO32: 87 | BP32: 1 | BQ32: 0.8916666667 | BR32: 1.238333333 | BS32: 1.433333333
Z33: PROBABILITY OF RECOVERY (1,000Q[X]+T) - SELECT PERIOD@ | AO33: 37 | AP33: 4 | AR33: 47 | AS33: 50.38065749 | AT33: 32.0833648 | AU33: 18.29729269 | AW33: 47 | AX33: 48.29868439 | AY33: 30.38780776 | AZ33: 17.91087663 | BB33: 47 | BC33: 48.29868439 | BD33: 30.38780776 | BE33: 17.91087663 | BN33: 88 | BO33: 88 | BP33: 1 | BQ33: 0.9 | BR33: 1.22 | BS33: 1.4
Z34: Central Age => | AA34: 17 | AB34: 22 | AC34: 27 | AD34: 32 | AE34: 37 | AF34: 42 | AG34: 47 | AH34: 52 | AI34: 57 | AJ34: 62 | AK34: 67 | AL34: 72 | AM34: 73 | AO34: 38 | AP34: 4 | AR34: 48 | AS34: 48.188427 | AT34: 29.32523866 | AU34: 18.86318834 | AW34: 48 | AX34: 46.24026567 | AY34: 27.7754444 | AZ34: 18.46482127 | BB34: 48 | BC34: 46.24026567 | BD34: 27.7754444 | BE34: 18.46482127 | BN34: 89 | BO34: 89 | BP34: 1 | BQ34: 0.9083333333 | BR34: 1.201666667 | BS34: 1.366666667
AO35: 39 | AP35: 4 | AR35: 49 | AS35: 47.63670979 | AT35: 28.19012387 | AU35: 19.44658592 | AW35: 49 | AX35: 45.73621692 | AY35: 26.7003187 | AZ35: 19.03589822 | BB35: 49 | BC35: 45.73621692 | BD35: 26.7003187 | BE35: 19.03589822 | BN35: 90 | BO35: 90 | BP35: 1 | BQ35: 0.9166666667 | BR35: 1.183333333 | BS35: 1.333333333
Z36: Year of Dis. | AO36: 40 | AP36: 5 | AR36: 50 | AS36: 47.07397118 | AT36: 27.02594446 | AU36: 20.04802672 | AW36: 50 | AX36: 45.22230174 | AY36: 25.5976644 | AZ36: 19.62463734 | BB36: 50 | BC36: 45.22230174 | BD36: 25.5976644 | BE36: 19.62463734 | BN36: 91 | BO36: 91 | BP36: 1 | BQ36: 0.925 | BR36: 1.165 | BS36: 1.3
Z37: 1 (3rd qtr.) | AA37: =MIN(CompanyRecovAdj0*AA83,1000-AA60) -> 305.7094204 | AB37: 305.7094204 | AC37: 250.4215465 | AD37: 209.9033989 | AE37: 131.7770092 | AF37: 109.5993096 | AG37: 91.14336864 | AH37: 76.10452126 | AI37: 63.41416292 | AJ37: 55.17542114 | AK37: 42.44263165 | AL37: 33.95410532 | AM37: =NA() ->  | AO37: 41 | AP37: 5 | AR37: 51 | AS37: 46.5081126 | AT37: 25.84004382 | AU37: 20.66806878 | AW37: 51 | AX37: 44.70602168 | AY37: 24.4744368 | AZ37: 20.23158488 | BB37: 51 | BC37: 44.70602168 | BD37: 24.4744368 | BE37: 20.23158488 | BN37: 92 | BO37: 92 | BP37: 1 | BQ37: 0.9333333333 | BR37: 1.146666667 | BS37: 1.266666667
Z38: 1 (4th qtr.) | AA38: =MIN(CompanyRecovAdj0*AA84,1000-AA61) -> 230.0428824 | AB38: 230.0428824 | AC38: 188.4393824 | AD38: 157.9499344 | AE38: 131.5721618 | AF38: 109.4289375 | AG38: 91.00168626 | AH38: 75.98621678 | AI38: 63.3155856 | AJ38: 55.08965095 | AK38: 42.37665457 | AL38: 33.90132366 | AM38: =NA() ->  | AO38: 42 | AP38: 5 | AR38: 52 | AS38: 45.94691336 | AT38: 24.63962596 | AU38: 21.3072874 | AW38: 52 | AX38: 44.19476321 | AY38: 23.3374592 | AZ38: 20.85730401 | BB38: 52 | BC38: 44.19476321 | BD38: 23.3374592 | BE38: 20.85730401 | BN38: 93 | BO38: 93 | BP38: 1 | BQ38: 0.9416666667 | BR38: 1.128333333 | BS38: 1.233333333
Z39: 2 (1st qtr.) | AA39: =MIN(CompanyRecovAdj0*AA85,1000-AA62) -> 190.4759901 | AB39: 190.4759901 | AC39: 158.282865 | AD39: 132.6727345 | AE39: 110.5162756 | AF39: 91.91669768 | AG39: 76.43841452 | AH39: 63.82591547 | AI39: 53.18300326 | AJ39: 46.27348951 | AK39: 39.15449112 | AL39: 32.03549274 | AM39: =NA() ->  | AO39: 43 | AP39: 5 | AR39: 53 | AS39: 45.39795573 | AT39: 23.43168005 | AU39: 21.96627567 | AW39: 53 | AX39: 43.69572666 | AY39: 22.1933514 | AZ39: 21.50237526 | BB39: 53 | BC39: 43.69572666 | BD39: 22.1933514 | BE39: 21.50237526 | BN39: 94 | BO39: 94 | BP39: 1 | BQ39: 0.95 | BR39: 1.11 | BS39: 1.2
Z40: 2 (2nd qtr.) | AA40: =MIN(CompanyRecovAdj0*AA86,1000-AA63) -> 166.8942597 | AB40: 166.8942597 | AC40: 135.7783807 | AD40: 113.8094705 | AE40: 94.8031927 | AF40: 78.84808236 | AG40: 65.57048453 | AH40: 54.75121677 | AI40: 45.62150215 | AJ40: 39.69437549 | AK40: 32.47721631 | AL40: 25.26005713 | AM40: =NA() ->  | AO40: 44 | AP40: 5 | AR40: 54 | AS40: 44.8685697 | AT40: 22.22292467 | AU40: 22.64564503 | AW40: 54 | AX40: 43.21587408 | AY40: 21.0484769 | AZ40: 22.16739718 | BB40: 54 | BC40: 43.21587408 | BD40: 21.0484769 | BE40: 22.16739718 | BN40: 95 | BO40: 95 | BP40: 1 | BQ40: 0.9583333333 | BR40: 1.091666667 | BS40: 1.166666667
Z41: 2 (3rd qtr.) | AA41: =MIN(CompanyRecovAdj0*AA87,1000-AA64) -> 145.545575 | AB41: 145.545575 | AC41: 120.8302887 | AD41: 101.2799763 | AE41: 84.36613457 | AF41: 70.16755172 | AG41: 58.35170909 | AH41: 48.72355446 | AI41: 40.59894694 | AJ41: 35.32434857 | AK41: 27.47449333 | AL41: 23.54956571 | AM41: =NA() ->  | AO41: 45 | AP41: 6 | AR41: 55 | AS41: 44.36577318 | AT41: 21.01974738 | AU41: 23.3460258 | AW41: 55 | AX41: 42.76187248 | AY41: 19.9088857 | AZ41: 22.85298678 | BB41: 55 | BC41: 42.76187248 | BD41: 19.9088857 | BE41: 22.85298678 | BN41: 96 | BO41: 96 | BP41: 1 | BQ41: 0.9666666667 | BR41: 1.073333333 | BS41: 1.133333333
Z42: 2 (4th qtr.) | AA42: =MIN(CompanyRecovAdj0*AA88,1000-AA65) -> 134.0650041 | AB42: 134.0650041 | AC42: 110.7493512 | AD42: 92.83013213 | AE42: 77.32742156 | AF42: 64.31343429 | AG42: 53.48339391 | AH42: 44.65852151 | AI42: 37.21175446 | AJ42: 32.37721874 | AK42: 26.98101562 | AL42: 21.58481249 | AM42: =NA() ->  | AO42: 46 | AP42: 6 | AR42: 56 | AS42: 43.89622034 | AT42: 19.8281525 | AU42: 24.06806783 | AW42: 56 | AX42: 42.34004499 | AY42: 18.7802648 | AZ42: 23.55978019 | BB42: 56 | BC42: 42.34004499 | BD42: 18.7802648 | BE42: 23.55978019 | BN42: 97 | BO42: 97 | BP42: 1 | BQ42: 0.975 | BR42: 1.055 | BS42: 1.1
Z43: 2 (annual) | AA43: =(1-(1-AA39/1000)*(1-AA40/1000)*(1-AA41/1000)*(1-AA42/1000))*1000 -> 500.9959668 | AB43: =(1-(1-AB39/1000)*(1-AB40/1000)*(1-AB41/1000)*(1-AB42/1000))*1000 -> 500.9959668 | AC43: 431.2934857 | AD43: 373.3527499 | AE43: 319.7783037 | AF43: 272.2335307 | AG43: 230.8175461 | AH43: 195.7924997 | AI43: 165.3245078 | AJ43: 145.0893468 | AK43: 120.2949611 | AL43: 98.59163402 | AM43: =TRUNC(1000*(1-(1-AM39/1000)*(1-AM40/1000)*(1-AM41/1000)*(1-AM42/1000))) ->  | AO43: 47 | AP43: 6 | AR43: 57 | AS43: 43.46616152 | AT43: 18.65372046 | AU43: 24.81244107 | AW43: 57 | AX43: 41.95633288 | AY43: 17.6678997 | AZ43: 24.28843318 | BB43: 57 | BC43: 41.95633288 | BD43: 17.6678997 | BE43: 24.28843318 | BN43: 98 | BO43: 98 | BP43: 1 | BQ43: 0.9833333333 | BR43: 1.036666667 | BS43: 1.066666667
Z44: 3 | AA44: =MIN(CompanyRecovAdj25*AA90,1000-AA67) -> 580.4920631 | AB44: 580.4920631 | AC44: 472.561378 | AD44: 398.5251985 | AE44: 372.628169 | AF44: 288.4951359 | AG44: 235.7338898 | AH44: 182.2826381 | AI44: 143.8824018 | AJ44: 116.3426386 | AK44: 89.90112981 | AL44: 79.3245263 | AM44: =NA() ->  | AO44: 48 | AP44: 6 | AR44: 58 | AS44: 43.08141138 | AT44: 17.50157523 | AU44: 25.57983615 | AW44: 58 | AX44: 41.61626544 | AY44: 16.5766436 | AZ44: 25.03962184 | BB44: 58 | BC44: 41.61626544 | BD44: 16.5766436 | BE44: 25.03962184 | BN44: 99 | BO44: 99 | BP44: 1 | BQ44: 0.9916666667 | BR44: 1.018333333 | BS44: 1.033333333
Z45: 4 | AA45: =MIN(CompanyRecovAdj25*AA91,1000-AA68) -> 385.9488198 | AB45: 385.9488198 | AC45: 289.9615485 | AD45: 253.2271152 | AE45: 204.7988039 | AF45: 158.5587556 | AG45: 127.3173641 | AH45: 95.06894774 | AI45: 73.31388556 | AJ45: 57.24601145 | AK45: 34.98367366 | AL45: 28.62300572 | AM45: =NA() ->  | AO45: 49 | AP45: 6 | AR45: 59 | AS45: 42.7473228 | AT45: =MIN(1000-AU45,AY45*CompanyRecovAdj61) -> 16.3763577 | AU45: =MIN(1000,AZ45*CompanyMortAdj61) -> 26.3709651 | AW45: 59 | AX45: 41.32493523 | AY45: =BD45*INDEX(UltimateRecovDiagnosisAdj,MATCH(AW45,$BG$10:$BG$16,1),MATCH(RecovDiagGroup,$BG$10:$BL$10,0)) -> 15.5108921 | AZ45: =MIN(1000,BE45*INDEX(UltimateMortDiagnosisAdj,MATCH(AW45,$BN$10:$BN$45,1),MATCH(MortDiagGroup,$BN$10:$BS$10,0))) -> 25.81404313 | BB45: 59 | BC45: 41.32493523 | BD45: 15.5108921 | BE45: 25.81404313 | BN45: 100 | BO45: 100+ | BP45: 1 | BQ45: 1 | BR45: 1 | BS45: 1
Z46: 5 | AA46: =MIN(CompanyRecovAdj25*AA92,1000-AA69) -> 271.6821535 | AB46: 271.6821535 | AC46: 198.7918197 | AD46: 169.6107924 | AE46: 134.7983494 | AF46: 102.5560463 | AG46: 80.92310953 | AH46: 60.42596722 | AI46: 44.21939631 | AJ46: 34.32757299 | AK46: 25.74567974 | AL46: 21.45473312 | AM46: =NA() ->  | AO46: 50 | AP46: 7 | AR46: 60 | AS46: 42.46876432 | AT46: 15.28220235 | AU46: 27.18656196 | AW46: 60 | AX46: 41.0869768 | AY46: 14.4745612 | AZ46: 26.6124156 | BB46: 60 | BC46: 41.0869768 | BD46: 14.4745612 | BE46: 26.6124156
Z47: 6 | AA47: =MIN(CompanyRecovAdj61*AA93,1000-AA70) -> 151.5465247 | AB47: 151.5465247 | AC47: 129.0396151 | AD47: 98.56724623 | AE47: 76.97994515 | AF47: 58.56717723 | AG47: 44.62655384 | AH47: =MIN(CompanyRecovAdj61*AH93,1000-AH70) -> 33.32302349 | AI47: 23.96334721 | AJ47: 18.38740148 | AK47: 12.25826766 | AL47: 9.806614125 | AM47: =NA() ->  | AO47: 51 | AP47: 7 | AR47: 61 | AS47: 42.25011732 | AT47: 14.22273385 | AU47: 28.02738347 | AW47: 61 | AX47: 40.906564 | AY47: 13.471084 | AZ47: 27.43548 | BB47: 61 | BC47: 40.906564 | BD47: 13.471084 | BE47: 27.43548
Z48: 7 | AA48: =MIN(CompanyRecovAdj61*AA94,1000-AA71) -> 120.6076259 | AB48: 120.6076259 | AC48: 107.7428125 | AD48: 79.47410358 | AE48: 60.28747337 | AF48: 45.60107415 | AG48: 33.74975327 | AH48: 25.34838859 | AI48: 18.22860513 | AJ48: 13.98705607 | AK48: 9.324704047 | AL48: 6.993528035 | AM48: =NA() ->  | AO48: 52 | AP48: 7 | AR48: 62 | AS48: 42.09526516 | AT48: 13.2010554 | AU48: 28.89420976 | AW48: 62 | AX48: 40.7873997 | AY48: 12.5033997 | AZ48: 28.284 | BB48: 62 | BC48: 40.7873997 | BD48: 12.5033997 | BE48: 28.284
Z49: 8 | AA49: =MIN(CompanyRecovAdj61*AA95,1000-AA72) -> 101.2912415 | AB49: 101.2912415 | AC49: 91.48886331 | AD49: 67.0929451 | AE49: 50.01406841 | AF49: 37.61070444 | AG49: 27.1951948 | AH49: 20.30688093 | AI49: 14.60314184 | AJ49: 11.33643738 | AK49: 6.298020768 | AL49: 3.778812461 | AM49: =NA() ->  | AO49: 53 | AP49: 7 | AR49: 63 | AS49: 42.68769639 | AT49: 12.21976151 | AU49: 30.46793488 | AW49: 63 | AX49: 41.3984557 | AY49: 11.5739657 | AZ49: 29.82449 | BB49: 63 | BC49: 41.3984557 | BD49: 11.5739657 | BE49: 29.82449
Z50: 9 | AA50: =MIN(CompanyRecovAdj61*AA96,1000-AA73) -> 86.0638543 | AB50: 86.0638543 | AC50: 80.79463873 | AD50: 58.22440381 | AE50: 42.90056052 | AF50: 32.07403101 | AG50: 23.191789 | AH50: 17.11700935 | AI50: 12.30923233 | AJ50: 9.555672547 | AK50: 4.095288235 | AL50: 1.365096078 | AM50: =NA() ->  | AO50: 54 | AP50: 7 | AR50: 64 | AS50: 43.36477998 | AT50: 11.28093918 | AU50: 32.0838408 | AW50: 64 | AX50: 42.0910287 | AY50: 10.6847587 | AZ50: 31.40627 | BB50: 64 | BC50: 42.0910287 | BD50: 10.6847587 | BE50: 31.40627
Z51: 10 | AA51: =MIN(CompanyRecovAdj61*AA97,1000-AA74) -> 80.56518669 | AB51: 80.56518669 | AC51: 72.89231177 | AD51: 52.52961659 | AE51: 38.25645602 | AF51: 28.60192832 | AG51: 20.92345656 | AH51: 14.99973338 | AI51: 10.66176754 | AJ51: 8.325075965 | AK51: 4.995045579 | AL51: 0 | AM51: =NA() ->  | AO51: 55 | AP51: 8 | AR51: 65 | AS51: 44.10576542 | AT51: 10.38618994 | AU51: 33.71957548 | AW51: 65 | AX51: 42.8447556 | AY51: 9.8372956 | AZ51: 33.00746 | BB51: 65 | BC51: 42.8447556 | BD51: 9.8372956 | BE51: 33.00746
AO52: 56 | AP52: 8 | AR52: 66 | AS52: 44.88520486 | AT52: 9.536647306 | AU52: 35.34855755 | AW52: 66 | AX52: 43.63469 | AY52: 9.03265 | AZ52: 34.60204 | BB52: 66 | BC52: 43.63469 | BD52: 9.03265 | BE52: 34.60204
AO53: 57 | AP53: 8 | AR53: 67 | AS53: 45.67297074 | AT53: 8.733004612 | AU53: 36.93996612 | AW53: 67 | AX53: 44.4313186 | AY53: 8.2714786 | AZ53: 36.15984 | BB53: 67 | BC53: 44.4313186 | BD53: 8.2714786 | BE53: 36.15984
AO54: 58 | AP54: 8 | AR54: 68 | AS54: 46.43452652 | AT54: 7.975540591 | AU54: 38.45898593 | AW54: 68 | AX54: 45.2008254 | AY54: 7.5540454 | AZ54: 37.64678 | BB54: 68 | BC54: 45.2008254 | BD54: 7.5540454 | BE54: 37.64678
W55: NAIC Table with Diagnosis and Company Adjustment | AB55: (d) | AO55: 59 | AP55: 8 | AR55: 69 | AS55: 47.13148257 | AT55: 7.264154202 | AU55: 39.86732837 | AW55: 69 | AX55: 45.9056347 | AY55: 6.8802547 | AZ55: 39.02538 | BB55: 69 | BC55: 45.9056347 | BD55: 6.8802547 | BE55: 39.02538
Z56: PROBABILITY OF DEATH (1,000Q[X]+T) - SELECT PERIOD@ | AO56: 60 | AP56: 9 | AR56: 70 | AS56: 47.72244474 | AT56: 6.598395993 | AU56: 41.12404874 | AW56: 70 | AX56: 46.5052408 | AY56: 6.2496808 | AZ56: 40.25556 | BB56: 70 | BC56: 46.5052408 | BD56: 6.2496808 | BE56: 40.25556
Z57: Central Age => | AA57: 17 | AB57: 22 | AC57: 27 | AD57: 32 | AE57: 37 | AF57: 42 | AG57: 47 | AH57: 52 | AI57: 57 | AJ57: 62 | AK57: 67 | AL57: 72 | AM57: 73 | AO57: 61 | AP57: 9 | AR57: 71 | AS57: 49.05527216 | AT57: 5.888074656 | AU57: 43.1671975 | AW57: 71 | AX57: 47.83245887 | AY57: 5.576898866 | AZ57: 42.25556 | BB57: 71 | BC57: 47.83245887 | BD57: 5.576898866 | BE57: 42.25556
AO58: 62 | AP58: 9 | AR58: 72 | AS58: 50.35898638 | AT58: 5.148640115 | AU58: 45.21034626 | AW58: 72 | AX58: 49.13210232 | AY58: 4.876542315 | AZ58: 44.25556 | BB58: 72 | BC58: 49.13210232 | BD58: 4.876542315 | BE58: 44.25556
Z59: Year of Dis. | AO59: 63 | AP59: 9 | AR59: 73 | AS59: 52.67155471 | AT59: 4.396485307 | AU59: 48.2750694 | AW59: 73 | AX59: 51.41969774 | AY59: 4.164137745 | AZ59: 47.25556 | BB59: 73 | BC59: 51.41969774 | BD59: 4.164137745 | BE59: 47.25556
Z60: 1 (3rd qtr.) | AA60: =CompanyMortAdj0*AA106 -> 5.530907506 | AB60: 6.637089007 | AC60: 8.84945201 | AD60: 10.45216947 | AE60: 12.4178351 | AF60: 14.7748551 | AG60: 17.58120305 | AH60: 20.84041894 | AI60: 24.75267357 | AJ60: 25.91170743 | AK60: 24.29222572 | AL60: 22.672744 | AM60: =NA() ->  | AO60: 64 | AP60: 9 | AR60: 74 | AS60: 54.98842414 | AT60: 3.648631602 | AU60: 51.33979254 | AW60: 74 | AX60: 53.71136697 | AY60: 3.455806971 | AZ60: 50.25556 | BB60: 74 | BC60: 53.71136697 | BD60: 3.455806971 | BE60: 50.25556
Z61: 1 (4th qtr.) | AA61: =CompanyMortAdj0*AA107 -> 7.032688725 | AB61: 8.43922647 | AC61: 11.25230196 | AD61: 13.29019773 | AE61: 15.78959128 | AF61: 18.7866018 | AG61: 22.35494416 | AH61: 26.49911956 | AI61: 31.47365023 | AJ61: 32.94739109 | AK61: 30.88817915 | AL61: 28.82896721 | AM61: =NA() ->  | AO61: 65 | AP61: 10 | AR61: 75 | AS61: 57.32692573 | AT61: 2.92241005 | AU61: 54.40451568 | AW61: 75 | AX61: 56.02352512 | AY61: 2.767965123 | AZ61: 53.25556 | BB61: 75 | BC61: 56.02352512 | BD61: 2.767965123 | BE61: 53.25556
Z62: 2 (1st qtr.) | AA62: =CompanyMortAdj0*AA108 -> 6.652856896 | AB62: 7.983428276 | AC62: 10.64457103 | AD62: 12.57240112 | AE62: 14.93680374 | AF62: 17.77194729 | AG62: 21.14756535 | AH62: 25.06791602 | AI62: 29.7737749 | AJ62: 31.16791978 | AK62: 29.2199248 | AL62: 27.27192981 | AM62: =NA() ->  | AO62: 66 | AP62: 10 | AR62: 76 | AS62: 60.72596869 | AT62: 2.235155493 | AU62: 58.4908132 | AW62: 76 | AX62: 59.37259092 | AY62: 2.117030924 | AZ62: 57.25556 | BB62: 76 | BC62: 59.37259092 | BD62: 2.117030924 | BE62: 57.25556
Z63: 2 (2nd qtr.) | AA63: =CompanyMortAdj0*AA109 -> 6.067904545 | AB63: 7.416327777 | AC63: 9.438962625 | AD63: 11.1484459 | AE63: 13.24505532 | AF63: 15.75908937 | AG63: 18.75238357 | AH63: 22.22871374 | AI63: 26.40158514 | AJ63: 27.63782862 | AK63: 24.7787429 | AL63: 21.91965718 | AM63: =NA() ->  | AO63: 67 | AP63: 10 | AR63: 77 | AS63: 64.18105156 | AT63: 1.603940836 | AU63: 62.57711072 | AW63: 77 | AX63: 62.774735 | AY63: 1.519175002 | AZ63: 61.25556 | BB63: 77 | BC63: 62.774735 | BD63: 1.519175002 | BE63: 61.25556
Z64: 2 (3rd qtr.) | AA64: =CompanyMortAdj0*AA110 -> 5.346316778 | AB64: 6.534387173 | AC64: 8.316492766 | AD64: 9.822686388 | AE64: 11.66996958 | AF64: 13.88503779 | AG64: 16.52237311 | AH64: 19.58530236 | AI64: 23.26194102 | AJ64: 24.35117193 | AK64: 23.4145884 | AL64: 20.60483779 | AM64: =NA() ->  | AO64: 68 | AP64: 10 | AR64: 78 | AS64: 67.70881161 | AT64: 1.045403375 | AU64: 66.66340824 | AW64: 78 | AX64: 66.2457154 | AY64: 0.9901553967 | AZ64: 65.25556 | BB64: 78 | BC64: 66.2457154 | BD64: 0.9901553967 | BE64: 65.25556
Z65: 2 (4th qtr.) | AA65: =CompanyMortAdj0*AA111 -> 4.551678235 | AB65: 5.689597794 | AC65: 7.396477132 | AD65: 8.736047428 | AE65: 10.37897412 | AF65: 12.34899944 | AG65: 14.69457839 | AH65: 17.41866976 | AI65: 20.68857866 | AJ65: 21.65731293 | AK65: 21.65731293 | AL65: 18.70404299 | AM65: =NA() ->  | AO65: 69 | AP65: 10 | AR65: 79 | AS65: 71.32549045 | AT65: 0.5757846916 | AU65: 70.74970576 | AW65: 79 | AX65: 69.80091535 | AY65: 0.5453553463 | AZ65: 69.25556 | BB65: 79 | BC65: 69.80091535 | BD65: 0.5453553463 | BE65: 69.25556
Z66: 2 (annual) | AA66: =(1-(1-AA62/1000)*(1-AA63/1000)*(1-AA64/1000)*(1-AA65/1000))*1000 -> 22.42885095 | AB66: =(1-(1-AB62/1000)*(1-AB63/1000)*(1-AB64/1000)*(1-AB65/1000))*1000 -> 27.34040296 | AC66: 35.32175309 | AD66: 41.6180025 | AE66: 49.29821306 | AF66: 58.44693218 | AG66: 69.2539597 | AH66: 81.68862604 | AI66: 96.45081695 | AJ66: 100.7900664 | AK66: 95.46526529 | AL66: 85.62584267 | AM66: =TRUNC(1000*(1-(1-AM62/1000)*(1-AM63/1000)*(1-AM64/1000)*(1-AM65/1000))) ->  | AO66: 70 | AP66: 11 | AR66: 80 | AS66: 76.0691272 | AT66: 0.2115495437 | AU66: 75.85757766 | AW66: 80 | AX66: 74.45592947 | AY66: 0.2003694721 | AZ66: 74.25556 | BB66: 80 | BC66: 74.45592947 | BD66: 0.2003694721 | BE66: 74.25556
Z67: 3 | AA67: =CompanyMortAdj25*AA113 -> 17.88143563 | AB67: 20.11661508 | AC67: 26.82215344 | AD67: 28.16855254 | AE67: 33.31482575 | AF67: 39.45553846 | AG67: 46.6941745 | AH67: 55.18041158 | AI67: 64.93171143 | AJ67: 73.66980403 | AK67: 73.66980403 | AL67: 73.66980403 | AM67: =NA() ->  | AO67: 71 | AP67: 11 | AR67: 81 | AS67: 82.48183399 | AT67: 0 | AU67: 82.48183399 | AW67: 81 | AX67: 80.73992028 | AY67: 0 | AZ67: 80.73992028 | BB67: 81 | BC67: 80.73992028 | BD67: 0 | BE67: 80.73992028
Z68: 4 | AA68: =CompanyMortAdj25*AA114 -> 12.07233674 | AB68: 18.51091633 | AC68: 23.33985102 | AD68: 24.51144802 | AE68: 25.48237407 | AF68: 30.17938205 | AG68: 35.71617936 | AH68: 42.20726863 | AI68: 49.66599047 | AJ68: 56.34972011 | AK68: 63.65431345 | AL68: 66.78485346 | AM68: =NA() ->  | AO68: 72 | AP68: 11 | AR68: 82 | AS68: 86.680716 | AT68: 0 | AU68: 86.680716 | AW68: 82 | AX68: 84.85012713 | AY68: 0 | AZ68: 84.85012713 | BB68: 82 | BC68: 84.85012713 | BD68: 0 | BE68: 84.85012713
Z69: 5 | AA69: =CompanyMortAdj25*AA115 -> 11.20410016 | AB69: 15.87247522 | AC69: 18.67350026 | AD69: 19.61085915 | AE69: 20.38766381 | AF69: 24.14559718 | AG69: 28.57542586 | AH69: 33.76874422 | AI69: 39.73624216 | AJ69: 45.08368829 | AK69: 51.09484673 | AL69: 54.10042595 | AM69: =NA() ->  | AO69: 73 | AP69: 11 | AR69: 83 | AS69: 91.44308434 | AT69: 0 | AU69: 91.44308434 | AW69: 83 | AX69: 89.51192017 | AY69: 0 | AZ69: 89.51192017 | BB69: 83 | BC69: 89.51192017 | BD69: 0 | BE69: 89.51192017
Z70: 6 | AA70: =CompanyMortAdj61*AA116 -> 7.330404819 | AB70: 13.74450904 | AC70: 17.40971144 | AD70: 18.28363157 | AE70: 19.00787262 | AF70: 22.51147433 | AG70: 26.64149523 | AH70: 31.48333895 | AI70: 37.04697604 | AJ70: 42.03251441 | AK70: 46.13324752 | AL70: 48.18361408 | AM70: =NA() ->  | AO70: 74 | AP70: 11 | AR70: 84 | AS70: 96.87800087 | AT70: 0 | AU70: 96.87800087 | AW70: 84 | AX70: 94.83205803 | AY70: 0 | AZ70: 94.83205803 | BB70: 84 | BC70: 94.83205803 | BD70: 0 | BE70: 94.83205803
Z71: 7 | AA71: =CompanyMortAdj61*AA117 -> 9.356243653 | AB71: 15.20389594 | AC71: 16.37342639 | AD71: 17.19532783 | AE71: 17.87644835 | AF71: 21.17150586 | AG71: 25.05569511 | AH71: =CompanyMortAdj61*AH117 -> 29.60934247 | AI71: 36.58388514 | AJ71: 39.53058681 | AK71: 48.65302992 | AL71: 50.6802395 | AM71: =NA() ->  | AO71: 75 | AP71: =#VALUE! ->  | AR71: 85 | AS71: 103.1217929 | AT71: 0 | AU71: 103.1217929 | AW71: 85 | AX71: 100.943989 | AY71: 0 | AZ71: 100.943989 | BB71: 85 | BC71: 100.943989 | BD71: 0 | BE71: 100.943989
Z72: 8 | AA72: =CompanyMortAdj61*AA118 -> 10.38103555 | AB72: 14.27392389 | AC72: 15.57155333 | AD72: 16.35320293 | AE72: 17.43688532 | AF72: 20.65092177 | AG72: 24.43960403 | AH72: 28.88127663 | AI72: 35.68433679 | AJ72: 40.48649745 | AK72: 51.62028425 | AL72: 53.64460912 | AM72: =NA() ->  | AR72: 86 | AS72: 110.256257 | AT72: 0 | AU72: 110.256257 | AW72: 86 | AX72: 107.927782 | AY72: 0 | AZ72: 107.927782 | BB72: 86 | BC72: 107.927782 | BD72: 0 | BE72: 107.927782
Z73: 9 | AA73: =CompanyMortAdj61*AA119 -> 10.07254155 | AB73: 13.84974462 | AC73: 15.10881232 | AD73: 15.86723357 | AE73: 17.36394491 | AF73: 20.56453744 | AG73: 24.33736487 | AH73: 28.76046524 | AI73: 36.55034297 | AJ73: 42.23699989 | AK73: 56.65939009 | AL73: 58.71973155 | AM73: =NA() ->  | AR73: 87 | AS73: 118.208685 | AT73: 0 | AU73: 118.208685 | AW73: 87 | AX73: 115.7122647 | AY73: 0 | AZ73: 115.7122647 | BB73: 87 | BC73: 115.7122647 | BD73: 0 | BE73: 115.7122647
Z74: 10 | AA74: =CompanyMortAdj61*AA120 -> 9.614171337 | AB74: 12.01771417 | AC74: 14.421257 | AD74: 15.14516485 | AE74: 17.49453277 | AF74: 20.71919359 | AG74: 24.52040035 | AH74: 28.97675297 | AI74: 36.82523024 | AJ74: 43.52179619 | AK74: 61.13776131 | AL74: 64.24646104 | AM74: =NA() ->  | AR74: 88 | AS74: 126.8972807 | AT74: 0 | AU74: 126.8972807 | AW74: 88 | AX74: 124.217368 | AY74: 0 | AZ74: 124.217368 | BB74: 88 | BC74: 124.217368 | BD74: 0 | BE74: 124.217368
AR75: 89 | AS75: 136.4401943 | AT75: 0 | AU75: 136.4401943 | AW75: 89 | AX75: 133.5587472 | AY75: 0 | AZ75: 133.5587472 | BB75: 89 | BC75: 133.5587472 | BD75: 0 | BE75: 133.5587472
AR76: 90 | AS76: 146.8283375 | AT76: 0 | AU76: 146.8283375 | AW76: 90 | AX76: 143.7275057 | AY76: 0 | AZ76: 143.7275057 | BB76: 90 | BC76: 143.7275057 | BD76: 0 | BE76: 143.7275057
AR77: 91 | AS77: =AT77+AU77 -> 157.8708518 | AT77: =MIN(1000-AU77,AY77*CompanyRecovAdj61) -> 0 | AU77: =MIN(1000,AZ77*CompanyMortAdj61) -> 157.8708518 | AW77: 91 | AX77: =AY77+AZ77 -> 154.5368159 | AY77: =BD77*INDEX(UltimateRecovDiagnosisAdj,MATCH(AW77,$BG$10:$BG$16,1),MATCH(RecovDiagGroup,$BG$10:$BL$10,0)) -> 0 | AZ77: =MIN(1000,BE77*INDEX(UltimateMortDiagnosisAdj,MATCH(AW77,$BN$10:$BN$45,1),MATCH(MortDiagGroup,$BN$10:$BS$10,0))) -> 154.5368159 | BB77: 91 | BC77: =BD77+BE77 -> 154.5368159 | BD77: 0 | BE77: 154.5368159
W78: NAIC Table with Diagnosis Adjustment | AE78: Females | AR78: 92 | AS78: 169.5677374 | AT78: 0 | AU78: 169.5677374 | AW78: 92 | AX78: 165.9866778 | AY78: 0 | AZ78: 165.9866778 | BB78: 92 | BC78: 165.9866778 | BD78: 0 | BE78: 165.9866778
Z79: PROBABILITY OF RECOVERY (1,000Q[X]+T) - SELECT PERIOD | AR79: 93 | AS79: 182.0462331 | AT79: 0 | AU79: 182.0462331 | AW79: 93 | AX79: 178.2016431 | AY79: 0 | AZ79: 178.2016431 | BB79: 93 | BC79: 178.2016431 | BD79: 0 | BE79: 178.2016431
Z80: Central Age => | AA80: 17 | AB80: 22 | AC80: 27 | AD80: 32 | AE80: 37 | AF80: 42 | AG80: 47 | AH80: 52 | AI80: 57 | AJ80: 62 | AK80: 67 | AL80: 72 | AR80: 94 | AS80: 194.8428259 | AT80: 0 | AU80: 194.8428259 | AW80: 94 | AX80: 190.7279878 | AY80: 0 | AZ80: 190.7279878 | BB80: 94 | BC80: 190.7279878 | BD80: 0 | BE80: 190.7279878
AR81: 95 | AS81: 207.9120733 | AT81: 0 | AU81: 207.9120733 | AW81: 95 | AX81: 203.521229 | AY81: 0 | AZ81: 203.521229 | BB81: 95 | BC81: 203.521229 | BD81: 0 | BE81: 203.521229
Z82: Year of Dis. | AR82: 96 | AS82: 222.8717265 | AT82: 0 | AU82: 222.8717265 | AW82: 96 | AX82: 218.164953 | AY82: 0 | AZ82: 218.164953 | BB82: 96 | BC82: 218.164953 | BD82: 0 | BE82: 218.164953
Z83: 1 (3rd qtr.) | AA83: =AA129*INDEX(SelectRecovDiagnosisAdj,MATCH($Z83,$Z$193:$Z$208,0),MATCH(RecovDiagGroup,$Z$193:$AD$193,0)) -> 244.3404537 | AB83: 244.3404537 | AC83: 200.1512227 | AD83: 167.7668017 | AE83: 105.3237226 | AF83: 87.59803674 | AG83: 72.84699312 | AH83: 60.82708615 | AI83: 50.68422595 | AJ83: 44.09935231 | AK83: 33.9225787 | AL83: 27.13806296 | AR83: 97 | AS83: 240.2398294 | AT83: 0 | AU83: 240.2398294 | AW83: 97 | AX83: 235.1662631 | AY83: 0 | AZ83: 235.1662631 | BB83: 97 | BC83: 235.1662631 | BD83: 0 | BE83: 235.1662631
Z84: 1 (4th qtr.) | AA84: =AA130*INDEX(SelectRecovDiagnosisAdj,MATCH($Z84,$Z$193:$Z$208,0),MATCH(RecovDiagGroup,$Z$193:$AD$193,0)) -> 183.8634288 | AB84: 183.8634288 | AC84: 150.6115321 | AD84: 126.2426215 | AE84: 105.1599969 | AF84: 87.46186559 | AG84: 72.73375246 | AH84: 60.73253044 | AI84: 50.60543732 | AJ84: 44.03079986 | AK84: 33.86984605 | AL84: 27.09587684 | AR84: 98 | AS84: 259.016648 | AT84: 0 | AU84: 259.016648 | AW84: 98 | AX84: 253.5465387 | AY84: 0 | AZ84: 253.5465387 | BB84: 98 | BC84: 253.5465387 | BD84: 0 | BE84: 253.5465387
Z85: 2 (1st qtr.) | AA85: =AA131*INDEX(SelectRecovDiagnosisAdj,MATCH($Z85,$Z$193:$Z$208,0),MATCH(RecovDiagGroup,$Z$193:$AD$193,0)) -> 152.2393054 | AB85: 152.2393054 | AC85: 126.5087186 | AD85: 106.0396376 | AE85: 88.3309284 | AF85: 73.46508192 | AG85: 61.09395274 | AH85: 51.01332214 | AI85: 42.50689798 | AJ85: 36.98441941 | AK85: 31.29450873 | AL85: 25.60459805 | AR85: 99 | AS85: 279.0385897 | AT85: 0 | AU85: 279.0385897 | AW85: 99 | AX85: 273.1456419 | AY85: 0 | AZ85: 273.1456419 | BB85: 99 | BC85: 273.1456419 | BD85: 0 | BE85: 273.1456419
Z86: 2 (2nd qtr.) | AA86: =AA132*INDEX(SelectRecovDiagnosisAdj,MATCH($Z86,$Z$193:$Z$208,0),MATCH(RecovDiagGroup,$Z$193:$AD$193,0)) -> 133.3914378 | AB86: 133.3914378 | AC86: 108.5218477 | AD86: 90.96303812 | AE86: 75.77213383 | AF86: 63.0198971 | AG86: 52.40768151 | AH86: 43.76030392 | AI86: 36.46331382 | AJ86: 31.72601519 | AK86: 25.9576488 | AL86: 20.1892824 | AR86: 100 | AS86: 305.6652702 | AT86: 0 | AU86: 305.6652702 | AW86: 100 | AX86: 299.21 | AY86: 0 | AZ86: 299.21 | BB86: 100 | BC86: 299.21 | BD86: 0 | BE86: 299.21
Z87: 2 (3rd qtr.) | AA87: =AA133*INDEX(SelectRecovDiagnosisAdj,MATCH($Z87,$Z$193:$Z$208,0),MATCH(RecovDiagGroup,$Z$193:$AD$193,0)) -> 116.328348 | AB87: 116.328348 | AC87: 96.57447754 | AD87: 80.94874969 | AE87: 67.43024003 | AF87: 56.08192054 | AG87: 46.63802331 | AH87: 38.94265144 | AI87: 32.44900043 | AJ87: 28.23323974 | AK87: 21.95918646 | AL87: 18.82215982 | AR87: 101 | AS87: 330.1115451 | AT87: 0 | AU87: 330.1115451 | AW87: 101 | AX87: 323.14 | AY87: 0 | AZ87: 323.14 | BB87: 101 | BC87: 323.14 | BD87: 0 | BE87: 323.14
Z88: 2 (4th qtr.) | AA88: =AA134*INDEX(SelectRecovDiagnosisAdj,MATCH($Z88,$Z$193:$Z$208,0),MATCH(RecovDiagGroup,$Z$193:$AD$193,0)) -> 107.1524191 | AB88: 107.1524191 | AC88: 88.51721576 | AD88: 74.19515098 | AE88: 61.80449801 | AF88: 51.40297506 | AG88: 42.74698737 | AH88: 35.69364461 | AI88: 29.74176248 | AJ88: 25.87772502 | AK88: 21.56477085 | AL88: 17.25181668 | AR88: 102 | AS88: 354.4658783 | AT88: 0 | AU88: 354.4658783 | AW88: 102 | AX88: 346.98 | AY88: 0 | AZ88: 346.98 | BB88: 102 | BC88: 346.98 | BD88: 0 | BE88: 346.98
Z89: 2 (annual) | AA89: =(1-(1-AA85/1000)*(1-AA86/1000)*(1-AA87/1000)*(1-AA88/1000))*1000 -> 420.3517858 | AB89: =(1-(1-AB85/1000)*(1-AB86/1000)*(1-AB87/1000)*(1-AB88/1000))*1000 -> 420.3517858 | AC89: 358.7755044 | AD89: 308.552857 | AE89: 262.7904451 | AF89: 222.6650002 | AG89: 188.0519626 | AH89: 159.0092539 | AI89: 133.9058338 | AJ89: 117.3122667 | AK89: 97.06048037 | AL89: 79.40758486 | AR89: 103 | AS89: 378.3502873 | AT89: 0 | AU89: 378.3502873 | AW89: 103 | AX89: 370.36 | AY89: 0 | AZ89: 370.36 | BB89: 103 | BC89: 370.36 | BD89: 0 | BE89: 370.36
Z90: 3 | AA90: =AA136*INDEX(SelectRecovDiagnosisAdj,MATCH($Z90,$Z$193:$Z$208,0),MATCH(RecovDiagGroup,$Z$193:$AD$193,0)) -> 429.6617409 | AB90: 429.6617409 | AC90: 349.7748845 | AD90: 294.9756619 | AE90: 275.8075053 | AF90: 213.5349132 | AG90: 174.4827189 | AH90: 134.9198044 | AI90: 106.4971722 | AJ90: 86.11311645 | AK90: 66.54195362 | AL90: 58.71348849 | AR90: 104 | AS90: 401.3970053 | AT90: 0 | AU90: 401.3970053 | AW90: 104 | AX90: 392.92 | AY90: 0 | AZ90: 392.92 | BB90: 104 | BC90: 392.92 | BD90: 0 | BE90: 392.92
Z91: 4 | AA91: =AA137*INDEX(SelectRecovDiagnosisAdj,MATCH($Z91,$Z$193:$Z$208,0),MATCH(RecovDiagGroup,$Z$193:$AD$193,0)) -> 285.6670268 | AB91: 285.6670268 | AC91: 214.6203051 | AD91: 187.4306473 | AE91: 151.5855534 | AF91: 117.360142 | AG91: 94.23625883 | AH91: 70.36700789 | AI91: 54.26460361 | AJ91: 42.37167482 | AK91: 25.89380128 | AL91: 21.18583741 | AR91: 105 | AS91: 423.2382656 | AT91: 0 | AU91: 423.2382656 | AW91: 105 | AX91: 414.3 | AY91: 0 | AZ91: 414.3 | BB91: 105 | BC91: 414.3 | BD91: 0 | BE91: 414.3
Z92: 5 | AA92: =AA138*INDEX(SelectRecovDiagnosisAdj,MATCH($Z92,$Z$193:$Z$208,0),MATCH(RecovDiagGroup,$Z$193:$AD$193,0)) -> 201.090479 | AB92: 201.090479 | AC92: 147.1393749 | AD92: 125.5405077 | AE92: 99.77344591 | AF92: 75.90871984 | AG92: 59.89670889 | AH92: 44.72537683 | AI92: 32.7297891 | AJ92: 25.40817645 | AK92: 19.05613234 | AL92: 15.88011028 | AR92: 106 | AS92: 443.4960855 | AT92: 0 | AU92: 443.4960855 | AW92: 106 | AX92: 434.13 | AY92: 0 | AZ92: 434.13 | BB92: 106 | BC92: 434.13 | BD92: 0 | BE92: 434.13
Z93: 6 | AA93: =AA139*INDEX(SelectRecovDiagnosisAdj,MATCH($Z93,$Z$193:$Z$208,0),MATCH(RecovDiagGroup,$Z$193:$AD$193,0)) -> 143.5375213 | AB93: 143.5375213 | AC93: 122.2200677 | AD93: 93.35811718 | AE93: 72.91167212 | AF93: 55.47199098 | AG93: 42.26810834 | AH93: 31.56195238 | AI93: 22.69692076 | AJ93: 17.41565528 | AK93: 11.61043685 | AL93: 9.288349483 | AR93: 107 | AS93: 461.8026984 | AT93: 0 | AU93: 461.8026984 | AW93: 107 | AX93: 452.05 | AY93: 0 | AZ93: 452.05 | BB93: 107 | BC93: 452.05 | BD93: 0 | BE93: 452.05
Z94: 7 | AA94: =AA140*INDEX(SelectRecovDiagnosisAdj,MATCH($Z94,$Z$193:$Z$208,0),MATCH(RecovDiagGroup,$Z$193:$AD$193,0)) -> 114.2336963 | AB94: 114.2336963 | AC94: 102.0487687 | AD94: 75.27401807 | AE94: 57.10137209 | AF94: 43.19112674 | AG94: 31.96613013 | AH94: 24.0087648 | AI94: 17.26525107 | AJ94: 13.24786143 | AK94: 8.83190762 | AL94: 6.623930715 | AR94: 108 | AS94: 477.7801217 | AT94: 0 | AU94: 477.7801217 | AW94: 108 | AX94: 467.69 | AY94: 0 | AZ94: 467.69 | BB94: 108 | BC94: 467.69 | BD94: 0 | BE94: 467.69
Z95: 8 | AA95: =AA141*INDEX(SelectRecovDiagnosisAdj,MATCH($Z95,$Z$193:$Z$208,0),MATCH(RecovDiagGroup,$Z$193:$AD$193,0)) -> 95.93815345 | AB95: 95.93815345 | AC95: 86.65381602 | AD95: 63.54718499 | AE95: 47.37090095 | AF95: 35.62303591 | AG95: 25.75797012 | AH95: 19.23369316 | AI95: 13.831388 | AJ95: 10.73732391 | AK95: 5.965179949 | AL95: 3.579107969 | AR95: 109 | AS95: 491.0503729 | AT95: 0 | AU95: 491.0503729 | AW95: 109 | AX95: 480.68 | AY95: 0 | AZ95: 480.68 | BB95: 109 | BC95: 480.68 | BD95: 0 | BE95: 480.68
Z96: 9 | AA96: =AA142*INDEX(SelectRecovDiagnosisAdj,MATCH($Z96,$Z$193:$Z$208,0),MATCH(RecovDiagGroup,$Z$193:$AD$193,0)) -> 81.51551049 | AB96: 81.51551049 | AC96: 76.52476495 | AD96: 55.14733262 | AE96: 40.63333114 | AF96: 30.37896725 | AG96: 21.96613822 | AH96: 16.21240143 | AI96: 11.65870813 | AJ96: 9.050669786 | AK96: 3.87885848 | AL96: 1.292952827 | AR96: 110 | AS96: 501.2354695 | AT96: 0 | AU96: 501.2354695 | AW96: 110 | AX96: 490.65 | AY96: 0 | AZ96: 490.65 | BB96: 110 | BC96: 490.65 | BD96: 0 | BE96: 490.65
Z97: 10 | AA97: =AA143*INDEX(SelectRecovDiagnosisAdj,MATCH($Z97,$Z$193:$Z$208,0),MATCH(RecovDiagGroup,$Z$193:$AD$193,0)) -> 76.3074391 | AB97: 76.3074391 | AC97: 69.04006395 | AD97: 49.75350625 | AE97: 36.23466051 | AF97: 27.0903599 | AG97: 19.81768371 | AH97: 14.20702029 | AI97: 10.09830934 | AJ97: 7.885108362 | AK97: 4.731065017 | AL97: 0 | AR97: 111 | AS97: 507.9574289 | AT97: 0 | AU97: 507.9574289 | AW97: 111 | AX97: 497.23 | AY97: 0 | AZ97: 497.23 | BB97: 111 | BC97: 497.23 | BD97: 0 | BE97: 497.23
AR98: 112 | AS98: 510.7871899 | AT98: 0 | AU98: 510.7871899 | AW98: 112 | AX98: 500 | AY98: 0 | AZ98: 500 | BB98: 112 | BC98: 500 | BD98: 0 | BE98: 500
AR99: 113 | AS99: 510.7871899 | AT99: 0 | AU99: 510.7871899 | AW99: 113 | AX99: 500 | AY99: 0 | AZ99: 500 | BB99: 113 | BC99: 500 | BD99: 0 | BE99: 500
AR100: 114 | AS100: 510.7871899 | AT100: 0 | AU100: 510.7871899 | AW100: 114 | AX100: 500 | AY100: 0 | AZ100: 500 | BB100: 114 | BC100: 500 | BD100: 0 | BE100: 500
W101: NAIC Table with Diagnosis Adjustment | AR101: 115 | AS101: 510.7871899 | AT101: 0 | AU101: 510.7871899 | AW101: 115 | AX101: 500 | AY101: 0 | AZ101: 500 | BB101: 115 | BC101: 500 | BD101: 0 | BE101: 500
Z102: PROBABILITY OF DEATH (1,000Q[X]+T) - SELECT PERIOD | AR102: 116 | AS102: 510.7871899 | AT102: 0 | AU102: 510.7871899 | AW102: 116 | AX102: 500 | AY102: 0 | AZ102: 500 | BB102: 116 | BC102: 500 | BD102: 0 | BE102: 500
Z103: Central Age => | AA103: 17 | AB103: 22 | AC103: 27 | AD103: 32 | AE103: 37 | AF103: 42 | AG103: 47 | AH103: 52 | AI103: 57 | AJ103: 62 | AK103: 67 | AL103: 72 | AR103: 117 | AS103: 510.7871899 | AT103: 0 | AU103: 510.7871899 | AW103: 117 | AX103: 500 | AY103: 0 | AZ103: 500 | BB103: 117 | BC103: 500 | BD103: 0 | BE103: 500
AR104: 118 | AS104: 510.7871899 | AT104: 0 | AU104: 510.7871899 | AW104: 118 | AX104: 500 | AY104: 0 | AZ104: 500 | BB104: 118 | BC104: 500 | BD104: 0 | BE104: 500
Z105: Year of Dis. | AR105: 119 | AS105: 510.7871899 | AT105: 0 | AU105: 510.7871899 | AW105: 119 | AX105: 500 | AY105: 0 | AZ105: 500 | BB105: 119 | BC105: 500 | BD105: 0 | BE105: 500
Z106: 1 (3rd qtr.) | AA106: =AA152*INDEX(SelectMortDiagnosisAdj,MATCH($Z106,$Z$171:$Z$186,0),MATCH(MortDiagGroup,$Z$171:$AD$171,0)) -> 5.856085109 | AB106: 7.027302131 | AC106: 9.369736175 | AD106: 11.0666819 | AE106: 13.14791454 | AF106: 15.64351038 | AG106: 18.6148514 | AH106: 22.06568577 | AI106: 26.20795284 | AJ106: 27.43512957 | AK106: 25.72043397 | AL106: 24.00573837 | AR106: 120 | AS106: 510.7871899 | AT106: 0 | AU106: 510.7871899 | AW106: 120 | AX106: 500 | AY106: 0 | AZ106: 500 | BB106: 120 | BC106: 500 | BD106: 0 | BE106: 500
Z107: 1 (4th qtr.) | AA107: =AA153*INDEX(SelectMortDiagnosisAdj,MATCH($Z107,$Z$171:$Z$186,0),MATCH(MortDiagGroup,$Z$171:$AD$171,0)) -> 7.446160269 | AB107: 8.935392322 | AC107: 11.91385643 | AD107: 14.07156582 | AE107: 16.71790574 | AF107: 19.89111894 | AG107: 23.66925418 | AH107: 28.05707731 | AI107: 33.32407462 | AJ107: 34.88446085 | AK107: 32.70418205 | AL107: 30.52390325 | AR107: 121 | AS107: =AT107+AU107 -> 1000 | AT107: 0 | AU107: 1000 | AW107: 121 | AX107: =AY107+AZ107 -> 1000 | AY107: 0 | AZ107: 1000 | BB107: 121 | BC107: =BD107+BE107 -> 1000 | BD107: 0 | BE107: 1000
Z108: 2 (1st qtr.) | AA108: =AA154*INDEX(SelectMortDiagnosisAdj,MATCH($Z108,$Z$171:$Z$186,0),MATCH(MortDiagGroup,$Z$171:$AD$171,0)) -> 7.043997059 | AB108: 8.45279647 | AC108: 11.27039529 | AD108: 13.31156794 | AE108: 15.81498042 | AF108: 18.81681004 | AG108: 22.39089017 | AH108: 26.54172928 | AI108: 31.52425883 | AJ108: 33.00036942 | AK108: 30.93784633 | AL108: 28.87532324
Z109: 2 (2nd qtr.) | AA109: =AA155*INDEX(SelectMortDiagnosisAdj,MATCH($Z109,$Z$171:$Z$186,0),MATCH(MortDiagGroup,$Z$171:$AD$171,0)) -> 6.424653714 | AB109: 7.852354539 | AC109: 9.993905777 | AD109: 11.80389438 | AE109: 14.02376936 | AF109: 16.68561054 | AG109: 19.85488892 | AH109: 23.53560232 | AI109: 27.95380856 | AJ109: 29.26273427 | AK109: 26.23555486 | AL109: 23.20837546
Z110: 2 (3rd qtr.) | AA110: =AA156*INDEX(SelectMortDiagnosisAdj,MATCH($Z110,$Z$171:$Z$186,0),MATCH(MortDiagGroup,$Z$171:$AD$171,0)) -> 5.660641773 | AB110: 6.918562167 | AC110: 8.805442759 | AD110: 10.40018974 | AE110: 12.35607991 | AF110: 14.7013782 | AG110: 17.49376988 | AH110: 20.73677735 | AI110: 24.62957593 | AJ110: 25.7828458 | AK110: 24.79119788 | AL110: 21.81625414
Z111: 2 (4th qtr.) | AA111: =AA157*INDEX(SelectMortDiagnosisAdj,MATCH($Z111,$Z$171:$Z$186,0),MATCH(MortDiagGroup,$Z$171:$AD$171,0)) -> 4.819284196 | AB111: 6.024105245 | AC111: 7.831336819 | AD111: 9.249664219 | AE111: 10.98918319 | AF111: 13.07503184 | AG111: 15.55851397 | AH111: 18.44276233 | AI111: 21.90491837 | AJ111: 22.93060725 | AK111: 22.93060725 | AL111: 19.80370626
Z112: 2 (annual) | AA112: =(1-(1-AA108/1000)*(1-AA109/1000)*(1-AA110/1000)*(1-AA111/1000))*1000 -> 23.73573126 | AB112: =(1-(1-AB108/1000)*(1-AB109/1000)*(1-AB110/1000)*(1-AB111/1000))*1000 -> 28.93026964 | AC112: 37.36904997 | AD112: 44.023963 | AE112: 52.13904969 | AF112: 61.8019948 | AG112: 73.2110691 | AH112: 86.33113279 | AI112: 101.8966687 | AJ112: 106.4698903 | AK112: 100.8574144 | AL112: 90.48385003
Z113: 3 | AA113: =AA159*INDEX(SelectMortDiagnosisAdj,MATCH($Z113,$Z$171:$Z$186,0),MATCH(MortDiagGroup,$Z$171:$AD$171,0)) -> 18.48382242 | AB113: 20.79430023 | AC113: 27.72573364 | AD113: 29.11749 | AE113: 34.43713 | AF113: 40.78471 | AG113: 48.2672 | AH113: 57.03932 | AI113: 67.11912 | AJ113: 76.15158 | AK113: 76.15158 | AL113: 76.15158
Z114: 4 | AA114: =AA160*INDEX(SelectMortDiagnosisAdj,MATCH($Z114,$Z$171:$Z$186,0),MATCH(MortDiagGroup,$Z$171:$AD$171,0)) -> 12.47902759 | AB114: 19.13450897 | AC114: 24.12612 | AD114: 25.33718556 | AE114: 26.34082 | AF114: 31.19606 | AG114: 36.91938 | AH114: 43.62914 | AI114: 51.33913 | AJ114: 58.24802 | AK114: 65.79868926 | AL114: 69.03469037
Z115: 5 | AA115: =AA161*INDEX(SelectMortDiagnosisAdj,MATCH($Z115,$Z$171:$Z$186,0),MATCH(MortDiagGroup,$Z$171:$AD$171,0)) -> 11.581542 | AB115: 16.4071845 | AC115: 19.30257 | AD115: 20.27150648 | AE115: 21.07448 | AF115: 24.95901 | AG115: 29.53807 | AH115: =AH161*INDEX(SelectMortDiagnosisAdj,MATCH($Z115,$Z$171:$Z$186,0),MATCH(MortDiagGroup,$Z$171:$AD$171,0)) -> 34.90634 | AI115: 41.07487 | AJ115: 46.60246 | AK115: 52.81612133 | AL115: 55.922952
Z116: 6 | AA116: =AA162*INDEX(SelectMortDiagnosisAdj,MATCH($Z116,$Z$171:$Z$186,0),MATCH(MortDiagGroup,$Z$171:$AD$171,0)) -> 7.175595789 | AB116: 13.45424211 | AC116: 17.04204 | AD116: 17.89750402 | AE116: 18.60645 | AF116: 22.03606 | AG116: 26.07886 | AH116: 30.81845 | AI116: 36.26459 | AJ116: 41.14484 | AK116: 45.15897073 | AL116: 47.1660361
Z117: 7 | AA117: =AA163*INDEX(SelectMortDiagnosisAdj,MATCH($Z117,$Z$171:$Z$186,0),MATCH(MortDiagGroup,$Z$171:$AD$171,0)) -> 9.158651429 | AB117: 14.88280857 | AC117: 16.02764 | AD117: 16.8321839 | AE117: 17.49892 | AF117: 20.72439 | AG117: 24.52655 | AH117: 28.98403 | AI117: 35.811279 | AJ117: 38.69575 | AK117: 47.62553846 | AL117: 49.6099359
Z118: 8 | AA118: =AA164*INDEX(SelectMortDiagnosisAdj,MATCH($Z118,$Z$171:$Z$186,0),MATCH(MortDiagGroup,$Z$171:$AD$171,0)) -> 10.161801 | AB118: 13.97247637 | AC118: 15.2427015 | AD118: 16.00784363 | AE118: 17.06864 | AF118: 20.2148 | AG118: 23.92347 | AH118: 28.27134 | AI118: 34.930728 | AJ118: 39.631473 | AK118: 50.53012807 | AL118: 52.51170172
Z119: 9 | AA119: =AA165*INDEX(SelectMortDiagnosisAdj,MATCH($Z119,$Z$171:$Z$186,0),MATCH(MortDiagGroup,$Z$171:$AD$171,0)) -> 9.859822 | AB119: 13.55725525 | AC119: 14.789733 | AD119: 15.53213734 | AE119: 16.99724 | AF119: 20.13024 | AG119: 23.82339 | AH119: 28.15308 | AI119: 35.7784452 | AJ119: 41.345007 | AK119: 55.46281427 | AL119: 57.47964388
Z120: 10 | AA120: =AA166*INDEX(SelectMortDiagnosisAdj,MATCH($Z120,$Z$171:$Z$186,0),MATCH(MortDiagGroup,$Z$171:$AD$171,0)) -> 9.411132 | AB120: 11.763915 | AC120: 14.116698 | AD120: 14.82531782 | AE120: 17.12507 | AF120: 20.28163 | AG120: 24.00256 | AH120: 28.3648 | AI120: 36.0475272 | AJ120: 42.60267 | AK120: 59.84660786 | AL120: 62.88965571
W124: NAIC Table with no Margin | AE124: FEMALES
Z125: PROBABILITY OF RECOVERY (1,000Q[X]+T) - SELECT PERIOD
Z126: Central Age => | AA126: 17 | AB126: 22 | AC126: 27 | AD126: 32 | AE126: 37 | AF126: 42 | AG126: 47 | AH126: 52 | AI126: 57 | AJ126: 62 | AK126: 67 | AL126: 72
Z128: Year of Dis.
Z129: 1 (3rd qtr.) | AA129: 244.3404537 | AB129: 244.3404537 | AC129: 200.1512227 | AD129: 167.7668017 | AE129: 105.3237226 | AF129: 87.59803674 | AG129: 72.84699312 | AH129: 60.82708615 | AI129: 50.68422595 | AJ129: 44.09935231 | AK129: 33.9225787 | AL129: 27.13806296
Z130: 1 (4th qtr.) | AA130: 183.8634288 | AB130: 183.8634288 | AC130: 150.6115321 | AD130: 126.2426215 | AE130: 105.1599969 | AF130: 87.46186559 | AG130: 72.73375246 | AH130: 60.73253044 | AI130: 50.60543732 | AJ130: 44.03079986 | AK130: 33.86984605 | AL130: 27.09587684
Z131: 2 (1st qtr.) | AA131: 152.2393054 | AB131: 152.2393054 | AC131: 126.5087186 | AD131: 106.0396376 | AE131: 88.3309284 | AF131: 73.46508192 | AG131: 61.09395274 | AH131: 51.01332214 | AI131: 42.50689798 | AJ131: 36.98441941 | AK131: 31.29450873 | AL131: 25.60459805
Z132: 2 (2nd qtr.) | AA132: 133.3914378 | AB132: 133.3914378 | AC132: 108.5218477 | AD132: 90.96303812 | AE132: 75.77213383 | AF132: 63.0198971 | AG132: 52.40768151 | AH132: 43.76030392 | AI132: 36.46331382 | AJ132: 31.72601519 | AK132: 25.9576488 | AL132: 20.1892824
Z133: 2 (3rd qtr.) | AA133: 116.328348 | AB133: 116.328348 | AC133: 96.57447754 | AD133: 80.94874969 | AE133: 67.43024003 | AF133: 56.08192054 | AG133: 46.63802331 | AH133: 38.94265144 | AI133: 32.44900043 | AJ133: 28.23323974 | AK133: 21.95918646 | AL133: 18.82215982
Z134: 2 (4th qtr.) | AA134: 107.1524191 | AB134: 107.1524191 | AC134: 88.51721576 | AD134: 74.19515098 | AE134: 61.80449801 | AF134: 51.40297506 | AG134: 42.74698737 | AH134: 35.69364461 | AI134: 29.74176248 | AJ134: 25.87772502 | AK134: 21.56477085 | AL134: 17.25181668
Z135: 2 (annual) | AA135: =(1-(1-AA131/1000)*(1-AA132/1000)*(1-AA133/1000)*(1-AA134/1000))*1000 -> 420.3517858 | AB135: =(1-(1-AB131/1000)*(1-AB132/1000)*(1-AB133/1000)*(1-AB134/1000))*1000 -> 420.3517858 | AC135: 358.7755044 | AD135: 308.552857 | AE135: 262.7904451 | AF135: 222.6650002 | AG135: 188.0519626 | AH135: 159.0092539 | AI135: 133.9058338 | AJ135: 117.3122667 | AK135: 97.06048037 | AL135: 79.40758486
Z136: 3 | AA136: 429.6617409 | AB136: 429.6617409 | AC136: 349.7748845 | AD136: 294.9756619 | AE136: 275.8075053 | AF136: 213.5349132 | AG136: 174.4827189 | AH136: 134.9198044 | AI136: 106.4971722 | AJ136: 86.11311645 | AK136: 66.54195362 | AL136: 58.71348849
Z137: 4 | AA137: 285.6670268 | AB137: 285.6670268 | AC137: 214.6203051 | AD137: 187.4306473 | AE137: 151.5855534 | AF137: 117.360142 | AG137: 94.23625883 | AH137: 70.36700789 | AI137: 54.26460361 | AJ137: 42.37167482 | AK137: 25.89380128 | AL137: 21.18583741
Z138: 5 | AA138: 201.090479 | AB138: 201.090479 | AC138: 147.1393749 | AD138: 125.5405077 | AE138: 99.77344591 | AF138: 75.90871984 | AG138: 59.89670889 | AH138: 44.72537683 | AI138: 32.7297891 | AJ138: 25.40817645 | AK138: 19.05613234 | AL138: 15.88011028
Z139: 6 | AA139: 143.5375213 | AB139: 143.5375213 | AC139: 122.2200677 | AD139: 93.35811718 | AE139: 72.91167212 | AF139: 55.47199098 | AG139: 42.26810834 | AH139: 31.56195238 | AI139: 22.69692076 | AJ139: 17.41565528 | AK139: 11.61043685 | AL139: 9.288349483
Z140: 7 | AA140: 114.2336963 | AB140: 114.2336963 | AC140: 102.0487687 | AD140: 75.27401807 | AE140: 57.10137209 | AF140: 43.19112674 | AG140: 31.96613013 | AH140: 24.0087648 | AI140: 17.26525107 | AJ140: 13.24786143 | AK140: 8.83190762 | AL140: 6.623930715
Z141: 8 | AA141: 95.93815345 | AB141: 95.93815345 | AC141: 86.65381602 | AD141: 63.54718499 | AE141: 47.37090095 | AF141: 35.62303591 | AG141: 25.75797012 | AH141: 19.23369316 | AI141: 13.831388 | AJ141: 10.73732391 | AK141: 5.965179949 | AL141: 3.579107969
Z142: 9 | AA142: 81.51551049 | AB142: 81.51551049 | AC142: 76.52476495 | AD142: 55.14733262 | AE142: 40.63333114 | AF142: 30.37896725 | AG142: 21.96613822 | AH142: 16.21240143 | AI142: 11.65870813 | AJ142: 9.050669786 | AK142: 3.87885848 | AL142: 1.292952827
Z143: 10 | AA143: 76.3074391 | AB143: 76.3074391 | AC143: 69.04006395 | AD143: 49.75350625 | AE143: 36.23466051 | AF143: 27.0903599 | AG143: 19.81768371 | AH143: 14.20702029 | AI143: 10.09830934 | AJ143: 7.885108362 | AK143: 4.731065017 | AL143: 0
W147: NAIC Table with no Margin | AE147: FEMALES
Z148: PROBABILITY OF DEATH (1,000Q[X]+T) - SELECT PERIOD
Z149: Central Age => | AA149: 17 | AB149: 22 | AC149: 27 | AD149: 32 | AE149: 37 | AF149: 42 | AG149: 47 | AH149: 52 | AI149: 57 | AJ149: 62 | AK149: 67 | AL149: 72
Z151: Year of Dis.
Z152: 1 (3rd qtr.) | AA152: 5.856085109 | AB152: 7.027302131 | AC152: 9.369736175 | AD152: 11.0666819 | AE152: 13.14791454 | AF152: 15.64351038 | AG152: 18.6148514 | AH152: 22.06568577 | AI152: 26.20795284 | AJ152: 27.43512957 | AK152: 25.72043397 | AL152: 24.00573837
Z153: 1 (4th qtr.) | AA153: 7.446160269 | AB153: 8.935392322 | AC153: 11.91385643 | AD153: 14.07156582 | AE153: 16.71790574 | AF153: 19.89111894 | AG153: 23.66925418 | AH153: 28.05707731 | AI153: 33.32407462 | AJ153: 34.88446085 | AK153: 32.70418205 | AL153: 30.52390325
Z154: 2 (1st qtr.) | AA154: 7.043997059 | AB154: 8.45279647 | AC154: 11.27039529 | AD154: 13.31156794 | AE154: 15.81498042 | AF154: 18.81681004 | AG154: 22.39089017 | AH154: 26.54172928 | AI154: 31.52425883 | AJ154: 33.00036942 | AK154: 30.93784633 | AL154: 28.87532324
Z155: 2 (2nd qtr.) | AA155: 6.424653714 | AB155: 7.852354539 | AC155: 9.993905777 | AD155: 11.80389438 | AE155: 14.02376936 | AF155: 16.68561054 | AG155: 19.85488892 | AH155: 23.53560232 | AI155: 27.95380856 | AJ155: 29.26273427 | AK155: 26.23555486 | AL155: 23.20837546
Z156: 2 (3rd qtr.) | AA156: 5.660641773 | AB156: 6.918562167 | AC156: 8.805442759 | AD156: 10.40018974 | AE156: 12.35607991 | AF156: 14.7013782 | AG156: 17.49376988 | AH156: 20.73677735 | AI156: 24.62957593 | AJ156: 25.7828458 | AK156: 24.79119788 | AL156: 21.81625414
Z157: 2 (4th qtr.) | AA157: 4.819284196 | AB157: 6.024105245 | AC157: 7.831336819 | AD157: 9.249664219 | AE157: 10.98918319 | AF157: 13.07503184 | AG157: 15.55851397 | AH157: 18.44276233 | AI157: 21.90491837 | AJ157: 22.93060725 | AK157: 22.93060725 | AL157: 19.80370626
Z158: 2 (annual) | AA158: =(1-(1-AA154/1000)*(1-AA155/1000)*(1-AA156/1000)*(1-AA157/1000))*1000 -> 23.73573126 | AB158: =(1-(1-AB154/1000)*(1-AB155/1000)*(1-AB156/1000)*(1-AB157/1000))*1000 -> 28.93026964 | AC158: 37.36904997 | AD158: 44.023963 | AE158: 52.13904969 | AF158: 61.8019948 | AG158: 73.2110691 | AH158: 86.33113279 | AI158: 101.8966687 | AJ158: 106.4698903 | AK158: 100.8574144 | AL158: 90.48385003
Z159: 3 | AA159: 18.48382242 | AB159: 20.79430023 | AC159: 27.72573364 | AD159: 29.11749 | AE159: 34.43713 | AF159: 40.78471 | AG159: 48.2672 | AH159: 57.03932 | AI159: 67.11912 | AJ159: 76.15158 | AK159: 76.15158 | AL159: 76.15158
Z160: 4 | AA160: 12.47902759 | AB160: 19.13450897 | AC160: 24.12612 | AD160: 25.33718556 | AE160: 26.34082 | AF160: 31.19606 | AG160: 36.91938 | AH160: 43.62914 | AI160: 51.33913 | AJ160: 58.24802 | AK160: 65.79868926 | AL160: 69.03469037
Z161: 5 | AA161: 11.581542 | AB161: 16.4071845 | AC161: 19.30257 | AD161: 20.27150648 | AE161: 21.07448 | AF161: 24.95901 | AG161: 29.53807 | AH161: 34.90634 | AI161: 41.07487 | AJ161: 46.60246 | AK161: 52.81612133 | AL161: 55.922952
Z162: 6 | AA162: 7.175595789 | AB162: 13.45424211 | AC162: 17.04204 | AD162: 17.89750402 | AE162: 18.60645 | AF162: 22.03606 | AG162: 26.07886 | AH162: 30.81845 | AI162: 36.26459 | AJ162: 41.14484 | AK162: 45.15897073 | AL162: 47.1660361
Z163: 7 | AA163: 9.158651429 | AB163: 14.88280857 | AC163: 16.02764 | AD163: 16.8321839 | AE163: 17.49892 | AF163: 20.72439 | AG163: 24.52655 | AH163: 28.98403 | AI163: 35.811279 | AJ163: 38.69575 | AK163: 47.62553846 | AL163: 49.6099359
Z164: 8 | AA164: 10.161801 | AB164: 13.97247638 | AC164: 15.2427015 | AD164: 16.00784363 | AE164: 17.06864 | AF164: 20.2148 | AG164: 23.92347 | AH164: 28.27134 | AI164: 34.930728 | AJ164: 39.631473 | AK164: 50.53012808 | AL164: 52.51170173
Z165: 9 | AA165: 9.859822 | AB165: 13.55725525 | AC165: 14.789733 | AD165: 15.53213734 | AE165: 16.99724 | AF165: 20.13024 | AG165: 23.82339 | AH165: 28.15308 | AI165: 35.7784452 | AJ165: 41.345007 | AK165: 55.46281427 | AL165: 57.47964388
Z166: 10 | AA166: 9.411132 | AB166: 11.763915 | AC166: 14.116698 | AD166: 14.82531782 | AE166: 17.12507 | AF166: 20.28163 | AG166: 24.00256 | AH166: 28.3648 | AI166: 36.0475272 | AJ166: 42.60267 | AK166: 59.84660786 | AL166: 62.88965571
Z170: Death Diagnosis Adjustment
Z171: Diagnosis Group --> | AA171: Unclassified | AB171: Low Non-Cancer | AC171: High Non-Cancer | AD171: Cancer
Z172: Year of Dis.
Z173: 1 (3rd qtr.) | AA173: 1 | AB173: 0.2 | AC173: 0.5 | AD173: 3.65
Z174: 1 (4th qtr.) | AA174: 1 | AB174: 0.2 | AC174: 0.5 | AD174: 3.95
Z175: 2 (1st qtr.) | AA175: 1 | AB175: 0.2 | AC175: 0.6 | AD175: 4.2
Z176: 2 (2nd qtr.) | AA176: 1 | AB176: 0.25 | AC176: 0.6 | AD176: 4.5
Z177: 2 (3rd qtr.) | AA177: 1 | AB177: 0.3 | AC177: 0.65 | AD177: 4.7
Z178: 2 (4th qtr.) | AA178: 1 | AB178: 0.35 | AC178: 0.75 | AD178: 4.725
Z179: 3 | AA179: 1 | AB179: 0.4 | AC179: 0.9 | AD179: 4.75
Z180: 4 | AA180: 1 | AB180: 0.5 | AC180: 1.25 | AD180: 4.6
Z181: 5 | AA181: 1 | AB181: 0.6 | AC181: 1.35 | AD181: 4
Z182: 6 | AA182: 1 | AB182: 0.65 | AC182: 1.45 | AD182: 3.6
Z183: 7 | AA183: 1 | AB183: 0.7 | AC183: 1.55 | AD183: 3.05
Z184: 8 | AA184: 1 | AB184: 0.7 | AC184: 1.65 | AD184: 2.65
Z185: 9 | AA185: 1 | AB185: 0.75 | AC185: 1.6 | AD185: 2.3
Z186: 10 | AA186: 1 | AB186: 0.75 | AC186: 1.5675 | AD186: 2.15
Z192: Recovery Diagnosis Adjustment
Z193: Diagnosis Group --> | AA193: Unclassified | AB193: Low | AC193: Medium | AD193: High
Z194: Year of Dis.
Z195: 1 (3rd qtr.) | AA195: 1 | AB195: 0.55 | AC195: 1.15 | AD195: 1.4
Z196: 1 (4th qtr.) | AA196: 1 | AB196: 0.55 | AC196: 1.15 | AD196: 1.4
Z197: 2 (1st qtr.) | AA197: 1 | AB197: 0.6 | AC197: 1.15 | AD197: 1.4
Z198: 2 (2nd qtr.) | AA198: 1 | AB198: 0.65 | AC198: 1.15 | AD198: 1.35
Z199: 2 (3rd qtr.) | AA199: 1 | AB199: 0.65 | AC199: 1.15 | AD199: 1.35
Z200: 2 (4th qtr.) | AA200: 1 | AB200: 0.65 | AC200: 1.15 | AD200: 1.375
Z201: 3 | AA201: 1 | AB201: 0.65 | AC201: 1.15 | AD201: 1.4
Z202: 4 | AA202: 1 | AB202: 0.675 | AC202: 1.125 | AD202: 1.475
Z203: 5 | AA203: 1 | AB203: 0.7 | AC203: 1.1 | AD203: 1.55
Z204: 6 | AA204: 1 | AB204: 0.7 | AC204: 1.15 | AD204: 1.45
Z205: 7 | AA205: 1 | AB205: 0.7 | AC205: 1.2 | AD205: 1.35
Z206: 8 | AA206: 1 | AB206: 0.7 | AC206: 1.2 | AD206: 1.35
Z207: 9 | AA207: 1 | AB207: 0.7 | AC207: 1.2 | AD207: 1.35
Z208: 10 | AA208: 1 | AB208: 0.7 | AC208: 1.2 | AD208: 1.25

Sheet Weighted Reserve
B8: Duration | C8: 1 | D8: Weighted Reserve | F8: =N27*N28+N32*N33 -> 187.1475801
B10: Age Gender Distribution
C11: 27 | D11: 32 | E11: 37 | F11: 42 | G11: 47 | H11: 52 | I11: 57 | J11: 62 | K11: Total
B12: Male | C12: 3860 | D12: 9728 | E12: 16609 | F12: 25171 | G12: 36447 | H12: 50545 | I12: 58882 | J12: 5296 | K12: =SUM(C12:J12) -> 206538 | L12: Total
B13: Female | C13: 4344 | D13: 10613 | E13: 18522 | F13: 26579 | G13: 33959 | H13: 39141 | I13: 38334 | J13: 3068 | K13: =SUM(C13:J13) -> 174560 | L13: =SUM(K12:K13) -> 381098
B14: Male | C14: =C12/$K12 -> 0.0186890548 | D14: 0.04710029147 | E14: 0.0804161946 | F14: 0.1218710358 | G14: 0.1764663161 | H14: 0.2447249417 | I14: 0.285090395 | J14: 0.02564177052 | K14: =SUM(C14:J14) -> 1 | L14: =K12/(K12+K13) -> 0.5419550877
B15: Female | C15: 0.02488542621 | D15: 0.06079857929 | E15: 0.1061067828 | F15: 0.1522628323 | G15: 0.1945405591 | H15: 0.2242266269 | I15: 0.2196035747 | J15: 0.0175756187 | K15: =SUM(C15:J15) -> 1 | L15: =1-L14 -> 0.4580449123
B16: Male | C16: =C12/$L$13 -> 0.01012862833 | D16: 0.02552624259 | E16: 0.04358196579 | F16: 0.06604862791 | G16: 0.09563681783 | H16: 0.1326299272 | I16: 0.15450619 | J16: 0.01389668799 | K16: 0.5419550877
B17: Female | C17: =C13/$L$13 -> 0.01139864287 | D17: 0.02784847992 | E17: 0.04860167201 | F17: 0.06974321566 | G17: 0.08910831335 | H17: 0.1027058657 | I17: 0.1005883001 | J17: 0.008050422726 | K17: 0.4580449123
B19: Input to Assumptions
E20: Female | F20: Male
C21: Mortality Factor | E21: =Assumptions!C37 -> 0 | F21: =Assumptions!A37 -> 0
C22: Recovery Factor | E22: =Assumptions!G37 -> 0 | F22: =Assumptions!E37 -> 0
G24: Female | N24: Fem Avg
E25: Age | F25: 27 | G25: 32 | H25: 37 | I25: 42 | J25: 47 | K25: 52 | L25: 57 | M25: 62
C26: Mortality @ | D26: Recovery @ | E26: Column | F26: 2 | G26: 3 | H26: 4 | I26: 5 | J26: 6 | K26: 7 | L26: 8 | M26: 9
C27: =E21 -> 0 | D27: =E22 -> 0 | E27: Reserve | F27: =VLOOKUP(Dur,ResvFact,F26) -> 42.66120216 | G27: 68.38132928 | H27: 92.06839666 | I27: 118.6063916 | J27: 156.2938355 | K27: 188.6449857 | L27: 213.4138367 | M27: 217.9334277 | N27: =SUMPRODUCT(F27:M27,F$28:M$28)/N28 -> 156.4490316
E28: Weights | F28: =C17 -> 0.01139864287 | G28: 0.02784847992 | H28: 0.04860167201 | I28: 0.06974321566 | J28: 0.08910831335 | K28: 0.1027058657 | L28: 0.1005883001 | M28: 0.008050422726 | N28: =SUM(F28:M28) -> 0.4580449123
C30: Mortality @ | D30: Recovery @ | E30: Age | F30: 27 | G30: 32 | H30: 37 | I30: 42 | J30: 47 | K30: 52 | L30: 57 | M30: 62 | N30: Male Avg
C31: =F21 -> 0 | D31: =F22 -> 0 | E31: Column | F31: 12 | G31: 13 | H31: 14 | I31: 15 | J31: 16 | K31: 17 | L31: 18 | M31: 19
E32: Reserve | F32: =VLOOKUP(Dur,ResvFact,F31) -> 66.09830638 | G32: 87.73498339 | H32: 122.1880603 | I32: 162.1976025 | J32: 206.9128844 | K32: 244.39606 | L32: 264.2037781 | M32: 253.0028645 | N32: =SUMPRODUCT(F32:M32,F$33:M$33)/N33 -> 213.0931137
E33: Weights | F33: =C16 -> 0.01012862833 | G33: 0.02552624259 | H33: 0.04358196579 | I33: 0.06604862791 | J33: =G16 -> 0.09563681783 | K33: 0.1326299272 | L33: 0.15450619 | M33: 0.01389668799 | N33: =SUM(F33:M33) -> 0.5419550877

Sheet Reserve Factor Tables
A2: Society of Actuaries ("SOA") Group Life Experience Committee
A3: Calculation Spreadsheet for Reserve Factors for Group Term Life Waiver of Premium
A4: Tables of Reserve Factors Per Thousand for Group Life Waiver of Premium
A7: Summary of Assumptions | D7: DurGrp1 | E7: DurGrp2 | F7: DurGrp3
B8: Mortality Multiple | D8: =CompanyMortAdj0 -> 0.9444718447 | E8: =CompanyMortAdj25 -> 0.9674100528 | F8: =CompanyMortAdj61 -> 1.02157438
B9: Recovery Multiple | D9: =CompanyRecovAdj0 -> 1.251161712 | E9: =CompanyRecovAdj25 -> 1.35104434 | F9: =CompanyRecovAdj61 -> 1.055797281
B10: Valuation Interest Rate | D10: =Assumptions!C12 -> 0.0325
B11: Benefit Pattern | D11: =Benefit_Option -> 5 | E11: =OFFSET(Assumptions!C48,D11,0) -> Pattern 5 - No coverage after age 65
E14: FEMALES | O14: MALES
B15: Central Age | L15: Central Age
B17: 22 | C17: 27 | D17: 32 | E17: 37 | F17: 42 | G17: 47 | H17: 52 | I17: 57 | J17: 62 | L17: 22 | M17: 27 | N17: 32 | O17: 37 | P17: 42 | Q17: 47 | R17: 52 | S17: 57 | T17: 62
A18: Duration | B18: F22 | C18: F27 | D18: F32 | E18: F37 | F18: F42 | G18: F47 | H18: F52 | I18: F57 | J18: F62 | K18: Duration | L18: M22 | M18: M27 | N18: M32 | O18: M37 | P18: M42 | Q18: M47 | R18: M52 | S18: M57 | T18: M62
B19: 2 | C19: =B19+1 -> 3 | D19: =C19+1 -> 4 | E19: 5 | F19: 6 | G19: 7 | H19: 8 | I19: 9 | J19: 10 | L19: =J19+1 -> 11 | M19: 12 | N19: 13 | O19: 14 | P19: 15 | Q19: 16 | R19: 17 | S19: 18 | T19: 19
A20: 0 | B20: ='F-22'!$W13 -> 33.45035837 | C20: ='F-27'!$W13 -> 55.57739333 | D20: ='F-32'!$W13 -> 77.3765448 | E20: ='F-37'!$W13 -> 108.4353789 | F20: ='F-42'!$W13 -> 145.1899195 | G20: ='F-47'!$W13 -> 179.9805516 | H20: ='F-52'!$W13 -> 210.0201349 | I20: ='F-57'!$W13 -> 224.9501259 | J20: ='F-62'!$W13 -> 170.2959639 | K20: 0 | L20: ='M-22'!$W13 -> 62.48288668 | M20: ='M-27'!$W13 -> 80.80687352 | N20: ='M-32'!$W13 -> 112.6499634 | O20: ='M-37'!$W13 -> 151.0295644 | P20: ='M-42'!$W13 -> 195.1697455 | Q20: ='M-47'!$W13 -> 235.4302287 | R20: ='M-52'!$W13 -> 262.4461877 | S20: ='M-57'!$W13 -> 264.4563048 | T20: ='M-62'!$W13 -> 193.7920992
A21: 0.25 | B21: ='F-22'!$W14 -> 33.71889159 | C21: ='F-27'!$W14 -> 56.02355825 | D21: ='F-32'!$W14 -> 77.99770923 | E21: ='F-37'!$W14 -> 109.3058778 | F21: ='F-42'!$W14 -> 146.355477 | G21: ='F-47'!$W14 -> 181.4254018 | H21: ='F-52'!$W14 -> 211.7061372 | I21: ='F-57'!$W14 -> 226.7559834 | J21: ='F-62'!$W14 -> 171.663068 | K21: 0.25 | L21: ='M-22'!$W14 -> 62.98448761 | M21: ='M-27'!$W14 -> 81.45557599 | N21: ='M-32'!$W14 -> 113.5542962 | O21: ='M-37'!$W14 -> 152.2420015 | P21: ='M-42'!$W14 -> 196.7365317 | Q21: ='M-47'!$W14 -> 237.3202185 | R21: ='M-52'!$W14 -> 264.5530566 | S21: ='M-57'!$W14 -> 266.5793105 | T21: ='M-62'!$W14 -> 195.3478259
A22: 0.5 | B22: ='F-22'!$W15 -> 33.98958054 | C22: ='F-27'!$W15 -> 56.47330489 | D22: ='F-32'!$W15 -> 78.62386025 | E22: ='F-37'!$W15 -> 110.183365 | F22: ='F-42'!$W15 -> 147.5303914 | G22: ='F-47'!$W15 -> 182.8818509 | H22: ='F-52'!$W15 -> 213.4056745 | I22: ='F-57'!$W15 -> 228.576338 | J22: ='F-62'!$W15 -> 173.041147 | K22: 0.5 | L22: ='M-22'!$W15 -> 63.49011529 | M22: ='M-27'!$W15 -> 82.10948611 | N22: ='M-32'!$W15 -> 114.4658888 | O22: ='M-37'!$W15 -> 153.4641718 | P22: ='M-42'!$W15 -> 198.3158958 | Q22: ='M-47'!$W15 -> 239.2253809 | R22: ='M-52'!$W15 -> 266.6768391 | S22: ='M-57'!$W15 -> 268.7193594 | T22: ='M-62'!$W15 -> 196.9160417
A23: 0.75 | B23: ='F-22'!$W16 -> 40.40212894 | C23: ='F-27'!$W16 -> 65.18842725 | D23: ='F-32'!$W16 -> 88.56678974 | E23: ='F-37'!$W16 -> 115.6155541 | F23: ='F-42'!$W16 -> 153.3646782 | G23: ='F-47'!$W16 -> 187.5800582 | H23: ='F-52'!$W16 -> 215.6816368 | I23: ='F-57'!$W16 -> 226.1875589 | J23: ='F-62'!$W16 -> 162.2925767 | K23: 0.75 | L23: ='M-22'!$W16 -> 66.45675453 | M23: ='M-27'!$W16 -> 86.38432997 | N23: ='M-32'!$W16 -> 119.8984933 | O23: ='M-37'!$W16 -> 159.5704433 | P23: ='M-42'!$W16 -> 204.5544879 | Q23: ='M-47'!$W16 -> 244.0550285 | R23: ='M-52'!$W16 -> 268.1321948 | S23: ='M-57'!$W16 -> 264.2416819 | T23: ='M-62'!$W16 -> 182.8237757
A24: 1 | B24: ='F-22'!$W17 -> 42.66120216 | C24: ='F-27'!$W17 -> 68.38132928 | D24: ='F-32'!$W17 -> 92.06839666 | E24: ='F-37'!$W17 -> 118.6063916 | F24: ='F-42'!$W17 -> 156.2938355 | G24: ='F-47'!$W17 -> 188.6449857 | H24: ='F-52'!$W17 -> 213.4138367 | I24: ='F-57'!$W17 -> 217.9334277 | J24: ='F-62'!$W17 -> 144.1165498 | K24: 1 | L24: ='M-22'!$W17 -> 66.09830638 | M24: ='M-27'!$W17 -> 87.73498339 | N24: ='M-32'!$W17 -> 122.1880603 | O24: ='M-37'!$W17 -> 162.1976025 | P24: ='M-42'!$W17 -> 206.9128844 | Q24: ='M-47'!$W17 -> 244.39606 | R24: ='M-52'!$W17 -> 264.2037781 | S24: ='M-57'!$W17 -> 253.0028645 | T24: ='M-62'!$W17 -> 160.103454
A25: 1.25 | B25: ='F-22'!$W18 -> 43.92724843 | C25: ='F-27'!$W18 -> 70.43669783 | D25: ='F-32'!$W18 -> 94.21776494 | E25: ='F-37'!$W18 -> 120.0344608 | F25: ='F-42'!$W18 -> 157.4705451 | G25: ='F-47'!$W18 -> 187.8440053 | H25: ='F-52'!$W18 -> 209.2547831 | I25: ='F-57'!$W18 -> 207.8581155 | J25: ='F-62'!$W18 -> 124.4845693 | K25: 1.25 | L25: ='M-22'!$W18 -> 64.36593259 | M25: ='M-27'!$W18 -> 88.02275984 | N25: ='M-32'!$W18 -> 123.3333136 | O25: ='M-37'!$W18 -> 163.5797246 | P25: ='M-42'!$W18 -> 207.950706 | Q25: ='M-47'!$W18 -> 243.4061188 | R25: ='M-52'!$W18 -> 259.022804 | S25: ='M-57'!$W18 -> 240.6706753 | T25: ='M-62'!$W18 -> 136.5913761
A26: 1.5 | B26: ='F-22'!$W19 -> 44.85868501 | C26: ='F-27'!$W19 -> 72.28376533 | D26: ='F-32'!$W19 -> 96.09814464 | E26: ='F-37'!$W19 -> 121.1578453 | F26: ='F-42'!$W19 -> 158.3280929 | G26: ='F-47'!$W19 -> 186.7951693 | H26: ='F-52'!$W19 -> 205.0148162 | I26: ='F-57'!$W19 -> 198.0124085 | J26: ='F-62'!$W19 -> 105.6122538 | K26: 1.5 | L26: ='M-22'!$W19 -> 63.50952924 | M26: ='M-27'!$W19 -> 88.49155461 | N26: ='M-32'!$W19 -> 124.6986105 | O26: ='M-37'!$W19 -> 165.2044686 | P26: ='M-42'!$W19 -> 209.2730882 | Q26: ='M-47'!$W19 -> 242.8124432 | R26: ='M-52'!$W19 -> 254.4653512 | S26: ='M-57'!$W19 -> 229.3500411 | T26: ='M-62'!$W19 -> 114.6694356
A27: 1.75 | B27: ='F-22'!$W20 -> 45.80537134 | C27: ='F-27'!$W20 -> 74.34624827 | D27: ='F-32'!$W20 -> 98.18876557 | E27: ='F-37'!$W20 -> 122.5016938 | F27: ='F-42'!$W20 -> 159.4449454 | G27: ='F-47'!$W20 -> 186.0978714 | H27: ='F-52'!$W20 -> 201.289391 | I27: ='F-57'!$W20 -> 188.9584821 | J27: ='F-62'!$W20 -> 87.93356709 | K27: 1.75 | L27: ='M-22'!$W20 -> 62.57304129 | M27: ='M-27'!$W20 -> 89.55202684 | N27: ='M-32'!$W20 -> 126.732514 | O27: ='M-37'!$W20 -> 167.5479941 | P27: ='M-42'!$W20 -> 211.3713286 | Q27: ='M-47'!$W20 -> 243.0939726 | R27: ='M-52'!$W20 -> 250.9703895 | S27: ='M-57'!$W20 -> 219.4184943 | T27: ='M-62'!$W20 -> 94.60796256
A28: 2 | B28: ='F-22'!$W21 -> 47.21716005 | C28: ='F-27'!$W21 -> 76.79491857 | D28: ='F-32'!$W21 -> 100.672991 | E28: ='F-37'!$W21 -> 124.2496286 | F28: ='F-42'!$W21 -> 161.0122235 | G28: ='F-47'!$W21 -> 185.9212767 | H28: ='F-52'!$W21 -> 198.2034004 | I28: ='F-57'!$W21 -> 180.7422197 | J28: ='F-62'!$W21 -> 71.35089979 | K28: 2 | L28: ='M-22'!$W21 -> 61.96576852 | M28: ='M-27'!$W21 -> 91.30871195 | N28: ='M-32'!$W21 -> 129.5454405 | O28: ='M-37'!$W21 -> 170.7161983 | P28: ='M-42'!$W21 -> 214.3374875 | Q28: ='M-47'!$W21 -> 244.304408 | R28: ='M-52'!$W21 -> 248.5242152 | S28: ='M-57'!$W21 -> 210.759886 | T28: ='M-62'!$W21 -> 76.13908644
A29: =A28+1 -> 3 | B29: ='F-22'!$W22 -> 71.69685746 | C29: ='F-27'!$W22 -> 104.8079783 | D29: ='F-32'!$W22 -> 132.1742276 | E29: ='F-37'!$W22 -> 159.871721 | F29: ='F-42'!$W22 -> 188.6611257 | G29: ='F-47'!$W22 -> 202.445966 | H29: ='F-52'!$W22 -> 196.0096481 | I29: ='F-57'!$W22 -> 153.8003046 | J29: ='F-62'!$W22 -> 0 | K29: =K28+1 -> 3 | L29: ='M-22'!$W22 -> 84.31438207 | M29: ='M-27'!$W22 -> 128.9722434 | N29: ='M-32'!$W22 -> 171.680762 | O29: ='M-37'!$W22 -> 215.2768869 | P29: ='M-42'!$W22 -> 248.8782778 | Q29: ='M-47'!$W22 -> 263.374961 | R29: ='M-52'!$W22 -> 248.7190738 | S29: ='M-57'!$W22 -> 181.5585449 | T29: ='M-62'!$W22 -> 0
A30: 4 | B30: ='F-22'!$W23 -> 93.21970714 | C30: ='F-27'!$W23 -> 123.5977276 | D30: ='F-32'!$W23 -> 155.0109646 | E30: ='F-37'!$W23 -> 181.3456731 | F30: ='F-42'!$W23 -> 202.9101057 | G30: ='F-47'!$W23 -> 207.0683707 | H30: ='F-52'!$W23 -> 185.6592992 | I30: ='F-57'!$W23 -> 124.4359406 | J30: ='F-62'!$W23 -> 0 | K30: 4 | L30: ='M-22'!$W23 -> 108.6025031 | M30: ='M-27'!$W23 -> 154.935082 | N30: ='M-32'!$W23 -> 200.6927914 | O30: ='M-37'!$W23 -> 242.0800068 | P30: ='M-42'!$W23 -> 267.7248904 | Q30: ='M-47'!$W23 -> 271.304441 | R30: ='M-52'!$W23 -> 241.5751342 | S30: ='M-57'!$W23 -> 152.7558442 | T30: ='M-62'!$W23 -> 0
A31: 5 | B31: ='F-22'!$W24 -> 112.8182955 | C31: ='F-27'!$W24 -> 139.2157514 | D31: ='F-32'!$W24 -> 173.2137545 | E31: ='F-37'!$W24 -> 197.5011615 | F31: ='F-42'!$W24 -> 212.25173 | G31: ='F-47'!$W24 -> 207.9981609 | H31: ='F-52'!$W24 -> 174.3470525 | I31: ='F-57'!$W24 -> 96.87725862 | J31: ='F-62'!$W24 -> 0 | K31: 5 | L31: ='M-22'!$W24 -> 137.9282511 | M31: ='M-27'!$W24 -> 176.5184392 | N31: ='M-32'!$W24 -> 223.4890604 | O31: ='M-37'!$W24 -> 260.4859034 | P31: ='M-42'!$W24 -> 278.9558174 | Q31: ='M-47'!$W24 -> 273.4772941 | R31: ='M-52'!$W24 -> 229.926869 | S31: ='M-57'!$W24 -> 121.6127149 | T31: ='M-62'!$W24 -> 0
A32: 6 | B32: ='F-22'!$W25 -> 123.0852731 | C32: ='F-27'!$W25 -> 148.0059191 | D32: ='F-32'!$W25 -> 181.8034643 | E32: ='F-37'!$W25 -> 204.5460009 | F32: ='F-42'!$W25 -> 213.9883214 | G32: ='F-47'!$W25 -> 202.5520988 | H32: ='F-52'!$W25 -> 158.8227152 | I32: ='F-57'!$W25 -> 67.07080497 | J32: ='F-62'!$W25 -> 0 | K32: 6 | L32: ='M-22'!$W25 -> 155.321016 | M32: ='M-27'!$W25 -> 188.9502786 | N32: ='M-32'!$W25 -> 234.4781835 | O32: ='M-37'!$W25 -> 267.5383192 | P32: ='M-42'!$W25 -> 280.3563006 | Q32: ='M-47'!$W25 -> 267.1109541 | R32: ='M-52'!$W25 -> 211.5070031 | S32: ='M-57'!$W25 -> 84.65750696 | T32: ='M-62'!$W25 -> 0
A33: 7 | B33: ='F-22'!$W26 -> 129.4644066 | C33: ='F-27'!$W26 -> 155.7771603 | D33: ='F-32'!$W26 -> 188.7645066 | E33: ='F-37'!$W26 -> 209.7089733 | F33: ='F-42'!$W26 -> 214.0651161 | G33: ='F-47'!$W26 -> 195.5805488 | H33: ='F-52'!$W26 -> 142.1895246 | I33: ='F-57'!$W26 -> 34.56110101 | J33: ='F-62'!$W26 -> 0 | K33: 7 | L33: ='M-22'!$W26 -> 169.7668469 | M33: ='M-27'!$W26 -> 199.6240574 | N33: ='M-32'!$W26 -> 243.1045818 | O33: ='M-37'!$W26 -> 272.1268333 | P33: ='M-42'!$W26 -> 279.4553414 | Q33: ='M-47'!$W26 -> 258.4518663 | R33: ='M-52'!$W26 -> 190.6364423 | S33: ='M-57'!$W26 -> 44.63488296 | T33: ='M-62'!$W26 -> 0
A34: 8 | B34: ='F-22'!$W27 -> 134.9992913 | C34: ='F-27'!$W27 -> 162.6855471 | D34: ='F-32'!$W27 -> 194.8015927 | E34: ='F-37'!$W27 -> 213.4875699 | F34: ='F-42'!$W27 -> 212.7674906 | G34: ='F-47'!$W27 -> 187.1613513 | H34: ='F-52'!$W27 -> 124.0302258 | I34: ='F-57'!$W27 -> 0 | J34: ='F-62'!$W27 -> 0 | K34: 8 | L34: ='M-22'!$W27 -> 179.5311154 | M34: ='M-27'!$W27 -> 208.9585977 | N34: ='M-32'!$W27 -> 250.1726951 | O34: ='M-37'!$W27 -> 275.296794 | P34: ='M-42'!$W27 -> 277.0560794 | Q34: ='M-47'!$W27 -> 247.8278642 | R34: ='M-52'!$W27 -> 167.4288698 | S34: ='M-57'!$W27 -> 0 | T34: ='M-62'!$W27 -> 0
A35: 9 | B35: ='F-22'!$W28 -> 139.4721924 | C35: ='F-27'!$W28 -> 169.0793038 | D35: ='F-32'!$W28 -> 200.0904391 | E35: ='F-37'!$W28 -> 216.084177 | F35: ='F-42'!$W28 -> 210.1815526 | G35: ='F-47'!$W28 -> 177.3353285 | H35: ='F-52'!$W28 -> 104.0754623 | I35: ='F-57'!$W28 -> 0 | J35: ='F-62'!$W28 -> 0 | K35: 9 | L35: ='M-22'!$W28 -> 186.5446915 | M35: ='M-27'!$W28 -> 217.6867227 | N35: ='M-32'!$W28 -> 256.2781993 | O35: ='M-37'!$W28 -> 277.3869628 | P35: ='M-42'!$W28 -> 273.3493332 | Q35: ='M-47'!$W28 -> 235.5420985 | R35: ='M-52'!$W28 -> 141.8740615 | S35: ='M-57'!$W28 -> 0 | T35: ='M-62'!$W28 -> 0
A36: 10 | B36: ='F-22'!$W29 -> 145.4538652 | C36: ='F-27'!$W29 -> 175.4744222 | D36: ='F-32'!$W29 -> 205.3448836 | E36: ='F-37'!$W29 -> 217.7522852 | F36: ='F-42'!$W29 -> 206.4769335 | G36: ='F-47'!$W29 -> 166.127815 | H36: ='F-52'!$W29 -> 82.09124641 | I36: ='F-57'!$W29 -> 0 | J36: ='F-62'!$W29 -> 0 | K36: 10 | L36: ='M-22'!$W29 -> 192.0504397 | M36: ='M-27'!$W29 -> 226.1295334 | N36: ='M-32'!$W29 -> 261.8766507 | O36: ='M-37'!$W29 -> 278.8897299 | P36: ='M-42'!$W29 -> 268.5466568 | Q36: ='M-47'!$W29 -> 221.6844156 | R36: ='M-52'!$W29 -> 113.8820637 | S36: ='M-57'!$W29 -> 0 | T36: ='M-62'!$W29 -> 0
A37: 11 | B37: ='F-22'!$W155 -> 150.7943904 | C37: ='F-27'!$W160 -> 182.580001 | D37: ='F-32'!$W165 -> 209.3532337 | E37: ='F-37'!$W170 -> 217.4891902 | F37: ='F-42'!$W175 -> 201.1210373 | G37: ='F-47'!$W180 -> 153.3814299 | H37: ='F-52'!$W185 -> 58.31999794 | I37: ='F-57'!$W190 -> 0 | J37: ='F-62'!$W195 -> 0 | K37: 11 | L37: ='M-22'!$W155 -> 198.0186005 | M37: ='M-27'!$W160 -> 234.3941291 | N37: ='M-32'!$W165 -> 267.0487497 | O37: ='M-37'!$W170 -> 279.2173589 | P37: ='M-42'!$W175 -> 262.5700685 | Q37: ='M-47'!$W180 -> 206.4570419 | R37: ='M-52'!$W185 -> 80.89852233 | S37: ='M-57'!$W190 -> 0 | T37: ='M-62'!$W195 -> 0
A38: 12 | B38: ='F-22'!$W156 -> 156.6649853 | C38: ='F-27'!$W161 -> 189.1758342 | D38: ='F-32'!$W166 -> 212.6910326 | E38: ='F-37'!$W171 -> 216.1083206 | F38: ='F-42'!$W176 -> 194.5221011 | G38: ='F-47'!$W181 -> 138.764668 | H38: ='F-52'!$W186 -> 31.07393782 | I38: ='F-57'!$W191 -> 0 | J38: ='F-62'!$W196 -> 0 | K38: 12 | L38: ='M-22'!$W156 -> 204.6270303 | M38: ='M-27'!$W161 -> 242.1624549 | N38: ='M-32'!$W166 -> 271.4195895 | O38: ='M-37'!$W171 -> 278.3197986 | P38: ='M-42'!$W176 -> 255.0350187 | Q38: ='M-47'!$W181 -> 188.4169783 | R38: ='M-52'!$W186 -> 43.10102946 | S38: ='M-57'!$W191 -> 0 | T38: ='M-62'!$W196 -> 0
A39: 13 | B39: ='F-22'!$W157 -> 163.1228032 | C39: ='F-27'!$W162 -> 195.2046468 | D39: ='F-32'!$W167 -> 215.2646 | E39: ='F-37'!$W172 -> 213.8734842 | F39: ='F-42'!$W177 -> 186.5695324 | G39: ='F-47'!$W182 -> 122.1240299 | H39: ='F-52'!$W187 -> 0 | I39: ='F-57'!$W192 -> 0 | J39: ='F-62'!$W197 -> 0 | K39: 13 | L39: ='M-22'!$W157 -> 211.951723 | M39: ='M-27'!$W162 -> 249.3728867 | N39: ='M-32'!$W167 -> 274.9059253 | O39: ='M-37'!$W172 -> 276.310375 | P39: ='M-42'!$W177 -> 245.8078994 | Q39: ='M-47'!$W182 -> 167.2254718 | R39: ='M-52'!$W187 -> 0 | S39: ='M-57'!$W192 -> 0 | T39: ='M-62'!$W197 -> 0
A40: 14 | B40: ='F-22'!$W158 -> 169.0093059 | C40: ='F-27'!$W163 -> 200.6117994 | D40: ='F-32'!$W168 -> 216.9816882 | E40: ='F-37'!$W173 -> 210.6945761 | F40: ='F-42'!$W178 -> 177.1462466 | G40: ='F-47'!$W183 -> 103.293235 | H40: ='F-52'!$W188 -> 0 | I40: ='F-57'!$W193 -> 0 | J40: ='F-62'!$W198 -> 0 | K40: 14 | L40: ='M-22'!$W158 -> 218.6774461 | M40: ='M-27'!$W163 -> 255.9644815 | N40: ='M-32'!$W168 -> 277.424092 | O40: ='M-37'!$W173 -> 273.0884402 | P40: ='M-42'!$W178 -> 234.7437119 | Q40: ='M-47'!$W183 -> 142.5138296 | R40: ='M-52'!$W188 -> 0 | S40: ='M-57'!$W193 -> 0 | T40: ='M-62'!$W198 -> 0
A41: 15 | B41: ='F-22'!$W159 -> 175.4744222 | C41: ='F-27'!$W164 -> 205.3448836 | D41: ='F-32'!$W169 -> 217.7522852 | E41: ='F-37'!$W174 -> 206.4769335 | F41: ='F-42'!$W179 -> 166.127815 | G41: ='F-47'!$W184 -> 82.09124641 | H41: ='F-52'!$W189 -> 0 | I41: ='F-57'!$W194 -> 0 | J41: ='F-62'!$W199 -> 0 | K41: 15 | L41: ='M-22'!$W159 -> 226.1295334 | M41: ='M-27'!$W164 -> 261.8766507 | N41: ='M-32'!$W169 -> 278.8897299 | O41: ='M-37'!$W174 -> 268.5466568 | P41: ='M-42'!$W179 -> 221.6844156 | Q41: ='M-47'!$W184 -> 113.8820637 | R41: ='M-52'!$W189 -> 0 | S41: ='M-57'!$W194 -> 0 | T41: ='M-62'!$W199 -> 0
A42: 16 | B42: ='F-22'!$W160 -> 182.580001 | C42: ='F-27'!$W165 -> 209.3532337 | D42: ='F-32'!$W170 -> 217.4891902 | E42: ='F-37'!$W175 -> 201.1210373 | F42: ='F-42'!$W180 -> 153.3814299 | G42: ='F-47'!$W185 -> 58.31999794 | H42: ='F-52'!$W190 -> 0 | I42: ='F-57'!$W195 -> 0 | J42: ='F-62'!$W200 -> 0 | K42: 16 | L42: ='M-22'!$W160 -> 234.3941291 | M42: ='M-27'!$W165 -> 267.0487497 | N42: ='M-32'!$W170 -> 279.2173589 | O42: ='M-37'!$W175 -> 262.5700685 | P42: ='M-42'!$W180 -> 206.4570419 | Q42: ='M-47'!$W185 -> 80.89852233 | R42: ='M-52'!$W190 -> 0 | S42: ='M-57'!$W195 -> 0 | T42: ='M-62'!$W200 -> 0
A43: 17 | B43: ='F-22'!$W161 -> 189.1758342 | C43: ='F-27'!$W166 -> 212.6910326 | D43: ='F-32'!$W171 -> 216.1083206 | E43: ='F-37'!$W176 -> 194.5221011 | F43: ='F-42'!$W181 -> 138.764668 | G43: ='F-47'!$W186 -> 31.07393782 | H43: ='F-52'!$W191 -> 0 | I43: ='F-57'!$W196 -> 0 | J43: ='F-62'!$W201 -> 0 | K43: 17 | L43: ='M-22'!$W161 -> 242.1624549 | M43: ='M-27'!$W166 -> 271.4195895 | N43: ='M-32'!$W171 -> 278.3197986 | O43: ='M-37'!$W176 -> 255.0350187 | P43: ='M-42'!$W181 -> 188.4169783 | Q43: ='M-47'!$W186 -> 43.10102946 | R43: ='M-52'!$W191 -> 0 | S43: ='M-57'!$W196 -> 0 | T43: ='M-62'!$W201 -> 0
A44: 18 | B44: ='F-22'!$W162 -> 195.2046468 | C44: ='F-27'!$W167 -> 215.2646 | D44: ='F-32'!$W172 -> 213.8734842 | E44: ='F-37'!$W177 -> 186.5695324 | F44: ='F-42'!$W182 -> 122.1240299 | G44: ='F-47'!$W187 -> 0 | H44: ='F-52'!$W192 -> 0 | I44: ='F-57'!$W197 -> 0 | J44: ='F-62'!$W202 -> 0 | K44: 18 | L44: ='M-22'!$W162 -> 249.3728867 | M44: ='M-27'!$W167 -> 274.9059253 | N44: ='M-32'!$W172 -> 276.310375 | O44: ='M-37'!$W177 -> 245.8078994 | P44: ='M-42'!$W182 -> 167.2254718 | Q44: ='M-47'!$W187 -> 0 | R44: ='M-52'!$W192 -> 0 | S44: ='M-57'!$W197 -> 0 | T44: ='M-62'!$W202 -> 0
A45: 19 | B45: ='F-22'!$W163 -> 200.6117994 | C45: ='F-27'!$W168 -> 216.9816882 | D45: ='F-32'!$W173 -> 210.6945761 | E45: ='F-37'!$W178 -> 177.1462466 | F45: ='F-42'!$W183 -> 103.293235 | G45: ='F-47'!$W188 -> 0 | H45: ='F-52'!$W193 -> 0 | I45: ='F-57'!$W198 -> 0 | J45: ='F-62'!$W203 -> 0 | K45: 19 | L45: ='M-22'!$W163 -> 255.9644815 | M45: ='M-27'!$W168 -> 277.424092 | N45: ='M-32'!$W173 -> 273.0884402 | O45: ='M-37'!$W178 -> 234.7437119 | P45: ='M-42'!$W183 -> 142.5138296 | Q45: ='M-47'!$W188 -> 0 | R45: ='M-52'!$W193 -> 0 | S45: ='M-57'!$W198 -> 0 | T45: ='M-62'!$W203 -> 0
A46: 20 | B46: ='F-22'!$W164 -> 205.3448836 | C46: ='F-27'!$W169 -> 217.7522852 | D46: ='F-32'!$W174 -> 206.4769335 | E46: ='F-37'!$W179 -> 166.127815 | F46: ='F-42'!$W184 -> 82.09124641 | G46: ='F-47'!$W189 -> 0 | H46: ='F-52'!$W194 -> 0 | I46: ='F-57'!$W199 -> 0 | J46: ='F-62'!$W204 -> 0 | K46: 20 | L46: ='M-22'!$W164 -> 261.8766507 | M46: ='M-27'!$W169 -> 278.8897299 | N46: ='M-32'!$W174 -> 268.5466568 | O46: ='M-37'!$W179 -> 221.6844156 | P46: ='M-42'!$W184 -> 113.8820637 | Q46: ='M-47'!$W189 -> 0 | R46: ='M-52'!$W194 -> 0 | S46: ='M-57'!$W199 -> 0 | T46: ='M-62'!$W204 -> 0
A47: 21 | B47: ='F-22'!$W165 -> 209.3532337 | C47: ='F-27'!$W170 -> 217.4891902 | D47: ='F-32'!$W175 -> 201.1210373 | E47: ='F-37'!$W180 -> 153.3814299 | F47: ='F-42'!$W185 -> 58.31999794 | G47: ='F-47'!$W190 -> 0 | H47: ='F-52'!$W195 -> 0 | I47: ='F-57'!$W200 -> 0 | J47: ='F-62'!$W205 -> 0 | K47: 21 | L47: ='M-22'!$W165 -> 267.0487497 | M47: ='M-27'!$W170 -> 279.2173589 | N47: ='M-32'!$W175 -> 262.5700685 | O47: ='M-37'!$W180 -> 206.4570419 | P47: ='M-42'!$W185 -> 80.89852233 | Q47: ='M-47'!$W190 -> 0 | R47: ='M-52'!$W195 -> 0 | S47: ='M-57'!$W200 -> 0 | T47: ='M-62'!$W205 -> 0
A48: 22 | B48: ='F-22'!$W166 -> 212.6910326 | C48: ='F-27'!$W171 -> 216.1083206 | D48: ='F-32'!$W176 -> 194.5221011 | E48: ='F-37'!$W181 -> 138.764668 | F48: ='F-42'!$W186 -> 31.07393782 | G48: ='F-47'!$W191 -> 0 | H48: ='F-52'!$W196 -> 0 | I48: ='F-57'!$W201 -> 0 | J48: ='F-62'!$W206 -> 0 | K48: 22 | L48: ='M-22'!$W166 -> 271.4195895 | M48: ='M-27'!$W171 -> 278.3197986 | N48: ='M-32'!$W176 -> 255.0350187 | O48: ='M-37'!$W181 -> 188.4169783 | P48: ='M-42'!$W186 -> 43.10102946 | Q48: ='M-47'!$W191 -> 0 | R48: ='M-52'!$W196 -> 0 | S48: ='M-57'!$W201 -> 0 | T48: ='M-62'!$W206 -> 0
A49: 23 | B49: ='F-22'!$W167 -> 215.2646 | C49: ='F-27'!$W172 -> 213.8734842 | D49: ='F-32'!$W177 -> 186.5695324 | E49: ='F-37'!$W182 -> 122.1240299 | F49: ='F-42'!$W187 -> 0 | G49: ='F-47'!$W192 -> 0 | H49: ='F-52'!$W197 -> 0 | I49: ='F-57'!$W202 -> 0 | J49: ='F-62'!$W207 -> 0 | K49: 23 | L49: ='M-22'!$W167 -> 274.9059253 | M49: ='M-27'!$W172 -> 276.310375 | N49: ='M-32'!$W177 -> 245.8078994 | O49: ='M-37'!$W182 -> 167.2254718 | P49: ='M-42'!$W187 -> 0 | Q49: ='M-47'!$W192 -> 0 | R49: ='M-52'!$W197 -> 0 | S49: ='M-57'!$W202 -> 0 | T49: ='M-62'!$W207 -> 0
A50: 24 | B50: ='F-22'!$W168 -> 216.9816882 | C50: ='F-27'!$W173 -> 210.6945761 | D50: ='F-32'!$W178 -> 177.1462466 | E50: ='F-37'!$W183 -> 103.293235 | F50: ='F-42'!$W188 -> 0 | G50: ='F-47'!$W193 -> 0 | H50: ='F-52'!$W198 -> 0 | I50: ='F-57'!$W203 -> 0 | J50: ='F-62'!$W208 -> 0 | K50: 24 | L50: ='M-22'!$W168 -> 277.424092 | M50: ='M-27'!$W173 -> 273.0884402 | N50: ='M-32'!$W178 -> 234.7437119 | O50: ='M-37'!$W183 -> 142.5138296 | P50: ='M-42'!$W188 -> 0 | Q50: ='M-47'!$W193 -> 0 | R50: ='M-52'!$W198 -> 0 | S50: ='M-57'!$W203 -> 0 | T50: ='M-62'!$W208 -> 0
A51: 25 | B51: ='F-22'!$W169 -> 217.7522852 | C51: ='F-27'!$W174 -> 206.4769335 | D51: ='F-32'!$W179 -> 166.127815 | E51: ='F-37'!$W184 -> 82.09124641 | F51: ='F-42'!$W189 -> 0 | G51: ='F-47'!$W194 -> 0 | H51: ='F-52'!$W199 -> 0 | I51: ='F-57'!$W204 -> 0 | J51: ='F-62'!$W209 -> 0 | K51: 25 | L51: ='M-22'!$W169 -> 278.8897299 | M51: ='M-27'!$W174 -> 268.5466568 | N51: ='M-32'!$W179 -> 221.6844156 | O51: ='M-37'!$W184 -> 113.8820637 | P51: ='M-42'!$W189 -> 0 | Q51: ='M-47'!$W194 -> 0 | R51: ='M-52'!$W199 -> 0 | S51: ='M-57'!$W204 -> 0 | T51: ='M-62'!$W209 -> 0
A52: 26 | B52: ='F-22'!$W170 -> 217.4891902 | C52: ='F-27'!$W175 -> 201.1210373 | D52: ='F-32'!$W180 -> 153.3814299 | E52: ='F-37'!$W185 -> 58.31999794 | F52: ='F-42'!$W190 -> 0 | G52: ='F-47'!$W195 -> 0 | H52: ='F-52'!$W200 -> 0 | I52: ='F-57'!$W205 -> 0 | J52: ='F-62'!$W210 -> 0 | K52: 26 | L52: ='M-22'!$W170 -> 279.2173589 | M52: ='M-27'!$W175 -> 262.5700685 | N52: ='M-32'!$W180 -> 206.4570419 | O52: ='M-37'!$W185 -> 80.89852233 | P52: ='M-42'!$W190 -> 0 | Q52: ='M-47'!$W195 -> 0 | R52: ='M-52'!$W200 -> 0 | S52: ='M-57'!$W205 -> 0 | T52: ='M-62'!$W210 -> 0
A53: 27 | B53: ='F-22'!$W171 -> 216.1083206 | C53: ='F-27'!$W176 -> 194.5221011 | D53: ='F-32'!$W181 -> 138.764668 | E53: ='F-37'!$W186 -> 31.07393782 | F53: ='F-42'!$W191 -> 0 | G53: ='F-47'!$W196 -> 0 | H53: ='F-52'!$W201 -> 0 | I53: ='F-57'!$W206 -> 0 | J53: ='F-62'!$W211 -> 0 | K53: 27 | L53: ='M-22'!$W171 -> 278.3197986 | M53: ='M-27'!$W176 -> 255.0350187 | N53: ='M-32'!$W181 -> 188.4169783 | O53: ='M-37'!$W186 -> 43.10102946 | P53: ='M-42'!$W191 -> 0 | Q53: ='M-47'!$W196 -> 0 | R53: ='M-52'!$W201 -> 0 | S53: ='M-57'!$W206 -> 0 | T53: ='M-62'!$W211 -> 0
A54: 28 | B54: ='F-22'!$W172 -> 213.8734842 | C54: ='F-27'!$W177 -> 186.5695324 | D54: ='F-32'!$W182 -> 122.1240299 | E54: ='F-37'!$W187 -> 0 | F54: ='F-42'!$W192 -> 0 | G54: ='F-47'!$W197 -> 0 | H54: ='F-52'!$W202 -> 0 | I54: ='F-57'!$W207 -> 0 | J54: ='F-62'!$W212 -> 0 | K54: 28 | L54: ='M-22'!$W172 -> 276.310375 | M54: ='M-27'!$W177 -> 245.8078994 | N54: ='M-32'!$W182 -> 167.2254718 | O54: ='M-37'!$W187 -> 0 | P54: ='M-42'!$W192 -> 0 | Q54: ='M-47'!$W197 -> 0 | R54: ='M-52'!$W202 -> 0 | S54: ='M-57'!$W207 -> 0 | T54: ='M-62'!$W212 -> 0
A55: 29 | B55: ='F-22'!$W173 -> 210.6945761 | C55: ='F-27'!$W178 -> 177.1462466 | D55: ='F-32'!$W183 -> 103.293235 | E55: ='F-37'!$W188 -> 0 | F55: ='F-42'!$W193 -> 0 | G55: ='F-47'!$W198 -> 0 | H55: ='F-52'!$W203 -> 0 | I55: ='F-57'!$W208 -> 0 | J55: ='F-62'!$W213 -> 0 | K55: 29 | L55: ='M-22'!$W173 -> 273.0884402 | M55: ='M-27'!$W178 -> 234.7437119 | N55: ='M-32'!$W183 -> 142.5138296 | O55: ='M-37'!$W188 -> 0 | P55: ='M-42'!$W193 -> 0 | Q55: ='M-47'!$W198 -> 0 | R55: ='M-52'!$W203 -> 0 | S55: ='M-57'!$W208 -> 0 | T55: ='M-62'!$W213 -> 0
A56: 30 | B56: ='F-22'!$W174 -> 206.4769335 | C56: ='F-27'!$W179 -> 166.127815 | D56: ='F-32'!$W184 -> 82.09124641 | E56: ='F-37'!$W189 -> 0 | F56: ='F-42'!$W194 -> 0 | G56: ='F-47'!$W199 -> 0 | H56: ='F-52'!$W204 -> 0 | I56: ='F-57'!$W209 -> 0 | J56: ='F-62'!$W214 -> 0 | K56: 30 | L56: ='M-22'!$W174 -> 268.5466568 | M56: ='M-27'!$W179 -> 221.6844156 | N56: ='M-32'!$W184 -> 113.8820637 | O56: ='M-37'!$W189 -> 0 | P56: ='M-42'!$W194 -> 0 | Q56: ='M-47'!$W199 -> 0 | R56: ='M-52'!$W204 -> 0 | S56: ='M-57'!$W209 -> 0 | T56: ='M-62'!$W214 -> 0
A57: 31 | B57: ='F-22'!$W175 -> 201.1210373 | C57: ='F-27'!$W180 -> 153.3814299 | D57: ='F-32'!$W185 -> 58.31999794 | E57: ='F-37'!$W190 -> 0 | F57: ='F-42'!$W195 -> 0 | G57: ='F-47'!$W200 -> 0 | H57: ='F-52'!$W205 -> 0 | I57: ='F-57'!$W210 -> 0 | J57: ='F-62'!$W215 -> 0 | K57: 31 | L57: ='M-22'!$W175 -> 262.5700685 | M57: ='M-27'!$W180 -> 206.4570419 | N57: ='M-32'!$W185 -> 80.89852233 | O57: ='M-37'!$W190 -> 0 | P57: ='M-42'!$W195 -> 0 | Q57: ='M-47'!$W200 -> 0 | R57: ='M-52'!$W205 -> 0 | S57: ='M-57'!$W210 -> 0 | T57: ='M-62'!$W215 -> 0
A58: 32 | B58: ='F-22'!$W176 -> 194.5221011 | C58: ='F-27'!$W181 -> 138.764668 | D58: ='F-32'!$W186 -> 31.07393782 | E58: ='F-37'!$W191 -> 0 | F58: ='F-42'!$W196 -> 0 | G58: ='F-47'!$W201 -> 0 | H58: ='F-52'!$W206 -> 0 | I58: ='F-57'!$W211 -> 0 | J58: ='F-62'!$W216 -> 0 | K58: 32 | L58: ='M-22'!$W176 -> 255.0350187 | M58: ='M-27'!$W181 -> 188.4169783 | N58: ='M-32'!$W186 -> 43.10102946 | O58: ='M-37'!$W191 -> 0 | P58: ='M-42'!$W196 -> 0 | Q58: ='M-47'!$W201 -> 0 | R58: ='M-52'!$W206 -> 0 | S58: ='M-57'!$W211 -> 0 | T58: ='M-62'!$W216 -> 0
A59: 33 | B59: ='F-22'!$W177 -> 186.5695324 | C59: ='F-27'!$W182 -> 122.1240299 | D59: ='F-32'!$W187 -> 0 | E59: ='F-37'!$W192 -> 0 | F59: ='F-42'!$W197 -> 0 | G59: ='F-47'!$W202 -> 0 | H59: ='F-52'!$W207 -> 0 | I59: ='F-57'!$W212 -> 0 | J59: ='F-62'!$W217 -> 0 | K59: 33 | L59: ='M-22'!$W177 -> 245.8078994 | M59: ='M-27'!$W182 -> 167.2254718 | N59: ='M-32'!$W187 -> 0 | O59: ='M-37'!$W192 -> 0 | P59: ='M-42'!$W197 -> 0 | Q59: ='M-47'!$W202 -> 0 | R59: ='M-52'!$W207 -> 0 | S59: ='M-57'!$W212 -> 0 | T59: ='M-62'!$W217 -> 0
A60: 34 | B60: ='F-22'!$W178 -> 177.1462466 | C60: ='F-27'!$W183 -> 103.293235 | D60: ='F-32'!$W188 -> 0 | E60: ='F-37'!$W193 -> 0 | F60: ='F-42'!$W198 -> 0 | G60: ='F-47'!$W203 -> 0 | H60: ='F-52'!$W208 -> 0 | I60: ='F-57'!$W213 -> 0 | J60: ='F-62'!$W218 -> 0 | K60: 34 | L60: ='M-22'!$W178 -> 234.7437119 | M60: ='M-27'!$W183 -> 142.5138296 | N60: ='M-32'!$W188 -> 0 | O60: ='M-37'!$W193 -> 0 | P60: ='M-42'!$W198 -> 0 | Q60: ='M-47'!$W203 -> 0 | R60: ='M-52'!$W208 -> 0 | S60: ='M-57'!$W213 -> 0 | T60: ='M-62'!$W218 -> 0
A61: 35 | B61: ='F-22'!$W179 -> 166.127815 | C61: ='F-27'!$W184 -> 82.09124641 | D61: ='F-32'!$W189 -> 0 | E61: ='F-37'!$W194 -> 0 | F61: ='F-42'!$W199 -> 0 | G61: ='F-47'!$W204 -> 0 | H61: ='F-52'!$W209 -> 0 | I61: ='F-57'!$W214 -> 0 | J61: ='F-62'!$W219 -> 0 | K61: 35 | L61: ='M-22'!$W179 -> 221.6844156 | M61: ='M-27'!$W184 -> 113.8820637 | N61: ='M-32'!$W189 -> 0 | O61: ='M-37'!$W194 -> 0 | P61: ='M-42'!$W199 -> 0 | Q61: ='M-47'!$W204 -> 0 | R61: ='M-52'!$W209 -> 0 | S61: ='M-57'!$W214 -> 0 | T61: ='M-62'!$W219 -> 0
A62: 36 | B62: ='F-22'!$W180 -> 153.3814299 | C62: ='F-27'!$W185 -> 58.31999794 | D62: ='F-32'!$W190 -> 0 | E62: ='F-37'!$W195 -> 0 | F62: ='F-42'!$W200 -> 0 | G62: ='F-47'!$W205 -> 0 | H62: ='F-52'!$W210 -> 0 | I62: ='F-57'!$W215 -> 0 | J62: ='F-62'!$W220 -> 0 | K62: 36 | L62: ='M-22'!$W180 -> 206.4570419 | M62: ='M-27'!$W185 -> 80.89852233 | N62: ='M-32'!$W190 -> 0 | O62: ='M-37'!$W195 -> 0 | P62: ='M-42'!$W200 -> 0 | Q62: ='M-47'!$W205 -> 0 | R62: ='M-52'!$W210 -> 0 | S62: ='M-57'!$W215 -> 0 | T62: ='M-62'!$W220 -> 0
A63: 37 | B63: ='F-22'!$W181 -> 138.764668 | C63: ='F-27'!$W186 -> 31.07393782 | D63: ='F-32'!$W191 -> 0 | E63: ='F-37'!$W196 -> 0 | F63: ='F-42'!$W201 -> 0 | G63: ='F-47'!$W206 -> 0 | H63: ='F-52'!$W211 -> 0 | I63: ='F-57'!$W216 -> 0 | J63: ='F-62'!$W221 -> 0 | K63: 37 | L63: ='M-22'!$W181 -> 188.4169783 | M63: ='M-27'!$W186 -> 43.10102946 | N63: ='M-32'!$W191 -> 0 | O63: ='M-37'!$W196 -> 0 | P63: ='M-42'!$W201 -> 0 | Q63: ='M-47'!$W206 -> 0 | R63: ='M-52'!$W211 -> 0 | S63: ='M-57'!$W216 -> 0 | T63: ='M-62'!$W221 -> 0
A64: 38 | B64: ='F-22'!$W182 -> 122.1240299 | C64: ='F-27'!$W187 -> 0 | D64: ='F-32'!$W192 -> 0 | E64: ='F-37'!$W197 -> 0 | F64: ='F-42'!$W202 -> 0 | G64: ='F-47'!$W207 -> 0 | H64: ='F-52'!$W212 -> 0 | I64: ='F-57'!$W217 -> 0 | J64: ='F-62'!$W222 -> 0 | K64: 38 | L64: ='M-22'!$W182 -> 167.2254718 | M64: ='M-27'!$W187 -> 0 | N64: ='M-32'!$W192 -> 0 | O64: ='M-37'!$W197 -> 0 | P64: ='M-42'!$W202 -> 0 | Q64: ='M-47'!$W207 -> 0 | R64: ='M-52'!$W212 -> 0 | S64: ='M-57'!$W217 -> 0 | T64: ='M-62'!$W222 -> 0
A65: 39 | B65: ='F-22'!$W183 -> 103.293235 | C65: ='F-27'!$W188 -> 0 | D65: ='F-32'!$W193 -> 0 | E65: ='F-37'!$W198 -> 0 | F65: ='F-42'!$W203 -> 0 | G65: ='F-47'!$W208 -> 0 | H65: ='F-52'!$W213 -> 0 | I65: ='F-57'!$W218 -> 0 | J65: ='F-62'!$W223 -> 0 | K65: 39 | L65: ='M-22'!$W183 -> 142.5138296 | M65: ='M-27'!$W188 -> 0 | N65: ='M-32'!$W193 -> 0 | O65: ='M-37'!$W198 -> 0 | P65: ='M-42'!$W203 -> 0 | Q65: ='M-47'!$W208 -> 0 | R65: ='M-52'!$W213 -> 0 | S65: ='M-57'!$W218 -> 0 | T65: ='M-62'!$W223 -> 0
A66: 40 | B66: ='F-22'!$W184 -> 82.09124641 | C66: ='F-27'!$W189 -> 0 | D66: ='F-32'!$W194 -> 0 | E66: ='F-37'!$W199 -> 0 | F66: ='F-42'!$W204 -> 0 | G66: ='F-47'!$W209 -> 0 | H66: ='F-52'!$W214 -> 0 | I66: ='F-57'!$W219 -> 0 | J66: ='F-62'!$W224 -> 0 | K66: 40 | L66: ='M-22'!$W184 -> 113.8820637 | M66: ='M-27'!$W189 -> 0 | N66: ='M-32'!$W194 -> 0 | O66: ='M-37'!$W199 -> 0 | P66: ='M-42'!$W204 -> 0 | Q66: ='M-47'!$W209 -> 0 | R66: ='M-52'!$W214 -> 0 | S66: ='M-57'!$W219 -> 0 | T66: ='M-62'!$W224 -> 0
A67: 41 | B67: ='F-22'!$W185 -> 58.31999794 | C67: ='F-27'!$W190 -> 0 | D67: ='F-32'!$W195 -> 0 | E67: ='F-37'!$W200 -> 0 | F67: ='F-42'!$W205 -> 0 | G67: ='F-47'!$W210 -> 0 | H67: ='F-52'!$W215 -> 0 | I67: ='F-57'!$W220 -> 0 | J67: ='F-62'!$W225 -> 0 | K67: 41 | L67: ='M-22'!$W185 -> 80.89852233 | M67: ='M-27'!$W190 -> 0 | N67: ='M-32'!$W195 -> 0 | O67: ='M-37'!$W200 -> 0 | P67: ='M-42'!$W205 -> 0 | Q67: ='M-47'!$W210 -> 0 | R67: ='M-52'!$W215 -> 0 | S67: ='M-57'!$W220 -> 0 | T67: ='M-62'!$W225 -> 0
A68: 42 | B68: ='F-22'!$W186 -> 31.07393782 | C68: ='F-27'!$W191 -> 0 | D68: ='F-32'!$W196 -> 0 | E68: ='F-37'!$W201 -> 0 | F68: ='F-42'!$W206 -> 0 | G68: ='F-47'!$W211 -> 0 | H68: ='F-52'!$W216 -> 0 | I68: ='F-57'!$W221 -> 0 | J68: ='F-62'!$W226 -> 0 | K68: 42 | L68: ='M-22'!$W186 -> 43.10102946 | M68: ='M-27'!$W191 -> 0 | N68: ='M-32'!$W196 -> 0 | O68: ='M-37'!$W201 -> 0 | P68: ='M-42'!$W206 -> 0 | Q68: ='M-47'!$W211 -> 0 | R68: ='M-52'!$W216 -> 0 | S68: ='M-57'!$W221 -> 0 | T68: ='M-62'!$W226 -> 0
A69: 43 | B69: ='F-22'!$W187 -> 0 | C69: ='F-27'!$W192 -> 0 | D69: ='F-32'!$W197 -> 0 | E69: ='F-37'!$W202 -> 0 | F69: ='F-42'!$W207 -> 0 | G69: ='F-47'!$W212 -> 0 | H69: ='F-52'!$W217 -> 0 | I69: ='F-57'!$W222 -> 0 | J69: ='F-62'!$W227 -> 0 | K69: 43 | L69: ='M-22'!$W187 -> 0 | M69: ='M-27'!$W192 -> 0 | N69: ='M-32'!$W197 -> 0 | O69: ='M-37'!$W202 -> 0 | P69: ='M-42'!$W207 -> 0 | Q69: ='M-47'!$W212 -> 0 | R69: ='M-52'!$W217 -> 0 | S69: ='M-57'!$W222 -> 0 | T69: ='M-62'!$W227 -> 0
A70: 44 | B70: ='F-22'!$W188 -> 0 | C70: ='F-27'!$W193 -> 0 | D70: ='F-32'!$W198 -> 0 | E70: ='F-37'!$W203 -> 0 | F70: ='F-42'!$W208 -> 0 | G70: ='F-47'!$W213 -> 0 | H70: ='F-52'!$W218 -> 0 | I70: ='F-57'!$W223 -> 0 | J70: ='F-62'!$W228 -> 0 | K70: 44 | L70: ='M-22'!$W188 -> 0 | M70: ='M-27'!$W193 -> 0 | N70: ='M-32'!$W198 -> 0 | O70: ='M-37'!$W203 -> 0 | P70: ='M-42'!$W208 -> 0 | Q70: ='M-47'!$W213 -> 0 | R70: ='M-52'!$W218 -> 0 | S70: ='M-57'!$W223 -> 0 | T70: ='M-62'!$W228 -> 0
A71: 45 | B71: ='F-22'!$W189 -> 0 | C71: ='F-27'!$W194 -> 0 | D71: ='F-32'!$W199 -> 0 | E71: ='F-37'!$W204 -> 0 | F71: ='F-42'!$W209 -> 0 | G71: ='F-47'!$W214 -> 0 | H71: ='F-52'!$W219 -> 0 | I71: ='F-57'!$W224 -> 0 | J71: ='F-62'!$W229 -> 0 | K71: 45 | L71: ='M-22'!$W189 -> 0 | M71: ='M-27'!$W194 -> 0 | N71: ='M-32'!$W199 -> 0 | O71: ='M-37'!$W204 -> 0 | P71: ='M-42'!$W209 -> 0 | Q71: ='M-47'!$W214 -> 0 | R71: ='M-52'!$W219 -> 0 | S71: ='M-57'!$W224 -> 0 | T71: ='M-62'!$W229 -> 0
A72: 46 | B72: ='F-22'!$W190 -> 0 | C72: ='F-27'!$W195 -> 0 | D72: ='F-32'!$W200 -> 0 | E72: ='F-37'!$W205 -> 0 | F72: ='F-42'!$W210 -> 0 | G72: ='F-47'!$W215 -> 0 | H72: ='F-52'!$W220 -> 0 | I72: ='F-57'!$W225 -> 0 | J72: ='F-62'!$W230 -> 0 | K72: 46 | L72: ='M-22'!$W190 -> 0 | M72: ='M-27'!$W195 -> 0 | N72: ='M-32'!$W200 -> 0 | O72: ='M-37'!$W205 -> 0 | P72: ='M-42'!$W210 -> 0 | Q72: ='M-47'!$W215 -> 0 | R72: ='M-52'!$W220 -> 0 | S72: ='M-57'!$W225 -> 0 | T72: ='M-62'!$W230 -> 0
A73: 47 | B73: ='F-22'!$W191 -> 0 | C73: ='F-27'!$W196 -> 0 | D73: ='F-32'!$W201 -> 0 | E73: ='F-37'!$W206 -> 0 | F73: ='F-42'!$W211 -> 0 | G73: ='F-47'!$W216 -> 0 | H73: ='F-52'!$W221 -> 0 | I73: ='F-57'!$W226 -> 0 | J73: ='F-62'!$W231 -> 0 | K73: 47 | L73: ='M-22'!$W191 -> 0 | M73: ='M-27'!$W196 -> 0 | N73: ='M-32'!$W201 -> 0 | O73: ='M-37'!$W206 -> 0 | P73: ='M-42'!$W211 -> 0 | Q73: ='M-47'!$W216 -> 0 | R73: ='M-52'!$W221 -> 0 | S73: ='M-57'!$W226 -> 0 | T73: ='M-62'!$W231 -> 0
A74: 48 | B74: ='F-22'!$W192 -> 0 | C74: ='F-27'!$W197 -> 0 | D74: ='F-32'!$W202 -> 0 | E74: ='F-37'!$W207 -> 0 | F74: ='F-42'!$W212 -> 0 | G74: ='F-47'!$W217 -> 0 | H74: ='F-52'!$W222 -> 0 | I74: ='F-57'!$W227 -> 0 | J74: ='F-62'!$W232 -> 0 | K74: 48 | L74: ='M-22'!$W192 -> 0 | M74: ='M-27'!$W197 -> 0 | N74: ='M-32'!$W202 -> 0 | O74: ='M-37'!$W207 -> 0 | P74: ='M-42'!$W212 -> 0 | Q74: ='M-47'!$W217 -> 0 | R74: ='M-52'!$W222 -> 0 | S74: ='M-57'!$W227 -> 0 | T74: ='M-62'!$W232 -> 0
A75: 49 | B75: ='F-22'!$W193 -> 0 | C75: ='F-27'!$W198 -> 0 | D75: ='F-32'!$W203 -> 0 | E75: ='F-37'!$W208 -> 0 | F75: ='F-42'!$W213 -> 0 | G75: ='F-47'!$W218 -> 0 | H75: ='F-52'!$W223 -> 0 | I75: ='F-57'!$W228 -> 0 | J75: ='F-62'!$W233 -> 0 | K75: 49 | L75: ='M-22'!$W193 -> 0 | M75: ='M-27'!$W198 -> 0 | N75: ='M-32'!$W203 -> 0 | O75: ='M-37'!$W208 -> 0 | P75: ='M-42'!$W213 -> 0 | Q75: ='M-47'!$W218 -> 0 | R75: ='M-52'!$W223 -> 0 | S75: ='M-57'!$W228 -> 0 | T75: ='M-62'!$W233 -> 0
A76: 50 | B76: ='F-22'!$W194 -> 0 | C76: ='F-27'!$W199 -> 0 | D76: ='F-32'!$W204 -> 0 | E76: ='F-37'!$W209 -> 0 | F76: ='F-42'!$W214 -> 0 | G76: ='F-47'!$W219 -> 0 | H76: ='F-52'!$W224 -> 0 | I76: ='F-57'!$W229 -> 0 | J76: ='F-62'!$W234 -> 0 | K76: 50 | L76: ='M-22'!$W194 -> 0 | M76: ='M-27'!$W199 -> 0 | N76: ='M-32'!$W204 -> 0 | O76: ='M-37'!$W209 -> 0 | P76: ='M-42'!$W214 -> 0 | Q76: ='M-47'!$W219 -> 0 | R76: ='M-52'!$W224 -> 0 | S76: ='M-57'!$W229 -> 0 | T76: ='M-62'!$W234 -> 0
A77: 51 | B77: ='F-22'!$W195 -> 0 | C77: ='F-27'!$W200 -> 0 | D77: ='F-32'!$W205 -> 0 | E77: ='F-37'!$W210 -> 0 | F77: ='F-42'!$W215 -> 0 | G77: ='F-47'!$W220 -> 0 | H77: ='F-52'!$W225 -> 0 | I77: ='F-57'!$W230 -> 0 | J77: ='F-62'!$W235 -> 0 | K77: 51 | L77: ='M-22'!$W195 -> 0 | M77: ='M-27'!$W200 -> 0 | N77: ='M-32'!$W205 -> 0 | O77: ='M-37'!$W210 -> 0 | P77: ='M-42'!$W215 -> 0 | Q77: ='M-47'!$W220 -> 0 | R77: ='M-52'!$W225 -> 0 | S77: ='M-57'!$W230 -> 0 | T77: ='M-62'!$W235 -> 0
A78: 52 | B78: ='F-22'!$W196 -> 0 | C78: ='F-27'!$W201 -> 0 | D78: ='F-32'!$W206 -> 0 | E78: ='F-37'!$W211 -> 0 | F78: ='F-42'!$W216 -> 0 | G78: ='F-47'!$W221 -> 0 | H78: ='F-52'!$W226 -> 0 | I78: ='F-57'!$W231 -> 0 | J78: ='F-62'!$W236 -> 0 | K78: 52 | L78: ='M-22'!$W196 -> 0 | M78: ='M-27'!$W201 -> 0 | N78: ='M-32'!$W206 -> 0 | O78: ='M-37'!$W211 -> 0 | P78: ='M-42'!$W216 -> 0 | Q78: ='M-47'!$W221 -> 0 | R78: ='M-52'!$W226 -> 0 | S78: ='M-57'!$W231 -> 0 | T78: ='M-62'!$W236 -> 0
A79: 53 | B79: ='F-22'!$W197 -> 0 | C79: ='F-27'!$W202 -> 0 | D79: ='F-32'!$W207 -> 0 | E79: ='F-37'!$W212 -> 0 | F79: ='F-42'!$W217 -> 0 | G79: ='F-47'!$W222 -> 0 | H79: ='F-52'!$W227 -> 0 | I79: ='F-57'!$W232 -> 0 | J79: ='F-62'!$W237 -> 0 | K79: 53 | L79: ='M-22'!$W197 -> 0 | M79: ='M-27'!$W202 -> 0 | N79: ='M-32'!$W207 -> 0 | O79: ='M-37'!$W212 -> 0 | P79: ='M-42'!$W217 -> 0 | Q79: ='M-47'!$W222 -> 0 | R79: ='M-52'!$W227 -> 0 | S79: ='M-57'!$W232 -> 0 | T79: ='M-62'!$W237 -> 0
A80: 54 | B80: ='F-22'!$W198 -> 0 | C80: ='F-27'!$W203 -> 0 | D80: ='F-32'!$W208 -> 0 | E80: ='F-37'!$W213 -> 0 | F80: ='F-42'!$W218 -> 0 | G80: ='F-47'!$W223 -> 0 | H80: ='F-52'!$W228 -> 0 | I80: ='F-57'!$W233 -> 0 | J80: ='F-62'!$W238 -> 0 | K80: 54 | L80: ='M-22'!$W198 -> 0 | M80: ='M-27'!$W203 -> 0 | N80: ='M-32'!$W208 -> 0 | O80: ='M-37'!$W213 -> 0 | P80: ='M-42'!$W218 -> 0 | Q80: ='M-47'!$W223 -> 0 | R80: ='M-52'!$W228 -> 0 | S80: ='M-57'!$W233 -> 0 | T80: ='M-62'!$W238 -> 0
A81: 55 | B81: ='F-22'!$W199 -> 0 | C81: ='F-27'!$W204 -> 0 | D81: ='F-32'!$W209 -> 0 | E81: ='F-37'!$W214 -> 0 | F81: ='F-42'!$W219 -> 0 | G81: ='F-47'!$W224 -> 0 | H81: ='F-52'!$W229 -> 0 | I81: ='F-57'!$W234 -> 0 | J81: ='F-62'!$W239 -> 0 | K81: 55 | L81: ='M-22'!$W199 -> 0 | M81: ='M-27'!$W204 -> 0 | N81: ='M-32'!$W209 -> 0 | O81: ='M-37'!$W214 -> 0 | P81: ='M-42'!$W219 -> 0 | Q81: ='M-47'!$W224 -> 0 | R81: ='M-52'!$W229 -> 0 | S81: ='M-57'!$W234 -> 0 | T81: ='M-62'!$W239 -> 0
A82: 56 | B82: ='F-22'!$W200 -> 0 | C82: ='F-27'!$W205 -> 0 | D82: ='F-32'!$W210 -> 0 | E82: ='F-37'!$W215 -> 0 | F82: ='F-42'!$W220 -> 0 | G82: ='F-47'!$W225 -> 0 | H82: ='F-52'!$W230 -> 0 | I82: ='F-57'!$W235 -> 0 | J82: ='F-62'!$W240 -> 0 | K82: 56 | L82: ='M-22'!$W200 -> 0 | M82: ='M-27'!$W205 -> 0 | N82: ='M-32'!$W210 -> 0 | O82: ='M-37'!$W215 -> 0 | P82: ='M-42'!$W220 -> 0 | Q82: ='M-47'!$W225 -> 0 | R82: ='M-52'!$W230 -> 0 | S82: ='M-57'!$W235 -> 0 | T82: ='M-62'!$W240 -> 0
A83: 57 | B83: ='F-22'!$W201 -> 0 | C83: ='F-27'!$W206 -> 0 | D83: ='F-32'!$W211 -> 0 | E83: ='F-37'!$W216 -> 0 | F83: ='F-42'!$W221 -> 0 | G83: ='F-47'!$W226 -> 0 | H83: ='F-52'!$W231 -> 0 | I83: ='F-57'!$W236 -> 0 | J83: ='F-62'!$W241 -> 0 | K83: 57 | L83: ='M-22'!$W201 -> 0 | M83: ='M-27'!$W206 -> 0 | N83: ='M-32'!$W211 -> 0 | O83: ='M-37'!$W216 -> 0 | P83: ='M-42'!$W221 -> 0 | Q83: ='M-47'!$W226 -> 0 | R83: ='M-52'!$W231 -> 0 | S83: ='M-57'!$W236 -> 0 | T83: ='M-62'!$W241 -> 0
A84: 58 | B84: ='F-22'!$W202 -> 0 | C84: ='F-27'!$W207 -> 0 | D84: ='F-32'!$W212 -> 0 | E84: ='F-37'!$W217 -> 0 | F84: ='F-42'!$W222 -> 0 | G84: ='F-47'!$W227 -> 0 | H84: ='F-52'!$W232 -> 0 | I84: ='F-57'!$W237 -> 0 | J84: ='F-62'!$W242 -> 0 | K84: 58 | L84: ='M-22'!$W202 -> 0 | M84: ='M-27'!$W207 -> 0 | N84: ='M-32'!$W212 -> 0 | O84: ='M-37'!$W217 -> 0 | P84: ='M-42'!$W222 -> 0 | Q84: ='M-47'!$W227 -> 0 | R84: ='M-52'!$W232 -> 0 | S84: ='M-57'!$W237 -> 0 | T84: ='M-62'!$W242 -> 0
A85: 59 | B85: ='F-22'!$W203 -> 0 | C85: ='F-27'!$W208 -> 0 | D85: ='F-32'!$W213 -> 0 | E85: ='F-37'!$W218 -> 0 | F85: ='F-42'!$W223 -> 0 | G85: ='F-47'!$W228 -> 0 | H85: ='F-52'!$W233 -> 0 | I85: ='F-57'!$W238 -> 0 | J85: ='F-62'!$W243 -> 0 | K85: 59 | L85: ='M-22'!$W203 -> 0 | M85: ='M-27'!$W208 -> 0 | N85: ='M-32'!$W213 -> 0 | O85: ='M-37'!$W218 -> 0 | P85: ='M-42'!$W223 -> 0 | Q85: ='M-47'!$W228 -> 0 | R85: ='M-52'!$W233 -> 0 | S85: ='M-57'!$W238 -> 0 | T85: ='M-62'!$W243 -> 0
A86: 60 | B86: ='F-22'!$W204 -> 0 | C86: ='F-27'!$W209 -> 0 | D86: ='F-32'!$W214 -> 0 | E86: ='F-37'!$W219 -> 0 | F86: ='F-42'!$W224 -> 0 | G86: ='F-47'!$W229 -> 0 | H86: ='F-52'!$W234 -> 0 | I86: ='F-57'!$W239 -> 0 | J86: ='F-62'!$W244 -> 0 | K86: 60 | L86: ='M-22'!$W204 -> 0 | M86: ='M-27'!$W209 -> 0 | N86: ='M-32'!$W214 -> 0 | O86: ='M-37'!$W219 -> 0 | P86: ='M-42'!$W224 -> 0 | Q86: ='M-47'!$W229 -> 0 | R86: ='M-52'!$W234 -> 0 | S86: ='M-57'!$W239 -> 0 | T86: ='M-62'!$W244 -> 0
A87: 61 | B87: ='F-22'!$W205 -> 0 | C87: ='F-27'!$W210 -> 0 | D87: ='F-32'!$W215 -> 0 | E87: ='F-37'!$W220 -> 0 | F87: ='F-42'!$W225 -> 0 | G87: ='F-47'!$W230 -> 0 | H87: ='F-52'!$W235 -> 0 | I87: ='F-57'!$W240 -> 0 | J87: ='F-62'!$W245 -> 0 | K87: 61 | L87: ='M-22'!$W205 -> 0 | M87: ='M-27'!$W210 -> 0 | N87: ='M-32'!$W215 -> 0 | O87: ='M-37'!$W220 -> 0 | P87: ='M-42'!$W225 -> 0 | Q87: ='M-47'!$W230 -> 0 | R87: ='M-52'!$W235 -> 0 | S87: ='M-57'!$W240 -> 0 | T87: ='M-62'!$W245 -> 0
A88: 62 | B88: ='F-22'!$W206 -> 0 | C88: ='F-27'!$W211 -> 0 | D88: ='F-32'!$W216 -> 0 | E88: ='F-37'!$W221 -> 0 | F88: ='F-42'!$W226 -> 0 | G88: ='F-47'!$W231 -> 0 | H88: ='F-52'!$W236 -> 0 | I88: ='F-57'!$W241 -> 0 | J88: ='F-62'!$W246 -> 0 | K88: 62 | L88: ='M-22'!$W206 -> 0 | M88: ='M-27'!$W211 -> 0 | N88: ='M-32'!$W216 -> 0 | O88: ='M-37'!$W221 -> 0 | P88: ='M-42'!$W226 -> 0 | Q88: ='M-47'!$W231 -> 0 | R88: ='M-52'!$W236 -> 0 | S88: ='M-57'!$W241 -> 0 | T88: ='M-62'!$W246 -> 0
A89: 63 | B89: ='F-22'!$W207 -> 0 | C89: ='F-27'!$W212 -> 0 | D89: ='F-32'!$W217 -> 0 | E89: ='F-37'!$W222 -> 0 | F89: ='F-42'!$W227 -> 0 | G89: ='F-47'!$W232 -> 0 | H89: ='F-52'!$W237 -> 0 | I89: ='F-57'!$W242 -> 0 | J89: ='F-62'!$W247 -> 0 | K89: 63 | L89: ='M-22'!$W207 -> 0 | M89: ='M-27'!$W212 -> 0 | N89: ='M-32'!$W217 -> 0 | O89: ='M-37'!$W222 -> 0 | P89: ='M-42'!$W227 -> 0 | Q89: ='M-47'!$W232 -> 0 | R89: ='M-52'!$W237 -> 0 | S89: ='M-57'!$W242 -> 0 | T89: ='M-62'!$W247 -> 0
A90: 64 | B90: ='F-22'!$W208 -> 0 | C90: ='F-27'!$W213 -> 0 | D90: ='F-32'!$W218 -> 0 | E90: ='F-37'!$W223 -> 0 | F90: ='F-42'!$W228 -> 0 | G90: ='F-47'!$W233 -> 0 | H90: ='F-52'!$W238 -> 0 | I90: ='F-57'!$W243 -> 0 | J90: ='F-62'!$W248 -> 0 | K90: 64 | L90: ='M-22'!$W208 -> 0 | M90: ='M-27'!$W213 -> 0 | N90: ='M-32'!$W218 -> 0 | O90: ='M-37'!$W223 -> 0 | P90: ='M-42'!$W228 -> 0 | Q90: ='M-47'!$W233 -> 0 | R90: ='M-52'!$W238 -> 0 | S90: ='M-57'!$W243 -> 0 | T90: ='M-62'!$W248 -> 0
A91: 65 | B91: ='F-22'!$W209 -> 0 | C91: ='F-27'!$W214 -> 0 | D91: ='F-32'!$W219 -> 0 | E91: ='F-37'!$W224 -> 0 | F91: ='F-42'!$W229 -> 0 | G91: ='F-47'!$W234 -> 0 | H91: ='F-52'!$W239 -> 0 | I91: ='F-57'!$W244 -> 0 | J91: ='F-62'!$W249 -> 0 | K91: 65 | L91: ='M-22'!$W209 -> 0 | M91: ='M-27'!$W214 -> 0 | N91: ='M-32'!$W219 -> 0 | O91: ='M-37'!$W224 -> 0 | P91: ='M-42'!$W229 -> 0 | Q91: ='M-47'!$W234 -> 0 | R91: ='M-52'!$W239 -> 0 | S91: ='M-57'!$W244 -> 0 | T91: ='M-62'!$W249 -> 0
A92: 66 | B92: ='F-22'!$W210 -> 0 | C92: ='F-27'!$W215 -> 0 | D92: ='F-32'!$W220 -> 0 | E92: ='F-37'!$W225 -> 0 | F92: ='F-42'!$W230 -> 0 | G92: ='F-47'!$W235 -> 0 | H92: ='F-52'!$W240 -> 0 | I92: ='F-57'!$W245 -> 0 | J92: ='F-62'!$W250 -> 0 | K92: 66 | L92: ='M-22'!$W210 -> 0 | M92: ='M-27'!$W215 -> 0 | N92: ='M-32'!$W220 -> 0 | O92: ='M-37'!$W225 -> 0 | P92: ='M-42'!$W230 -> 0 | Q92: ='M-47'!$W235 -> 0 | R92: ='M-52'!$W240 -> 0 | S92: ='M-57'!$W245 -> 0 | T92: ='M-62'!$W250 -> 0
A93: =A92+1 -> 67 | B93: ='F-22'!$W211 -> 0 | C93: ='F-27'!$W216 -> 0 | D93: ='F-32'!$W221 -> 0 | E93: ='F-37'!$W226 -> 0 | F93: ='F-42'!$W231 -> 0 | G93: ='F-47'!$W236 -> 0 | H93: ='F-52'!$W241 -> 0 | I93: ='F-57'!$W246 -> 0 | J93: ='F-62'!$W251 -> 0 | K93: =K92+1 -> 67 | L93: ='M-22'!$W211 -> 0 | M93: ='M-27'!$W216 -> 0 | N93: ='M-32'!$W221 -> 0 | O93: ='M-37'!$W226 -> 0 | P93: ='M-42'!$W231 -> 0 | Q93: ='M-47'!$W236 -> 0 | R93: ='M-52'!$W241 -> 0 | S93: ='M-57'!$W246 -> 0 | T93: ='M-62'!$W251 -> 0
A94: 68 | B94: ='F-22'!$W212 -> 0 | C94: ='F-27'!$W217 -> 0 | D94: ='F-32'!$W222 -> 0 | E94: ='F-37'!$W227 -> 0 | F94: ='F-42'!$W232 -> 0 | G94: ='F-47'!$W237 -> 0 | H94: ='F-52'!$W242 -> 0 | I94: ='F-57'!$W247 -> 0 | J94: ='F-62'!$W252 -> 0 | K94: 68 | L94: ='M-22'!$W212 -> 0 | M94: ='M-27'!$W217 -> 0 | N94: ='M-32'!$W222 -> 0 | O94: ='M-37'!$W227 -> 0 | P94: ='M-42'!$W232 -> 0 | Q94: ='M-47'!$W237 -> 0 | R94: ='M-52'!$W242 -> 0 | S94: ='M-57'!$W247 -> 0 | T94: ='M-62'!$W252 -> 0
A95: 69 | B95: ='F-22'!$W213 -> 0 | C95: ='F-27'!$W218 -> 0 | D95: ='F-32'!$W223 -> 0 | E95: ='F-37'!$W228 -> 0 | F95: ='F-42'!$W233 -> 0 | G95: ='F-47'!$W238 -> 0 | H95: ='F-52'!$W243 -> 0 | I95: ='F-57'!$W248 -> 0 | J95: ='F-62'!$W253 -> 0 | K95: 69 | L95: ='M-22'!$W213 -> 0 | M95: ='M-27'!$W218 -> 0 | N95: ='M-32'!$W223 -> 0 | O95: ='M-37'!$W228 -> 0 | P95: ='M-42'!$W233 -> 0 | Q95: ='M-47'!$W238 -> 0 | R95: ='M-52'!$W243 -> 0 | S95: ='M-57'!$W248 -> 0 | T95: ='M-62'!$W253 -> 0
A96: 70 | B96: ='F-22'!$W214 -> 0 | C96: ='F-27'!$W219 -> 0 | D96: ='F-32'!$W224 -> 0 | E96: ='F-37'!$W229 -> 0 | F96: ='F-42'!$W234 -> 0 | G96: ='F-47'!$W239 -> 0 | H96: ='F-52'!$W244 -> 0 | I96: ='F-57'!$W249 -> 0 | J96: ='F-62'!$W254 -> 0 | K96: 70 | L96: ='M-22'!$W214 -> 0 | M96: ='M-27'!$W219 -> 0 | N96: ='M-32'!$W224 -> 0 | O96: ='M-37'!$W229 -> 0 | P96: ='M-42'!$W234 -> 0 | Q96: ='M-47'!$W239 -> 0 | R96: ='M-52'!$W244 -> 0 | S96: ='M-57'!$W249 -> 0 | T96: ='M-62'!$W254 -> 0
A97: 71 | B97: ='F-22'!$W215 -> 0 | C97: ='F-27'!$W220 -> 0 | D97: ='F-32'!$W225 -> 0 | E97: ='F-37'!$W230 -> 0 | F97: ='F-42'!$W235 -> 0 | G97: ='F-47'!$W240 -> 0 | H97: ='F-52'!$W245 -> 0 | I97: ='F-57'!$W250 -> 0 | J97: ='F-62'!$W255 -> 0 | K97: 71 | L97: ='M-22'!$W215 -> 0 | M97: ='M-27'!$W220 -> 0 | N97: ='M-32'!$W225 -> 0 | O97: ='M-37'!$W230 -> 0 | P97: ='M-42'!$W235 -> 0 | Q97: ='M-47'!$W240 -> 0 | R97: ='M-52'!$W245 -> 0 | S97: ='M-57'!$W250 -> 0 | T97: ='M-62'!$W255 -> 0
A98: 72 | B98: ='F-22'!$W216 -> 0 | C98: ='F-27'!$W221 -> 0 | D98: ='F-32'!$W226 -> 0 | E98: ='F-37'!$W231 -> 0 | F98: ='F-42'!$W236 -> 0 | G98: ='F-47'!$W241 -> 0 | H98: ='F-52'!$W246 -> 0 | I98: ='F-57'!$W251 -> 0 | J98: ='F-62'!$W256 -> 0 | K98: 72 | L98: ='M-22'!$W216 -> 0 | M98: ='M-27'!$W221 -> 0 | N98: ='M-32'!$W226 -> 0 | O98: ='M-37'!$W231 -> 0 | P98: ='M-42'!$W236 -> 0 | Q98: ='M-47'!$W241 -> 0 | R98: ='M-52'!$W246 -> 0 | S98: ='M-57'!$W251 -> 0 | T98: ='M-62'!$W256 -> 0
A99: 73 | B99: ='F-22'!$W217 -> 0 | C99: ='F-27'!$W222 -> 0 | D99: ='F-32'!$W227 -> 0 | E99: ='F-37'!$W232 -> 0 | F99: ='F-42'!$W237 -> 0 | G99: ='F-47'!$W242 -> 0 | H99: ='F-52'!$W247 -> 0 | I99: ='F-57'!$W252 -> 0 | J99: ='F-62'!$W257 -> 0 | K99: 73 | L99: ='M-22'!$W217 -> 0 | M99: ='M-27'!$W222 -> 0 | N99: ='M-32'!$W227 -> 0 | O99: ='M-37'!$W232 -> 0 | P99: ='M-42'!$W237 -> 0 | Q99: ='M-47'!$W242 -> 0 | R99: ='M-52'!$W247 -> 0 | S99: ='M-57'!$W252 -> 0 | T99: ='M-62'!$W257 -> 0
A100: 74 | B100: ='F-22'!$W218 -> 0 | C100: ='F-27'!$W223 -> 0 | D100: ='F-32'!$W228 -> 0 | E100: ='F-37'!$W233 -> 0 | F100: ='F-42'!$W238 -> 0 | G100: ='F-47'!$W243 -> 0 | H100: ='F-52'!$W248 -> 0 | I100: ='F-57'!$W253 -> 0 | J100: ='F-62'!$W258 -> 0 | K100: 74 | L100: ='M-22'!$W218 -> 0 | M100: ='M-27'!$W223 -> 0 | N100: ='M-32'!$W228 -> 0 | O100: ='M-37'!$W233 -> 0 | P100: ='M-42'!$W238 -> 0 | Q100: ='M-47'!$W243 -> 0 | R100: ='M-52'!$W248 -> 0 | S100: ='M-57'!$W253 -> 0 | T100: ='M-62'!$W258 -> 0
A101: 75 | B101: ='F-22'!$W219 -> 0 | C101: ='F-27'!$W224 -> 0 | D101: ='F-32'!$W229 -> 0 | E101: ='F-37'!$W234 -> 0 | F101: ='F-42'!$W239 -> 0 | G101: ='F-47'!$W244 -> 0 | H101: ='F-52'!$W249 -> 0 | I101: ='F-57'!$W254 -> 0 | J101: ='F-62'!$W259 -> 0 | K101: 75 | L101: ='M-22'!$W219 -> 0 | M101: ='M-27'!$W224 -> 0 | N101: ='M-32'!$W229 -> 0 | O101: ='M-37'!$W234 -> 0 | P101: ='M-42'!$W239 -> 0 | Q101: ='M-47'!$W244 -> 0 | R101: ='M-52'!$W249 -> 0 | S101: ='M-57'!$W254 -> 0 | T101: ='M-62'!$W259 -> 0
A102: 76 | B102: ='F-22'!$W220 -> 0 | C102: ='F-27'!$W225 -> 0 | D102: ='F-32'!$W230 -> 0 | E102: ='F-37'!$W235 -> 0 | F102: ='F-42'!$W240 -> 0 | G102: ='F-47'!$W245 -> 0 | H102: ='F-52'!$W250 -> 0 | I102: ='F-57'!$W255 -> 0 | J102: ='F-62'!$W260 -> 0 | K102: 76 | L102: ='M-22'!$W220 -> 0 | M102: ='M-27'!$W225 -> 0 | N102: ='M-32'!$W230 -> 0 | O102: ='M-37'!$W235 -> 0 | P102: ='M-42'!$W240 -> 0 | Q102: ='M-47'!$W245 -> 0 | R102: ='M-52'!$W250 -> 0 | S102: ='M-57'!$W255 -> 0 | T102: ='M-62'!$W260 -> 0
A103: 77 | B103: ='F-22'!$W243 -> 0 | C103: ='F-27'!$W226 -> 0 | D103: ='F-32'!$W231 -> 0 | E103: ='F-37'!$W236 -> 0 | F103: ='F-42'!$W241 -> 0 | G103: ='F-47'!$W246 -> 0 | H103: ='F-52'!$W251 -> 0 | I103: ='F-57'!$W256 -> 0 | J103: ='F-62'!$W261 -> 0 | K103: 77 | L103: ='M-22'!$W243 -> 0 | M103: ='M-27'!$W226 -> 0 | N103: ='M-32'!$W231 -> 0 | O103: ='M-37'!$W236 -> 0 | P103: ='M-42'!$W241 -> 0 | Q103: ='M-47'!$W246 -> 0 | R103: ='M-52'!$W251 -> 0 | S103: ='M-57'!$W256 -> 0 | T103: ='M-62'!$W261 -> 0
A104: 78 | B104: ='F-22'!$W222 -> 0 | C104: ='F-27'!$W227 -> 0 | D104: ='F-32'!$W232 -> 0 | E104: ='F-37'!$W237 -> 0 | F104: ='F-42'!$W242 -> 0 | G104: ='F-47'!$W247 -> 0 | H104: ='F-52'!$W252 -> 0 | I104: ='F-57'!$W257 -> 0 | J104: ='F-62'!$W262 -> 0 | K104: 78 | L104: ='M-22'!$W222 -> 0 | M104: ='M-27'!$W227 -> 0 | N104: ='M-32'!$W232 -> 0 | O104: ='M-37'!$W237 -> 0 | P104: ='M-42'!$W242 -> 0 | Q104: ='M-47'!$W247 -> 0 | R104: ='M-52'!$W252 -> 0 | S104: ='M-57'!$W257 -> 0 | T104: ='M-62'!$W262 -> 0
A105: 79 | B105: ='F-22'!$W223 -> 0 | C105: ='F-27'!$W228 -> 0 | D105: ='F-32'!$W233 -> 0 | E105: ='F-37'!$W238 -> 0 | F105: ='F-42'!$W243 -> 0 | G105: ='F-47'!$W248 -> 0 | H105: ='F-52'!$W253 -> 0 | I105: ='F-57'!$W258 -> 0 | J105: ='F-62'!$W263 -> 0 | K105: 79 | L105: ='M-22'!$W223 -> 0 | M105: ='M-27'!$W228 -> 0 | N105: ='M-32'!$W233 -> 0 | O105: ='M-37'!$W238 -> 0 | P105: ='M-42'!$W243 -> 0 | Q105: ='M-47'!$W248 -> 0 | R105: ='M-52'!$W253 -> 0 | S105: ='M-57'!$W258 -> 0 | T105: ='M-62'!$W263 -> 0
A106: 80 | B106: ='F-22'!$W224 -> 0 | C106: ='F-27'!$W229 -> 0 | D106: ='F-32'!$W234 -> 0 | E106: ='F-37'!$W239 -> 0 | F106: ='F-42'!$W244 -> 0 | G106: ='F-47'!$W249 -> 0 | H106: ='F-52'!$W254 -> 0 | I106: ='F-57'!$W259 -> 0 | J106: ='F-62'!$W264 -> 0 | K106: 80 | L106: ='M-22'!$W224 -> 0 | M106: ='M-27'!$W229 -> 0 | N106: ='M-32'!$W234 -> 0 | O106: ='M-37'!$W239 -> 0 | P106: ='M-42'!$W244 -> 0 | Q106: ='M-47'!$W249 -> 0 | R106: ='M-52'!$W254 -> 0 | S106: ='M-57'!$W259 -> 0 | T106: ='M-62'!$W264 -> 0
A107: 81 | B107: ='F-22'!$W225 -> 0 | C107: ='F-27'!$W230 -> 0 | D107: ='F-32'!$W235 -> 0 | E107: ='F-37'!$W240 -> 0 | F107: ='F-42'!$W245 -> 0 | G107: ='F-47'!$W250 -> 0 | H107: ='F-52'!$W255 -> 0 | I107: ='F-57'!$W260 -> 0 | J107: ='F-62'!$W265 -> 0 | K107: 81 | L107: ='M-22'!$W225 -> 0 | M107: ='M-27'!$W230 -> 0 | N107: ='M-32'!$W235 -> 0 | O107: ='M-37'!$W240 -> 0 | P107: ='M-42'!$W245 -> 0 | Q107: ='M-47'!$W250 -> 0 | R107: ='M-52'!$W255 -> 0 | S107: ='M-57'!$W260 -> 0 | T107: ='M-62'!$W265 -> 0
A108: 82 | B108: ='F-22'!$W226 -> 0 | C108: ='F-27'!$W231 -> 0 | D108: ='F-32'!$W236 -> 0 | E108: ='F-37'!$W241 -> 0 | F108: ='F-42'!$W246 -> 0 | G108: ='F-47'!$W251 -> 0 | H108: ='F-52'!$W256 -> 0 | I108: ='F-57'!$W261 -> 0 | J108: ='F-62'!$W266 -> 0 | K108: 82 | L108: ='M-22'!$W226 -> 0 | M108: ='M-27'!$W231 -> 0 | N108: ='M-32'!$W236 -> 0 | O108: ='M-37'!$W241 -> 0 | P108: ='M-42'!$W246 -> 0 | Q108: ='M-47'!$W251 -> 0 | R108: ='M-52'!$W256 -> 0 | S108: ='M-57'!$W261 -> 0 | T108: ='M-62'!$W266 -> 0

Sheet F-22
B2: 2023 GRP LIFE DISABILITY VALUATION TABLE - ASSUMPTIONS | L2: 2023 GRP LIFE DISABILITY VALUATION TABLE - SELECT PERIOD | Z2: 2023 GRP LIFE DISABILITY VALUATION TABLE - TERMINATION RATES PER 1,000 LIVES
Z4: PROBABILITY OF DEATH OR RECOVERY - SELECT PERIOD@ | AO4: COL OFFSET@@ | AR4: ULTIMATE PERIOD@@@
B5: Age at Disability: | D5: 22 | L5: Age at Disability: | O5: =DISAGE -> 22 | Q5: Valuation Interest Rate: | T5: =IRATE -> 0.0325 | Z5: Central Age => | AA5: 17 | AB5: 22 | AC5: 27 | AD5: 32 | AE5: 37 | AF5: 42 | AG5: 47 | AH5: 52 | AI5: 57 | AJ5: 62 | AK5: 67 | AL5: 72 | AM5: 73 | AO5: Dis | AR5: Att | AS5: Term. | AT5: Recov | AU5: Death
B6: Mortality Rate Factor: | L6: Mortality Rate Factor: | O6: =MORT -> 0 | Q6: Diagnosis Group - Death | T6: =MortDiagGroup -> Unclassified | AO6: Age | AP6: Col. | AR6: Age | AS6: Rate | AT6: Rate | AU6: Rate
B7: Recovery Rate Factor: | L7: Recovery Rate Factor: | O7: =RECOV -> 0 | Q7: Diagnosis Group - Recovery | T7: =RecovDiagGroup -> Unclassified | Z7: Year of Dis. | AO7: 17 | AP7: 0 | AR7: 27 | AS7: =AT7+AU7 -> 87.89139128 | AT7: ='2023 Rates - Females'!AT13 -> 77.09709921 | AU7: ='2023 Rates - Females'!AU13 -> 10.79429207
B8: Valuation Interest Rate: | D8: =Assumptions!C12 -> 0.0325 | L8: Reserve at duration 3/4: | O8: =$W$16 -> 40.40212894 | Q8: Death Benefit Option: | T8: =VLOOKUP(DBOPT,DB_DESC,2) -> Pattern 5 - No coverage after age 65 | Z8: 1 (4th qtr.) | AA8: =AA31+AA54 -> 311.2403279 | AB8: 312.3465094 | AC8: 259.2709985 | AD8: 220.3555684 | AE8: 144.1948443 | AF8: 124.3741647 | AG8: 108.7245717 | AH8: 96.9449402 | AI8: 88.16683649 | AJ8: 81.08712857 | AK8: 66.73485736 | AL8: 56.62684932 | AO8: 18 | AP8: 0 | AR8: 28 | AS8: =AT8+AU8 -> 86.93957524 | AT8: ='2023 Rates - Females'!AT14 -> 76.14528317 | AU8: ='2023 Rates - Females'!AU14 -> 10.79429207
B9: Sex (1=Male,2=female): | D9: 1 | Z9: 2 (1st qtr.) | AA9: =AA33+AA56 -> 197.128847 | AB9: 198.4594183 | AC9: 168.927436 | AD9: 145.2451356 | AE9: 125.4530794 | AF9: 109.688645 | AG9: 97.58597986 | AH9: 88.89383149 | AI9: 82.95677816 | AJ9: 77.44140929 | AK9: 68.37441592 | AL9: 59.30742255 | AO9: 19 | AP9: 0 | AR9: 29 | AS9: 85.99951001 | AT9: ='2023 Rates - Females'!AT15 -> 75.20521794 | AU9: ='2023 Rates - Females'!AU15 -> 10.79429207
B10: Benefit Option (1-6)@: | D10: =Benefit_Option -> 5 | E10: =VLOOKUP(DBOPT,DB_DESC,2) -> Pattern 5 - No coverage after age 65 | N10: Col (1) | O10: Col (2) | P10: Col (3) | Q10: Col (4) | R10: Col (5) | S10: Col (6) | T10: Col (7)## | U10: Col (8) | V10: Col (9) | W10: Col (10) | Z10: 2 (2nd qtr.) | AA10: 172.9621642 | AB10: 174.3105874 | AC10: 145.2173434 | AD10: 124.9579164 | AE10: 108.048248 | AF10: 94.60717173 | AG10: 84.3228681 | AH10: 76.97993051 | AI10: 72.0230873 | AJ10: 67.33220411 | AK10: 57.25595921 | AL10: 47.17971431 | AO10: 20 | AP10: 1 | AR10: 30 | AS10: 86.42033704 | AT10: ='2023 Rates - Females'!AT16 -> 74.27675846 | AU10: ='2023 Rates - Females'!AU16 -> 12.14357858
B11: Diagnosis Group - Death | D11: =Assumptions!C16 -> Unclassified | M11: Att | N11: Dth Ben | O11: (T) | P11: (d) | Q11: (r) | R11: (d) | S11: (r) | T11: (d) | U11: (d) | V11: (T) | W11: Disability | Z11: 2 (3rd qtr.) | AA11: 150.8918918 | AB11: 152.0799622 | AC11: 129.1467814 | AD11: 111.1026626 | AE11: 96.03610415 | AF11: 84.05258951 | AG11: 74.87408221 | AH11: 68.30885682 | AI11: 63.86088795 | AJ11: 59.6755205 | AK11: 50.88908173 | AL11: 44.1544035 | AO11: 21 | AP11: 1 | AR11: 31 | AS11: 85.50334002 | AT11: ='2023 Rates - Females'!AT17 -> 73.35976145 | AU11: ='2023 Rates - Females'!AU17 -> 12.14357858
B12: Diagnosis Group - Recovery | D12: =Assumptions!C17 -> Unclassified | L12: Dur# | M12: Age | N12: Factor | O12: L[x]+t | P12: q[x]+t | Q12: q[x]+t | R12: d[x]+t | S12: d[x]+t | T12: C[x]+t | U12: M[x]+t | V12: D[x]+t | W12: Res/$1000 | Z12: 2 (4th qtr.) | AA12: 138.6166824 | AB12: 139.7546019 | AC12: 118.1458284 | AD12: 101.5661796 | AE12: 87.70639567 | AF12: 76.66243372 | AG12: 68.1779723 | AH12: 62.07719127 | AI12: 57.90033312 | AJ12: 54.03453167 | AK12: 48.63832855 | AL12: 40.28885548 | AO12: 22 | AP12: 1 | AR12: 32 | AS12: 84.59766396 | AT12: ='2023 Rates - Females'!AT18 -> 72.45408538 | AU12: ='2023 Rates - Females'!AU18 -> 12.14357858
L13: 0 | M13: =DISAGE+L13 -> 22 | N13: =VLOOKUP(TRUNC(M13),DBTABLE,DBOPT+1) -> 1 | O13: 10000000 | P13: 0 | Q13: 0 | R13: 0 | S13: 0 | T13: 0 | U13: =U14+T13 -> 165508.1742 | V13: =O13*(1+IRATE)^(-M13) -> 4947874.469 | W13: =U13/V13*1000 -> 33.45035837 | Z13: 2 (annual) | AA13: 523.4248177 | AB13: 528.3363697 | AC13: 466.6152388 | AD13: 414.9707525 | AE13: 369.0765167 | AF13: 330.6804629 | AG13: 300.0715058 | AH13: 277.4811258 | AI13: 261.7753247 | AJ13: 245.8794132 | AK13: 215.7602264 | AL13: 184.2174767 | AO13: 23 | AP13: 1 | AR13: 33 | AS13: 83.70316907 | AT13: ='2023 Rates - Females'!AT19 -> 71.5595905 | AU13: ='2023 Rates - Females'!AU19 -> 12.14357858
L14: 0.25 | M14: 22.25 | N14: 1 | O14: 10000000 | P14: 0 | Q14: 0 | R14: 0 | S14: 0 | T14: 0 | U14: =U15+T14 -> 165508.1742 | V14: 4908470.189 | W14: 33.71889159 | Z14: 3 | AA14: =AA38+AA61 -> 598.3734987 | AB14: 600.6086782 | AC14: 499.3835315 | AD14: 426.693751 | AE14: 405.9429947 | AF14: 327.9506743 | AG14: 282.4280644 | AH14: 237.4630497 | AI14: 208.8141132 | AJ14: 190.0124426 | AK14: 163.5709338 | AL14: 152.9943303 | AO14: 24 | AP14: 1 | AR14: 34 | AS14: 82.81971734 | AT14: ='2023 Rates - Females'!AT20 -> 70.67613876 | AU14: ='2023 Rates - Females'!AU20 -> 12.14357858
B15: Reserve at duration 0: | D15: =VLOOKUP(0,RESERVES_SEL,12) -> 33.45035837 | L15: 0.5 | M15: 22.5 | N15: =VLOOKUP(TRUNC(M15),DBTABLE,DBOPT+1) -> 1 | O15: 10000000 | P15: =INDEX(DEATH,4,VLOOKUP(DISAGE,COLTABLE,2)+1) -> 6.637089007 | Q15: =INDEX(RECOVERY,4,VLOOKUP(DISAGE,COLTABLE,2)+1) -> 305.7094204 | R15: =O15*P15/1000 -> 66370.89007 | S15: =O15*Q15/1000 -> 3057094.204 | T15: =N15*R15*(1+IRATE)^(-M15-1) -> 31301.21705 | U15: =U16+T15 -> 165508.1742 | V15: 4869379.719 | W15: 33.98958054 | Z15: 4 | AA15: =AA39+AA62 -> 398.0211565 | AB15: 404.4597361 | AC15: 313.3013995 | AD15: 277.7385632 | AE15: 230.281178 | AF15: 188.7381376 | AG15: 163.0335435 | AH15: 137.2762164 | AI15: 122.979876 | AJ15: 113.5957316 | AK15: 98.63798712 | AL15: 95.40785918 | AO15: 25 | AP15: 2 | AR15: 35 | AS15: 83.29645893 | AT15: ='2023 Rates - Females'!AT21 -> 69.80359384 | AU15: ='2023 Rates - Females'!AU21 -> 13.49286509
B16: Reserve at duration 3/4: | D16: =VLOOKUP(0.75,RESERVES_SEL,12) -> 40.40212894 | L16: 0.75 | M16: 22.75 | N16: 1 | O16: =O15-R15-S15 -> 6876534.906 | P16: =INDEX(DEATH,5,VLOOKUP(DISAGE,COLTABLE,2)+1) -> 8.43922647 | Q16: =INDEX(RECOVERY,5,VLOOKUP(DISAGE,COLTABLE,2)+1) -> 230.0428824 | R16: =O16*P16/1000 -> 58032.6354 | S16: =O16*Q16/1000 -> 1581897.91 | T16: 27150.84563 | U16: =U17+T16 -> 134206.9571 | V16: 3321779.338 | W16: =U16/V16*1000 -> 40.40212894 | Z16: 5 | AA16: 282.8862537 | AB16: 287.5546287 | AC16: 217.4653199 | AD16: 189.2216515 | AE16: 155.1860132 | AF16: 126.7016435 | AG16: 109.4985354 | AH16: 94.19471144 | AI16: 83.95563846 | AJ16: 79.41126128 | AK16: 76.84052647 | AL16: 75.55515907 | AO16: 26 | AP16: 2 | AR16: 36 | AS16: 82.43468616 | AT16: ='2023 Rates - Females'!AT22 -> 68.94182108 | AU16: ='2023 Rates - Females'!AU22 -> 13.49286509
B17: Reserve at duration 10: | D17: =VLOOKUP(DISAGE+10,RESERVES_ULT,11) -> 145.4538652 | E17: Attained age: | F17: =DISAGE+10 -> 32 | L17: 1 | M17: 23 | N17: 1 | O17: 5236604.36 | P17: =INDEX(DEATH,6,VLOOKUP(DISAGE,COLTABLE,2)+1) -> 7.983428276 | Q17: =INDEX(RECOVERY,6,VLOOKUP(DISAGE,COLTABLE,2)+1) -> 190.4759901 | R17: 41806.05532 | S17: 997447.4 | T17: 19403.39581 | U17: 107056.1115 | V17: 2509449.009 | W17: 42.66120216 | Z17: 6 | AA17: 158.8769295 | AB17: 165.2910337 | AC17: 146.4493265 | AD17: 116.8508778 | AE17: 95.98781777 | AF17: 81.07865156 | AG17: 71.26804907 | AH17: 64.80636243 | AI17: 61.01032325 | AJ17: 60.41991589 | AK17: 58.39151518 | AL17: 57.9902282 | AO17: 27 | AP17: 2 | AR17: 37 | AS17: 81.58355257 | AT17: ='2023 Rates - Females'!AT23 -> 68.09068748 | AU17: ='2023 Rates - Females'!AU23 -> 13.49286509
L18: 1.25 | M18: 23.25 | N18: 1 | O18: 4197350.905 | P18: =INDEX(DEATH,7,VLOOKUP(DISAGE,COLTABLE,2)+1) -> 7.416327777 | Q18: =INDEX(RECOVERY,7,VLOOKUP(DISAGE,COLTABLE,2)+1) -> 166.8942597 | R18: 31128.9301 | S18: 700513.7718 | T18: 14332.77329 | U18: 87652.71567 | V18: 1995406.469 | W18: 43.92724843 | Z18: 7 | AA18: 129.9638696 | AB18: 135.8115219 | AC18: 124.1162389 | AD18: 96.66943141 | AE18: 78.16392171 | AF18: 66.77258002 | AG18: 58.80544837 | AH18: 54.95773106 | AI18: 54.81249027 | AJ18: 53.51764288 | AK18: 57.97773397 | AL18: 57.67376753 | AO18: 28 | AP18: 2 | AR18: 38 | AS18: 77.02967709 | AT18: ='2023 Rates - Females'!AT24 -> 63.1195069 | AU18: ='2023 Rates - Females'!AU24 -> 13.91017019
L19: 1.5 | M19: 23.5 | N19: 1 | O19: 3465708.203 | P19: =INDEX(DEATH,8,VLOOKUP(DISAGE,COLTABLE,2)+1) -> 6.534387173 | Q19: =INDEX(RECOVERY,8,VLOOKUP(DISAGE,COLTABLE,2)+1) -> 145.545575 | R19: 22646.27923 | S19: 504418.4931 | T19: 10344.04449 | U19: 73319.94238 | V19: 1634464.817 | W19: 44.85868501 | Z19: 8 | AA19: 111.6722771 | AB19: 115.5651654 | AC19: 107.0604166 | AD19: 83.44614802 | AE19: 67.45095373 | AF19: 58.26162621 | AG19: 51.63479883 | AH19: 49.18815756 | AI19: 50.28747863 | AJ19: 51.82293483 | AK19: 57.91830502 | AL19: 57.42342159 | AO19: 29 | AP19: 2 | AR19: 39 | AS19: 72.85164505 | AT19: ='2023 Rates - Females'!AT25 -> 58.51126341 | AU19: ='2023 Rates - Females'!AU25 -> 14.34038164
L20: 1.75 | M20: 23.75 | N20: 1 | O20: 2938643.43 | P20: =INDEX(DEATH,9,VLOOKUP(DISAGE,COLTABLE,2)+1) -> 5.689597794 | Q20: =INDEX(RECOVERY,9,VLOOKUP(DISAGE,COLTABLE,2)+1) -> 134.0650041 | R20: 16719.69918 | S20: =O20*Q20/1000 -> 393969.2436 | T20: 7576.165727 | U20: 62975.89789 | V20: 1374858.364 | W20: 45.80537134 | Z20: 9 | AA20: 96.13639584 | AB20: 99.91359892 | AC20: 95.90345105 | AD20: 74.09163738 | AE20: 60.26450543 | AF20: 52.63856845 | AG20: 47.52915386 | AH20: 45.87747459 | AI20: 48.8595753 | AJ20: 51.79267243 | AK20: 60.75467833 | AL20: 60.08482763 | AO20: 30 | AP20: 3 | AR20: 40 | AS20: 69.02335822 | AT20: ='2023 Rates - Females'!AT26 -> 54.23945962 | AU20: ='2023 Rates - Females'!AU26 -> 14.7838986
L21: 2 | M21: 24 | N21: 1 | O21: 2527954.488 | P21: =INDEX(DEATH,11,VLOOKUP(DISAGE,COLTABLE,2)+1) -> 20.11661508 | Q21: =INDEX(RECOVERY,11,VLOOKUP(DISAGE,COLTABLE,2)+1) -> 580.4920631 | R21: 50853.88737 | S21: 1467457.516 | T21: 22859.8117 | U21: 55399.73217 | V21: 1173296.575 | W21: 47.21716005 | Z21: 10 | AA21: 90.17935803 | AB21: 92.58290086 | AC21: 87.31356877 | AD21: 67.67478145 | AE21: 55.75098879 | AF21: 49.32112191 | AG21: 45.44385691 | AH21: 43.97648635 | AI21: 47.48699778 | AJ21: 51.84687215 | AK21: 66.13280689 | AL21: 64.24646104 | AO21: 31 | AP21: 3 | AR21: 41 | AS21: 65.52066525 | AT21: ='2023 Rates - Females'!AT27 -> 50.27953267 | AU21: ='2023 Rates - Females'!AU27 -> 15.24113258
L22: =L21+1 -> 3 | M22: 25 | N22: 1 | O22: 1009643.084 | P22: =INDEX(DEATH,12,VLOOKUP(DISAGE,COLTABLE,2)+1) -> 18.51091633 | Q22: =INDEX(RECOVERY,12,VLOOKUP(DISAGE,COLTABLE,2)+1) -> 385.9488198 | R22: 18689.41866 | S22: 389670.5567 | T22: =N22*R22*(1+IRATE)^(-M22-1) -> 8136.810919 | U22: 32539.92047 | V22: 453854.2082 | W22: 71.69685746 | AO22: 32 | AP22: 3 | AR22: 42 | AS22: 62.32122079 | AT22: ='2023 Rates - Females'!AT28 -> 46.60871298 | AU22: ='2023 Rates - Females'!AU28 -> 15.71250781
L23: 4 | M23: 26 | N23: 1 | O23: 601283.1089 | P23: =INDEX(DEATH,13,VLOOKUP(DISAGE,COLTABLE,2)+1) -> 15.87247522 | Q23: =INDEX(RECOVERY,13,VLOOKUP(DISAGE,COLTABLE,2)+1) -> 271.6821535 | R23: 9543.851248 | S23: 163357.8899 | T23: 4024.315606 | U23: 24403.10955 | V23: 261780.5859 | W23: 93.21970714 | Z23: Age Range | AA23: 19 and | AB23: 20-24 | AC23: 25-29 | AD23: 30-34 | AE23: 35-39 | AF23: 40-44 | AG23: 45-49 | AH23: 50-54 | AI23: 55-59 | AJ23: 60-64 | AK23: 65-69 | AL23: 70-74 | AM23: 75+ | AO23: 33 | AP23: 3 | AR23: 43 | AS23: 59.86279888 | AT23: ='2023 Rates - Females'!AT29 -> 43.66433722 | AU23: ='2023 Rates - Females'!AU29 -> 16.19846166
L24: 5 | M24: 27 | N24: 1 | O24: 428381.3677 | P24: =INDEX(DEATH,14,VLOOKUP(DISAGE,COLTABLE,2)+1) -> 13.74450904 | Q24: =INDEX(RECOVERY,14,VLOOKUP(DISAGE,COLTABLE,2)+1) -> 151.5465247 | R24: 5887.891579 | S24: 64919.70752 | T24: 2404.573824 | U24: 20378.79395 | V24: 180633.7692 | W24: 112.8182955 | AA24: Under | AO24: 34 | AP24: 3 | AR24: 44 | AS24: 57.42028119 | AT24: ='2023 Rates - Females'!AT30 -> 40.72083618 | AU24: ='2023 Rates - Females'!AU30 -> 16.69944501
L25: 6 | M25: 28 | N25: 1 | O25: 357573.7686 | P25: =INDEX(DEATH,15,VLOOKUP(DISAGE,COLTABLE,2)+1) -> 15.20389594 | Q25: =INDEX(RECOVERY,15,VLOOKUP(DISAGE,COLTABLE,2)+1) -> 120.6076259 | R25: 5436.514368 | S25: 43126.12332 | T25: 2150.348204 | U25: 17974.22012 | V25: 146030.6312 | W25: 123.0852731 | AO25: 35 | AP25: 4 | AR25: 45 | AS25: 55.01345047 | AT25: ='2023 Rates - Females'!AT31 -> 37.79752778 | AU25: ='2023 Rates - Females'!AU31 -> 17.21592269
L26: 7 | M26: 29 | N26: 1 | O26: 309011.1309 | P26: =INDEX(DEATH,16,VLOOKUP(DISAGE,COLTABLE,2)+1) -> 14.27392389 | Q26: =INDEX(RECOVERY,16,VLOOKUP(DISAGE,COLTABLE,2)+1) -> 101.2912415 | R26: 4410.801363 | S26: 31300.1211 | T26: 1689.72368 | U26: 15823.87192 | V26: 122225.6552 | W26: 129.4644066 | AB26: (r) | AO26: 36 | AP26: 4 | AR26: 46 | AS26: 52.66105972 | AT26: ='2023 Rates - Females'!AT32 -> 34.91268581 | AU26: ='2023 Rates - Females'!AU32 -> 17.74837391
L27: 8 | M27: 30 | N27: 1 | O27: 273300.2085 | P27: =INDEX(DEATH,17,VLOOKUP(DISAGE,COLTABLE,2)+1) -> 13.84974462 | Q27: =INDEX(RECOVERY,17,VLOOKUP(DISAGE,COLTABLE,2)+1) -> 86.0638543 | R27: 3785.138093 | S27: 23521.26932 | T27: 1404.396888 | U27: 14134.14824 | V27: 104697.944 | W27: 134.9992913 | Z27: PROBABILITY OF RECOVERY (1,000Q[X]+T) - SELECT PERIOD@ | AO27: 37 | AP27: 4 | AR27: 47 | AS27: 50.38065749 | AT27: ='2023 Rates - Females'!AT33 -> 32.0833648 | AU27: ='2023 Rates - Females'!AU33 -> 18.29729269
L28: 9 | M28: 31 | N28: 1 | O28: 245993.8011 | P28: =INDEX(DEATH,18,VLOOKUP(DISAGE,COLTABLE,2)+1) -> 12.01771417 | Q28: =INDEX(RECOVERY,18,VLOOKUP(DISAGE,COLTABLE,2)+1) -> 80.56518669 | R28: 2956.283189 | S28: 19818.53651 | T28: 1062.341392 | U28: 12729.75135 | V28: 91270.89159 | W28: 139.4721924 | Z28: Central Age => | AA28: 17 | AB28: 22 | AC28: 27 | AD28: 32 | AE28: 37 | AF28: 42 | AG28: 47 | AH28: 52 | AI28: 57 | AJ28: 62 | AK28: 67 | AL28: 72 | AM28: 73 | AO28: 38 | AP28: 4 | AR28: 48 | AS28: 48.188427 | AT28: ='2023 Rates - Females'!AT34 -> 29.32523866 | AU28: ='2023 Rates - Females'!AU34 -> 18.86318834
L29: 10 | M29: 32 | N29: 1 | O29: 223218.9814 | P29: =IF($M29<>" *",MINA(VLOOKUP(M29,ULTRATES,4),1000)," ") -> 12.14357858 | Q29: =IF($M29<>" *",VLOOKUP(M29,ULTRATES,3)," ") -> 72.45408538 | R29: =IF($M29<>" *",O29*P29/1000," ") -> 2710.67724 | S29: =IF($M29<>" *",O29*Q29/1000," ") -> 16173.12713 | T29: =IF($M29<>" *",N29*R29*(1+IRATE)^(-M29-1)," ") -> 943.4216067 | U29: =IF($M29<>" *",U30+T29," ") -> 11667.40996 | V29: 80213.81858 | W29: =U29/V29*1000 -> 145.4538652 | AO29: 39 | AP29: 4 | AR29: 49 | AS29: 47.63670979 | AT29: ='2023 Rates - Females'!AT35 -> 28.19012387 | AU29: ='2023 Rates - Females'!AU35 -> 19.44658592
L30: 11 | M30: =IF(DISAGE+L30<=121,DISAGE+L30," *") -> 33 | N30: =IF($M30<>" *",VLOOKUP(TRUNC(M30),DBTABLE,DBOPT+1)," ") -> 1 | O30: =IF($M30<>" *",O29-R29-S29," ") -> 204335.177 | P30: 12.14357858 | Q30: 71.5595905 | R30: 2481.360278 | S30: 14622.14159 | T30: 836.426482 | U30: 10723.98835 | V30: =IF($M30<>" *",O30*(1+IRATE)^(-M30)," ") -> 71116.62655 | Z30: Year of Dis. | AO30: 40 | AP30: 5 | AR30: 50 | AS30: 47.07397118 | AT30: ='2023 Rates - Females'!AT36 -> 27.02594446 | AU30: ='2023 Rates - Females'!AU36 -> 20.04802672
L31: 12 | M31: 34 | N31: 1 | O31: 187231.6751 | P31: 12.14357858 | Q31: 70.67613876 | R31: 2273.662559 | S31: 13232.81185 | T31: 742.2904937 | U31: 9887.561869 | V31: 63112.77437 | Z31: 1 (3rd qtr.) | AA31: ='2023 Rates - Females'!AA37 -> 305.7094204 | AB31: ='2023 Rates - Females'!AB37 -> 305.7094204 | AC31: ='2023 Rates - Females'!AC37 -> 250.4215465 | AD31: ='2023 Rates - Females'!AD37 -> 209.9033989 | AE31: ='2023 Rates - Females'!AE37 -> 131.7770092 | AF31: ='2023 Rates - Females'!AF37 -> 109.5993096 | AG31: ='2023 Rates - Females'!AG37 -> 91.14336864 | AH31: ='2023 Rates - Females'!AH37 -> 76.10452126 | AI31: ='2023 Rates - Females'!AI37 -> 63.41416292 | AJ31: ='2023 Rates - Females'!AJ37 -> 55.17542114 | AK31: ='2023 Rates - Females'!AK37 -> 42.44263165 | AL31: ='2023 Rates - Females'!AL37 -> 33.95410532 | AM31: ='2023 Rates - Females'!AM37 ->  | AO31: 41 | AP31: 5 | AR31: 51 | AS31: 46.5081126 | AT31: ='2023 Rates - Females'!AT37 -> 25.84004382 | AU31: ='2023 Rates - Females'!AU37 -> 20.66806878
L32: 13 | M32: 35 | N32: 1 | O32: 171725.2007 | P32: 13.49286509 | Q32: 69.80359384 | R32: 2317.064965 | S32: 11987.03616 | T32: 732.6491309 | U32: 9145.271376 | V32: 56063.72129 | Z32: 1 (4th qtr.) | AA32: ='2023 Rates - Females'!AA38 -> 230.0428824 | AB32: ='2023 Rates - Females'!AB38 -> 230.0428824 | AC32: ='2023 Rates - Females'!AC38 -> 188.4393824 | AD32: ='2023 Rates - Females'!AD38 -> 157.9499344 | AE32: ='2023 Rates - Females'!AE38 -> 131.5721618 | AF32: ='2023 Rates - Females'!AF38 -> 109.4289375 | AG32: ='2023 Rates - Females'!AG38 -> 91.00168626 | AH32: ='2023 Rates - Females'!AH38 -> 75.98621678 | AI32: ='2023 Rates - Females'!AI38 -> 63.3155856 | AJ32: ='2023 Rates - Females'!AJ38 -> 55.08965095 | AK32: ='2023 Rates - Females'!AK38 -> 42.37665457 | AL32: ='2023 Rates - Females'!AL38 -> 33.90132366 | AM32: ='2023 Rates - Females'!AM38 ->  | AO32: 42 | AP32: 5 | AR32: 52 | AS32: 45.94691336 | AT32: ='2023 Rates - Females'!AT38 -> 24.63962596 | AU32: ='2023 Rates - Females'!AU38 -> 21.3072874
L33: 14 | M33: 36 | N33: 1 | O33: 157421.0996 | P33: 13.49286509 | Q33: 68.94182108 | R33: 2124.061658 | S33: 10852.89728 | T33: 650.4814069 | U33: 8412.622245 | V33: 49776.08894 | Z33: 2 (1st qtr.) | AA33: ='2023 Rates - Females'!AA39 -> 190.4759901 | AB33: ='2023 Rates - Females'!AB39 -> 190.4759901 | AC33: ='2023 Rates - Females'!AC39 -> 158.282865 | AD33: ='2023 Rates - Females'!AD39 -> 132.6727345 | AE33: ='2023 Rates - Females'!AE39 -> 110.5162756 | AF33: ='2023 Rates - Females'!AF39 -> 91.91669768 | AG33: ='2023 Rates - Females'!AG39 -> 76.43841452 | AH33: ='2023 Rates - Females'!AH39 -> 63.82591547 | AI33: ='2023 Rates - Females'!AI39 -> 53.18300326 | AJ33: ='2023 Rates - Females'!AJ39 -> 46.27348951 | AK33: ='2023 Rates - Females'!AK39 -> 39.15449112 | AL33: ='2023 Rates - Females'!AL39 -> 32.03549274 | AM33: ='2023 Rates - Females'!AM39 ->  | AO33: 43 | AP33: 5 | AR33: 53 | AS33: 45.39795573 | AT33: ='2023 Rates - Females'!AT39 -> 23.43168005 | AU33: ='2023 Rates - Females'!AU39 -> 21.96627567
L34: 15 | M34: 37 | N34: 1 | O34: 144444.1406 | P34: 13.49286509 | Q34: 68.09068748 | R34: 1948.965302 | S34: 9835.300839 | T34: 578.0718414 | U34: 7762.140838 | V34: 44235.16966 | Z34: 2 (2nd qtr.) | AA34: ='2023 Rates - Females'!AA40 -> 166.8942597 | AB34: ='2023 Rates - Females'!AB40 -> 166.8942597 | AC34: ='2023 Rates - Females'!AC40 -> 135.7783807 | AD34: ='2023 Rates - Females'!AD40 -> 113.8094705 | AE34: ='2023 Rates - Females'!AE40 -> 94.8031927 | AF34: ='2023 Rates - Females'!AF40 -> 78.84808236 | AG34: ='2023 Rates - Females'!AG40 -> 65.57048453 | AH34: ='2023 Rates - Females'!AH40 -> 54.75121677 | AI34: ='2023 Rates - Females'!AI40 -> 45.62150215 | AJ34: ='2023 Rates - Females'!AJ40 -> 39.69437549 | AK34: ='2023 Rates - Females'!AK40 -> 32.47721631 | AL34: ='2023 Rates - Females'!AL40 -> 25.26005713 | AM34: ='2023 Rates - Females'!AM40 ->  | AO34: 44 | AP34: 5 | AR34: 54 | AS34: 44.8685697 | AT34: ='2023 Rates - Females'!AT40 -> 22.22292467 | AU34: ='2023 Rates - Females'!AU40 -> 22.64564503
L35: 16 | M35: 38 | N35: 1 | O35: 132659.8745 | P35: 13.91017019 | Q35: 63.1195069 | R35: 1845.321432 | S35: 8373.425864 | T35: 530.102281 | U35: 7184.068996 | V35: 39347.51319 | Z35: 2 (3rd qtr.) | AA35: ='2023 Rates - Females'!AA41 -> 145.545575 | AB35: ='2023 Rates - Females'!AB41 -> 145.545575 | AC35: ='2023 Rates - Females'!AC41 -> 120.8302887 | AD35: ='2023 Rates - Females'!AD41 -> 101.2799763 | AE35: ='2023 Rates - Females'!AE41 -> 84.36613457 | AF35: ='2023 Rates - Females'!AF41 -> 70.16755172 | AG35: ='2023 Rates - Females'!AG41 -> 58.35170909 | AH35: ='2023 Rates - Females'!AH41 -> 48.72355446 | AI35: ='2023 Rates - Females'!AI41 -> 40.59894694 | AJ35: ='2023 Rates - Females'!AJ41 -> 35.32434857 | AK35: ='2023 Rates - Females'!AK41 -> 27.47449333 | AL35: ='2023 Rates - Females'!AL41 -> 23.54956571 | AM35: ='2023 Rates - Females'!AM41 ->  | AO35: 45 | AP35: 6 | AR35: 55 | AS35: 44.36577318 | AT35: ='2023 Rates - Females'!AT41 -> 21.01974738 | AU35: ='2023 Rates - Females'!AU41 -> 23.3460258
L36: 17 | M36: 39 | N36: 1 | O36: 122441.1272 | P36: 14.34038164 | Q36: 58.51126341 | R36: 1755.852493 | S36: 7164.185046 | T36: 488.5236748 | U36: 6653.966716 | V36: 35173.44984 | Z36: 2 (4th qtr.) | AA36: ='2023 Rates - Females'!AA42 -> 134.0650041 | AB36: ='2023 Rates - Females'!AB42 -> 134.0650041 | AC36: ='2023 Rates - Females'!AC42 -> 110.7493512 | AD36: ='2023 Rates - Females'!AD42 -> 92.83013213 | AE36: ='2023 Rates - Females'!AE42 -> 77.32742156 | AF36: ='2023 Rates - Females'!AF42 -> 64.31343429 | AG36: ='2023 Rates - Females'!AG42 -> 53.48339391 | AH36: ='2023 Rates - Females'!AH42 -> 44.65852151 | AI36: ='2023 Rates - Females'!AI42 -> 37.21175446 | AJ36: ='2023 Rates - Females'!AJ42 -> 32.37721874 | AK36: ='2023 Rates - Females'!AK42 -> 26.98101562 | AL36: ='2023 Rates - Females'!AL42 -> 21.58481249 | AM36: ='2023 Rates - Females'!AM42 ->  | AO36: 46 | AP36: 6 | AR36: 56 | AS36: 43.89622034 | AT36: ='2023 Rates - Females'!AT42 -> 19.8281525 | AU36: ='2023 Rates - Females'!AU42 -> 24.06806783
L37: 18 | M37: 40 | N37: 1 | O37: 113521.0897 | P37: 14.7838986 | Q37: 54.23945962 | R37: 1678.284279 | S37: 6157.322559 | T37: 452.244249 | U37: 6165.443041 | V37: 31584.50959 | Z37: 2 (annual) | AA37: =(1-(1-AA33/1000)*(1-AA34/1000)*(1-AA35/1000)*(1-AA36/1000))*1000 -> 500.9959668 | AB37: =(1-(1-AB33/1000)*(1-AB34/1000)*(1-AB35/1000)*(1-AB36/1000))*1000 -> 500.9959668 | AC37: 431.2934857 | AD37: 373.3527499 | AE37: 319.7783037 | AF37: 272.2335307 | AG37: 230.8175461 | AH37: 195.7924997 | AI37: 165.3245078 | AJ37: 145.0893468 | AK37: 120.2949611 | AL37: 98.59163402 | AM37: ='2023 Rates - Females'!AM43 ->  | AO37: 47 | AP37: 6 | AR37: 57 | AS37: 43.46616152 | AT37: ='2023 Rates - Females'!AT43 -> 18.65372046 | AU37: ='2023 Rates - Females'!AU43 -> 24.81244107
L38: 19 | M38: 41 | N38: 1 | O38: 105685.4828 | P38: 15.24113258 | Q38: 50.27953267 | R38: 1610.766455 | S38: 5313.816687 | T38: 420.3877409 | U38: 5713.198792 | V38: 28478.87716 | Z38: 3 | AA38: ='2023 Rates - Females'!AA44 -> 580.4920631 | AB38: ='2023 Rates - Females'!AB44 -> 580.4920631 | AC38: ='2023 Rates - Females'!AC44 -> 472.561378 | AD38: ='2023 Rates - Females'!AD44 -> 398.5251985 | AE38: ='2023 Rates - Females'!AE44 -> 372.628169 | AF38: ='2023 Rates - Females'!AF44 -> 288.4951359 | AG38: ='2023 Rates - Females'!AG44 -> 235.7338898 | AH38: ='2023 Rates - Females'!AH44 -> 182.2826381 | AI38: ='2023 Rates - Females'!AI44 -> 143.8824018 | AJ38: ='2023 Rates - Females'!AJ44 -> 116.3426386 | AK38: ='2023 Rates - Females'!AK44 -> 89.90112981 | AL38: ='2023 Rates - Females'!AL44 -> 79.3245263 | AM38: ='2023 Rates - Females'!AM44 ->  | AO38: 48 | AP38: 6 | AR38: 58 | AS38: 43.08141138 | AT38: ='2023 Rates - Females'!AT44 -> 17.50157523 | AU38: ='2023 Rates - Females'!AU44 -> 25.57983615
L39: 20 | M39: 42 | N39: 1 | O39: 98760.89969 | P39: 15.71250781 | Q39: 46.60871298 | R39: 1551.781408 | S39: 4603.118427 | T39: 392.2454821 | U39: 5292.811051 | V39: 25775.2273 | Z39: 4 | AA39: ='2023 Rates - Females'!AA45 -> 385.9488198 | AB39: ='2023 Rates - Females'!AB45 -> 385.9488198 | AC39: ='2023 Rates - Females'!AC45 -> 289.9615485 | AD39: ='2023 Rates - Females'!AD45 -> 253.2271152 | AE39: ='2023 Rates - Females'!AE45 -> 204.7988039 | AF39: ='2023 Rates - Females'!AF45 -> 158.5587556 | AG39: ='2023 Rates - Females'!AG45 -> 127.3173641 | AH39: ='2023 Rates - Females'!AH45 -> 95.06894774 | AI39: ='2023 Rates - Females'!AI45 -> 73.31388556 | AJ39: ='2023 Rates - Females'!AJ45 -> 57.24601145 | AK39: ='2023 Rates - Females'!AK45 -> 34.98367366 | AL39: ='2023 Rates - Females'!AL45 -> 28.62300572 | AM39: ='2023 Rates - Females'!AM45 ->  | AO39: 49 | AP39: 6 | AR39: 59 | AS39: 42.7473228 | AT39: ='2023 Rates - Females'!AT45 -> 16.3763577 | AU39: ='2023 Rates - Females'!AU45 -> 26.3709651
L40: 21 | M40: 43 | N40: 1 | O40: 92605.99985 | P40: 16.19846166 | Q40: 43.66433722 | R40: 1500.074738 | S40: 4043.579606 | T40: 367.2402235 | U40: 4900.565569 | V40: 23408.11978 | Z40: 5 | AA40: ='2023 Rates - Females'!AA46 -> 271.6821535 | AB40: ='2023 Rates - Females'!AB46 -> 271.6821535 | AC40: ='2023 Rates - Females'!AC46 -> 198.7918197 | AD40: ='2023 Rates - Females'!AD46 -> 169.6107924 | AE40: ='2023 Rates - Females'!AE46 -> 134.7983494 | AF40: ='2023 Rates - Females'!AF46 -> 102.5560463 | AG40: ='2023 Rates - Females'!AG46 -> 80.92310953 | AH40: ='2023 Rates - Females'!AH46 -> 60.42596722 | AI40: ='2023 Rates - Females'!AI46 -> 44.21939631 | AJ40: ='2023 Rates - Females'!AJ46 -> 34.32757299 | AK40: ='2023 Rates - Females'!AK46 -> 25.74567974 | AL40: ='2023 Rates - Females'!AL46 -> 21.45473312 | AM40: ='2023 Rates - Females'!AM46 ->  | AO40: 50 | AP40: 7 | AR40: 60 | AS40: 42.46876432 | AT40: ='2023 Rates - Females'!AT46 -> 15.28220235 | AU40: ='2023 Rates - Females'!AU46 -> 27.18656196
L41: 22 | M41: 44 | N41: 1 | O41: 87062.34551 | P41: 16.69944501 | Q41: 40.72083618 | R41: 1453.892851 | S41: 3545.251509 | T41: 344.7304818 | U41: 4533.325345 | V41: 21314.13483 | Z41: 6 | AA41: ='2023 Rates - Females'!AA47 -> 151.5465247 | AB41: ='2023 Rates - Females'!AB47 -> 151.5465247 | AC41: ='2023 Rates - Females'!AC47 -> 129.0396151 | AD41: ='2023 Rates - Females'!AD47 -> 98.56724623 | AE41: ='2023 Rates - Females'!AE47 -> 76.97994515 | AF41: ='2023 Rates - Females'!AF47 -> 58.56717723 | AG41: ='2023 Rates - Females'!AG47 -> 44.62655384 | AH41: ='2023 Rates - Females'!AH47 -> 33.32302349 | AI41: ='2023 Rates - Females'!AI47 -> 23.96334721 | AJ41: ='2023 Rates - Females'!AJ47 -> 18.38740148 | AK41: ='2023 Rates - Females'!AK47 -> 12.25826766 | AL41: ='2023 Rates - Females'!AL47 -> 9.806614125 | AM41: ='2023 Rates - Females'!AM47 ->  | AO41: 51 | AP41: 7 | AR41: 61 | AS41: 42.25011732 | AT41: ='2023 Rates - Females'!AT47 -> 14.22273385 | AU41: ='2023 Rates - Females'!AU47 -> 28.02738347
L42: 23 | M42: 45 | N42: 1 | O42: 82063.20115 | P42: 17.21592269 | Q42: 37.79752778 | R42: 1412.793727 | S42: 3101.786125 | T42: 324.4411878 | U42: 4188.594863 | V42: 19457.88979 | Z42: 7 | AA42: ='2023 Rates - Females'!AA48 -> 120.6076259 | AB42: ='2023 Rates - Females'!AB48 -> 120.6076259 | AC42: ='2023 Rates - Females'!AC48 -> 107.7428125 | AD42: ='2023 Rates - Females'!AD48 -> 79.47410358 | AE42: ='2023 Rates - Females'!AE48 -> 60.28747337 | AF42: ='2023 Rates - Females'!AF48 -> 45.60107415 | AG42: ='2023 Rates - Females'!AG48 -> 33.74975327 | AH42: ='2023 Rates - Females'!AH48 -> 25.34838859 | AI42: ='2023 Rates - Females'!AI48 -> 18.22860513 | AJ42: ='2023 Rates - Females'!AJ48 -> 13.98705607 | AK42: ='2023 Rates - Females'!AK48 -> 9.324704047 | AL42: ='2023 Rates - Females'!AL48 -> 6.993528035 | AM42: ='2023 Rates - Females'!AM48 ->  | AO42: 52 | AP42: 7 | AR42: 62 | AS42: 42.09526516 | AT42: ='2023 Rates - Females'!AT48 -> 13.2010554 | AU42: ='2023 Rates - Females'!AU48 -> 28.89420976
L43: 24 | M43: 46 | N43: 1 | O43: 77548.6213 | P43: 17.74837391 | Q43: 34.91268581 | R43: 1376.361927 | S43: 2707.43065 | T43: 306.1257169 | U43: 3864.153676 | V43: 17808.6626 | Z43: 8 | AA43: ='2023 Rates - Females'!AA49 -> 101.2912415 | AB43: ='2023 Rates - Females'!AB49 -> 101.2912415 | AC43: ='2023 Rates - Females'!AC49 -> 91.48886331 | AD43: ='2023 Rates - Females'!AD49 -> 67.0929451 | AE43: ='2023 Rates - Females'!AE49 -> 50.01406841 | AF43: ='2023 Rates - Females'!AF49 -> 37.61070444 | AG43: ='2023 Rates - Females'!AG49 -> 27.1951948 | AH43: ='2023 Rates - Females'!AH49 -> 20.30688093 | AI43: ='2023 Rates - Females'!AI49 -> 14.60314184 | AJ43: ='2023 Rates - Females'!AJ49 -> 11.33643738 | AK43: ='2023 Rates - Females'!AK49 -> 6.298020768 | AL43: ='2023 Rates - Females'!AL49 -> 3.778812461 | AM43: ='2023 Rates - Females'!AM49 ->  | AO43: 53 | AP43: 7 | AR43: 63 | AS43: 42.68769639 | AT43: ='2023 Rates - Females'!AT49 -> 12.21976151 | AU43: ='2023 Rates - Females'!AU49 -> 30.46793488
L44: 25 | M44: 47 | N44: 1 | O44: 73464.82872 | P44: 18.29729269 | Q44: 32.0833648 | R44: 1344.207473 | S44: 2356.998899 | T44: 289.5632283 | U44: 3558.027959 | V44: 16339.79618 | Z44: 9 | AA44: ='2023 Rates - Females'!AA50 -> 86.0638543 | AB44: ='2023 Rates - Females'!AB50 -> 86.0638543 | AC44: ='2023 Rates - Females'!AC50 -> 80.79463873 | AD44: ='2023 Rates - Females'!AD50 -> 58.22440381 | AE44: ='2023 Rates - Females'!AE50 -> 42.90056052 | AF44: ='2023 Rates - Females'!AF50 -> 32.07403101 | AG44: ='2023 Rates - Females'!AG50 -> 23.191789 | AH44: ='2023 Rates - Females'!AH50 -> 17.11700935 | AI44: ='2023 Rates - Females'!AI50 -> 12.30923233 | AJ44: ='2023 Rates - Females'!AJ50 -> 9.555672547 | AK44: ='2023 Rates - Females'!AK50 -> 4.095288235 | AL44: ='2023 Rates - Females'!AL50 -> 1.365096078 | AM44: ='2023 Rates - Females'!AM50 ->  | AO44: 54 | AP44: 7 | AR44: 64 | AS44: 43.36477998 | AT44: ='2023 Rates - Females'!AT50 -> 11.28093918 | AU44: ='2023 Rates - Females'!AU50 -> 32.0838408
L45: 26 | M45: 48 | N45: 1 | O45: 69763.62235 | P45: 18.86318834 | Q45: 29.32523866 | R45: 1315.964348 | S45: 2045.834875 | T45: 274.5561444 | U45: 3268.46473 | V45: 15028.17095 | Z45: 10 | AA45: ='2023 Rates - Females'!AA51 -> 80.56518669 | AB45: ='2023 Rates - Females'!AB51 -> 80.56518669 | AC45: ='2023 Rates - Females'!AC51 -> 72.89231177 | AD45: ='2023 Rates - Females'!AD51 -> 52.52961659 | AE45: ='2023 Rates - Females'!AE51 -> 38.25645602 | AF45: ='2023 Rates - Females'!AF51 -> 28.60192832 | AG45: ='2023 Rates - Females'!AG51 -> 20.92345656 | AH45: ='2023 Rates - Females'!AH51 -> 14.99973338 | AI45: ='2023 Rates - Females'!AI51 -> 10.66176754 | AJ45: ='2023 Rates - Females'!AJ51 -> 8.325075965 | AK45: ='2023 Rates - Females'!AK51 -> 4.995045579 | AL45: ='2023 Rates - Females'!AL51 -> 0 | AM45: ='2023 Rates - Females'!AM51 ->  | AO45: 55 | AP45: 8 | AR45: 65 | AS45: 44.10576542 | AT45: ='2023 Rates - Females'!AT51 -> 10.38618994 | AU45: ='2023 Rates - Females'!AU51 -> 33.71957548
L46: 27 | M46: 49 | N46: 1 | O46: 66401.82312 | P46: 19.44658592 | Q46: 28.19012387 | R46: 1291.288758 | S46: 1871.875619 | T46: 260.9278007 | U46: 2993.908586 | V46: 13853.74047 | AO46: 56 | AP46: 8 | AR46: 66 | AS46: 44.88520486 | AT46: ='2023 Rates - Females'!AT52 -> 9.536647306 | AU46: ='2023 Rates - Females'!AU52 -> 35.34855755
L47: 28 | M47: 50 | N47: 1 | O47: 63238.65875 | P47: 20.04802672 | Q47: 27.02594446 | R47: 1267.81032 | S47: 1709.084479 | T47: 248.1196763 | U47: 2732.980785 | V47: 12778.49284 | AO47: 57 | AP47: 8 | AR47: 67 | AS47: 45.67297074 | AT47: ='2023 Rates - Females'!AT53 -> 8.733004612 | AU47: ='2023 Rates - Females'!AU53 -> 36.93996612
L48: 29 | M48: 51 | N48: 1 | O48: 60261.76395 | P48: 20.66806878 | Q48: 25.84004382 | R48: 1245.494282 | S48: 1557.166621 | T48: 236.0796763 | U48: 2484.861109 | V48: 11793.66434 | AO48: 58 | AP48: 8 | AR48: 68 | AS48: 46.43452652 | AT48: ='2023 Rates - Females'!AT54 -> 7.975540591 | AU48: ='2023 Rates - Females'!AU54 -> 38.45898593
L49: 30 | M49: 52 | N49: 1 | O49: 57459.10304 | P49: 21.3072874 | Q49: 24.63962596 | R49: 1224.297623 | S49: 1415.770807 | T49: 224.7573013 | U49: 2248.781433 | V49: 10891.1993 | AB49: (d) | AO49: 59 | AP49: 8 | AR49: 69 | AS49: 47.13148257 | AT49: ='2023 Rates - Females'!AT55 -> 7.264154202 | AU49: ='2023 Rates - Females'!AU55 -> 39.86732837
L50: 31 | M50: 53 | N50: 1 | O50: 54819.03461 | P50: 21.96627567 | Q50: 23.43168005 | R50: 1204.170027 | S50: 1284.50208 | T50: 214.1038886 | U50: 2024.024131 | V50: 10063.71168 | Z50: PROBABILITY OF DEATH (1,000Q[X]+T) - SELECT PERIOD@ | AO50: 60 | AP50: 9 | AR50: 70 | AS50: 47.72244474 | AT50: ='2023 Rates - Females'!AT56 -> 6.598395993 | AU50: ='2023 Rates - Females'!AU56 -> 41.12404874
L51: 32 | M51: 54 | N51: 1 | O51: 52330.36251 | P51: 22.64564503 | Q51: 22.22292467 | R51: 1185.054813 | S51: 1162.933704 | T51: 204.0727987 | U51: 1809.920243 | V51: 9304.445267 | Z51: Central Age => | AA51: 17 | AB51: 22 | AC51: 27 | AD51: 32 | AE51: 37 | AF51: 42 | AG51: 47 | AH51: 52 | AI51: 57 | AJ51: 62 | AK51: 67 | AL51: 72 | AM51: 73 | AO51: 61 | AP51: 9 | AR51: 71 | AS51: 49.05527216 | AT51: ='2023 Rates - Females'!AT57 -> 5.888074656 | AU51: ='2023 Rates - Females'!AU57 -> 43.1671975
L52: 33 | M52: 55 | N52: 1 | O52: 49982.37399 | P52: 23.3460258 | Q52: 21.01974738 | R52: 1166.889793 | S52: 1050.616875 | T52: 194.6195493 | U52: 1605.847444 | V52: 8607.233042 | AO52: 62 | AP52: 9 | AR52: 72 | AS52: 50.35898638 | AT52: ='2023 Rates - Females'!AT58 -> 5.148640115 | AU52: ='2023 Rates - Females'!AU58 -> 45.21034626
L53: 34 | M53: 56 | N53: 1 | O53: 47764.86732 | P53: 24.06806783 | Q53: 19.8281525 | R53: 1149.608067 | S53: 947.0890736 | T53: 185.7019071 | U53: 1411.227895 | V53: 7966.456652 | Z53: Year of Dis. | AO53: 63 | AP53: 9 | AR53: 73 | AS53: 52.67155471 | AT53: ='2023 Rates - Females'!AT59 -> 4.396485307 | AU53: ='2023 Rates - Females'!AU59 -> 48.2750694
L54: 35 | M54: 57 | N54: 1 | O54: 45668.17018 | P54: 24.81244107 | Q54: 18.65372046 | R54: 1133.138781 | S54: 851.8812804 | T54: 177.2799434 | U54: 1225.525988 | V54: 7377.006601 | Z54: 1 (3rd qtr.) | AA54: ='2023 Rates - Females'!AA60 -> 5.530907506 | AB54: ='2023 Rates - Females'!AB60 -> 6.637089007 | AC54: ='2023 Rates - Females'!AC60 -> 8.84945201 | AD54: ='2023 Rates - Females'!AD60 -> 10.45216947 | AE54: ='2023 Rates - Females'!AE60 -> 12.4178351 | AF54: ='2023 Rates - Females'!AF60 -> 14.7748551 | AG54: ='2023 Rates - Females'!AG60 -> 17.58120305 | AH54: ='2023 Rates - Females'!AH60 -> 20.84041894 | AI54: ='2023 Rates - Females'!AI60 -> 24.75267357 | AJ54: ='2023 Rates - Females'!AJ60 -> 25.91170743 | AK54: ='2023 Rates - Females'!AK60 -> 24.29222572 | AL54: ='2023 Rates - Females'!AL60 -> 22.672744 | AM54: ='2023 Rates - Females'!AM60 ->  | AO54: 64 | AP54: 9 | AR54: 74 | AS54: 54.98842414 | AT54: ='2023 Rates - Females'!AT60 -> 3.648631602 | AU54: ='2023 Rates - Females'!AU60 -> 51.33979254
L55: 36 | M55: 58 | N55: 1 | O55: 43683.15012 | P55: 25.57983615 | Q55: 17.50157523 | R55: 1117.407823 | S55: 764.5239383 | T55: 169.3160577 | U55: 1048.246044 | V55: 6834.243526 | Z55: 1 (4th qtr.) | AA55: ='2023 Rates - Females'!AA61 -> 7.032688725 | AB55: ='2023 Rates - Females'!AB61 -> 8.43922647 | AC55: ='2023 Rates - Females'!AC61 -> 11.25230196 | AD55: ='2023 Rates - Females'!AD61 -> 13.29019773 | AE55: ='2023 Rates - Females'!AE61 -> 15.78959128 | AF55: ='2023 Rates - Females'!AF61 -> 18.7866018 | AG55: ='2023 Rates - Females'!AG61 -> 22.35494416 | AH55: ='2023 Rates - Females'!AH61 -> 26.49911956 | AI55: ='2023 Rates - Females'!AI61 -> 31.47365023 | AJ55: ='2023 Rates - Females'!AJ61 -> 32.94739109 | AK55: ='2023 Rates - Females'!AK61 -> 30.88817915 | AL55: ='2023 Rates - Females'!AL61 -> 28.82896721 | AM55: ='2023 Rates - Females'!AM61 ->  | AO55: 65 | AP55: 10 | AR55: 75 | AS55: 57.32692573 | AT55: ='2023 Rates - Females'!AT61 -> 2.92241005 | AU55: ='2023 Rates - Females'!AU61 -> 54.40451568
L56: 37 | M56: 59 | N56: 1 | O56: 41801.21836 | P56: 26.3709651 | Q56: 16.3763577 | R56: 1102.338471 | S56: 684.5517041 | T56: 161.7749762 | U56: 878.9299865 | V56: 6333.960939 | Z56: 2 (1st qtr.) | AA56: ='2023 Rates - Females'!AA62 -> 6.652856896 | AB56: ='2023 Rates - Females'!AB62 -> 7.983428276 | AC56: ='2023 Rates - Females'!AC62 -> 10.64457103 | AD56: ='2023 Rates - Females'!AD62 -> 12.57240112 | AE56: ='2023 Rates - Females'!AE62 -> 14.93680374 | AF56: ='2023 Rates - Females'!AF62 -> 17.77194729 | AG56: ='2023 Rates - Females'!AG62 -> 21.14756535 | AH56: ='2023 Rates - Females'!AH62 -> 25.06791602 | AI56: ='2023 Rates - Females'!AI62 -> 29.7737749 | AJ56: ='2023 Rates - Females'!AJ62 -> 31.16791978 | AK56: ='2023 Rates - Females'!AK62 -> 29.2199248 | AL56: ='2023 Rates - Females'!AL62 -> 27.27192981 | AM56: ='2023 Rates - Females'!AM62 ->  | AO56: 66 | AP56: 10 | AR56: 76 | AS56: 60.72596869 | AT56: ='2023 Rates - Females'!AT62 -> 2.235155493 | AU56: ='2023 Rates - Females'!AU62 -> 58.4908132
L57: 38 | M57: 60 | N57: 1 | O57: 40014.32819 | P57: 27.18656196 | Q57: 15.28220235 | R57: 1087.852013 | S57: 611.5070603 | T57: 154.6237278 | U57: 717.1550104 | V57: 5872.3497 | Z57: 2 (2nd qtr.) | AA57: ='2023 Rates - Females'!AA63 -> 6.067904545 | AB57: ='2023 Rates - Females'!AB63 -> 7.416327777 | AC57: ='2023 Rates - Females'!AC63 -> 9.438962625 | AD57: ='2023 Rates - Females'!AD63 -> 11.1484459 | AE57: ='2023 Rates - Females'!AE63 -> 13.24505532 | AF57: ='2023 Rates - Females'!AF63 -> 15.75908937 | AG57: ='2023 Rates - Females'!AG63 -> 18.75238357 | AH57: ='2023 Rates - Females'!AH63 -> 22.22871374 | AI57: ='2023 Rates - Females'!AI63 -> 26.40158514 | AJ57: ='2023 Rates - Females'!AJ63 -> 27.63782862 | AK57: ='2023 Rates - Females'!AK63 -> 24.7787429 | AL57: ='2023 Rates - Females'!AL63 -> 21.91965718 | AM57: ='2023 Rates - Females'!AM63 ->  | AO57: 67 | AP57: 10 | AR57: 77 | AS57: 64.18105156 | AT57: ='2023 Rates - Females'!AT63 -> 1.603940836 | AU57: ='2023 Rates - Females'!AU63 -> 62.57711072
L58: 39 | M58: 61 | N58: 1 | O58: 38314.96911 | P58: 28.02738347 | Q58: 14.22273385 | R58: 1073.868332 | S58: 544.9436083 | T58: 147.831606 | U58: 562.5312825 | V58: 5445.964421 | Z58: 2 (3rd qtr.) | AA58: ='2023 Rates - Females'!AA64 -> 5.346316778 | AB58: ='2023 Rates - Females'!AB64 -> 6.534387173 | AC58: ='2023 Rates - Females'!AC64 -> 8.316492766 | AD58: ='2023 Rates - Females'!AD64 -> 9.822686388 | AE58: ='2023 Rates - Females'!AE64 -> 11.66996958 | AF58: ='2023 Rates - Females'!AF64 -> 13.88503779 | AG58: ='2023 Rates - Females'!AG64 -> 16.52237311 | AH58: ='2023 Rates - Females'!AH64 -> 19.58530236 | AI58: ='2023 Rates - Females'!AI64 -> 23.26194102 | AJ58: ='2023 Rates - Females'!AJ64 -> 24.35117193 | AK58: ='2023 Rates - Females'!AK64 -> 23.4145884 | AL58: ='2023 Rates - Females'!AL64 -> 20.60483779 | AM58: ='2023 Rates - Females'!AM64 ->  | AO58: 68 | AP58: 10 | AR58: 78 | AS58: 67.70881161 | AT58: ='2023 Rates - Females'!AT64 -> 1.045403375 | AU58: ='2023 Rates - Females'!AU64 -> 66.66340824
L59: 40 | M59: 62 | N59: 1 | O59: 36696.15717 | P59: 28.89420976 | Q59: 13.2010554 | R59: 1060.306463 | S59: 484.4280038 | T59: 141.3701139 | U59: 414.6996765 | V59: 5051.691802 | Z59: 2 (4th qtr.) | AA59: ='2023 Rates - Females'!AA65 -> 4.551678235 | AB59: ='2023 Rates - Females'!AB65 -> 5.689597794 | AC59: ='2023 Rates - Females'!AC65 -> 7.396477132 | AD59: ='2023 Rates - Females'!AD65 -> 8.736047428 | AE59: ='2023 Rates - Females'!AE65 -> 10.37897412 | AF59: ='2023 Rates - Females'!AF65 -> 12.34899944 | AG59: ='2023 Rates - Females'!AG65 -> 14.69457839 | AH59: ='2023 Rates - Females'!AH65 -> 17.41866976 | AI59: ='2023 Rates - Females'!AI65 -> 20.68857866 | AJ59: ='2023 Rates - Females'!AJ65 -> 21.65731293 | AK59: ='2023 Rates - Females'!AK65 -> 21.65731293 | AL59: ='2023 Rates - Females'!AL65 -> 18.70404299 | AM59: ='2023 Rates - Females'!AM65 ->  | AO59: 69 | AP59: 10 | AR59: 79 | AS59: 71.32549045 | AT59: ='2023 Rates - Females'!AT65 -> 0.5757846916 | AU59: ='2023 Rates - Females'!AU65 -> 70.74970576
L60: 41 | M60: 63 | N60: 1 | O60: 35151.42271 | P60: =IF($M60<>" *",MINA(VLOOKUP(M60,ULTRATES,4),1000)," ") -> 30.46793488 | Q60: =IF($M60<>" *",VLOOKUP(M60,ULTRATES,3)," ") -> 12.21976151 | R60: 1070.991258 | S60: 429.5420023 | T60: 138.2999633 | U60: 273.3295627 | V60: 4686.721062 | Z60: 2 (annual) | AA60: =(1-(1-AA56/1000)*(1-AA57/1000)*(1-AA58/1000)*(1-AA59/1000))*1000 -> 22.42885095 | AB60: =(1-(1-AB56/1000)*(1-AB57/1000)*(1-AB58/1000)*(1-AB59/1000))*1000 -> 27.34040296 | AC60: 35.32175309 | AD60: 41.6180025 | AE60: 49.29821306 | AF60: 58.44693218 | AG60: 69.2539597 | AH60: 81.68862604 | AI60: 96.45081695 | AJ60: 100.7900664 | AK60: 95.46526529 | AL60: 85.62584267 | AM60: ='2023 Rates - Females'!AM66 ->  | AO60: 70 | AP60: 11 | AR60: 80 | AS60: 76.0691272 | AT60: ='2023 Rates - Females'!AT66 -> 0.2115495437 | AU60: ='2023 Rates - Females'!AU66 -> 75.85757766
L61: 42 | M61: 64 | N61: 1 | O61: 33650.88945 | P61: 32.0838408 | Q61: 11.28093918 | R61: 1079.64978 | S61: 379.6136372 | T61: 135.0295994 | U61: 135.0295994 | V61: 4345.429284 | Z61: 3 | AA61: ='2023 Rates - Females'!AA67 -> 17.88143563 | AB61: ='2023 Rates - Females'!AB67 -> 20.11661508 | AC61: ='2023 Rates - Females'!AC67 -> 26.82215344 | AD61: ='2023 Rates - Females'!AD67 -> 28.16855254 | AE61: ='2023 Rates - Females'!AE67 -> 33.31482575 | AF61: ='2023 Rates - Females'!AF67 -> 39.45553846 | AG61: ='2023 Rates - Females'!AG67 -> 46.6941745 | AH61: ='2023 Rates - Females'!AH67 -> 55.18041158 | AI61: ='2023 Rates - Females'!AI67 -> 64.93171143 | AJ61: ='2023 Rates - Females'!AJ67 -> 73.66980403 | AK61: ='2023 Rates - Females'!AK67 -> 73.66980403 | AL61: ='2023 Rates - Females'!AL67 -> 73.66980403 | AM61: ='2023 Rates - Females'!AM67 ->  | AO61: 71 | AP61: 11 | AR61: 81 | AS61: 82.48183399 | AT61: ='2023 Rates - Females'!AT67 -> 0 | AU61: ='2023 Rates - Females'!AU67 -> 82.48183399
L62: 43 | M62: =IF(DISAGE+L62<=121,DISAGE+L62," *") -> 65 | N62: =IF($M62<>" *",VLOOKUP(TRUNC(M62),DBTABLE,DBOPT+1)," ") -> 0 | O62: 32191.62603 | P62: 33.71957548 | Q62: 10.38618994 | R62: 1085.487964 | S62: 334.3483425 | T62: 0 | U62: 0 | V62: =IF($M62<>" *",O62*(1+IRATE)^(-M62)," ") -> 4026.141113 | Z62: 4 | AA62: ='2023 Rates - Females'!AA68 -> 12.07233674 | AB62: ='2023 Rates - Females'!AB68 -> 18.51091633 | AC62: ='2023 Rates - Females'!AC68 -> 23.33985102 | AD62: ='2023 Rates - Females'!AD68 -> 24.51144802 | AE62: ='2023 Rates - Females'!AE68 -> 25.48237407 | AF62: ='2023 Rates - Females'!AF68 -> 30.17938205 | AG62: ='2023 Rates - Females'!AG68 -> 35.71617936 | AH62: ='2023 Rates - Females'!AH68 -> 42.20726863 | AI62: ='2023 Rates - Females'!AI68 -> 49.66599047 | AJ62: ='2023 Rates - Females'!AJ68 -> 56.34972011 | AK62: ='2023 Rates - Females'!AK68 -> 63.65431345 | AL62: ='2023 Rates - Females'!AL68 -> 66.78485346 | AM62: ='2023 Rates - Females'!AM68 ->  | AO62: 72 | AP62: 11 | AR62: 82 | AS62: 86.680716 | AT62: ='2023 Rates - Females'!AT68 -> 0 | AU62: ='2023 Rates - Females'!AU68 -> 86.680716
L63: 44 | M63: 66 | N63: 0 | O63: 30771.78972 | P63: 35.34855755 | Q63: 9.536647306 | R63: 1087.73838 | S63: 293.4597056 | T63: 0 | U63: 0 | V63: 3727.423804 | Z63: 5 | AA63: ='2023 Rates - Females'!AA69 -> 11.20410016 | AB63: ='2023 Rates - Females'!AB69 -> 15.87247522 | AC63: ='2023 Rates - Females'!AC69 -> 18.67350026 | AD63: ='2023 Rates - Females'!AD69 -> 19.61085915 | AE63: ='2023 Rates - Females'!AE69 -> 20.38766381 | AF63: ='2023 Rates - Females'!AF69 -> 24.14559718 | AG63: ='2023 Rates - Females'!AG69 -> 28.57542586 | AH63: ='2023 Rates - Females'!AH69 -> 33.76874422 | AI63: ='2023 Rates - Females'!AI69 -> 39.73624216 | AJ63: ='2023 Rates - Females'!AJ69 -> 45.08368829 | AK63: ='2023 Rates - Females'!AK69 -> 51.09484673 | AL63: ='2023 Rates - Females'!AL69 -> 54.10042595 | AM63: ='2023 Rates - Females'!AM69 ->  | AO63: 73 | AP63: 11 | AR63: 83 | AS63: 91.44308434 | AT63: ='2023 Rates - Females'!AT69 -> 0 | AU63: ='2023 Rates - Females'!AU69 -> 91.44308434
L64: 45 | M64: 67 | N64: 0 | O64: 29390.59164 | P64: 36.93996612 | Q64: 8.733004612 | R64: 1085.687459 | S64: 256.6681723 | T64: 0 | U64: 0 | V64: 3448.055809 | Z64: 6 | AA64: ='2023 Rates - Females'!AA70 -> 7.330404819 | AB64: ='2023 Rates - Females'!AB70 -> 13.74450904 | AC64: ='2023 Rates - Females'!AC70 -> 17.40971144 | AD64: ='2023 Rates - Females'!AD70 -> 18.28363157 | AE64: ='2023 Rates - Females'!AE70 -> 19.00787262 | AF64: ='2023 Rates - Females'!AF70 -> 22.51147433 | AG64: ='2023 Rates - Females'!AG70 -> 26.64149523 | AH64: ='2023 Rates - Females'!AH70 -> 31.48333895 | AI64: ='2023 Rates - Females'!AI70 -> 37.04697604 | AJ64: ='2023 Rates - Females'!AJ70 -> 42.03251441 | AK64: ='2023 Rates - Females'!AK70 -> 46.13324752 | AL64: ='2023 Rates - Females'!AL70 -> 48.18361408 | AM64: ='2023 Rates - Females'!AM70 ->  | AO64: 74 | AP64: 11 | AR64: 84 | AS64: 96.87800087 | AT64: ='2023 Rates - Females'!AT70 -> 0 | AU64: ='2023 Rates - Females'!AU70 -> 96.87800087
L65: 46 | M65: 68 | N65: 0 | O65: 28048.23601 | P65: 38.45898593 | Q65: 7.975540591 | R65: 1078.706714 | S65: 223.6998448 | T65: 0 | U65: 0 | V65: 3186.995503 | Z65: 7 | AA65: ='2023 Rates - Females'!AA71 -> 9.356243653 | AB65: ='2023 Rates - Females'!AB71 -> 15.20389594 | AC65: ='2023 Rates - Females'!AC71 -> 16.37342639 | AD65: ='2023 Rates - Females'!AD71 -> 17.19532783 | AE65: ='2023 Rates - Females'!AE71 -> 17.87644835 | AF65: ='2023 Rates - Females'!AF71 -> 21.17150586 | AG65: ='2023 Rates - Females'!AG71 -> 25.05569511 | AH65: ='2023 Rates - Females'!AH71 -> 29.60934247 | AI65: ='2023 Rates - Females'!AI71 -> 36.58388514 | AJ65: ='2023 Rates - Females'!AJ71 -> 39.53058681 | AK65: ='2023 Rates - Females'!AK71 -> 48.65302992 | AL65: ='2023 Rates - Females'!AL71 -> 50.6802395 | AM65: ='2023 Rates - Females'!AM71 ->  | AO65: 75 | AP65: 12 | AR65: 85 | AS65: 103.1217929 | AT65: ='2023 Rates - Females'!AT71 -> 0 | AU65: ='2023 Rates - Females'!AU71 -> 103.1217929
L66: 47 | M66: 69 | N66: 0 | O66: 26745.82945 | P66: 39.86732837 | Q66: 7.264154202 | R66: 1066.284765 | S66: 194.2858294 | T66: 0 | U66: 0 | V66: 2943.350001 | Z66: 8 | AA66: ='2023 Rates - Females'!AA72 -> 10.38103555 | AB66: ='2023 Rates - Females'!AB72 -> 14.27392389 | AC66: ='2023 Rates - Females'!AC72 -> 15.57155333 | AD66: ='2023 Rates - Females'!AD72 -> 16.35320293 | AE66: ='2023 Rates - Females'!AE72 -> 17.43688532 | AF66: ='2023 Rates - Females'!AF72 -> 20.65092177 | AG66: ='2023 Rates - Females'!AG72 -> 24.43960403 | AH66: ='2023 Rates - Females'!AH72 -> 28.88127663 | AI66: ='2023 Rates - Females'!AI72 -> 35.68433679 | AJ66: ='2023 Rates - Females'!AJ72 -> 40.48649745 | AK66: ='2023 Rates - Females'!AK72 -> 51.62028425 | AL66: ='2023 Rates - Females'!AL72 -> 53.64460912 | AM66: ='2023 Rates - Females'!AM72 ->  | AR66: 86 | AS66: 110.256257 | AT66: ='2023 Rates - Females'!AT72 -> 0 | AU66: ='2023 Rates - Females'!AU72 -> 110.256257
L67: 48 | M67: 70 | N67: 0 | O67: 25485.25885 | P67: 41.12404874 | Q67: 6.598395993 | R67: 1048.057027 | S67: 168.1618299 | T67: 0 | U67: 0 | V67: 2716.34436 | Z67: 9 | AA67: ='2023 Rates - Females'!AA73 -> 10.07254155 | AB67: ='2023 Rates - Females'!AB73 -> 13.84974462 | AC67: ='2023 Rates - Females'!AC73 -> 15.10881232 | AD67: ='2023 Rates - Females'!AD73 -> 15.86723357 | AE67: ='2023 Rates - Females'!AE73 -> 17.36394491 | AF67: ='2023 Rates - Females'!AF73 -> 20.56453744 | AG67: ='2023 Rates - Females'!AG73 -> 24.33736487 | AH67: ='2023 Rates - Females'!AH73 -> 28.76046524 | AI67: ='2023 Rates - Females'!AI73 -> 36.55034297 | AJ67: ='2023 Rates - Females'!AJ73 -> 42.23699989 | AK67: ='2023 Rates - Females'!AK73 -> 56.65939009 | AL67: ='2023 Rates - Females'!AL73 -> 58.71973155 | AM67: ='2023 Rates - Females'!AM73 ->  | AR67: 87 | AS67: 118.208685 | AT67: ='2023 Rates - Females'!AT73 -> 0 | AU67: ='2023 Rates - Females'!AU73 -> 118.208685
L68: 49 | M68: 71 | N68: 0 | O68: 24269.03999 | P68: 43.1671975 | Q68: 5.888074656 | R68: 1047.626443 | S68: 142.8979193 | T68: 0 | U68: 0 | V68: 2505.291783 | Z68: 10 | AA68: ='2023 Rates - Females'!AA74 -> 9.614171337 | AB68: ='2023 Rates - Females'!AB74 -> 12.01771417 | AC68: ='2023 Rates - Females'!AC74 -> 14.421257 | AD68: ='2023 Rates - Females'!AD74 -> 15.14516485 | AE68: ='2023 Rates - Females'!AE74 -> 17.49453277 | AF68: ='2023 Rates - Females'!AF74 -> 20.71919359 | AG68: ='2023 Rates - Females'!AG74 -> 24.52040035 | AH68: ='2023 Rates - Females'!AH74 -> 28.97675297 | AI68: ='2023 Rates - Females'!AI74 -> 36.82523024 | AJ68: ='2023 Rates - Females'!AJ74 -> 43.52179619 | AK68: ='2023 Rates - Females'!AK74 -> 61.13776131 | AL68: ='2023 Rates - Females'!AL74 -> 64.24646104 | AM68: ='2023 Rates - Females'!AM74 ->  | AR68: 88 | AS68: 126.8972807 | AT68: ='2023 Rates - Females'!AT74 -> 0 | AU68: ='2023 Rates - Females'!AU74 -> 126.8972807
L69: 50 | M69: 72 | N69: 0 | O69: 23078.51563 | P69: 45.21034626 | Q69: 5.148640115 | R69: 1043.387683 | S69: 118.8229714 | T69: 0 | U69: 0 | V69: 2307.403403 | AR69: 89 | AS69: 136.4401943 | AT69: ='2023 Rates - Females'!AT75 -> 0 | AU69: ='2023 Rates - Females'!AU75 -> 136.4401943
L70: 51 | M70: 73 | N70: 0 | O70: 21916.30498 | P70: 48.2750694 | Q70: 4.396485307 | R70: 1058.011144 | S70: 96.35471282 | T70: 0 | U70: 0 | V70: 2122.232355 | AR70: 90 | AS70: 146.8283375 | AT70: ='2023 Rates - Females'!AT76 -> 0 | AU70: ='2023 Rates - Females'!AU76 -> 146.8283375
L71: 52 | M71: 74 | N71: 0 | O71: 20761.93912 | P71: 51.33979254 | Q71: 3.648631602 | R71: 1065.913647 | S71: 75.7526672 | T71: 0 | U71: 0 | V71: 1947.168113 | AR71: 91 | AS71: =AT71+AU71 -> 157.8708518 | AT71: ='2023 Rates - Females'!AT77 -> 0 | AU71: ='2023 Rates - Females'!AU77 -> 157.8708518
L72: 53 | M72: 75 | N72: 0 | O72: 19620.27281 | P72: 54.40451568 | Q72: 2.92241005 | R72: 1067.43144 | S72: 57.33848243 | T72: 0 | U72: 0 | V72: 1782.175697 | AR72: 92 | AS72: 169.5677374 | AT72: ='2023 Rates - Females'!AT78 -> 0 | AU72: ='2023 Rates - Females'!AU78 -> 169.5677374
L73: 54 | M73: 76 | N73: 0 | O73: 18495.50289 | P73: 58.4908132 | Q73: 2.235155493 | R73: 1081.817004 | S73: 41.34032486 | T73: 0 | U73: 0 | V73: 1627.127403 | AR73: 93 | AS73: 182.0462331 | AT73: ='2023 Rates - Females'!AT79 -> 0 | AU73: ='2023 Rates - Females'!AU79 -> 182.0462331
L74: 55 | M74: 77 | N74: 0 | O74: 17372.34556 | P74: 62.57711072 | Q74: 1.603940836 | R74: 1087.111191 | S74: 27.86421445 | T74: 0 | U74: 0 | V74: 1480.211637 | AR74: 94 | AS74: 194.8428259 | AT74: ='2023 Rates - Females'!AT80 -> 0 | AU74: ='2023 Rates - Females'!AU80 -> 194.8428259
L75: 56 | M75: 78 | N75: 0 | O75: 16257.37015 | P75: 66.66340824 | Q75: 1.045403375 | R75: 1083.771703 | S75: 16.99550963 | T75: 0 | U75: 0 | V75: 1341.607842 | AR75: 95 | AS75: 207.9120733 | AT75: ='2023 Rates - Females'!AT81 -> 0 | AU75: ='2023 Rates - Females'!AU81 -> 207.9120733
L76: 57 | M76: 79 | N76: 0 | O76: 15156.60294 | P76: 70.74970576 | Q76: 0.5757846916 | R76: 1072.325198 | S76: 8.726939948 | T76: 0 | U76: 0 | V76: 1211.398712 | AR76: 96 | AS76: 222.8717265 | AT76: ='2023 Rates - Females'!AT82 -> 0 | AU76: ='2023 Rates - Females'!AU82 -> 222.8717265
L77: 58 | M77: 80 | N77: 0 | O77: 14075.5508 | P77: 75.85757766 | Q77: 0.2115495437 | R77: 1067.737188 | S77: 2.977676349 | T77: 0 | U77: 0 | V77: 1089.583636 | AR77: 97 | AS77: 240.2398294 | AT77: ='2023 Rates - Females'!AT83 -> 0 | AU77: ='2023 Rates - Females'!AU83 -> 240.2398294
L78: 59 | M78: 81 | N78: 0 | O78: 13004.83594 | P78: 82.48183399 | Q78: 0 | R78: 1072.662719 | S78: 0 | T78: 0 | U78: 0 | V78: 975.0120678 | AR78: 98 | AS78: 259.016648 | AT78: ='2023 Rates - Females'!AT84 -> 0 | AU78: ='2023 Rates - Females'!AU84 -> 259.016648
L79: 60 | M79: 82 | N79: 0 | O79: 11932.17322 | P79: 86.680716 | Q79: 0 | R79: 1034.289318 | S79: 0 | T79: 0 | U79: 0 | V79: 866.4322366 | AR79: 99 | AS79: 279.0385897 | AT79: ='2023 Rates - Females'!AT85 -> 0 | AU79: ='2023 Rates - Females'!AU85 -> 279.0385897
L80: 61 | M80: 83 | N80: 0 | O80: 10897.8839 | P80: 91.44308434 | Q80: 0 | R80: 996.5361164 | S80: 0 | T80: 0 | U80: 0 | V80: 766.4206005 | AR80: 100 | AS80: 305.6652702 | AT80: ='2023 Rates - Females'!AT86 -> 0 | AU80: ='2023 Rates - Females'!AU86 -> 305.6652702
L81: 62 | M81: 84 | N81: 0 | O81: 9901.347782 | P81: 96.87800087 | Q81: 0 | R81: 959.2227791 | S81: 0 | T81: 0 | U81: 0 | V81: 674.4181471 | AR81: 101 | AS81: 330.1115451 | AT81: ='2023 Rates - Females'!AT87 -> 0 | AU81: ='2023 Rates - Females'!AU87 -> 330.1115451
L82: 63 | M82: 85 | N82: 0 | O82: 8942.125003 | P82: 103.1217929 | Q82: 0 | R82: 922.1279631 | S82: 0 | T82: 0 | U82: 0 | V82: 589.9097969 | AR82: 102 | AS82: 354.4658783 | AT82: ='2023 Rates - Females'!AT88 -> 0 | AU82: ='2023 Rates - Females'!AU88 -> 354.4658783
L83: 64 | M83: 86 | N83: 0 | O83: 8019.99704 | P83: 110.256257 | Q83: 0 | R83: 884.2548545 | S83: 0 | T83: 0 | U83: 0 | V83: 512.4234779 | AR83: 103 | AS83: 378.3502873 | AT83: ='2023 Rates - Females'!AT89 -> 0 | AU83: ='2023 Rates - Females'!AU89 -> 378.3502873
L84: 65 | M84: 87 | N84: 0 | O84: 7135.742186 | P84: 118.208685 | Q84: 0 | R84: 843.5067003 | S84: 0 | T84: 0 | U84: 0 | V84: 441.5744148 | AR84: 104 | AS84: 401.3970053 | AT84: ='2023 Rates - Females'!AT90 -> 0 | AU84: ='2023 Rates - Females'!AU90 -> 401.3970053
L85: 66 | M85: 88 | N85: 0 | O85: 6292.235485 | P85: 126.8972807 | Q85: 0 | R85: 798.4675724 | S85: 0 | T85: 0 | U85: 0 | V85: 377.1200812 | AR85: 105 | AS85: 423.2382656 | AT85: ='2023 Rates - Females'!AT91 -> 0 | AU85: ='2023 Rates - Females'!AU91 -> 423.2382656
L86: =L85+1 -> 67 | M86: 89 | N86: 0 | O86: 5493.767913 | P86: 136.4401943 | Q86: 0 | R86: 749.5707616 | S86: 0 | T86: 0 | U86: 0 | V86: 318.9003084 | AR86: 106 | AS86: 443.4960855 | AT86: ='2023 Rates - Females'!AT92 -> 0 | AU86: ='2023 Rates - Females'!AU92 -> 443.4960855
L87: 68 | M87: 90 | N87: 0 | O87: 4744.197151 | P87: 146.8283375 | Q87: 0 | R87: 696.5825803 | S87: 0 | T87: 0 | U87: 0 | V87: 266.7210541 | AR87: 107 | AS87: 461.8026984 | AT87: ='2023 Rates - Females'!AT93 -> 0 | AU87: ='2023 Rates - Females'!AU93 -> 461.8026984
L88: 69 | M88: 91 | N88: 0 | O88: 4047.614571 | P88: 157.8708518 | Q88: 0 | R88: 639.0003602 | S88: 0 | T88: 0 | U88: 0 | V88: 220.3959759 | AR88: 108 | AS88: 477.7801217 | AT88: ='2023 Rates - Females'!AT94 -> 0 | AU88: ='2023 Rates - Females'!AU94 -> 477.7801217
L89: 70 | M89: 92 | N89: 0 | O89: 3408.614211 | P89: 169.5677374 | Q89: 0 | R89: 577.9909995 | S89: 0 | T89: 0 | U89: 0 | V89: 179.7596857 | AR89: 109 | AS89: 491.0503729 | AT89: ='2023 Rates - Females'!AT95 -> 0 | AU89: ='2023 Rates - Females'!AU95 -> 491.0503729
L90: 71 | M90: 93 | N90: 0 | O90: 2830.623211 | P90: 182.0462331 | Q90: 0 | R90: 515.3042929 | S90: 0 | T90: 0 | U90: 0 | V90: 144.5794116 | AR90: 110 | AS90: 501.2354695 | AT90: ='2023 Rates - Females'!AT96 -> 0 | AU90: ='2023 Rates - Females'!AU96 -> 501.2354695
L91: 72 | M91: 94 | N91: 0 | O91: 2315.318919 | P91: 194.8428259 | Q91: 0 | R91: 451.1232808 | S91: 0 | T91: 0 | U91: 0 | V91: 114.5368275 | AR91: 111 | AS91: 507.9574289 | AT91: ='2023 Rates - Females'!AT97 -> 0 | AU91: ='2023 Rates - Females'!AU97 -> 507.9574289
L92: 73 | M92: 95 | N92: 0 | O92: 1864.195638 | P92: =IF($M92<>" *",MINA(VLOOKUP(M92,ULTRATES,4),1000)," ") -> 207.9120733 | Q92: =IF($M92<>" *",VLOOKUP(M92,ULTRATES,3)," ") -> 0 | R92: 387.5887801 | S92: 0 | T92: 0 | U92: 0 | V92: 89.31733496 | AR92: 112 | AS92: 510.7871899 | AT92: ='2023 Rates - Females'!AT98 -> 0 | AU92: ='2023 Rates - Females'!AU98 -> 510.7871899
L93: 74 | M93: 96 | N93: 0 | O93: 1476.606858 | P93: 222.8717265 | Q93: 0 | R93: =IF($M93<>" *",O93*P93/1000," ") -> 329.0939197 | S93: =IF($M93<>" *",O93*Q93/1000," ") -> 0 | T93: =IF($M93<>" *",N93*R93*(1+IRATE)^(-M93-1)," ") -> 0 | U93: =IF($M93<>" *",U94+T93," ") -> 0 | V93: 68.52027377 | AR93: 113 | AS93: 510.7871899 | AT93: ='2023 Rates - Females'!AT99 -> 0 | AU93: ='2023 Rates - Females'!AU99 -> 510.7871899
L94: 75 | M94: =IF(DISAGE+L94<=121,DISAGE+L94," *") -> 97 | N94: =IF($M94<>" *",VLOOKUP(TRUNC(M94),DBTABLE,DBOPT+1)," ") -> 0 | O94: =IF($M94<>" *",O93-R93-S93," ") -> 1147.512938 | P94: 240.2398294 | Q94: 0 | R94: 275.6783124 | S94: 0 | T94: 0 | U94: 0 | V94: =IF($M94<>" *",O94*(1+IRATE)^(-M94)," ") -> 51.57292208 | AR94: 114 | AS94: 510.7871899 | AT94: ='2023 Rates - Females'!AT100 -> 0 | AU94: ='2023 Rates - Females'!AU100 -> 510.7871899
L95: 76 | M95: 98 | N95: 0 | O95: 871.8346255 | P95: 259.016648 | Q95: 0 | R95: 225.8196823 | S95: 0 | T95: =IF($M95<>" *",N95*R95*(1+IRATE)^(-M95-1)," ") -> 0 | U95: 0 | V95: 37.94968725 | AR95: 115 | AS95: 510.7871899 | AT95: ='2023 Rates - Females'!AT101 -> 0 | AU95: ='2023 Rates - Females'!AU101 -> 510.7871899
L96: 77 | M96: 99 | N96: 0 | O96: 646.0149431 | P96: 279.0385897 | Q96: 0 | R96: 180.2630987 | S96: 0 | T96: 0 | U96: 0 | V96: 27.23495057 | AR96: 116 | AS96: 510.7871899 | AT96: ='2023 Rates - Females'!AT102 -> 0 | AU96: ='2023 Rates - Females'!AU102 -> 510.7871899
L97: 78 | M97: 100 | N97: 0 | O97: =IF($M97<>" *",O96-R96-S96," ") -> 465.7518445 | P97: 305.6652702 | Q97: 0 | R97: 142.3641634 | S97: 0 | T97: 0 | U97: =IF($M97<>" *",U114+T97," ") -> 0 | V97: 19.01728656 | AR97: 117 | AS97: 510.7871899 | AT97: ='2023 Rates - Females'!AT103 -> 0 | AU97: ='2023 Rates - Females'!AU103 -> 510.7871899
L98: 79 | M98: 101 | N98: =IF($M98<>" *",VLOOKUP(TRUNC(M98),DBTABLE,DBOPT+1)," ") -> 0 | O98: =IF($M98<>" *",O97-R97-S97," ") -> 323.3876811 | P98: 330.1115451 | Q98: 0 | R98: 106.7540071 | S98: 0 | T98: =IF($M98<>" *",N98*R98*(1+IRATE)^(-M98-1)," ") -> 0 | U98: =IF($M98<>" *",U115+T98," ") -> 0 | V98: =IF($M98<>" *",O98*(1+IRATE)^(-M98)," ") -> 12.78872884 | AR98: 118 | AS98: 510.7871899 | AT98: ='2023 Rates - Females'!AT104 -> 0 | AU98: ='2023 Rates - Females'!AU104 -> 510.7871899
L99: 80 | M99: 102 | N99: 0 | O99: 216.633674 | P99: 354.4658783 | Q99: 0 | R99: 76.78924553 | S99: 0 | T99: 0 | U99: 0 | V99: 8.297357676 | AR99: 119 | AS99: 510.7871899 | AT99: ='2023 Rates - Females'!AT105 -> 0 | AU99: ='2023 Rates - Females'!AU105 -> 510.7871899
L100: 81 | M100: 103 | N100: 0 | O100: 139.8444285 | P100: 378.3502873 | Q100: 0 | R100: 52.9101797 | S100: 0 | T100: 0 | U100: 0 | V100: 5.18762954 | AR100: 120 | AS100: 510.7871899 | AT100: ='2023 Rates - Females'!AT106 -> 0 | AU100: ='2023 Rates - Females'!AU106 -> 510.7871899
L101: 82 | M101: 104 | N101: 0 | O101: 86.93424879 | P101: 401.3970053 | Q101: 0 | R101: 34.89514712 | S101: 0 | T101: 0 | U101: 0 | V101: 3.123378608 | AR101: 121 | AS101: =AT101+AU101 -> 1000 | AT101: ='2023 Rates - Females'!AT107 -> 0 | AU101: ='2023 Rates - Females'!AU107 -> 1000
L102: 83 | M102: 105 | N102: 0 | O102: 52.03910166 | P102: 423.2382656 | Q102: 0 | R102: 22.02493913 | S102: 0 | T102: 0 | U102: 0 | V102: 1.810812386
L103: 84 | M103: 106 | N103: 0 | O103: 30.01416253 | P103: 443.4960855 | Q103: 0 | R103: 13.31116359 | S103: 0 | T103: 0 | U103: 0 | V103: 1.011532487
L104: 85 | M104: 107 | N104: 0 | O104: 16.70299894 | P104: 461.8026984 | Q104: 0 | R104: 7.713489982 | S104: 0 | T104: 0 | U104: 0 | V104: 0.5452027006
L105: 86 | M105: 108 | N105: 0 | O105: 8.989508958 | P105: 477.7801217 | Q105: 0 | R105: 4.295008684 | S105: 0 | T105: 0 | U105: 0 | V105: 0.2841904332
L106: 87 | M106: 109 | N106: 0 | O106: 4.694500274 | P106: 491.0503729 | Q106: 0 | R106: 2.30523611 | S106: 0 | T106: 0 | U106: 0 | V106: 0.1437383956
L107: 88 | M107: 110 | N107: 0 | O107: 2.389264164 | P107: 501.2354695 | Q107: 0 | R107: 1.197583945 | S107: 0 | T107: 0 | U107: 0 | V107: 0.0708528841
L108: 89 | M108: 111 | N108: 0 | O108: 1.191680219 | P108: 507.9574289 | Q108: 0 | R108: 0.6053228201 | S108: 0 | T108: 0 | U108: 0 | V108: 0.03422654283
L109: 90 | M109: 112 | N109: 0 | O109: 0.5863573988 | P109: 510.7871899 | Q109: 0 | R109: 0.299503848 | S109: 0 | T109: 0 | U109: 0 | V109: 0.01631081466
L110: 91 | M110: 113 | N110: 0 | O110: 0.2868535508 | P110: 510.7871899 | Q110: 0 | R110: 0.1465211191 | S110: 0 | T110: 0 | U110: 0 | V110: 0.007728290047
L111: 92 | M111: 114 | N111: 0 | O111: 0.1403324317 | P111: 510.7871899 | Q111: 0 | R111: 0.07168000843 | S111: 0 | T111: 0 | U111: 0 | V111: 0.003661770936
L112: 93 | M112: 115 | N112: 0 | O112: 0.06865242324 | P112: 510.7871899 | Q112: 0 | R112: 0.03506677835 | S112: 0 | T112: 0 | U112: 0 | V112: 0.00173499782
L113: 94 | M113: 116 | N113: 0 | O113: 0.03358564489 | P113: 510.7871899 | Q113: 0 | R113: 0.01715511718 | S113: 0 | T113: 0 | U113: 0 | V113: 0.0008220660136
L114: 95 | M114: 117 | N114: =IF($M114<>" *",VLOOKUP(TRUNC(M114),DBTABLE,DBOPT+1)," ") -> 0 | O114: 0.01643052772 | P114: 510.7871899 | Q114: 0 | R114: 0.008392503081 | S114: 0 | T114: 0 | U114: 0 | V114: 0.0003895062708
L115: 96 | M115: 118 | N115: 0 | O115: 0.008038024635 | P115: 510.7871899 | Q115: 0 | R115: 0.004105720016 | S115: 0 | T115: 0 | U115: 0 | V115: 0.0001845534695
L116: 97 | M116: 119 | N116: 0 | O116: 0.003932304619 | P116: 510.7871899 | Q116: 0 | R116: 0.002008570826 | S116: 0 | T116: 0 | U116: 0 | V116: 8.74439917e-05
L117: 98 | M117: 120 | N117: 0 | O117: 0.001923733793 | P117: 510.7871899 | Q117: 0 | R117: 0.0009826185781 | S117: 0 | T117: 0 | U117: 0 | V117: 4.143217521e-05
L119: FOOTNOTES:
L121: Duration, in years, following disablement.
L122: Col(7) = Col(1) x Col(5)
L123: Exceeds maximum age, per the mortality table.
L138: 2023 GRP LIFE DISABILITY VALUATION TABLE - ULTIMATE PERIOD
M141: Central Age at Disability: | P141: =DISAGE -> 22 | Q141: Valuation Interest Rate: | T141: =IRATE -> 0.0325
M142: Mortality Rate Factor: | P142: =MORT -> 0 | Q142: Diagnosis Group - Death | T142: =MortDiagGroup -> Unclassified
M143: Recovery Rate Factor: | P143: =RECOV -> 0 | Q143: Diagnosis Group - Recovery | T143: =RecovDiagGroup -> Unclassified
M144: Reserve at duration 10: | P144: =VLOOKUP(DISAGE+10,RESERVES_ULT,10) -> 2285278.422
N146: Col (1) | O146: Col (2) | P146: Col (3) | Q146: Col (4) | R146: Col (5) | S146: Col (6) | T146: Col (7)# | U146: Col (8) | V146: Col (9) | W146: Col (10)
M147: Att | N147: Dth Ben | P147: (d) | Q147: (r) | R147: (d) | S147: (r) | T147: (d) | U147: (d) | V147: (T) | W147: Disability
M148: Age | N148: Factor | O148: Lx | P148: qx | Q148: qx | R148: dx | S148: dx | T148: Cx | U148: Mx | V148: Dx | W148: Res/$1000
M149: 27 | N149: =VLOOKUP(TRUNC(M149),DBTABLE,DBOPT+1) -> 1 | O149: 10000000 | P149: =VLOOKUP(M149,ULTRATES,4) -> 10.79429207 | Q149: =VLOOKUP(M149,ULTRATES,3) -> 77.09709921 | R149: =O149*P149/1000 -> 107942.9207 | S149: =O149*Q149/1000 -> 770970.9921 | T149: =N149*R149*(1+IRATE)^(-M149-1) -> 44083.13537 | U149: =U150+T149 -> 514509.176 | V149: =O149*(1+IRATE)^(-M149) -> 4216657.932 | W149: =U149/V149*1000 -> 122.0182392
M150: 28 | N150: 1 | O150: =O149-R149-S149 -> 9121086.087 | P150: 10.79429207 | Q150: 76.14528317 | R150: 98455.66721 | S150: 694527.6829 | T150: 38942.96104 | U150: 470426.0407 | V150: 3724987.893 | W150: =U150/V150*1000 -> 126.2892804
M151: 29 | N151: 1 | O151: 8328102.737 | P151: 10.79429207 | Q151: 75.20521794 | R151: 89895.97332 | S151: 626316.7814 | T151: 34438.04024 | U151: 431483.0796 | V151: 3294081.383 | W151: 130.9873769
M152: 30 | N152: 1 | O152: 7611889.982 | P152: 12.14357858 | Q152: 74.27675846 | R152: 92435.58412 | S152: 565386.5137 | T152: 34296.30398 | U152: 397045.0394 | V152: 2916021.306 | W152: 136.1598554
M153: 31 | N153: 1 | O153: 6954067.885 | P153: 12.14357858 | Q153: 73.35976145 | R153: 84447.26979 | S153: 510148.7611 | T153: 30346.15577 | U153: 362748.7354 | V153: 2580162.481 | W153: 140.591431
M154: 32 | N154: 1 | O154: 6359471.854 | P154: 12.14357858 | Q154: 72.45408538 | R154: 77226.74617 | S154: 460769.7166 | T154: 26877.92551 | U154: 332402.5797 | V154: 2285278.422 | W154: =U154/V154*1000 -> 145.4538652
M155: 33 | N155: 1 | O155: 5821475.391 | P155: 12.14357858 | Q155: 71.5595905 | R155: 70693.54385 | S155: 416582.3951 | T155: 23829.65211 | U155: 305524.6541 | V155: 2026100.926 | W155: 150.7943904
M156: 34 | N156: 1 | O156: 5334199.452 | P156: 12.14357858 | Q156: 70.67613876 | R156: 64776.27019 | S156: 377000.6207 | T156: 21147.73337 | U156: 281695.002 | V156: 1798072.501 | W156: 156.6649853
M157: 35 | N157: 1 | O157: 4892422.561 | P157: 13.49286509 | Q157: 69.80359384 | R157: 66012.79756 | S157: 341508.6773 | T157: 20873.05254 | U157: 260547.2687 | V157: 1597246.145 | W157: 163.1228032
M158: 36 | N158: 1 | O158: 4484901.086 | P158: 13.49286509 | Q158: 68.94182108 | R158: 60514.16528 | S158: 309197.2482 | T158: 18532.10768 | U158: 239674.2161 | V158: 1418112.54 | W158: 169.0093059
M159: 37 | N159: 1 | O159: 4115189.673 | P159: 13.49286509 | Q159: 68.09068748 | R159: 55525.69906 | S159: 280206.0939 | T159: 16469.17114 | U159: 221142.1084 | V159: 1260252.666 | W159: 175.4744222
M160: 38 | N160: 1 | O160: 3779457.88 | P160: 13.91017019 | Q160: 63.1195069 | R160: 52572.90234 | S160: 238557.5177 | T160: 15102.52629 | U160: 204672.9373 | V160: 1121004.142 | W160: 182.580001
M161: 39 | N161: 1 | O161: 3488327.46 | P161: 14.34038164 | Q161: 58.51126341 | R161: 50023.94706 | S161: 204106.4469 | T161: 13917.95868 | U161: 189570.411 | V161: 1002085.767 | W161: 189.1758342
M162: 40 | N162: 1 | O162: 3234197.066 | P162: 14.7838986 | Q162: 54.23945962 | R162: 47814.04147 | S162: 175421.1012 | T162: 12884.36384 | U162: 175652.4523 | V162: 899837.4535 | W162: 195.2046468
M163: 41 | N163: 1 | O163: 3010961.923 | P163: 15.24113258 | Q163: 50.27953267 | R163: 45890.46985 | S163: 151389.7584 | T163: 11976.7772 | U163: 162768.0885 | V163: 811358.4994 | W163: 200.6117994
M164: 42 | N164: 1 | O164: 2813681.695 | P164: 15.71250781 | Q164: 46.60871298 | R164: 44209.99561 | S164: 131142.0825 | T164: 11175.0089 | U164: 150791.3113 | V164: 734331.962 | W164: 205.3448836
M165: 43 | N165: 1 | O165: 2638329.617 | P165: 16.19846166 | Q165: 43.66433722 | R165: 42736.88114 | S165: 115200.9141 | T165: 10462.61322 | U165: 139616.3024 | V165: 666893.4602 | W165: 209.3532337
M166: 44 | N166: 1 | O166: 2480391.822 | P166: 16.69944501 | Q166: 40.72083618 | R166: 41421.16683 | S166: 101003.629 | T166: 9821.314402 | U166: 129153.6892 | V166: 607236.1754 | W166: 212.6910326
M167: 45 | N167: 1 | O167: 2337967.026 | P167: 17.21592269 | Q167: 37.79752778 | R167: 40250.25957 | S167: 88369.3736 | T167: 9243.275771 | U167: 119332.3748 | V167: 554352.0615 | W167: 215.2646
M168: 46 | N168: 1 | O168: 2209347.393 | P168: 17.74837391 | Q168: 34.91268581 | R168: 39212.32362 | S168: 77134.25136 | T168: 8721.471034 | U168: 110089.099 | V168: 507365.8516 | W168: 216.9816882
M169: 47 | N169: 1 | O169: 2093000.818 | P169: 18.29729269 | Q169: 32.0833648 | R169: 38296.24856 | S169: 67150.50875 | T169: 8249.608474 | U169: 101367.628 | V169: 465518.0903 | W169: 217.7522852
M170: 48 | N170: 1 | O170: 1987554.06 | P170: 18.86318834 | Q170: 29.32523866 | R170: 37491.60657 | S170: 58285.49717 | T170: 7822.059135 | U170: 93118.01949 | V170: 428150.1044 | W170: 217.4891902
M171: 49 | N171: 1 | O171: 1891776.956 | P171: 19.44658592 | Q171: 28.19012387 | R171: 36788.60312 | S171: 53329.42675 | T171: 7433.78988 | U171: 85295.96036 | V171: 394690.7742 | W171: 216.1083206
M172: 50 | N172: 1 | O172: 1801658.927 | P172: 20.04802672 | Q172: 27.02594446 | R172: 36119.7063 | S172: 48691.53409 | T172: 7068.888534 | U172: 77862.17048 | V172: 364057.147 | W172: 213.8734842
M173: 51 | N173: 1 | O173: 1716847.686 | P173: 20.66806878 | Q173: 25.84004382 | R173: 35483.92607 | S173: 44363.41944 | T173: 6725.870926 | U173: 70793.28194 | V173: 335999.5461 | W173: 210.6945761
M174: 52 | N174: 1 | O174: 1637000.341 | P174: 21.3072874 | Q174: 24.63962596 | R174: 34880.03674 | S174: 40335.07609 | T174: 6403.298333 | U174: 64067.41102 | V174: 310288.4663 | W174: 206.4769335
M175: 53 | N175: 1 | O175: 1561785.228 | P175: 21.96627567 | Q175: 23.43168005 | R175: 34306.60486 | S175: 36595.25177 | T175: 6099.784368 | U175: 57664.11268 | V175: 286713.4809 | W175: 201.1210373
M176: 54 | N176: 1 | O176: 1490883.371 | P176: 22.64564503 | Q176: 22.22292467 | R176: 33762.0156 | S176: 33131.78885 | T176: 5814.000277 | U176: 51564.32832 | V176: 265082.1065 | W176: 194.5221011
M177: 55 | N177: 1 | O177: 1423989.567 | P177: 23.3460258 | Q177: 21.01974738 | R177: 33244.49716 | S177: 29931.90097 | T177: 5544.678765 | U177: 45750.32804 | V177: 245218.6455 | W177: 186.5695324
M178: 56 | N178: 1 | O178: 1360813.169 | P178: 24.06806783 | Q178: 19.8281525 | R178: 32752.14365 | S178: 26982.41104 | T178: 5290.616615 | U178: 40205.64927 | V178: 226963.0322 | W178: 177.1462466
M179: 57 | N179: 1 | O179: 1301078.614 | P179: 24.81244107 | Q179: 18.65372046 | R179: 32282.93643 | S179: 24269.95676 | T179: 5050.676261 | U179: 34915.03266 | V179: 210169.6977 | W179: 166.127815
M180: 58 | N180: 1 | O180: 1244525.721 | P180: 25.57983615 | Q180: 17.50157523 | R180: 31834.76402 | S180: 21781.16053 | T180: 4823.786476 | U180: 29864.3564 | V180: 194706.4675 | W180: 153.3814299
M181: 59 | N181: =VLOOKUP(TRUNC(M181),DBTABLE,DBOPT+1) -> 1 | O181: 1190909.796 | P181: =VLOOKUP(M181,ULTRATES,4) -> 26.3709651 | Q181: =VLOOKUP(M181,ULTRATES,3) -> 16.3763577 | R181: 31405.44068 | S181: 19502.76481 | T181: =N181*R181*(1+IRATE)^(-M181-1) -> 4608.94231 | U181: 25040.56992 | V181: =O181*(1+IRATE)^(-M181) -> 180453.4994 | W181: 138.764668
M182: 60 | N182: 1 | O182: 1140001.591 | P182: 27.18656196 | Q182: 15.28220235 | R182: 30992.72388 | S182: 17421.73499 | T182: 4405.204428 | U182: 20431.62761 | V182: 167302.2715 | W182: 122.1240299
M183: 61 | N183: 1 | O183: 1091587.132 | P183: 28.02738347 | Q183: 14.22273385 | R183: 30594.33113 | S183: 15525.35325 | T183: 4211.698 | U183: 16026.42318 | V183: 155154.6255 | W183: 103.293235
M184: 62 | N184: 1 | O184: 1045467.447 | P184: 28.89420976 | Q184: 13.2010554 | R184: 30207.95572 | S184: 13801.27369 | T184: 4027.611158 | U184: 11814.72518 | V184: 143921.8638 | W184: 82.09124641
M185: 63 | N185: 1 | O185: 1001458.218 | P185: 30.46793488 | Q185: 12.21976151 | R185: 30512.36377 | S185: 12237.58059 | T185: 3940.143076 | U185: 7787.114025 | V185: 133523.9078 | W185: 58.31999794
M186: 64 | N186: 1 | O186: 958708.2737 | P186: 32.0838408 | Q186: 11.28093918 | R186: 30759.04363 | S186: 10815.12973 | T186: 3846.970949 | U186: 3846.970949 | V186: 123800.5615 | W186: 31.07393782
M187: 65 | N187: 0 | O187: 917134.1004 | P187: 33.71957548 | Q187: 10.38618994 | R187: 30925.37252 | S187: 9525.528969 | T187: 0 | U187: 0 | V187: 114704.0943 | W187: 0
M188: 66 | N188: 0 | O188: 876683.1989 | P188: 35.34855755 | Q188: 9.536647306 | R188: 30989.48651 | S188: 8360.618467 | T188: 0 | U188: 0 | V188: 106193.6876 | W188: 0
M189: 67 | N189: 0 | O189: 837333.0939 | P189: 36.93996612 | Q189: 8.733004612 | R189: 30931.05612 | S189: 7312.433771 | T189: 0 | U189: 0 | V189: 98234.53962 | W189: 0
M190: 68 | N190: 0 | O190: 799089.604 | P190: 38.45898593 | Q190: 7.975540591 | R190: 30732.17584 | S190: 6373.171572 | T190: 0 | U190: 0 | V190: 90796.97469 | W190: 0
M191: 69 | N191: 0 | O191: 761984.2566 | P191: 39.86732837 | Q191: 7.264154202 | R191: 30378.27657 | S191: 5535.171139 | T191: 0 | U191: 0 | V191: 83855.55463 | W191: 0
M192: 70 | N192: 0 | O192: 726070.8089 | P192: 41.12404874 | Q192: 6.598395993 | R192: 29858.97133 | S192: 4790.902716 | T192: 0 | U192: 0 | V192: 77388.20147 | W192: 0
M193: 71 | N193: 0 | O193: 691420.9348 | P193: 43.1671975 | Q193: 5.888074656 | R193: 29846.70405 | S193: 4071.138083 | T193: 0 | U193: 0 | V193: 71375.34848 | W193: 0
M194: 72 | N194: 0 | O194: 657503.0927 | P194: 45.21034626 | Q194: 5.148640115 | R194: 29725.94249 | S194: 3385.246799 | T194: 0 | U194: 0 | V194: 65737.54124 | W194: 0
M195: 73 | N195: 0 | O195: 624391.9034 | P195: 48.2750694 | Q195: 4.396485307 | R195: 30142.56247 | S195: 2745.129829 | T195: 0 | U195: 0 | V195: 60462.04872 | W195: 0
M196: 74 | N196: 0 | O196: 591504.2111 | P196: 51.33979254 | Q196: 3.648631602 | R196: 30367.70349 | S196: 2158.180957 | T196: 0 | U196: 0 | V196: 55474.49744 | W196: 0
M197: 75 | N197: 0 | O197: 558978.3267 | P197: 54.40451568 | Q197: 2.92241005 | R197: 30410.94514 | S197: 1633.563879 | T197: 0 | U197: 0 | V197: 50773.8908 | W197: 0
M198: 76 | N198: 0 | O198: 526933.8176 | P198: 58.4908132 | Q198: 2.235155493 | R198: 30820.7875 | S198: 1177.779017 | T198: 0 | U198: 0 | V198: 46356.59054 | W198: 0
M199: 77 | N199: 0 | O199: 494935.2511 | P199: 62.57711072 | Q199: 1.603940836 | R199: 30971.61801 | S199: 793.8468604 | T199: 0 | U199: 0 | V199: 42170.98467 | W199: 0
M200: 78 | N200: 0 | O200: 463169.7863 | P200: 66.66340824 | Q200: 1.045403375 | R200: 30876.47655 | S200: 484.1992578 | T200: 0 | U200: 0 | V200: 38222.1855 | W200: 0
M201: 79 | N201: 0 | O201: 431809.1105 | P201: 70.74970576 | Q201: 0.5757846916 | R201: 30550.36751 | S201: 248.6290755 | T201: 0 | U201: 0 | V201: 34512.5489 | W201: 0
M202: 80 | N202: 0 | O202: 401010.1139 | P202: 75.85757766 | Q202: 0.2115495437 | R202: 30419.65585 | S202: 84.83350661 | T202: 0 | U202: 0 | V202: 31042.05756 | W202: 0
M203: 81 | N203: 0 | O203: 370505.6245 | P203: 82.48183399 | Q203: 0 | R203: 30559.98341 | S203: 0 | T203: 0 | U203: 0 | V203: 27777.93252 | W203: 0
M204: 82 | N204: 0 | O204: 339945.6411 | P204: 86.680716 | Q204: 0 | R204: 29466.73157 | S204: 0 | T204: 0 | U204: 0 | V204: 24684.51109 | W204: 0
M205: 83 | N205: 0 | O205: 310478.9095 | P205: 91.44308434 | Q205: 0 | R205: 28391.14911 | S205: 0 | T205: 0 | U205: 0 | V205: 21835.19612 | W205: 0
M206: 84 | N206: 0 | O206: 282087.7604 | P206: 96.87800087 | Q206: 0 | R206: 27328.0983 | S206: 0 | T206: 0 | U206: 0 | V206: 19214.06145 | W206: 0
M207: 85 | N207: 0 | O207: 254759.6621 | P207: 103.1217929 | Q207: 0 | R207: 26271.27313 | S207: 0 | T207: 0 | U207: 0 | V207: 16806.43253 | W207: 0
M208: 86 | N208: 0 | O208: 228488.389 | P208: 110.256257 | Q208: 0 | R208: 25192.27453 | S208: 0 | T208: 0 | U208: 0 | V208: 14598.86012 | W208: 0
M209: 87 | N209: 0 | O209: 203296.1145 | P209: 118.208685 | Q209: 0 | R209: 24031.36636 | S209: 0 | T209: 0 | U209: 0 | V209: 12580.38203 | W209: 0
M210: 88 | N210: 0 | O210: 179264.7481 | P210: 126.8972807 | Q210: 0 | R210: 22748.20905 | S210: 0 | T210: 0 | U210: 0 | V210: 10744.08873 | W210: 0
M211: 89 | N211: 0 | O211: 156516.539 | P211: 136.4401943 | Q211: 0 | R211: 21355.147 | S211: 0 | T211: 0 | U211: 0 | V211: 9085.417033 | W211: 0
M212: 90 | N212: 0 | O212: 135161.392 | P212: 146.8283375 | Q212: 0 | R212: 19845.52248 | S212: 0 | T212: 0 | U212: 0 | V212: 7598.83871 | W212: 0
M213: 91 | N213: =VLOOKUP(TRUNC(M213),DBTABLE,DBOPT+1) -> 0 | O213: 115315.8696 | P213: =VLOOKUP(M213,ULTRATES,4) -> 157.8708518 | Q213: =VLOOKUP(M213,ULTRATES,3) -> 0 | R213: =O213*P213/1000 -> 18205.01456 | S213: =O213*Q213/1000 -> 0 | T213: =N213*R213*(1+IRATE)^(-M213-1) -> 0 | U213: =U214+T213 -> 0 | V213: =O213*(1+IRATE)^(-M213) -> 6279.044896 | W213: 0
M214: 92 | N214: 0 | O214: =O213-R213-S213 -> 97110.85501 | P214: 169.5677374 | Q214: 0 | R214: 16466.86796 | S214: 0 | T214: 0 | U214: 0 | V214: 5121.323709 | W214: =U214/V214*1000 -> 0
M215: 93 | N215: 0 | O215: 80643.98705 | P215: 182.0462331 | Q215: 0 | R215: 14680.93406 | S215: 0 | T215: 0 | U215: 0 | V215: 4119.043521 | W215: 0
M216: 94 | N216: 0 | O216: 65963.05298 | P216: 194.8428259 | Q216: 0 | R216: 12852.42765 | S216: 0 | T216: 0 | U216: =U217+T216 -> 0 | V216: 3263.135268 | W216: 0
M217: 95 | N217: =VLOOKUP(TRUNC(M217),DBTABLE,DBOPT+1) -> 0 | O217: 53110.62534 | P217: 207.9120733 | Q217: 0 | R217: 11042.34023 | S217: 0 | T217: =N217*R217*(1+IRATE)^(-M217-1) -> 0 | U217: =U218+T217 -> 0 | V217: =O217*(1+IRATE)^(-M217) -> 2544.636098 | W217: 0
M218: 96 | N218: 0 | O218: 42068.28511 | P218: 222.8717265 | Q218: 0 | R218: 9375.831334 | S218: 0 | T218: 0 | U218: 0 | V218: 1952.131265 | W218: 0
M219: 97 | N219: 0 | O219: 32692.45378 | P219: 240.2398294 | Q219: 0 | R219: 7854.029516 | S219: 0 | T219: 0 | U219: 0 | V219: 1469.304019 | W219: 0
M220: 98 | N220: 0 | O220: 24838.42426 | P220: 259.016648 | Q220: 0 | R220: 6433.565394 | S220: 0 | T220: 0 | U220: 0 | V220: 1081.180312 | W220: 0
M221: 99 | N221: 0 | O221: 18404.85887 | P221: 279.0385897 | Q221: 0 | R221: 5135.665862 | S221: 0 | T221: 0 | U221: 0 | V221: 775.9192365 | W221: 0
... 22 more rows

Sheet F-27
B2: 2023 GRP LIFE DISABILITY VALUATION TABLE - ASSUMPTIONS | L2: 2023 GRP LIFE DISABILITY VALUATION TABLE - SELECT PERIOD | Z2: 2023 GRP LIFE DISABILITY VALUATION TABLE - TERMINATION RATES PER 1,000 LIVES
Z4: PROBABILITY OF DEATH OR RECOVERY - SELECT PERIOD@ | AO4: COL OFFSET@@ | AR4: ULTIMATE PERIOD@@@
B5: Age at Disability: | D5: 27 | L5: Age at Disability: | O5: =DISAGE -> 27 | Q5: Valuation Interest Rate: | T5: =IRATE -> 0.0325 | Z5: Central Age => | AA5: 17 | AB5: 22 | AC5: 27 | AD5: 32 | AE5: 37 | AF5: 42 | AG5: 47 | AH5: 52 | AI5: 57 | AJ5: 62 | AK5: 67 | AL5: 72 | AM5: 73 | AO5: Dis | AR5: Att | AS5: Term. | AT5: Recov | AU5: Death
B6: Mortality Rate Factor: | L6: Mortality Rate Factor: | O6: =MORT -> 0 | Q6: Diagnosis Group - Death | T6: =MortDiagGroup -> Unclassified | AO6: Age | AP6: Col. | AR6: Age | AS6: Rate | AT6: Rate | AU6: Rate
B7: Recovery Rate Factor: | L7: Recovery Rate Factor: | O7: =RECOV -> 0 | Q7: Diagnosis Group - Recovery | T7: =RecovDiagGroup -> Unclassified | Z7: Year of Dis. | AO7: 17 | AP7: 0 | AR7: 27 | AS7: =AT7+AU7 -> 87.89139128 | AT7: ='2023 Rates - Females'!AT13 -> 77.09709921 | AU7: ='2023 Rates - Females'!AU13 -> 10.79429207
B8: Valuation Interest Rate: | D8: =Assumptions!C12 -> 0.0325 | L8: Reserve at duration 3/4: | O8: =$W$16 -> 65.18842725 | Q8: Death Benefit Option: | T8: =VLOOKUP(DBOPT,DB_DESC,2) -> Pattern 5 - No coverage after age 65 | Z8: 1 (4th qtr.) | AA8: =AA31+AA54 -> 311.2403279 | AB8: 312.3465094 | AC8: 259.2709985 | AD8: 220.3555684 | AE8: 144.1948443 | AF8: 124.3741647 | AG8: 108.7245717 | AH8: 96.9449402 | AI8: 88.16683649 | AJ8: 81.08712857 | AK8: 66.73485736 | AL8: 56.62684932 | AO8: 18 | AP8: 0 | AR8: 28 | AS8: =AT8+AU8 -> 86.93957524 | AT8: ='2023 Rates - Females'!AT14 -> 76.14528317 | AU8: ='2023 Rates - Females'!AU14 -> 10.79429207
B9: Sex (1=Male,2=female): | D9: 1 | Z9: 2 (1st qtr.) | AA9: =AA33+AA56 -> 197.128847 | AB9: 198.4594183 | AC9: 168.927436 | AD9: 145.2451356 | AE9: 125.4530794 | AF9: 109.688645 | AG9: 97.58597986 | AH9: 88.89383149 | AI9: 82.95677816 | AJ9: 77.44140929 | AK9: 68.37441592 | AL9: 59.30742255 | AO9: 19 | AP9: 0 | AR9: 29 | AS9: 85.99951001 | AT9: ='2023 Rates - Females'!AT15 -> 75.20521794 | AU9: ='2023 Rates - Females'!AU15 -> 10.79429207
B10: Benefit Option (1-6)@: | D10: =Benefit_Option -> 5 | E10: =VLOOKUP(DBOPT,DB_DESC,2) -> Pattern 5 - No coverage after age 65 | N10: Col (1) | O10: Col (2) | P10: Col (3) | Q10: Col (4) | R10: Col (5) | S10: Col (6) | T10: Col (7)## | U10: Col (8) | V10: Col (9) | W10: Col (10) | Z10: 2 (2nd qtr.) | AA10: 172.9621642 | AB10: 174.3105874 | AC10: 145.2173434 | AD10: 124.9579164 | AE10: 108.048248 | AF10: 94.60717173 | AG10: 84.3228681 | AH10: 76.97993051 | AI10: 72.0230873 | AJ10: 67.33220411 | AK10: 57.25595921 | AL10: 47.17971431 | AO10: 20 | AP10: 1 | AR10: 30 | AS10: 86.42033704 | AT10: ='2023 Rates - Females'!AT16 -> 74.27675846 | AU10: ='2023 Rates - Females'!AU16 -> 12.14357858
B11: Diagnosis Group - Death | D11: =Assumptions!C16 -> Unclassified | M11: Att | N11: Dth Ben | O11: (T) | P11: (d) | Q11: (r) | R11: (d) | S11: (r) | T11: (d) | U11: (d) | V11: (T) | W11: Disability | Z11: 2 (3rd qtr.) | AA11: 150.8918918 | AB11: 152.0799622 | AC11: 129.1467814 | AD11: 111.1026626 | AE11: 96.03610415 | AF11: 84.05258951 | AG11: 74.87408221 | AH11: 68.30885682 | AI11: 63.86088795 | AJ11: 59.6755205 | AK11: 50.88908173 | AL11: 44.1544035 | AO11: 21 | AP11: 1 | AR11: 31 | AS11: 85.50334002 | AT11: ='2023 Rates - Females'!AT17 -> 73.35976145 | AU11: ='2023 Rates - Females'!AU17 -> 12.14357858
B12: Diagnosis Group - Recovery | D12: =Assumptions!C17 -> Unclassified | L12: Dur# | M12: Age | N12: Factor | O12: L[x]+t | P12: q[x]+t | Q12: q[x]+t | R12: d[x]+t | S12: d[x]+t | T12: C[x]+t | U12: M[x]+t | V12: D[x]+t | W12: Res/$1000 | Z12: 2 (4th qtr.) | AA12: 138.6166824 | AB12: 139.7546019 | AC12: 118.1458284 | AD12: 101.5661796 | AE12: 87.70639567 | AF12: 76.66243372 | AG12: 68.1779723 | AH12: 62.07719127 | AI12: 57.90033312 | AJ12: 54.03453167 | AK12: 48.63832855 | AL12: 40.28885548 | AO12: 22 | AP12: 1 | AR12: 32 | AS12: 84.59766396 | AT12: ='2023 Rates - Females'!AT18 -> 72.45408538 | AU12: ='2023 Rates - Females'!AU18 -> 12.14357858
L13: 0 | M13: =DISAGE+L13 -> 27 | N13: =VLOOKUP(TRUNC(M13),DBTABLE,DBOPT+1) -> 1 | O13: 10000000 | P13: 0 | Q13: 0 | R13: 0 | S13: 0 | T13: 0 | U13: =U14+T13 -> 234350.8564 | V13: =O13*(1+IRATE)^(-M13) -> 4216657.932 | W13: =U13/V13*1000 -> 55.57739333 | Z13: 2 (annual) | AA13: 523.4248177 | AB13: 528.3363697 | AC13: 466.6152388 | AD13: 414.9707525 | AE13: 369.0765167 | AF13: 330.6804629 | AG13: 300.0715058 | AH13: 277.4811258 | AI13: 261.7753247 | AJ13: 245.8794132 | AK13: 215.7602264 | AL13: 184.2174767 | AO13: 23 | AP13: 1 | AR13: 33 | AS13: 83.70316907 | AT13: ='2023 Rates - Females'!AT19 -> 71.5595905 | AU13: ='2023 Rates - Females'!AU19 -> 12.14357858
L14: 0.25 | M14: 27.25 | N14: 1 | O14: 10000000 | P14: 0 | Q14: 0 | R14: 0 | S14: 0 | T14: 0 | U14: =U15+T14 -> 234350.8564 | V14: 4183076.972 | W14: 56.02355825 | Z14: 3 | AA14: =AA38+AA61 -> 598.3734987 | AB14: 600.6086782 | AC14: 499.3835315 | AD14: 426.693751 | AE14: 405.9429947 | AF14: 327.9506743 | AG14: 282.4280644 | AH14: 237.4630497 | AI14: 208.8141132 | AJ14: 190.0124426 | AK14: 163.5709338 | AL14: 152.9943303 | AO14: 24 | AP14: 1 | AR14: 34 | AS14: 82.81971734 | AT14: ='2023 Rates - Females'!AT20 -> 70.67613876 | AU14: ='2023 Rates - Females'!AU20 -> 12.14357858
B15: Reserve at duration 0: | D15: =VLOOKUP(0,RESERVES_SEL,12) -> 55.57739333 | L15: 0.5 | M15: 27.5 | N15: =VLOOKUP(TRUNC(M15),DBTABLE,DBOPT+1) -> 1 | O15: 10000000 | P15: =INDEX(DEATH,4,VLOOKUP(DISAGE,COLTABLE,2)+1) -> 8.84945201 | Q15: =INDEX(RECOVERY,4,VLOOKUP(DISAGE,COLTABLE,2)+1) -> 250.4215465 | R15: =O15*P15/1000 -> 88494.5201 | S15: =O15*Q15/1000 -> 2504215.465 | T15: =N15*R15*(1+IRATE)^(-M15-1) -> 35567.19853 | U15: =U16+T15 -> 234350.8564 | V15: 4149763.448 | W15: 56.47330489 | Z15: 4 | AA15: =AA39+AA62 -> 398.0211565 | AB15: 404.4597361 | AC15: 313.3013995 | AD15: 277.7385632 | AE15: 230.281178 | AF15: 188.7381376 | AG15: 163.0335435 | AH15: 137.2762164 | AI15: 122.979876 | AJ15: 113.5957316 | AK15: 98.63798712 | AL15: 95.40785918 | AO15: 25 | AP15: 2 | AR15: 35 | AS15: 83.29645893 | AT15: ='2023 Rates - Females'!AT21 -> 69.80359384 | AU15: ='2023 Rates - Females'!AU21 -> 13.49286509
B16: Reserve at duration 3/4: | D16: =VLOOKUP(0.75,RESERVES_SEL,12) -> 65.18842725 | L16: 0.75 | M16: 27.75 | N16: 1 | O16: =O15-R15-S15 -> 7407290.015 | P16: =INDEX(DEATH,5,VLOOKUP(DISAGE,COLTABLE,2)+1) -> 11.25230196 | Q16: =INDEX(RECOVERY,5,VLOOKUP(DISAGE,COLTABLE,2)+1) -> 188.4393824 | R16: =O16*P16/1000 -> 83349.06395 | S16: =O16*Q16/1000 -> 1395825.155 | T16: 33232.38361 | U16: =U17+T16 -> 198783.6579 | V16: 3049370.36 | W16: =U16/V16*1000 -> 65.18842725 | Z16: 5 | AA16: 282.8862537 | AB16: 287.5546287 | AC16: 217.4653199 | AD16: 189.2216515 | AE16: 155.1860132 | AF16: 126.7016435 | AG16: 109.4985354 | AH16: 94.19471144 | AI16: 83.95563846 | AJ16: 79.41126128 | AK16: 76.84052647 | AL16: 75.55515907 | AO16: 26 | AP16: 2 | AR16: 36 | AS16: 82.43468616 | AT16: ='2023 Rates - Females'!AT22 -> 68.94182108 | AU16: ='2023 Rates - Females'!AU22 -> 13.49286509
B17: Reserve at duration 10: | D17: =VLOOKUP(DISAGE+10,RESERVES_ULT,11) -> 175.4744222 | E17: Attained age: | F17: =DISAGE+10 -> 37 | L17: 1 | M17: 28 | N17: 1 | O17: 5928115.795 | P17: =INDEX(DEATH,6,VLOOKUP(DISAGE,COLTABLE,2)+1) -> 10.64457103 | Q17: =INDEX(RECOVERY,6,VLOOKUP(DISAGE,COLTABLE,2)+1) -> 158.282865 | R17: 63102.24968 | S17: 938319.1521 | T17: 24959.33978 | U17: 165551.2743 | V17: 2421001.113 | W17: 68.38132928 | Z17: 6 | AA17: 158.8769295 | AB17: 165.2910337 | AC17: 146.4493265 | AD17: 116.8508778 | AE17: 95.98781777 | AF17: 81.07865156 | AG17: 71.26804907 | AH17: 64.80636243 | AI17: 61.01032325 | AJ17: 60.41991589 | AK17: 58.39151518 | AL17: 57.9902282 | AO17: 27 | AP17: 2 | AR17: 37 | AS17: 81.58355257 | AT17: ='2023 Rates - Females'!AT23 -> 68.09068748 | AU17: ='2023 Rates - Females'!AU23 -> 13.49286509
L18: 1.25 | M18: 28.25 | N18: 1 | O18: 4926694.394 | P18: =INDEX(DEATH,7,VLOOKUP(DISAGE,COLTABLE,2)+1) -> 9.438962625 | Q18: =INDEX(RECOVERY,7,VLOOKUP(DISAGE,COLTABLE,2)+1) -> 135.7783807 | R18: 46502.88425 | S18: 668938.5872 | T18: 18247.1745 | U18: 140591.9345 | V18: 1996004.055 | W18: 70.43669783 | Z18: 7 | AA18: 129.9638696 | AB18: 135.8115219 | AC18: 124.1162389 | AD18: 96.66943141 | AE18: 78.16392171 | AF18: 66.77258002 | AG18: 58.80544837 | AH18: 54.95773106 | AI18: 54.81249027 | AJ18: 53.51764288 | AK18: 57.97773397 | AL18: 57.67376753 | AO18: 28 | AP18: 2 | AR18: 38 | AS18: 77.02967709 | AT18: ='2023 Rates - Females'!AT24 -> 63.1195069 | AU18: ='2023 Rates - Females'!AU24 -> 13.91017019
L19: 1.5 | M19: 28.5 | N19: 1 | O19: 4211252.922 | P19: =INDEX(DEATH,8,VLOOKUP(DISAGE,COLTABLE,2)+1) -> 8.316492766 | Q19: =INDEX(RECOVERY,8,VLOOKUP(DISAGE,COLTABLE,2)+1) -> 120.8302887 | R19: 35022.85446 | S19: 508846.9063 | T19: 13633.10438 | U19: 122344.76 | V19: 1692562.077 | W19: 72.28376533 | Z19: 8 | AA19: 111.6722771 | AB19: 115.5651654 | AC19: 107.0604166 | AD19: 83.44614802 | AE19: 67.45095373 | AF19: 58.26162621 | AG19: 51.63479883 | AH19: 49.18815756 | AI19: 50.28747863 | AJ19: 51.82293483 | AK19: 57.91830502 | AL19: 57.42342159 | AO19: 29 | AP19: 2 | AR19: 39 | AS19: 72.85164505 | AT19: ='2023 Rates - Females'!AT25 -> 58.51126341 | AU19: ='2023 Rates - Females'!AU25 -> 14.34038164
L20: 1.75 | M20: 28.75 | N20: 1 | O20: 3667383.162 | P20: =INDEX(DEATH,9,VLOOKUP(DISAGE,COLTABLE,2)+1) -> 7.396477132 | Q20: =INDEX(RECOVERY,9,VLOOKUP(DISAGE,COLTABLE,2)+1) -> 110.7493512 | R20: 27125.71569 | S20: =O20*Q20/1000 -> 406160.3059 | T20: 10474.94884 | U20: 108711.6556 | V20: 1462234.587 | W20: 74.34624827 | Z20: 9 | AA20: 96.13639584 | AB20: 99.91359892 | AC20: 95.90345105 | AD20: 74.09163738 | AE20: 60.26450543 | AF20: 52.63856845 | AG20: 47.52915386 | AH20: 45.87747459 | AI20: 48.8595753 | AJ20: 51.79267243 | AK20: 60.75467833 | AL20: 60.08482763 | AO20: 30 | AP20: 3 | AR20: 40 | AS20: 69.02335822 | AT20: ='2023 Rates - Females'!AT26 -> 54.23945962 | AU20: ='2023 Rates - Females'!AU26 -> 14.7838986
L21: 2 | M21: 29 | N21: 1 | O21: 3234097.14 | P21: =INDEX(DEATH,11,VLOOKUP(DISAGE,COLTABLE,2)+1) -> 26.82215344 | Q21: =INDEX(RECOVERY,11,VLOOKUP(DISAGE,COLTABLE,2)+1) -> 472.561378 | R21: 86745.44974 | S21: 1528309.401 | T21: 33231.11345 | U21: 98236.70677 | V21: 1279208.424 | W21: 76.79491857 | Z21: 10 | AA21: 90.17935803 | AB21: 92.58290086 | AC21: 87.31356877 | AD21: 67.67478145 | AE21: 55.75098879 | AF21: 49.32112191 | AG21: 45.44385691 | AH21: 43.97648635 | AI21: 47.48699778 | AJ21: 51.84687215 | AK21: 66.13280689 | AL21: 64.24646104 | AO21: 31 | AP21: 3 | AR21: 41 | AS21: 65.52066525 | AT21: ='2023 Rates - Females'!AT27 -> 50.27953267 | AU21: ='2023 Rates - Females'!AU27 -> 15.24113258
L22: =L21+1 -> 3 | M22: 30 | N22: 1 | O22: 1619042.289 | P22: =INDEX(DEATH,12,VLOOKUP(DISAGE,COLTABLE,2)+1) -> 23.33985102 | Q22: =INDEX(RECOVERY,12,VLOOKUP(DISAGE,COLTABLE,2)+1) -> 289.9615485 | R22: 37788.20583 | S22: 469460.0093 | T22: =N22*R22*(1+IRATE)^(-M22-1) -> 14020.52907 | U22: 65005.59331 | V22: 620235.1611 | W22: 104.8079783 | AO22: 32 | AP22: 3 | AR22: 42 | AS22: 62.32122079 | AT22: ='2023 Rates - Females'!AT28 -> 46.60871298 | AU22: ='2023 Rates - Females'!AU28 -> 15.71250781
L23: 4 | M23: 31 | N23: 1 | O23: 1111794.074 | P23: =INDEX(DEATH,13,VLOOKUP(DISAGE,COLTABLE,2)+1) -> 18.67350026 | Q23: =INDEX(RECOVERY,13,VLOOKUP(DISAGE,COLTABLE,2)+1) -> 198.7918197 | R23: 20761.08693 | S23: 221015.5671 | T23: 7460.50381 | U23: 50985.06425 | V23: 412508.1037 | W23: 123.5977276 | Z23: Age Range | AA23: 19 and | AB23: 20-24 | AC23: 25-29 | AD23: 30-34 | AE23: 35-39 | AF23: 40-44 | AG23: 45-49 | AH23: 50-54 | AI23: 55-59 | AJ23: 60-64 | AK23: 65-69 | AL23: 70-74 | AM23: 75+ | AO23: 33 | AP23: 3 | AR23: 43 | AS23: 59.86279888 | AT23: ='2023 Rates - Females'!AT29 -> 43.66433722 | AU23: ='2023 Rates - Females'!AU29 -> 16.19846166
L24: 5 | M24: 32 | N24: 1 | O24: 870017.4201 | P24: =INDEX(DEATH,14,VLOOKUP(DISAGE,COLTABLE,2)+1) -> 17.40971144 | Q24: =INDEX(RECOVERY,14,VLOOKUP(DISAGE,COLTABLE,2)+1) -> 129.0396151 | R24: 15146.75223 | S24: 112266.713 | T24: 5271.661679 | U24: 43524.56044 | V24: 312641.0625 | W24: 139.2157514 | AA24: Under | AO24: 34 | AP24: 3 | AR24: 44 | AS24: 57.42028119 | AT24: ='2023 Rates - Females'!AT30 -> 40.72083618 | AU24: ='2023 Rates - Females'!AU30 -> 16.69944501
L25: 6 | M25: 33 | N25: 1 | O25: 742603.9548 | P25: =INDEX(DEATH,15,VLOOKUP(DISAGE,COLTABLE,2)+1) -> 16.37342639 | Q25: =INDEX(RECOVERY,15,VLOOKUP(DISAGE,COLTABLE,2)+1) -> 107.7428125 | R25: 12158.97119 | S25: 80010.23866 | T25: 4098.592853 | U25: 38252.89876 | V25: 258455.1956 | W25: 148.0059191 | AO25: 35 | AP25: 4 | AR25: 45 | AS25: 55.01345047 | AT25: ='2023 Rates - Females'!AT31 -> 37.79752778 | AU25: ='2023 Rates - Females'!AU31 -> 17.21592269
L26: 7 | M26: 34 | N26: 1 | O26: 650434.745 | P26: =INDEX(DEATH,16,VLOOKUP(DISAGE,COLTABLE,2)+1) -> 15.57155333 | Q26: =INDEX(RECOVERY,16,VLOOKUP(DISAGE,COLTABLE,2)+1) -> 91.48886331 | R26: 10128.27932 | S26: 59507.53547 | T26: 3306.614443 | U26: 34154.30591 | V26: 219251.0497 | W26: 155.7771603 | AB26: (r) | AO26: 36 | AP26: 4 | AR26: 46 | AS26: 52.66105972 | AT26: ='2023 Rates - Females'!AT32 -> 34.91268581 | AU26: ='2023 Rates - Females'!AU32 -> 17.74837391
L27: 8 | M27: 35 | N27: 1 | O27: 580798.9302 | P27: =INDEX(DEATH,17,VLOOKUP(DISAGE,COLTABLE,2)+1) -> 15.10881232 | Q27: =INDEX(RECOVERY,17,VLOOKUP(DISAGE,COLTABLE,2)+1) -> 80.79463873 | R27: 8775.18203 | S27: 46925.43974 | T27: 2774.686763 | U27: 30847.69146 | V27: 189615.4392 | W27: 162.6855471 | Z27: PROBABILITY OF RECOVERY (1,000Q[X]+T) - SELECT PERIOD@ | AO27: 37 | AP27: 4 | AR27: 47 | AS27: 50.38065749 | AT27: ='2023 Rates - Females'!AT33 -> 32.0833648 | AU27: ='2023 Rates - Females'!AU33 -> 18.29729269
L28: 9 | M28: 36 | N28: 1 | O28: 525098.3084 | P28: =INDEX(DEATH,18,VLOOKUP(DISAGE,COLTABLE,2)+1) -> 14.421257 | Q28: =INDEX(RECOVERY,18,VLOOKUP(DISAGE,COLTABLE,2)+1) -> 72.89231177 | R28: 7572.577658 | S28: 38275.62961 | T28: 2319.057429 | U28: 28073.0047 | V28: 166034.5416 | W28: 169.0793038 | Z28: Central Age => | AA28: 17 | AB28: 22 | AC28: 27 | AD28: 32 | AE28: 37 | AF28: 42 | AG28: 47 | AH28: 52 | AI28: 57 | AJ28: 62 | AK28: 67 | AL28: 72 | AM28: 73 | AO28: 38 | AP28: 4 | AR28: 48 | AS28: 48.188427 | AT28: ='2023 Rates - Females'!AT34 -> 29.32523866 | AU28: ='2023 Rates - Females'!AU34 -> 18.86318834
L29: 10 | M29: 37 | N29: 1 | O29: 479250.1011 | P29: =IF($M29<>" *",MINA(VLOOKUP(M29,ULTRATES,4),1000)," ") -> 13.49286509 | Q29: =IF($M29<>" *",VLOOKUP(M29,ULTRATES,3)," ") -> 68.09068748 | R29: =IF($M29<>" *",O29*P29/1000," ") -> 6466.456957 | S29: =IF($M29<>" *",O29*Q29/1000," ") -> 32632.46886 | T29: =IF($M29<>" *",N29*R29*(1+IRATE)^(-M29-1)," ") -> 1917.980108 | U29: =IF($M29<>" *",U30+T29," ") -> 25753.94727 | V29: 146767.5285 | W29: =U29/V29*1000 -> 175.4744222 | AO29: 39 | AP29: 4 | AR29: 49 | AS29: 47.63670979 | AT29: ='2023 Rates - Females'!AT35 -> 28.19012387 | AU29: ='2023 Rates - Females'!AU35 -> 19.44658592
L30: 11 | M30: =IF(DISAGE+L30<=121,DISAGE+L30," *") -> 38 | N30: =IF($M30<>" *",VLOOKUP(TRUNC(M30),DBTABLE,DBOPT+1)," ") -> 1 | O30: =IF($M30<>" *",O29-R29-S29," ") -> 440151.1753 | P30: 13.91017019 | Q30: 63.1195069 | R30: 6122.577759 | S30: 27782.12515 | T30: 1758.822273 | U30: 23835.96716 | V30: =IF($M30<>" *",O30*(1+IRATE)^(-M30)," ") -> 130550.8108 | Z30: Year of Dis. | AO30: 40 | AP30: 5 | AR30: 50 | AS30: 47.07397118 | AT30: ='2023 Rates - Females'!AT36 -> 27.02594446 | AU30: ='2023 Rates - Females'!AU36 -> 20.04802672
L31: 12 | M31: 39 | N31: 1 | O31: 406246.4724 | P31: 14.34038164 | Q31: 58.51126341 | R31: 5825.729455 | S31: 23769.99436 | T31: 1620.868936 | U31: 22077.14489 | V31: 116701.7182 | Z31: 1 (3rd qtr.) | AA31: ='2023 Rates - Females'!AA37 -> 305.7094204 | AB31: ='2023 Rates - Females'!AB37 -> 305.7094204 | AC31: ='2023 Rates - Females'!AC37 -> 250.4215465 | AD31: ='2023 Rates - Females'!AD37 -> 209.9033989 | AE31: ='2023 Rates - Females'!AE37 -> 131.7770092 | AF31: ='2023 Rates - Females'!AF37 -> 109.5993096 | AG31: ='2023 Rates - Females'!AG37 -> 91.14336864 | AH31: ='2023 Rates - Females'!AH37 -> 76.10452126 | AI31: ='2023 Rates - Females'!AI37 -> 63.41416292 | AJ31: ='2023 Rates - Females'!AJ37 -> 55.17542114 | AK31: ='2023 Rates - Females'!AK37 -> 42.44263165 | AL31: ='2023 Rates - Females'!AL37 -> 33.95410532 | AM31: ='2023 Rates - Females'!AM37 ->  | AO31: 41 | AP31: 5 | AR31: 51 | AS31: 46.5081126 | AT31: ='2023 Rates - Females'!AT37 -> 25.84004382 | AU31: ='2023 Rates - Females'!AU37 -> 20.66806878
L32: 13 | M32: 40 | N32: 1 | O32: 376650.7486 | P32: 14.7838986 | Q32: 54.23945962 | R32: 5568.366475 | S32: 20429.33307 | T32: 1500.497709 | U32: 20456.27595 | V32: 104794.001 | Z32: 1 (4th qtr.) | AA32: ='2023 Rates - Females'!AA38 -> 230.0428824 | AB32: ='2023 Rates - Females'!AB38 -> 230.0428824 | AC32: ='2023 Rates - Females'!AC38 -> 188.4393824 | AD32: ='2023 Rates - Females'!AD38 -> 157.9499344 | AE32: ='2023 Rates - Females'!AE38 -> 131.5721618 | AF32: ='2023 Rates - Females'!AF38 -> 109.4289375 | AG32: ='2023 Rates - Females'!AG38 -> 91.00168626 | AH32: ='2023 Rates - Females'!AH38 -> 75.98621678 | AI32: ='2023 Rates - Females'!AI38 -> 63.3155856 | AJ32: ='2023 Rates - Females'!AJ38 -> 55.08965095 | AK32: ='2023 Rates - Females'!AK38 -> 42.37665457 | AL32: ='2023 Rates - Females'!AL38 -> 33.90132366 | AM32: ='2023 Rates - Females'!AM38 ->  | AO32: 42 | AP32: 5 | AR32: 52 | AS32: 45.94691336 | AT32: ='2023 Rates - Females'!AT38 -> 24.63962596 | AU32: ='2023 Rates - Females'!AU38 -> 21.3072874
L33: 14 | M33: 41 | N33: 1 | O33: 350653.0491 | P33: 15.24113258 | Q33: 50.27953267 | R33: 5344.349609 | S33: 17630.67144 | T33: 1394.801246 | U33: 18955.77824 | V33: 94489.84708 | Z33: 2 (1st qtr.) | AA33: ='2023 Rates - Females'!AA39 -> 190.4759901 | AB33: ='2023 Rates - Females'!AB39 -> 190.4759901 | AC33: ='2023 Rates - Females'!AC39 -> 158.282865 | AD33: ='2023 Rates - Females'!AD39 -> 132.6727345 | AE33: ='2023 Rates - Females'!AE39 -> 110.5162756 | AF33: ='2023 Rates - Females'!AF39 -> 91.91669768 | AG33: ='2023 Rates - Females'!AG39 -> 76.43841452 | AH33: ='2023 Rates - Females'!AH39 -> 63.82591547 | AI33: ='2023 Rates - Females'!AI39 -> 53.18300326 | AJ33: ='2023 Rates - Females'!AJ39 -> 46.27348951 | AK33: ='2023 Rates - Females'!AK39 -> 39.15449112 | AL33: ='2023 Rates - Females'!AL39 -> 32.03549274 | AM33: ='2023 Rates - Females'!AM39 ->  | AO33: 43 | AP33: 5 | AR33: 53 | AS33: 45.39795573 | AT33: ='2023 Rates - Females'!AT39 -> 23.43168005 | AU33: ='2023 Rates - Females'!AU39 -> 21.96627567
L34: 15 | M34: 42 | N34: 1 | O34: 327678.028 | P34: 15.71250781 | Q34: 46.60871298 | R34: 5148.643575 | S34: 15272.65116 | T34: 1301.428262 | U34: 17560.977 | V34: 85519.42803 | Z34: 2 (2nd qtr.) | AA34: ='2023 Rates - Females'!AA40 -> 166.8942597 | AB34: ='2023 Rates - Females'!AB40 -> 166.8942597 | AC34: ='2023 Rates - Females'!AC40 -> 135.7783807 | AD34: ='2023 Rates - Females'!AD40 -> 113.8094705 | AE34: ='2023 Rates - Females'!AE40 -> 94.8031927 | AF34: ='2023 Rates - Females'!AF40 -> 78.84808236 | AG34: ='2023 Rates - Females'!AG40 -> 65.57048453 | AH34: ='2023 Rates - Females'!AH40 -> 54.75121677 | AI34: ='2023 Rates - Females'!AI40 -> 45.62150215 | AJ34: ='2023 Rates - Females'!AJ40 -> 39.69437549 | AK34: ='2023 Rates - Females'!AK40 -> 32.47721631 | AL34: ='2023 Rates - Females'!AL40 -> 25.26005713 | AM34: ='2023 Rates - Females'!AM40 ->  | AO34: 44 | AP34: 5 | AR34: 54 | AS34: 44.8685697 | AT34: ='2023 Rates - Females'!AT40 -> 22.22292467 | AU34: ='2023 Rates - Females'!AU40 -> 22.64564503
L35: 16 | M35: 43 | N35: 1 | O35: 307256.7333 | P35: 16.19846166 | Q35: 43.66433722 | R35: 4977.086414 | S35: 13416.16161 | T35: 1218.463507 | U35: 16259.54874 | V35: 77665.62022 | Z35: 2 (3rd qtr.) | AA35: ='2023 Rates - Females'!AA41 -> 145.545575 | AB35: ='2023 Rates - Females'!AB41 -> 145.545575 | AC35: ='2023 Rates - Females'!AC41 -> 120.8302887 | AD35: ='2023 Rates - Females'!AD41 -> 101.2799763 | AE35: ='2023 Rates - Females'!AE41 -> 84.36613457 | AF35: ='2023 Rates - Females'!AF41 -> 70.16755172 | AG35: ='2023 Rates - Females'!AG41 -> 58.35170909 | AH35: ='2023 Rates - Females'!AH41 -> 48.72355446 | AI35: ='2023 Rates - Females'!AI41 -> 40.59894694 | AJ35: ='2023 Rates - Females'!AJ41 -> 35.32434857 | AK35: ='2023 Rates - Females'!AK41 -> 27.47449333 | AL35: ='2023 Rates - Females'!AL41 -> 23.54956571 | AM35: ='2023 Rates - Females'!AM41 ->  | AO35: 45 | AP35: 6 | AR35: 55 | AS35: 44.36577318 | AT35: ='2023 Rates - Females'!AT41 -> 21.01974738 | AU35: ='2023 Rates - Females'!AU41 -> 23.3460258
L36: 17 | M36: 44 | N36: 1 | O36: 288863.4853 | P36: 16.69944501 | Q36: 40.72083618 | R36: 4823.859888 | S36: 11762.76266 | T36: 1143.778609 | U36: 15041.08523 | V36: 70718.00369 | Z36: 2 (4th qtr.) | AA36: ='2023 Rates - Females'!AA42 -> 134.0650041 | AB36: ='2023 Rates - Females'!AB42 -> 134.0650041 | AC36: ='2023 Rates - Females'!AC42 -> 110.7493512 | AD36: ='2023 Rates - Females'!AD42 -> 92.83013213 | AE36: ='2023 Rates - Females'!AE42 -> 77.32742156 | AF36: ='2023 Rates - Females'!AF42 -> 64.31343429 | AG36: ='2023 Rates - Females'!AG42 -> 53.48339391 | AH36: ='2023 Rates - Females'!AH42 -> 44.65852151 | AI36: ='2023 Rates - Females'!AI42 -> 37.21175446 | AJ36: ='2023 Rates - Females'!AJ42 -> 32.37721874 | AK36: ='2023 Rates - Females'!AK42 -> 26.98101562 | AL36: ='2023 Rates - Females'!AL42 -> 21.58481249 | AM36: ='2023 Rates - Females'!AM42 ->  | AO36: 46 | AP36: 6 | AR36: 56 | AS36: 43.89622034 | AT36: ='2023 Rates - Females'!AT42 -> 19.8281525 | AU36: ='2023 Rates - Females'!AU42 -> 24.06806783
L37: 18 | M37: 45 | N37: 1 | O37: 272276.8627 | P37: 17.21592269 | Q37: 37.79752778 | R37: 4687.497419 | S37: 10291.39228 | T37: 1076.460917 | U37: 13897.30662 | V37: 64559.1826 | Z37: 2 (annual) | AA37: =(1-(1-AA33/1000)*(1-AA34/1000)*(1-AA35/1000)*(1-AA36/1000))*1000 -> 500.9959668 | AB37: =(1-(1-AB33/1000)*(1-AB34/1000)*(1-AB35/1000)*(1-AB36/1000))*1000 -> 500.9959668 | AC37: 431.2934857 | AD37: 373.3527499 | AE37: 319.7783037 | AF37: 272.2335307 | AG37: 230.8175461 | AH37: 195.7924997 | AI37: 165.3245078 | AJ37: 145.0893468 | AK37: 120.2949611 | AL37: 98.59163402 | AM37: ='2023 Rates - Females'!AM43 ->  | AO37: 47 | AP37: 6 | AR37: 57 | AS37: 43.46616152 | AT37: ='2023 Rates - Females'!AT43 -> 18.65372046 | AU37: ='2023 Rates - Females'!AU43 -> 24.81244107
L38: 19 | M38: 46 | N38: 1 | O38: 257297.973 | P38: 17.74837391 | Q38: 34.91268581 | R38: 4566.620631 | S38: 8982.963291 | T38: 1015.692157 | U38: 12820.8457 | V38: 59087.22441 | Z38: 3 | AA38: ='2023 Rates - Females'!AA44 -> 580.4920631 | AB38: ='2023 Rates - Females'!AB44 -> 580.4920631 | AC38: ='2023 Rates - Females'!AC44 -> 472.561378 | AD38: ='2023 Rates - Females'!AD44 -> 398.5251985 | AE38: ='2023 Rates - Females'!AE44 -> 372.628169 | AF38: ='2023 Rates - Females'!AF44 -> 288.4951359 | AG38: ='2023 Rates - Females'!AG44 -> 235.7338898 | AH38: ='2023 Rates - Females'!AH44 -> 182.2826381 | AI38: ='2023 Rates - Females'!AI44 -> 143.8824018 | AJ38: ='2023 Rates - Females'!AJ44 -> 116.3426386 | AK38: ='2023 Rates - Females'!AK44 -> 89.90112981 | AL38: ='2023 Rates - Females'!AL44 -> 79.3245263 | AM38: ='2023 Rates - Females'!AM44 ->  | AO38: 48 | AP38: 6 | AR38: 58 | AS38: 43.08141138 | AT38: ='2023 Rates - Females'!AT44 -> 17.50157523 | AU38: ='2023 Rates - Females'!AU44 -> 25.57983615
L39: 20 | M39: 47 | N39: 1 | O39: 243748.3891 | P39: 18.29729269 | Q39: 32.0833648 | R39: 4459.935618 | S39: 7820.268485 | T39: 960.7396038 | U39: 11805.15355 | V39: 54213.68384 | Z39: 4 | AA39: ='2023 Rates - Females'!AA45 -> 385.9488198 | AB39: ='2023 Rates - Females'!AB45 -> 385.9488198 | AC39: ='2023 Rates - Females'!AC45 -> 289.9615485 | AD39: ='2023 Rates - Females'!AD45 -> 253.2271152 | AE39: ='2023 Rates - Females'!AE45 -> 204.7988039 | AF39: ='2023 Rates - Females'!AF45 -> 158.5587556 | AG39: ='2023 Rates - Females'!AG45 -> 127.3173641 | AH39: ='2023 Rates - Females'!AH45 -> 95.06894774 | AI39: ='2023 Rates - Females'!AI45 -> 73.31388556 | AJ39: ='2023 Rates - Females'!AJ45 -> 57.24601145 | AK39: ='2023 Rates - Females'!AK45 -> 34.98367366 | AL39: ='2023 Rates - Females'!AL45 -> 28.62300572 | AM39: ='2023 Rates - Females'!AM45 ->  | AO39: 49 | AP39: 6 | AR39: 59 | AS39: 42.7473228 | AT39: ='2023 Rates - Females'!AT45 -> 16.3763577 | AU39: ='2023 Rates - Females'!AU45 -> 26.3709651
L40: 21 | M40: 48 | N40: 1 | O40: 231468.185 | P40: 18.86318834 | Q40: 29.32523866 | R40: 4366.227968 | S40: 6787.859768 | T40: 910.9477156 | U40: 10844.41394 | V40: 49861.85259 | Z40: 5 | AA40: ='2023 Rates - Females'!AA46 -> 271.6821535 | AB40: ='2023 Rates - Females'!AB46 -> 271.6821535 | AC40: ='2023 Rates - Females'!AC46 -> 198.7918197 | AD40: ='2023 Rates - Females'!AD46 -> 169.6107924 | AE40: ='2023 Rates - Females'!AE46 -> 134.7983494 | AF40: ='2023 Rates - Females'!AF46 -> 102.5560463 | AG40: ='2023 Rates - Females'!AG46 -> 80.92310953 | AH40: ='2023 Rates - Females'!AH46 -> 60.42596722 | AI40: ='2023 Rates - Females'!AI46 -> 44.21939631 | AJ40: ='2023 Rates - Females'!AJ46 -> 34.32757299 | AK40: ='2023 Rates - Females'!AK46 -> 25.74567974 | AL40: ='2023 Rates - Females'!AL46 -> 21.45473312 | AM40: ='2023 Rates - Females'!AM46 ->  | AO40: 50 | AP40: 7 | AR40: 60 | AS40: 42.46876432 | AT40: ='2023 Rates - Females'!AT46 -> 15.28220235 | AU40: ='2023 Rates - Females'!AU46 -> 27.18656196
L41: 22 | M41: 49 | N41: 1 | O41: 220314.0972 | P41: 19.44658592 | Q41: 28.19012387 | R41: 4284.357021 | S41: 6210.681693 | T41: 865.7303394 | U41: 9933.466226 | V41: 45965.21874 | Z41: 6 | AA41: ='2023 Rates - Females'!AA47 -> 151.5465247 | AB41: ='2023 Rates - Females'!AB47 -> 151.5465247 | AC41: ='2023 Rates - Females'!AC47 -> 129.0396151 | AD41: ='2023 Rates - Females'!AD47 -> 98.56724623 | AE41: ='2023 Rates - Females'!AE47 -> 76.97994515 | AF41: ='2023 Rates - Females'!AF47 -> 58.56717723 | AG41: ='2023 Rates - Females'!AG47 -> 44.62655384 | AH41: ='2023 Rates - Females'!AH47 -> 33.32302349 | AI41: ='2023 Rates - Females'!AI47 -> 23.96334721 | AJ41: ='2023 Rates - Females'!AJ47 -> 18.38740148 | AK41: ='2023 Rates - Females'!AK47 -> 12.25826766 | AL41: ='2023 Rates - Females'!AL47 -> 9.806614125 | AM41: ='2023 Rates - Females'!AM47 ->  | AO41: 51 | AP41: 7 | AR41: 61 | AS41: 42.25011732 | AT41: ='2023 Rates - Females'!AT47 -> 14.22273385 | AU41: ='2023 Rates - Females'!AU47 -> 28.02738347
L42: 23 | M42: 50 | N42: 1 | O42: 209819.0585 | P42: 20.04802672 | Q42: 27.02594446 | R42: 4206.458092 | S42: 5670.558223 | T42: 823.234362 | U42: 9067.735887 | V42: 42397.66291 | Z42: 7 | AA42: ='2023 Rates - Females'!AA48 -> 120.6076259 | AB42: ='2023 Rates - Females'!AB48 -> 120.6076259 | AC42: ='2023 Rates - Females'!AC48 -> 107.7428125 | AD42: ='2023 Rates - Females'!AD48 -> 79.47410358 | AE42: ='2023 Rates - Females'!AE48 -> 60.28747337 | AF42: ='2023 Rates - Females'!AF48 -> 45.60107415 | AG42: ='2023 Rates - Females'!AG48 -> 33.74975327 | AH42: ='2023 Rates - Females'!AH48 -> 25.34838859 | AI42: ='2023 Rates - Females'!AI48 -> 18.22860513 | AJ42: ='2023 Rates - Females'!AJ48 -> 13.98705607 | AK42: ='2023 Rates - Females'!AK48 -> 9.324704047 | AL42: ='2023 Rates - Females'!AL48 -> 6.993528035 | AM42: ='2023 Rates - Females'!AM48 ->  | AO42: 52 | AP42: 7 | AR42: 62 | AS42: 42.09526516 | AT42: ='2023 Rates - Females'!AT48 -> 13.2010554 | AU42: ='2023 Rates - Females'!AU48 -> 28.89420976
L43: 24 | M43: 51 | N43: 1 | O43: 199942.0422 | P43: 20.66806878 | Q43: 25.84004382 | R43: 4132.415881 | S43: 5166.511132 | T43: 783.2869388 | U43: 8244.501525 | V43: 39130.10803 | Z43: 8 | AA43: ='2023 Rates - Females'!AA49 -> 101.2912415 | AB43: ='2023 Rates - Females'!AB49 -> 101.2912415 | AC43: ='2023 Rates - Females'!AC49 -> 91.48886331 | AD43: ='2023 Rates - Females'!AD49 -> 67.0929451 | AE43: ='2023 Rates - Females'!AE49 -> 50.01406841 | AF43: ='2023 Rates - Females'!AF49 -> 37.61070444 | AG43: ='2023 Rates - Females'!AG49 -> 27.1951948 | AH43: ='2023 Rates - Females'!AH49 -> 20.30688093 | AI43: ='2023 Rates - Females'!AI49 -> 14.60314184 | AJ43: ='2023 Rates - Females'!AJ49 -> 11.33643738 | AK43: ='2023 Rates - Females'!AK49 -> 6.298020768 | AL43: ='2023 Rates - Females'!AL49 -> 3.778812461 | AM43: ='2023 Rates - Females'!AM49 ->  | AO43: 53 | AP43: 7 | AR43: 63 | AS43: 42.68769639 | AT43: ='2023 Rates - Females'!AT49 -> 12.21976151 | AU43: ='2023 Rates - Females'!AU49 -> 30.46793488
L44: 25 | M44: 52 | N44: 1 | O44: 190643.1152 | P44: 21.3072874 | Q44: 24.63962596 | R44: 4062.087647 | S44: 4697.37505 | T44: 745.7205179 | U44: 7461.214586 | V44: 36135.82621 | Z44: 9 | AA44: ='2023 Rates - Females'!AA50 -> 86.0638543 | AB44: ='2023 Rates - Females'!AB50 -> 86.0638543 | AC44: ='2023 Rates - Females'!AC50 -> 80.79463873 | AD44: ='2023 Rates - Females'!AD50 -> 58.22440381 | AE44: ='2023 Rates - Females'!AE50 -> 42.90056052 | AF44: ='2023 Rates - Females'!AF50 -> 32.07403101 | AG44: ='2023 Rates - Females'!AG50 -> 23.191789 | AH44: ='2023 Rates - Females'!AH50 -> 17.11700935 | AI44: ='2023 Rates - Females'!AI50 -> 12.30923233 | AJ44: ='2023 Rates - Females'!AJ50 -> 9.555672547 | AK44: ='2023 Rates - Females'!AK50 -> 4.095288235 | AL44: ='2023 Rates - Females'!AL50 -> 1.365096078 | AM44: ='2023 Rates - Females'!AM50 ->  | AO44: 54 | AP44: 7 | AR44: 64 | AS44: 43.36477998 | AT44: ='2023 Rates - Females'!AT50 -> 11.28093918 | AU44: ='2023 Rates - Females'!AU50 -> 32.0838408
L45: 26 | M45: 53 | N45: 1 | O45: 181883.6525 | P45: 21.96627567 | Q45: 23.43168005 | R45: 3995.306452 | S45: 4261.839553 | T45: 710.373642 | U45: 6715.494068 | V45: 33390.31142 | Z45: 10 | AA45: ='2023 Rates - Females'!AA51 -> 80.56518669 | AB45: ='2023 Rates - Females'!AB51 -> 80.56518669 | AC45: ='2023 Rates - Females'!AC51 -> 72.89231177 | AD45: ='2023 Rates - Females'!AD51 -> 52.52961659 | AE45: ='2023 Rates - Females'!AE51 -> 38.25645602 | AF45: ='2023 Rates - Females'!AF51 -> 28.60192832 | AG45: ='2023 Rates - Females'!AG51 -> 20.92345656 | AH45: ='2023 Rates - Females'!AH51 -> 14.99973338 | AI45: ='2023 Rates - Females'!AI51 -> 10.66176754 | AJ45: ='2023 Rates - Females'!AJ51 -> 8.325075965 | AK45: ='2023 Rates - Females'!AK51 -> 4.995045579 | AL45: ='2023 Rates - Females'!AL51 -> 0 | AM45: ='2023 Rates - Females'!AM51 ->  | AO45: 55 | AP45: 8 | AR45: 65 | AS45: 44.10576542 | AT45: ='2023 Rates - Females'!AT51 -> 10.38618994 | AU45: ='2023 Rates - Females'!AU51 -> 33.71957548
L46: 27 | M46: 54 | N46: 1 | O46: 173626.5065 | P46: 22.64564503 | Q46: 22.22292467 | R46: 3931.884233 | S46: 3858.488775 | T46: 677.0915662 | U46: 6005.120426 | V46: 30871.14725 | AO46: 56 | AP46: 8 | AR46: 66 | AS46: 44.88520486 | AT46: ='2023 Rates - Females'!AT52 -> 9.536647306 | AU46: ='2023 Rates - Females'!AU52 -> 35.34855755
L47: 28 | M47: 55 | N47: 1 | O47: 165836.1335 | P47: 23.3460258 | Q47: 21.01974738 | R47: 3871.614651 | S47: 3485.833633 | T47: 645.7267029 | U47: 5328.02886 | V47: 28557.87218 | AO47: 57 | AP47: 8 | AR47: 67 | AS47: 45.67297074 | AT47: ='2023 Rates - Females'!AT53 -> 8.733004612 | AU47: ='2023 Rates - Females'!AU53 -> 36.93996612
L48: 29 | M48: 56 | N48: 1 | O48: 158478.6852 | P48: 24.06806783 | Q48: 19.8281525 | R48: 3814.275746 | S48: 3142.339539 | T48: 616.1389266 | U48: 4682.302157 | V48: 26431.84514 | AO48: 58 | AP48: 8 | AR48: 68 | AS48: 46.43452652 | AT48: ='2023 Rates - Females'!AT54 -> 7.975540591 | AU48: ='2023 Rates - Females'!AU54 -> 38.45898593
L49: 30 | M49: 57 | N49: 1 | O49: 151522.0699 | P49: 24.81244107 | Q49: 18.65372046 | R49: 3759.63243 | S49: 2826.450335 | T49: 588.195758 | U49: 4066.16323 | V49: 24476.11335 | AB49: (d) | AO49: 59 | AP49: 8 | AR49: 69 | AS49: 47.13148257 | AT49: ='2023 Rates - Females'!AT55 -> 7.264154202 | AU49: ='2023 Rates - Females'!AU55 -> 39.86732837
L50: 31 | M50: 58 | N50: 1 | O50: 144935.9872 | P50: 25.57983615 | Q50: 17.50157523 | R50: 3707.438804 | S50: 2536.608083 | T50: 561.7724432 | U50: 3477.967472 | V50: 22675.28393 | Z50: PROBABILITY OF DEATH (1,000Q[X]+T) - SELECT PERIOD@ | AO50: 60 | AP50: 9 | AR50: 70 | AS50: 47.72244474 | AT50: ='2023 Rates - Females'!AT56 -> 6.598395993 | AU50: ='2023 Rates - Females'!AU56 -> 41.12404874
L51: 32 | M51: 59 | N51: 1 | O51: 138691.9403 | P51: 26.3709651 | Q51: 16.3763577 | R51: 3657.440317 | S51: 2271.268824 | T51: 536.7519467 | U51: 2916.195029 | V51: 21015.40019 | Z51: Central Age => | AA51: 17 | AB51: 22 | AC51: 27 | AD51: 32 | AE51: 37 | AF51: 42 | AG51: 47 | AH51: 52 | AI51: 57 | AJ51: 62 | AK51: 67 | AL51: 72 | AM51: 73 | AO51: 61 | AP51: 9 | AR51: 71 | AS51: 49.05527216 | AT51: ='2023 Rates - Females'!AT57 -> 5.888074656 | AU51: ='2023 Rates - Females'!AU57 -> 43.1671975
L52: 33 | M52: 60 | N52: 1 | O52: 132763.2311 | P52: 27.18656196 | Q52: 15.28220235 | R52: 3609.37581 | S52: 2028.914563 | T52: 513.0248751 | U52: 2379.443082 | V52: 19483.82382 | AO52: 62 | AP52: 9 | AR52: 72 | AS52: 50.35898638 | AT52: ='2023 Rates - Females'!AT58 -> 5.148640115 | AU52: ='2023 Rates - Females'!AU58 -> 45.21034626
L53: 34 | M53: 61 | N53: 1 | O53: 127124.9408 | P53: 28.02738347 | Q53: 14.22273385 | R53: 3562.979463 | S53: 1808.064199 | T53: 490.4893463 | U53: 1866.418207 | V53: 18069.12339 | Z53: Year of Dis. | AO53: 63 | AP53: 9 | AR53: 73 | AS53: 52.67155471 | AT53: ='2023 Rates - Females'!AT59 -> 4.396485307 | AU53: ='2023 Rates - Females'!AU59 -> 48.2750694
L54: 35 | M54: 62 | N54: 1 | O54: 121753.8971 | P54: 28.89420976 | Q54: 13.2010554 | R54: 3517.982642 | S54: 1607.279941 | T54: 469.0508114 | U54: 1375.928861 | V54: 16760.9693 | Z54: 1 (3rd qtr.) | AA54: ='2023 Rates - Females'!AA60 -> 5.530907506 | AB54: ='2023 Rates - Females'!AB60 -> 6.637089007 | AC54: ='2023 Rates - Females'!AC60 -> 8.84945201 | AD54: ='2023 Rates - Females'!AD60 -> 10.45216947 | AE54: ='2023 Rates - Females'!AE60 -> 12.4178351 | AF54: ='2023 Rates - Females'!AF60 -> 14.7748551 | AG54: ='2023 Rates - Females'!AG60 -> 17.58120305 | AH54: ='2023 Rates - Females'!AH60 -> 20.84041894 | AI54: ='2023 Rates - Females'!AI60 -> 24.75267357 | AJ54: ='2023 Rates - Females'!AJ60 -> 25.91170743 | AK54: ='2023 Rates - Females'!AK60 -> 24.29222572 | AL54: ='2023 Rates - Females'!AL60 -> 22.672744 | AM54: ='2023 Rates - Females'!AM60 ->  | AO54: 64 | AP54: 9 | AR54: 74 | AS54: 54.98842414 | AT54: ='2023 Rates - Females'!AT60 -> 3.648631602 | AU54: ='2023 Rates - Females'!AU60 -> 51.33979254
L55: 36 | M55: 63 | N55: 1 | O55: 116628.6345 | P55: 30.46793488 | Q55: 12.21976151 | R55: 3553.433641 | S55: 1425.174099 | T55: 458.8643824 | U55: 906.8780496 | V55: 15550.03569 | Z55: 1 (4th qtr.) | AA55: ='2023 Rates - Females'!AA61 -> 7.032688725 | AB55: ='2023 Rates - Females'!AB61 -> 8.43922647 | AC55: ='2023 Rates - Females'!AC61 -> 11.25230196 | AD55: ='2023 Rates - Females'!AD61 -> 13.29019773 | AE55: ='2023 Rates - Females'!AE61 -> 15.78959128 | AF55: ='2023 Rates - Females'!AF61 -> 18.7866018 | AG55: ='2023 Rates - Females'!AG61 -> 22.35494416 | AH55: ='2023 Rates - Females'!AH61 -> 26.49911956 | AI55: ='2023 Rates - Females'!AI61 -> 31.47365023 | AJ55: ='2023 Rates - Females'!AJ61 -> 32.94739109 | AK55: ='2023 Rates - Females'!AK61 -> 30.88817915 | AL55: ='2023 Rates - Females'!AL61 -> 28.82896721 | AM55: ='2023 Rates - Females'!AM61 ->  | AO55: 65 | AP55: 10 | AR55: 75 | AS55: 57.32692573 | AT55: ='2023 Rates - Females'!AT61 -> 2.92241005 | AU55: ='2023 Rates - Females'!AU61 -> 54.40451568
L56: 37 | M56: 64 | N56: 1 | O56: 111650.0268 | P56: 32.0838408 | Q56: 11.28093918 | R56: 3582.161684 | S56: 1259.517161 | T56: 448.0136672 | U56: 448.0136672 | V56: 14417.66634 | Z56: 2 (1st qtr.) | AA56: ='2023 Rates - Females'!AA62 -> 6.652856896 | AB56: ='2023 Rates - Females'!AB62 -> 7.983428276 | AC56: ='2023 Rates - Females'!AC62 -> 10.64457103 | AD56: ='2023 Rates - Females'!AD62 -> 12.57240112 | AE56: ='2023 Rates - Females'!AE62 -> 14.93680374 | AF56: ='2023 Rates - Females'!AF62 -> 17.77194729 | AG56: ='2023 Rates - Females'!AG62 -> 21.14756535 | AH56: ='2023 Rates - Females'!AH62 -> 25.06791602 | AI56: ='2023 Rates - Females'!AI62 -> 29.7737749 | AJ56: ='2023 Rates - Females'!AJ62 -> 31.16791978 | AK56: ='2023 Rates - Females'!AK62 -> 29.2199248 | AL56: ='2023 Rates - Females'!AL62 -> 27.27192981 | AM56: ='2023 Rates - Females'!AM62 ->  | AO56: 66 | AP56: 10 | AR56: 76 | AS56: 60.72596869 | AT56: ='2023 Rates - Females'!AT62 -> 2.235155493 | AU56: ='2023 Rates - Females'!AU62 -> 58.4908132
L57: 38 | M57: 65 | N57: 0 | O57: 106808.3479 | P57: 33.71957548 | Q57: 10.38618994 | R57: 3601.53215 | S57: 1109.331789 | T57: 0 | U57: 0 | V57: 13358.30257 | Z57: 2 (2nd qtr.) | AA57: ='2023 Rates - Females'!AA63 -> 6.067904545 | AB57: ='2023 Rates - Females'!AB63 -> 7.416327777 | AC57: ='2023 Rates - Females'!AC63 -> 9.438962625 | AD57: ='2023 Rates - Females'!AD63 -> 11.1484459 | AE57: ='2023 Rates - Females'!AE63 -> 13.24505532 | AF57: ='2023 Rates - Females'!AF63 -> 15.75908937 | AG57: ='2023 Rates - Females'!AG63 -> 18.75238357 | AH57: ='2023 Rates - Females'!AH63 -> 22.22871374 | AI57: ='2023 Rates - Females'!AI63 -> 26.40158514 | AJ57: ='2023 Rates - Females'!AJ63 -> 27.63782862 | AK57: ='2023 Rates - Females'!AK63 -> 24.7787429 | AL57: ='2023 Rates - Females'!AL63 -> 21.91965718 | AM57: ='2023 Rates - Females'!AM63 ->  | AO57: 67 | AP57: 10 | AR57: 77 | AS57: 64.18105156 | AT57: ='2023 Rates - Females'!AT63 -> 1.603940836 | AU57: ='2023 Rates - Females'!AU63 -> 62.57711072
L58: 39 | M58: 66 | N58: 0 | O58: 102097.484 | P58: 35.34855755 | Q58: 9.536647306 | R58: 3608.998789 | S58: 973.6676957 | T58: 0 | U58: 0 | V58: 12367.19072 | Z58: 2 (3rd qtr.) | AA58: ='2023 Rates - Females'!AA64 -> 5.346316778 | AB58: ='2023 Rates - Females'!AB64 -> 6.534387173 | AC58: ='2023 Rates - Females'!AC64 -> 8.316492766 | AD58: ='2023 Rates - Females'!AD64 -> 9.822686388 | AE58: ='2023 Rates - Females'!AE64 -> 11.66996958 | AF58: ='2023 Rates - Females'!AF64 -> 13.88503779 | AG58: ='2023 Rates - Females'!AG64 -> 16.52237311 | AH58: ='2023 Rates - Females'!AH64 -> 19.58530236 | AI58: ='2023 Rates - Females'!AI64 -> 23.26194102 | AJ58: ='2023 Rates - Females'!AJ64 -> 24.35117193 | AK58: ='2023 Rates - Females'!AK64 -> 23.4145884 | AL58: ='2023 Rates - Females'!AL64 -> 20.60483779 | AM58: ='2023 Rates - Females'!AM64 ->  | AO58: 68 | AP58: 10 | AR58: 78 | AS58: 67.70881161 | AT58: ='2023 Rates - Females'!AT64 -> 1.045403375 | AU58: ='2023 Rates - Females'!AU64 -> 66.66340824
